Workbook

Sheet Offerte (hidden)
A10: Wanneer nodig verder uitwerken…
A12: Geachte | B12: =IF(Informatie!#REF!="M","meneer","mevrouw") ->  | C12: =Informatie!C5 -> Persoon 2
A14: Hierbij ontvangt u een overzicht van de excedentregeling van PMT.
A15: In 2015 is het maximale bedrag voor de opbouw van het pensioen naar
A16: =Parameters!C4 -> 86202 | B16: …………………………………………………………..
A17: het excedentbedrag een aangepaste opbouw van het pensioen krijgen.
A18: Uw werkgever heeft ervoor gekozen om……

Sheet Invulinstructie
B2: Invulinstructie excedentregeling sheet
B4: Doel: | E4: Met behulp van de rekensheet is het mogelijk om informatie te krijgen over de excedentregeling van PMT. Door de werkgever zelf een keuze
E5: te geven om voor een hoge of lage opbouwpercentage te laten kiezen, kan direct gezien worden welke kosten hieraan verbonden zijn.
E6: Vanaf 2016 kan de werkgever ook kiezen om niet deel te nemen. Naast de lasten voor de werkgever
E7: is het ook mogelijk om per deelnemer te kijken wat de keuze van de werkgever betekent voor zijn medewerker. De rekensheet kan zowel voor het
E8: huidige jaar als het volgende jaar de lasten berekenen.
B10: Algemene informatie: | E10: De rekentool bevat drie sheets: "Informatie", "Overzicht deelnemers" en "Parameters". Bij de "Informatie" sheet is het mogelijk om een overzichtelijk beeld
E11: te krijgen per deelnemer. Elke deelnemer kan geselecteerd worden waarbij een overzicht komt voor de extra opbouw en de hierbij horende premie.
E12: Ook staat hierin de minimale en de maximale kosten voor de werkgever. In de sheet hoeft niks ingevuld te worden. Alleen een keuze gemaakt te
E13: worden tussen de verschillende opties (lage opbouw, hoge of evt geen deelname) en het selecteren van de juiste deelnemer.
E15: Bij de sheet "Overzicht deelnemers" is het nodig om de witte cellen in te vullen (ID nummer, Naam, Jaarsalaris en de geboortedatum). De gekleurde cellen
E16: worden hierbij direct gevuld.
E18: Bij de sheet "Parameters" is het mogelijk om de paramaters in te vullen. Hierbij is het mogelijk om zowel de parameters van het huidige jaar als het volgende jaar in te
E19: ="vullen. Dus wordt bijvoorbeeld het opbouwpercentage van "&YEAR(TODAY()) +1& " verlaagd, dan verander je de parameter voor het jaar "& YEAR(TODAY()) +1&" en laat je voor "&YEAR(TODAY())& " de parameters ongewijzigd." -> vullen. Dus wordt bijvoorbeeld het opbouwpercentage van 2023 verlaagd, dan verander je de parameter voor het jaar 2023 en laat je voor 2022 de parameters ongewijzigd.
E20: De tekst loopt met het huidige jaar mee. Hierdoor is het altijd mogelijk om de parameters voor het huidige jaar in te vullen en het volgende jaar.
B22: Worksheet "Informatie":
C24: Cell
C26: C-3: | E26: In deze cel staat een dropdown menu. Klik op het pijltje om de juiste deelnemer/werknemer te kiezen. Wanneer er geen deelnemer gekozen wordt, zal er geen informatie opgehaald worden.
E27: Zorg er dus voor dat altijd het ID nummer ingevuld wordt in de sheet "Overzicht deelnemers".
C29: G-3: | E29: Deze cel is het mogelijk om keuze te maken tussen een hoge opbouwpercentage of een lage opbouwpercentage. Vanaf het jaar 2016 kan ook een keuze gemaakt worden om niet deel te nemen
E30: aan de excedentregeling.
C32: C8, C9, C11 en C12 | E32: Deze formules dienen jaarlijks aangepast te worden.
C34: B3:C17: | E34: In dit cellenbereik wordt de informatie van de klant weergegeven. Bij een foutmelding betekent het dat je of geen deelnemer hebt geselecteerd (zie Cell C-3) of de sheet "Overzicht deelnemers"
E35: niet volledig hebt ingevuld.
C37: B19:C23: | E37: Dit cellenbereik geeft de informatie voor de werkgever weer. Hierbij wordt zowel de totale kosten (premies) als de minimale bijdrage voor de werkgever.
B39: Worksheet "Overzicht deelnemers":
C41: Kolom
C43: A: | E43: In deze kolom vul je de ID-nummers in. Er is ruimte voor 200 deelnemers. Bij minder deelnemers laat de ruimtes wit en selecteer in de sheet "Parameters" de juiste deelnemer.
C45: B: | E45: Vul in deze kolom de naam van de deelnemer/werknemer in.
C47: C: | E47: Vul hier het jaarsalaris in. Wanneer je een te laag jaarsalaris invult, kan er niet deelgenomen worden aan de regeling en blijven de gekleurde cellen voor de opbouw en premies leeg.
C49: D: | E49: Vul hier de parttimefactor in. Werkt de deelnemer full-time vul dan 100% in.
C51: H: | E51: Vul hier de geboortedatum in.
C53: Opmerking: | E53: Zorg ervoor dat alle velden (correct) ingevuld worden, zodat alle gekleurde velden correct automatisch ingevuld worden.
E54: Bij te weinig deelnemers laat je de overige velden leeg.
E55: Bij te veel deelnemers kan je niet zo maar rijen invoegen. Hiervoor moeten er aanpassingen gedaan worden in de sheet
B56: Worksheet "Parameters":
C58: Cell
C60: Algemene informatie: | E60: Alle gekleurde cellen (ook tekst) worden automatisch ingevuld. De witte cellen kunnen zelf aangepast worden.
C63: B2:C4 | E63: In dit cellenbereik staan het minimale bedrag en het maximale bedrag van de excedentregeling. Verandert in 2020 bijvoorbeeld het minimale bedrag naar €50.000 dan kan je dit aanpassen.
E64: Wel moet je rekening houden met het huidige jaar (in dit voorbeeld 2020) dat de berekening aangepast wordt naar €50.000. Om dus weer de correct lasten van het huidige jaar (2020) te kunnen
E65: zien, zal je het minimale bedrag weer terug moeten zetten. Wordt het huidige jaar 2021 kan je het minimale bedrag weer onaangepast laten staan tot de volgende aanpassing. Zelfde
E66: het maximale bedrag.
C68: B11:C13 | E68: In dit cellenbereik staan de opbouwpercentages van het huidige jaar. De tekst van de header past zich mee aan in welk jaar je zit. Is het dus bijvoorbeeld 01-01-2020 laat de tekst
E69: "Informatie opbouwpercentage 2020 (huidige jaar)" zien. Hier vul je dan de parameters van het jaar 2020 invullen.
C71: B15:C17 | E71: In dit cellenbereik staan de opbouwpercentages van het volgende jaar. De tekst van de header past zich mee aan het huidige jaar. Is het dus bijvoorbeeld 01-01-2020 laat de tekst
E72: "Informatie opbouwpercentage 2021 (volgend jaar)" zien. Hier vul je dan de parameters van het jaar 2021 in.
C74: B19:C21 | E74: In deze cellen staan de maximale eigenbijdrages die de werkgevers in mogen houden. Voor zowel het huidige jaar als het volgende jaar is het mogelijk om dit aan te passen.
C76: E2:G50 | E76: Hierin staan de premiepercentages afhankelijk van de leeftijd. Wanneer de premiepercentage verandert, is het dus weer nodig om rekening te houden met het huidige en volgende jaar.
E77: Wordt in 2021 bijvoorbeeld de percentages aangepast (huidige jaar is 2020), zal voor de premieberekening voor 2020 de premiepercentages weer terug aangepast moeten worden.
C79: I2:K4 | E79: Dit cellenbereik gaf de constante percentage van 2015 weer. Is per 1-1-2016 uit de sheet verwijderd (leeggemaakt).
C81: I12:M21 | E81: In dit cellenbereik moet voor het huidige jaar de premiepercentages (Lage keuze) ingevuld worden. Ook de intervallen moeten bij verandering aangepast worden.
C82: I29:M38 | E82: In dit cellenbereik moet voor het huidige jaar de premiepercentages (Hoge keuze) ingevuld worden. Ook de intervallen moeten bij verandering aangepast worden.
C83: I51:M60 | E83: In dit cellenbereik moet voor het volgende jaar de premiepercentages (Lage keuze) ingevuld worden. Ook de intervallen moeten bij verandering aangepast worden.
C84: I68:M77 | E84: In dit cellenbereik moet voor het volgende jaar de premiepercentages (Hoge keuze) ingevuld worden. Ook de intervallen moeten bij verandering aangepast worden.
C86: I23:J27 | E86: Dit cellenbereik is volledig automatisch. Hierin wordt het percentage voor de eigenbijdrage berekent voor het huidige jaar (keuze laag).
C87: I40:J44 | E87: Dit cellenbereik is volledig automatisch. Hierin wordt het percentage voor de eigenbijdrage berekent voor het huidige jaar (keuze hoog).
C88: I62:J66 | E88: Dit cellenbereik is volledig automatisch. Hierin wordt het percentage voor de eigenbijdrage berekent voor het volgende jaar (keuze laag).
C89: I79/J83 | E89: Dit cellenbereik is volledig automatisch. Hierin wordt het percentage voor de eigenbijdrage berekent voor het volgende jaar (keuze hoog).
C91: L23/M26 | E91: Dit cellenbereik is volledig automatisch. Hierin wordt de doorsneepremie berekent voor het huidige jaar (keuze laag)
C92: L40/M43 | E92: Dit cellenbereik is volledig automatisch. Hierin wordt de doorsneepremie berekent voor het huidige jaar (keuze hoog)
C93: L62/M65 | E93: Dit cellenbereik is volledig automatisch. Hierin wordt de doorsneepremie berekent voor het volgende jaar (keuze laag)
C94: L79/M82 | E94: Dit cellenbereik is volledig automatisch. Hierin wordt de doorsneepremie berekent voor het volgende jaar (keuze laag)

Sheet Informatie
A1: 2 | B1: Datum | C1: 2023-01-01 | G1: 2 | H1: Hoge opbouwpercentage
H2: Lage opbouwpercentage
B3: Klantinformatie | F3: Keuzemogelijkheid | G3: =INDEX(H1:H3,G1,1) -> Lage opbouwpercentage | H3: =IF(YEAR(C1)=2015,"Maak een keuze uit Hoge/Lage opbouwpercentage","Geen deelname") -> Geen deelname
B4: ID nummer | C4: =INDEX('Overzicht deelnemers'!A2:A101,Informatie!A1) -> 222222
B5: Naam | C5: =VLOOKUP(C4,'Overzicht deelnemers'!1:1048576,2,FALSE) -> Persoon 2
B6: Geboortedatum | C6: =VLOOKUP(C4,'Overzicht deelnemers'!1:1048576,8,FALSE) -> 1971-02-09
B7: Jaarsalaris | C7: =VLOOKUP(C4,'Overzicht deelnemers'!1:1048576,3,FALSE) -> 90000
B8: (Extra) Pensioen opbouw | C8: =IF(G3="Geen deelname",0,IF(G3="Lage opbouwpercentage",IF(YEAR(C1)=2023,VLOOKUP(C4,'Overzicht deelnemers'!1:1048576,11,FALSE),VLOOKUP(C4,'Overzicht deelnemers'!1:1048576,15,FALSE)),IF(G3="Hoge opbouwpercentage",IF(YEAR(C1)=2023,VLOOKUP(C4,'Overzicht deelnemers'!1:1048576,19,FALSE),VLOOKUP(C4,'Overzicht deelnemers'!1:1048576,23,FALSE))))) -> 53.93
B9: ="(Extra) Premie "& YEAR(C1) -> (Extra) Premie 2023 | C9: =IF(YEAR(C1)=2023,IF(G3="Lage opbouwpercentage",VLOOKUP(C4,'Overzicht deelnemers'!1:1048576,12,FALSE),IF(G3="Hoge opbouwpercentage",VLOOKUP(C4,'Overzicht deelnemers'!1:1048576,20,FALSE),)),IF(YEAR(C1)>2023,IF(G3="Lage opbouwpercentage",VLOOKUP(C4,'Overzicht deelnemers'!1:1048576,16,FALSE),IF(G3="Hoge opbouwpercentage",VLOOKUP(C4,'Overzicht deelnemers'!1:1048576,24,FALSE),0)))) -> 892.53
B10: ="Leeftijd "& YEAR(C1) -> Leeftijd 2023 | C10: =VLOOKUP(C4,'Overzicht deelnemers'!1:1048576,9,FALSE) -> 52
B11: ="Max Eigen bijdrage premie "&YEAR(C1) -> Max Eigen bijdrage premie 2023 | C11: =IF(YEAR(C1)=2023,IF(G3="Lage opbouwpercentage",VLOOKUP(C4,'Overzicht deelnemers'!1:1048576,13,FALSE),IF(G3="Hoge opbouwpercentage",VLOOKUP(C4,'Overzicht deelnemers'!1:1048576,21,FALSE),)),IF(YEAR(C1)>2023,IF(G3="Lage opbouwpercentage",VLOOKUP(C4,'Overzicht deelnemers'!1:1048576,17,FALSE),IF(G3="Hoge opbouwpercentage",VLOOKUP(C4,'Overzicht deelnemers'!1:1048576,25,FALSE),0)))) -> 474.822162
B12: ="Min Werkgeversbijdrage premie "&YEAR(C1) -> Min Werkgeversbijdrage premie 2023 | C12: =IF(YEAR(C1)=2023,IF(G3="Lage opbouwpercentage",VLOOKUP(C4,'Overzicht deelnemers'!1:1048576,14,FALSE),IF(G3="Hoge opbouwpercentage",VLOOKUP(C4,'Overzicht deelnemers'!1:1048576,22,FALSE),)),IF(YEAR(C1)>2023,IF(G3="Lage opbouwpercentage",VLOOKUP(C4,'Overzicht deelnemers'!1:1048576,18,FALSE),IF(G3="Hoge opbouwpercentage",VLOOKUP(C4,'Overzicht deelnemers'!1:1048576,26,FALSE),0)))) -> 417.71
B13: ="(Extra) Pensioen opbouw "&YEAR(C1 )+1 -> (Extra) Pensioen opbouw 2024 | C13: =IF(G3="Geen deelname",0,IF(G3="Lage opbouwpercentage",VLOOKUP(C4,'Overzicht deelnemers'!1:1048576,15,FALSE),VLOOKUP(C4,'Overzicht deelnemers'!1:1048576,23,FALSE))) -> 53.93
B14: ="(Extra) Premie "&YEAR(C1)+1 -> (Extra) Premie 2024 | C14: =IF(G3="Geen deelname",0,IF(G3="Lage opbouwpercentage",VLOOKUP(C4,'Overzicht deelnemers'!1:1048576,16,FALSE),IF(G3="Hoge opbouwpercentage",VLOOKUP(C4,'Overzicht deelnemers'!1:1048576,24,FALSE),""))) -> 892.53
B15: ="Leeftijd "&YEAR(C1)+1 -> Leeftijd 2024 | C15: =VLOOKUP(C4,'Overzicht deelnemers'!1:1048576,10,FALSE) -> 53
B16: ="Max Eigen bijdrage premie "&YEAR(C1)+1 -> Max Eigen bijdrage premie 2024 | C16: =IF(G3="Geen deelname",0,IF(G3="Lage opbouwpercentage",VLOOKUP(C4,'Overzicht deelnemers'!1:1048576,17,FALSE),IF(G3="Hoge opbouwpercentage",VLOOKUP(C4,'Overzicht deelnemers'!1:1048576,25,FALSE),""))) -> 474.82
B17: ="Min Werkgeversbijdrage premie "&YEAR(C1)+1 -> Min Werkgeversbijdrage premie 2024 | C17: =IF(G3="Geen deelname",0,IF(G3="Lage opbouwpercentage",VLOOKUP(C4,'Overzicht deelnemers'!1:1048576,18,FALSE),IF(G3="Hoge opbouwpercentage",VLOOKUP(C4,'Overzicht deelnemers'!1:1048576,26,FALSE),""))) -> 417.71
B19: Informatie werkgever
B20: ="Jaarlijkse kosten "&YEAR(C1) -> Jaarlijkse kosten 2023 | C20: =IF(G3="lage opbouwpercentage",VLOOKUP("werkgever",'Overzicht deelnemers'!1:1048576,12,FALSE),IF(G3="Hoge opbouwpercentage",VLOOKUP("werkgever",'Overzicht deelnemers'!1:1048576,20,FALSE),0)) -> 12396.69
B21: ="Min werkgevers bijdrage "&YEAR(C1) -> Min werkgevers bijdrage 2023 | C21: =IF(G3="lage opbouwpercentage",VLOOKUP("werkgever",'Overzicht deelnemers'!1:1048576,14,FALSE),IF(G3="Hoge opbouwpercentage",VLOOKUP("werkgever",'Overzicht deelnemers'!1:1048576,22,FALSE),0)) -> 6595.06
B22: ="Jaarlijkse kosten "& YEAR(C1)+1 -> Jaarlijkse kosten 2024 | C22: =IF(G3="lage opbouwpercentage",VLOOKUP("werkgever",'Overzicht deelnemers'!1:1048576,16,FALSE),IF(G3="Hoge opbouwpercentage",VLOOKUP("werkgever",'Overzicht deelnemers'!1:1048576,24,FALSE),0)) -> 12396.69
B23: ="Min werkgevers bijdrage "& YEAR(C1)+1 -> Min werkgevers bijdrage 2024 | C23: =IF(G3="lage opbouwpercentage",VLOOKUP("werkgever",'Overzicht deelnemers'!1:1048576,18,FALSE),IF(G3="Hoge opbouwpercentage",VLOOKUP("werkgever",'Overzicht deelnemers'!1:1048576,26,FALSE),0)) -> 6595.06
B25: Let op: de leeftijd is bepaald op 31 december van het kalenderjaar.

Sheet Overzicht deelnemers
A1: Persoonsnummer | B1: Naam | C1: Jaarsalaris | D1: Parttime factor | E1: Parttime jaarsalaris | F1: Max opbouw jaarsalaris | G1: Excedent bedrag | H1: Geboortedatum | I1: Leeftijd (31-12-huidige jaar) | J1: Leeftijd (31-12-volgend jaar) | K1: ="Jaarlijkse excedent opbouw"& YEAR(Informatie!C1)&" (keuze lage opbouw)" -> Jaarlijkse excedent opbouw2023 (keuze lage opbouw) | L1: ="Premie "&YEAR(Informatie!C1) -> Premie 2023 | M1: Max eigen bijdrage werknemer | N1: Min Bijdrage werkgever | O1: ="Jaarlijkse excedent opbouw"& YEAR(Informatie!C1) +1&" (keuze lage opbouw)" -> Jaarlijkse excedent opbouw2024 (keuze lage opbouw) | P1: ="Premie "&YEAR(Informatie!C1) +1 -> Premie 2024 | Q1: Max eigen bijdrage werknemer | R1: Min eigen bijdrage werkgever | S1: ="Jaarlijkse excedent opbouw"& YEAR(Informatie!C1)&" (keuze hoge opbouw)" -> Jaarlijkse excedent opbouw2023 (keuze hoge opbouw) | T1: ="Premie "&YEAR(Informatie!C1)&" (huidige jaar)" -> Premie 2023 (huidige jaar) | U1: Max eigen bijdrage werknemer | V1: Min bijdrage werkgever | W1: ="Jaarlijkse excedent opbouw"& YEAR(Informatie!C1) + 1&" (keuze hoge opbouw)" -> Jaarlijkse excedent opbouw2024 (keuze hoge opbouw) | X1: ="Premie " &YEAR(Informatie!C1)+1& " (hoog)" -> Premie 2024 (hoog) | Y1: Max eigen bijdrage werknemer | Z1: Min bijdrage werkgever
A2: 111111 | B2: Persoon 1 | C2: 150000 | D2: 1 | E2: =C2*D2 -> 150000 | F2: =IF(C2="",0,IF(C2<=Parameters!$C$3,C2,Parameters!$C$3)) -> 128810 | G2: =IF(C2="","",IF(F2<Parameters!$C$4,"",(F2-Parameters!$C$4)*D2)) -> 42608 | H2: 1965-05-09 | I2: =IF(H2="","",YEAR(+Informatie!$C$1)-YEAR(H2)) -> 58 | J2: =IF(H2="","",I2+1) -> 59 | K2: =IF(G2="","",ROUND(G2*Parameters!$C$12,2)) -> 605.03 | L2: =IF(G2="","",IF(YEAR(Informatie!$C$1)=2015,ROUND(G2*Parameters!$J$27,2),ROUND(G2*VLOOKUP('Overzicht deelnemers'!I2,Parameters!$E$4:$G$49,2,FALSE),2))) -> 11504.16 | M2: =IF(G2="","",IF(YEAR(Informatie!$C$1)=2015,ROUND(L2*Parameters!$C$20,2),G2*Parameters!$J$27)) -> 5326.809552 | N2: =IF(G2="","",ROUND(L2-M2,2)) -> 6177.35 | O2: =IF(G2="","",ROUND(G2*Parameters!$C$16,2)) -> 605.03 | P2: =IF(G2="","",ROUND(G2*VLOOKUP(J2,Parameters!$E$3:$F$49,2,FALSE),2)) -> 11504.16 | Q2: =IF(G2="","",ROUND(G2*Parameters!$J$66,2)) -> 5326.81 | R2: =IF(G2="","",ROUND(P2-Q2,2)) -> 6177.35 | S2: =IF(G2="","",ROUND(G2*Parameters!$C$13,2)) -> 749.9 | T2: =IF(G2="","",IF(YEAR(Informatie!$C$1)=2015,ROUND(G2*Parameters!J$44,2),ROUND(G2*VLOOKUP('Overzicht deelnemers'!I2,Parameters!$E$4:$G$49,3,FALSE),2))) -> 14273.68 | U2: =IF(G2="","",IF(YEAR(Informatie!$C$1)=2015,ROUND(T2*Parameters!$C$20,2),ROUND(G2*Parameters!$J$44,2))) -> 6609.91 | V2: =IF(G2="","",ROUND(T2-U2,2)) -> 7663.77 | W2: =IF(G2="","",ROUND(G2*Parameters!C$17,2)) -> 749.9 | X2: =IF(G2="","",ROUND(G2*VLOOKUP(J2,Parameters!E$4:G$49,3),2)) -> 14273.68 | Y2: =IF(G2="","",ROUND(G2*Parameters!J$83,2)) -> 6609.91 | Z2: =IF(G2="","",ROUND(X2-Y2,2)) -> 7663.77
A3: 222222 | B3: Persoon 2 | C3: 90000 | D3: 1 | E3: =C3*D3 -> 90000 | F3: =IF(C3="",0,IF(C3<=Parameters!$C$3,C3,Parameters!$C$3)) -> 90000 | G3: =IF(C3="","",IF(F3<Parameters!$C$4,"",(F3-Parameters!$C$4)*D3)) -> 3798 | H3: 1971-02-09 | I3: =IF(H3="","",YEAR(+Informatie!$C$1)-YEAR(H3)) -> 52 | J3: 53 | K3: =IF(G3="","",ROUND(G3*Parameters!$C$12,2)) -> 53.93 | L3: =IF(G3="","",IF(YEAR(Informatie!$C$1)=2015,ROUND(G3*Parameters!$J$27,2),ROUND(G3*VLOOKUP('Overzicht deelnemers'!I3,Parameters!$E$4:$G$49,2,FALSE),2))) -> 892.53 | M3: =IF(G3="","",IF(YEAR(Informatie!$C$1)=2015,ROUND(L3*Parameters!$C$20,2),G3*Parameters!$J$27)) -> 474.822162 | N3: =IF(G3="","",ROUND(L3-M3,2)) -> 417.71 | O3: =IF(G3="","",ROUND(G3*Parameters!$C$16,2)) -> 53.93 | P3: =IF(G3="","",ROUND(G3*VLOOKUP(J3,Parameters!$E$3:$F$49,2,FALSE),2)) -> 892.53 | Q3: =IF(G3="","",ROUND(G3*Parameters!$J$66,2)) -> 474.82 | R3: =IF(G3="","",ROUND(P3-Q3,2)) -> 417.71 | S3: =IF(G3="","",ROUND(G3*Parameters!$C$13,2)) -> 66.84 | T3: =IF(G3="","",IF(YEAR(Informatie!$C$1)=2015,ROUND(G3*Parameters!J$44,2),ROUND(G3*VLOOKUP('Overzicht deelnemers'!I3,Parameters!$E$4:$G$49,3,FALSE),2))) -> 1109.02 | U3: =IF(G3="","",IF(YEAR(Informatie!$C$1)=2015,ROUND(T3*Parameters!$C$20,2),ROUND(G3*Parameters!$J$44,2))) -> 589.2 | V3: =IF(G3="","",ROUND(T3-U3,2)) -> 519.82 | W3: =IF(G3="","",ROUND(G3*Parameters!C$17,2)) -> 66.84 | X3: =IF(G3="","",ROUND(G3*VLOOKUP(J3,Parameters!E$4:G$49,3),2)) -> 1109.02 | Y3: =IF(G3="","",ROUND(G3*Parameters!J$83,2)) -> 589.2 | Z3: =IF(G3="","",ROUND(X3-Y3,2)) -> 519.82
E4: 0 | F4: =IF(C4="",0,IF(C4<=Parameters!$C$3,C4,Parameters!$C$3)) -> 0 | G4: =IF(C4="","",IF(F4<Parameters!$C$4,"",(F4-Parameters!$C$4)*D4)) ->  | I4: =IF(H4="","",YEAR(+Informatie!$C$1)-YEAR(H4)) ->  | K4: =IF(G4="","",ROUND(G4*Parameters!$C$12,2)) ->  | L4: =IF(G4="","",IF(YEAR(Informatie!$C$1)=2015,ROUND(G4*Parameters!$J$27,2),ROUND(G4*VLOOKUP('Overzicht deelnemers'!I4,Parameters!$E$4:$G$49,2,FALSE),2))) ->  | M4: =IF(G4="","",IF(YEAR(Informatie!$C$1)=2015,ROUND(L4*Parameters!$C$20,2),G4*Parameters!$J$27)) ->  | O4: =IF(G4="","",ROUND(G4*Parameters!$C$16,2)) ->  | P4: =IF(G4="","",ROUND(G4*VLOOKUP(J4,Parameters!$E$3:$F$49,2,FALSE),2)) ->  | Q4: =IF(G4="","",ROUND(G4*Parameters!$J$66,2)) ->  | S4: =IF(G4="","",ROUND(G4*Parameters!$C$13,2)) ->  | T4: =IF(G4="","",IF(YEAR(Informatie!$C$1)=2015,ROUND(G4*Parameters!J$44,2),ROUND(G4*VLOOKUP('Overzicht deelnemers'!I4,Parameters!$E$4:$G$49,3,FALSE),2))) ->  | U4: =IF(G4="","",IF(YEAR(Informatie!$C$1)=2015,ROUND(T4*Parameters!$C$20,2),ROUND(G4*Parameters!$J$44,2))) ->  | W4: =IF(G4="","",ROUND(G4*Parameters!C$17,2)) ->  | X4: =IF(G4="","",ROUND(G4*VLOOKUP(J4,Parameters!E$4:G$49,3),2)) ->  | Y4: =IF(G4="","",ROUND(G4*Parameters!J$83,2)) -> 
E5: 0 | F5: =IF(C5="",0,IF(C5<=Parameters!$C$3,C5,Parameters!$C$3)) -> 0 | G5: =IF(C5="","",IF(F5<Parameters!$C$4,"",(F5-Parameters!$C$4)*D5)) ->  | I5: =IF(H5="","",YEAR(+Informatie!$C$1)-YEAR(H5)) ->  | K5: =IF(G5="","",ROUND(G5*Parameters!$C$12,2)) ->  | L5: =IF(G5="","",IF(YEAR(Informatie!$C$1)=2015,ROUND(G5*Parameters!$J$27,2),ROUND(G5*VLOOKUP('Overzicht deelnemers'!I5,Parameters!$E$4:$G$49,2,FALSE),2))) ->  | M5: =IF(G5="","",IF(YEAR(Informatie!$C$1)=2015,ROUND(L5*Parameters!$C$20,2),G5*Parameters!$J$27)) ->  | O5: =IF(G5="","",ROUND(G5*Parameters!$C$16,2)) ->  | P5: =IF(G5="","",ROUND(G5*VLOOKUP(J5,Parameters!$E$3:$F$49,2,FALSE),2)) ->  | Q5: =IF(G5="","",ROUND(G5*Parameters!$J$66,2)) ->  | S5: =IF(G5="","",ROUND(G5*Parameters!$C$13,2)) ->  | T5: =IF(G5="","",IF(YEAR(Informatie!$C$1)=2015,ROUND(G5*Parameters!J$44,2),ROUND(G5*VLOOKUP('Overzicht deelnemers'!I5,Parameters!$E$4:$G$49,3,FALSE),2))) ->  | U5: =IF(G5="","",IF(YEAR(Informatie!$C$1)=2015,ROUND(T5*Parameters!$C$20,2),ROUND(G5*Parameters!$J$44,2))) ->  | W5: =IF(G5="","",ROUND(G5*Parameters!C$17,2)) ->  | X5: =IF(G5="","",ROUND(G5*VLOOKUP(J5,Parameters!E$4:G$49,3),2)) ->  | Y5: =IF(G5="","",ROUND(G5*Parameters!J$83,2)) -> 
E6: 0 | F6: =IF(C6="",0,IF(C6<=Parameters!$C$3,C6,Parameters!$C$3)) -> 0 | G6: =IF(C6="","",IF(F6<Parameters!$C$4,"",(F6-Parameters!$C$4)*D6)) ->  | I6: =IF(H6="","",YEAR(+Informatie!$C$1)-YEAR(H6)) ->  | K6: =IF(G6="","",ROUND(G6*Parameters!$C$12,2)) ->  | L6: =IF(G6="","",IF(YEAR(Informatie!$C$1)=2015,ROUND(G6*Parameters!$J$27,2),ROUND(G6*VLOOKUP('Overzicht deelnemers'!I6,Parameters!$E$4:$G$49,2,FALSE),2))) ->  | M6: =IF(G6="","",IF(YEAR(Informatie!$C$1)=2015,ROUND(L6*Parameters!$C$20,2),G6*Parameters!$J$27)) ->  | O6: =IF(G6="","",ROUND(G6*Parameters!$C$16,2)) ->  | P6: =IF(G6="","",ROUND(G6*VLOOKUP(J6,Parameters!$E$3:$F$49,2,FALSE),2)) ->  | Q6: =IF(G6="","",ROUND(G6*Parameters!$J$66,2)) ->  | S6: =IF(G6="","",ROUND(G6*Parameters!$C$13,2)) ->  | T6: =IF(G6="","",IF(YEAR(Informatie!$C$1)=2015,ROUND(G6*Parameters!J$44,2),ROUND(G6*VLOOKUP('Overzicht deelnemers'!I6,Parameters!$E$4:$G$49,3,FALSE),2))) ->  | U6: =IF(G6="","",IF(YEAR(Informatie!$C$1)=2015,ROUND(T6*Parameters!$C$20,2),ROUND(G6*Parameters!$J$44,2))) ->  | W6: =IF(G6="","",ROUND(G6*Parameters!C$17,2)) ->  | X6: =IF(G6="","",ROUND(G6*VLOOKUP(J6,Parameters!E$4:G$49,3),2)) ->  | Y6: =IF(G6="","",ROUND(G6*Parameters!J$83,2)) -> 
E7: 0 | F7: =IF(C7="",0,IF(C7<=Parameters!$C$3,C7,Parameters!$C$3)) -> 0 | G7: =IF(C7="","",IF(F7<Parameters!$C$4,"",(F7-Parameters!$C$4)*D7)) ->  | I7: =IF(H7="","",YEAR(+Informatie!$C$1)-YEAR(H7)) ->  | K7: =IF(G7="","",ROUND(G7*Parameters!$C$12,2)) ->  | L7: =IF(G7="","",IF(YEAR(Informatie!$C$1)=2015,ROUND(G7*Parameters!$J$27,2),ROUND(G7*VLOOKUP('Overzicht deelnemers'!I7,Parameters!$E$4:$G$49,2,FALSE),2))) ->  | M7: =IF(G7="","",IF(YEAR(Informatie!$C$1)=2015,ROUND(L7*Parameters!$C$20,2),G7*Parameters!$J$27)) ->  | O7: =IF(G7="","",ROUND(G7*Parameters!$C$16,2)) ->  | P7: =IF(G7="","",ROUND(G7*VLOOKUP(J7,Parameters!$E$3:$F$49,2,FALSE),2)) ->  | Q7: =IF(G7="","",ROUND(G7*Parameters!$J$66,2)) ->  | S7: =IF(G7="","",ROUND(G7*Parameters!$C$13,2)) ->  | T7: =IF(G7="","",IF(YEAR(Informatie!$C$1)=2015,ROUND(G7*Parameters!J$44,2),ROUND(G7*VLOOKUP('Overzicht deelnemers'!I7,Parameters!$E$4:$G$49,3,FALSE),2))) ->  | U7: =IF(G7="","",IF(YEAR(Informatie!$C$1)=2015,ROUND(T7*Parameters!$C$20,2),ROUND(G7*Parameters!$J$44,2))) ->  | W7: =IF(G7="","",ROUND(G7*Parameters!C$17,2)) ->  | X7: =IF(G7="","",ROUND(G7*VLOOKUP(J7,Parameters!E$4:G$49,3),2)) ->  | Y7: =IF(G7="","",ROUND(G7*Parameters!J$83,2)) -> 
E8: 0 | F8: =IF(C8="",0,IF(C8<=Parameters!$C$3,C8,Parameters!$C$3)) -> 0 | G8: =IF(C8="","",IF(F8<Parameters!$C$4,"",(F8-Parameters!$C$4)*D8)) ->  | I8: =IF(H8="","",YEAR(+Informatie!$C$1)-YEAR(H8)) ->  | K8: =IF(G8="","",ROUND(G8*Parameters!$C$12,2)) ->  | L8: =IF(G8="","",IF(YEAR(Informatie!$C$1)=2015,ROUND(G8*Parameters!$J$27,2),ROUND(G8*VLOOKUP('Overzicht deelnemers'!I8,Parameters!$E$4:$G$49,2,FALSE),2))) ->  | M8: =IF(G8="","",IF(YEAR(Informatie!$C$1)=2015,ROUND(L8*Parameters!$C$20,2),G8*Parameters!$J$27)) ->  | O8: =IF(G8="","",ROUND(G8*Parameters!$C$16,2)) ->  | P8: =IF(G8="","",ROUND(G8*VLOOKUP(J8,Parameters!$E$3:$F$49,2,FALSE),2)) ->  | Q8: =IF(G8="","",ROUND(G8*Parameters!$J$66,2)) ->  | S8: =IF(G8="","",ROUND(G8*Parameters!$C$13,2)) ->  | T8: =IF(G8="","",IF(YEAR(Informatie!$C$1)=2015,ROUND(G8*Parameters!J$44,2),ROUND(G8*VLOOKUP('Overzicht deelnemers'!I8,Parameters!$E$4:$G$49,3,FALSE),2))) ->  | U8: =IF(G8="","",IF(YEAR(Informatie!$C$1)=2015,ROUND(T8*Parameters!$C$20,2),ROUND(G8*Parameters!$J$44,2))) ->  | W8: =IF(G8="","",ROUND(G8*Parameters!C$17,2)) ->  | X8: =IF(G8="","",ROUND(G8*VLOOKUP(J8,Parameters!E$4:G$49,3),2)) ->  | Y8: =IF(G8="","",ROUND(G8*Parameters!J$83,2)) -> 
E9: 0 | F9: =IF(C9="",0,IF(C9<=Parameters!$C$3,C9,Parameters!$C$3)) -> 0 | G9: =IF(C9="","",IF(F9<Parameters!$C$4,"",(F9-Parameters!$C$4)*D9)) ->  | I9: =IF(H9="","",YEAR(+Informatie!$C$1)-YEAR(H9)) ->  | K9: =IF(G9="","",ROUND(G9*Parameters!$C$12,2)) ->  | L9: =IF(G9="","",IF(YEAR(Informatie!$C$1)=2015,ROUND(G9*Parameters!$J$27,2),ROUND(G9*VLOOKUP('Overzicht deelnemers'!I9,Parameters!$E$4:$G$49,2,FALSE),2))) ->  | M9: =IF(G9="","",IF(YEAR(Informatie!$C$1)=2015,ROUND(L9*Parameters!$C$20,2),G9*Parameters!$J$27)) ->  | O9: =IF(G9="","",ROUND(G9*Parameters!$C$16,2)) ->  | P9: =IF(G9="","",ROUND(G9*VLOOKUP(J9,Parameters!$E$3:$F$49,2,FALSE),2)) ->  | Q9: =IF(G9="","",ROUND(G9*Parameters!$J$66,2)) ->  | S9: =IF(G9="","",ROUND(G9*Parameters!$C$13,2)) ->  | T9: =IF(G9="","",IF(YEAR(Informatie!$C$1)=2015,ROUND(G9*Parameters!J$44,2),ROUND(G9*VLOOKUP('Overzicht deelnemers'!I9,Parameters!$E$4:$G$49,3,FALSE),2))) ->  | U9: =IF(G9="","",IF(YEAR(Informatie!$C$1)=2015,ROUND(T9*Parameters!$C$20,2),ROUND(G9*Parameters!$J$44,2))) ->  | W9: =IF(G9="","",ROUND(G9*Parameters!C$17,2)) ->  | X9: =IF(G9="","",ROUND(G9*VLOOKUP(J9,Parameters!E$4:G$49,3),2)) ->  | Y9: =IF(G9="","",ROUND(G9*Parameters!J$83,2)) -> 
E10: 0 | F10: =IF(C10="",0,IF(C10<=Parameters!$C$3,C10,Parameters!$C$3)) -> 0 | G10: =IF(C10="","",IF(F10<Parameters!$C$4,"",(F10-Parameters!$C$4)*D10)) ->  | I10: =IF(H10="","",YEAR(+Informatie!$C$1)-YEAR(H10)) ->  | K10: =IF(G10="","",ROUND(G10*Parameters!$C$12,2)) ->  | L10: =IF(G10="","",IF(YEAR(Informatie!$C$1)=2015,ROUND(G10*Parameters!$J$27,2),ROUND(G10*VLOOKUP('Overzicht deelnemers'!I10,Parameters!$E$4:$G$49,2,FALSE),2))) ->  | M10: =IF(G10="","",IF(YEAR(Informatie!$C$1)=2015,ROUND(L10*Parameters!$C$20,2),G10*Parameters!$J$27)) ->  | O10: =IF(G10="","",ROUND(G10*Parameters!$C$16,2)) ->  | P10: =IF(G10="","",ROUND(G10*VLOOKUP(J10,Parameters!$E$3:$F$49,2,FALSE),2)) ->  | Q10: =IF(G10="","",ROUND(G10*Parameters!$J$66,2)) ->  | S10: =IF(G10="","",ROUND(G10*Parameters!$C$13,2)) ->  | T10: =IF(G10="","",IF(YEAR(Informatie!$C$1)=2015,ROUND(G10*Parameters!J$44,2),ROUND(G10*VLOOKUP('Overzicht deelnemers'!I10,Parameters!$E$4:$G$49,3,FALSE),2))) ->  | U10: =IF(G10="","",IF(YEAR(Informatie!$C$1)=2015,ROUND(T10*Parameters!$C$20,2),ROUND(G10*Parameters!$J$44,2))) ->  | W10: =IF(G10="","",ROUND(G10*Parameters!C$17,2)) ->  | X10: =IF(G10="","",ROUND(G10*VLOOKUP(J10,Parameters!E$4:G$49,3),2)) ->  | Y10: =IF(G10="","",ROUND(G10*Parameters!J$83,2)) -> 
E11: 0 | F11: =IF(C11="",0,IF(C11<=Parameters!$C$3,C11,Parameters!$C$3)) -> 0 | G11: =IF(C11="","",IF(F11<Parameters!$C$4,"",(F11-Parameters!$C$4)*D11)) ->  | I11: =IF(H11="","",YEAR(+Informatie!$C$1)-YEAR(H11)) ->  | K11: =IF(G11="","",ROUND(G11*Parameters!$C$12,2)) ->  | L11: =IF(G11="","",IF(YEAR(Informatie!$C$1)=2015,ROUND(G11*Parameters!$J$27,2),ROUND(G11*VLOOKUP('Overzicht deelnemers'!I11,Parameters!$E$4:$G$49,2,FALSE),2))) ->  | M11: =IF(G11="","",IF(YEAR(Informatie!$C$1)=2015,ROUND(L11*Parameters!$C$20,2),G11*Parameters!$J$27)) ->  | O11: =IF(G11="","",ROUND(G11*Parameters!$C$16,2)) ->  | P11: =IF(G11="","",ROUND(G11*VLOOKUP(J11,Parameters!$E$3:$F$49,2,FALSE),2)) ->  | Q11: =IF(G11="","",ROUND(G11*Parameters!$J$66,2)) ->  | S11: =IF(G11="","",ROUND(G11*Parameters!$C$13,2)) ->  | T11: =IF(G11="","",IF(YEAR(Informatie!$C$1)=2015,ROUND(G11*Parameters!J$44,2),ROUND(G11*VLOOKUP('Overzicht deelnemers'!I11,Parameters!$E$4:$G$49,3,FALSE),2))) ->  | U11: =IF(G11="","",IF(YEAR(Informatie!$C$1)=2015,ROUND(T11*Parameters!$C$20,2),ROUND(G11*Parameters!$J$44,2))) ->  | W11: =IF(G11="","",ROUND(G11*Parameters!C$17,2)) ->  | X11: =IF(G11="","",ROUND(G11*VLOOKUP(J11,Parameters!E$4:G$49,3),2)) ->  | Y11: =IF(G11="","",ROUND(G11*Parameters!J$83,2)) -> 
E12: 0 | F12: =IF(C12="",0,IF(C12<=Parameters!$C$3,C12,Parameters!$C$3)) -> 0 | G12: =IF(C12="","",IF(F12<Parameters!$C$4,"",(F12-Parameters!$C$4)*D12)) ->  | I12: =IF(H12="","",YEAR(+Informatie!$C$1)-YEAR(H12)) ->  | K12: =IF(G12="","",ROUND(G12*Parameters!$C$12,2)) ->  | L12: =IF(G12="","",IF(YEAR(Informatie!$C$1)=2015,ROUND(G12*Parameters!$J$27,2),ROUND(G12*VLOOKUP('Overzicht deelnemers'!I12,Parameters!$E$4:$G$49,2,FALSE),2))) ->  | M12: =IF(G12="","",IF(YEAR(Informatie!$C$1)=2015,ROUND(L12*Parameters!$C$20,2),G12*Parameters!$J$27)) ->  | O12: =IF(G12="","",ROUND(G12*Parameters!$C$16,2)) ->  | P12: =IF(G12="","",ROUND(G12*VLOOKUP(J12,Parameters!$E$3:$F$49,2,FALSE),2)) ->  | Q12: =IF(G12="","",ROUND(G12*Parameters!$J$66,2)) ->  | S12: =IF(G12="","",ROUND(G12*Parameters!$C$13,2)) ->  | T12: =IF(G12="","",IF(YEAR(Informatie!$C$1)=2015,ROUND(G12*Parameters!J$44,2),ROUND(G12*VLOOKUP('Overzicht deelnemers'!I12,Parameters!$E$4:$G$49,3,FALSE),2))) ->  | U12: =IF(G12="","",IF(YEAR(Informatie!$C$1)=2015,ROUND(T12*Parameters!$C$20,2),ROUND(G12*Parameters!$J$44,2))) ->  | W12: =IF(G12="","",ROUND(G12*Parameters!C$17,2)) ->  | X12: =IF(G12="","",ROUND(G12*VLOOKUP(J12,Parameters!E$4:G$49,3),2)) ->  | Y12: =IF(G12="","",ROUND(G12*Parameters!J$83,2)) -> 
E13: 0 | F13: =IF(C13="",0,IF(C13<=Parameters!$C$3,C13,Parameters!$C$3)) -> 0 | G13: =IF(C13="","",IF(F13<Parameters!$C$4,"",(F13-Parameters!$C$4)*D13)) ->  | I13: =IF(H13="","",YEAR(+Informatie!$C$1)-YEAR(H13)) ->  | K13: =IF(G13="","",ROUND(G13*Parameters!$C$12,2)) ->  | L13: =IF(G13="","",IF(YEAR(Informatie!$C$1)=2015,ROUND(G13*Parameters!$J$27,2),ROUND(G13*VLOOKUP('Overzicht deelnemers'!I13,Parameters!$E$4:$G$49,2,FALSE),2))) ->  | M13: =IF(G13="","",IF(YEAR(Informatie!$C$1)=2015,ROUND(L13*Parameters!$C$20,2),G13*Parameters!$J$27)) ->  | O13: =IF(G13="","",ROUND(G13*Parameters!$C$16,2)) ->  | P13: =IF(G13="","",ROUND(G13*VLOOKUP(J13,Parameters!$E$3:$F$49,2,FALSE),2)) ->  | Q13: =IF(G13="","",ROUND(G13*Parameters!$J$66,2)) ->  | S13: =IF(G13="","",ROUND(G13*Parameters!$C$13,2)) ->  | T13: =IF(G13="","",IF(YEAR(Informatie!$C$1)=2015,ROUND(G13*Parameters!J$44,2),ROUND(G13*VLOOKUP('Overzicht deelnemers'!I13,Parameters!$E$4:$G$49,3,FALSE),2))) ->  | U13: =IF(G13="","",IF(YEAR(Informatie!$C$1)=2015,ROUND(T13*Parameters!$C$20,2),ROUND(G13*Parameters!$J$44,2))) ->  | W13: =IF(G13="","",ROUND(G13*Parameters!C$17,2)) ->  | X13: =IF(G13="","",ROUND(G13*VLOOKUP(J13,Parameters!E$4:G$49,3),2)) ->  | Y13: =IF(G13="","",ROUND(G13*Parameters!J$83,2)) -> 
E14: 0 | F14: =IF(C14="",0,IF(C14<=Parameters!$C$3,C14,Parameters!$C$3)) -> 0 | G14: =IF(C14="","",IF(F14<Parameters!$C$4,"",(F14-Parameters!$C$4)*D14)) ->  | I14: =IF(H14="","",YEAR(+Informatie!$C$1)-YEAR(H14)) ->  | K14: =IF(G14="","",ROUND(G14*Parameters!$C$12,2)) ->  | L14: =IF(G14="","",IF(YEAR(Informatie!$C$1)=2015,ROUND(G14*Parameters!$J$27,2),ROUND(G14*VLOOKUP('Overzicht deelnemers'!I14,Parameters!$E$4:$G$49,2,FALSE),2))) ->  | M14: =IF(G14="","",IF(YEAR(Informatie!$C$1)=2015,ROUND(L14*Parameters!$C$20,2),G14*Parameters!$J$27)) ->  | O14: =IF(G14="","",ROUND(G14*Parameters!$C$16,2)) ->  | P14: =IF(G14="","",ROUND(G14*VLOOKUP(J14,Parameters!$E$3:$F$49,2,FALSE),2)) ->  | Q14: =IF(G14="","",ROUND(G14*Parameters!$J$66,2)) ->  | S14: =IF(G14="","",ROUND(G14*Parameters!$C$13,2)) ->  | T14: =IF(G14="","",IF(YEAR(Informatie!$C$1)=2015,ROUND(G14*Parameters!J$44,2),ROUND(G14*VLOOKUP('Overzicht deelnemers'!I14,Parameters!$E$4:$G$49,3,FALSE),2))) ->  | U14: =IF(G14="","",IF(YEAR(Informatie!$C$1)=2015,ROUND(T14*Parameters!$C$20,2),ROUND(G14*Parameters!$J$44,2))) ->  | W14: =IF(G14="","",ROUND(G14*Parameters!C$17,2)) ->  | X14: =IF(G14="","",ROUND(G14*VLOOKUP(J14,Parameters!E$4:G$49,3),2)) ->  | Y14: =IF(G14="","",ROUND(G14*Parameters!J$83,2)) -> 
E15: 0 | F15: =IF(C15="",0,IF(C15<=Parameters!$C$3,C15,Parameters!$C$3)) -> 0 | G15: =IF(C15="","",IF(F15<Parameters!$C$4,"",(F15-Parameters!$C$4)*D15)) ->  | I15: =IF(H15="","",YEAR(+Informatie!$C$1)-YEAR(H15)) ->  | K15: =IF(G15="","",ROUND(G15*Parameters!$C$12,2)) ->  | L15: =IF(G15="","",IF(YEAR(Informatie!$C$1)=2015,ROUND(G15*Parameters!$J$27,2),ROUND(G15*VLOOKUP('Overzicht deelnemers'!I15,Parameters!$E$4:$G$49,2,FALSE),2))) ->  | M15: =IF(G15="","",IF(YEAR(Informatie!$C$1)=2015,ROUND(L15*Parameters!$C$20,2),G15*Parameters!$J$27)) ->  | O15: =IF(G15="","",ROUND(G15*Parameters!$C$16,2)) ->  | P15: =IF(G15="","",ROUND(G15*VLOOKUP(J15,Parameters!$E$3:$F$49,2,FALSE),2)) ->  | Q15: =IF(G15="","",ROUND(G15*Parameters!$J$66,2)) ->  | S15: =IF(G15="","",ROUND(G15*Parameters!$C$13,2)) ->  | T15: =IF(G15="","",IF(YEAR(Informatie!$C$1)=2015,ROUND(G15*Parameters!J$44,2),ROUND(G15*VLOOKUP('Overzicht deelnemers'!I15,Parameters!$E$4:$G$49,3,FALSE),2))) ->  | U15: =IF(G15="","",IF(YEAR(Informatie!$C$1)=2015,ROUND(T15*Parameters!$C$20,2),ROUND(G15*Parameters!$J$44,2))) ->  | W15: =IF(G15="","",ROUND(G15*Parameters!C$17,2)) ->  | X15: =IF(G15="","",ROUND(G15*VLOOKUP(J15,Parameters!E$4:G$49,3),2)) ->  | Y15: =IF(G15="","",ROUND(G15*Parameters!J$83,2)) -> 
E16: 0 | F16: =IF(C16="",0,IF(C16<=Parameters!$C$3,C16,Parameters!$C$3)) -> 0 | G16: =IF(C16="","",IF(F16<Parameters!$C$4,"",(F16-Parameters!$C$4)*D16)) ->  | I16: =IF(H16="","",YEAR(+Informatie!$C$1)-YEAR(H16)) ->  | K16: =IF(G16="","",ROUND(G16*Parameters!$C$12,2)) ->  | L16: =IF(G16="","",IF(YEAR(Informatie!$C$1)=2015,ROUND(G16*Parameters!$J$27,2),ROUND(G16*VLOOKUP('Overzicht deelnemers'!I16,Parameters!$E$4:$G$49,2,FALSE),2))) ->  | M16: =IF(G16="","",IF(YEAR(Informatie!$C$1)=2015,ROUND(L16*Parameters!$C$20,2),G16*Parameters!$J$27)) ->  | O16: =IF(G16="","",ROUND(G16*Parameters!$C$16,2)) ->  | P16: =IF(G16="","",ROUND(G16*VLOOKUP(J16,Parameters!$E$3:$F$49,2,FALSE),2)) ->  | Q16: =IF(G16="","",ROUND(G16*Parameters!$J$66,2)) ->  | S16: =IF(G16="","",ROUND(G16*Parameters!$C$13,2)) ->  | T16: =IF(G16="","",IF(YEAR(Informatie!$C$1)=2015,ROUND(G16*Parameters!J$44,2),ROUND(G16*VLOOKUP('Overzicht deelnemers'!I16,Parameters!$E$4:$G$49,3,FALSE),2))) ->  | U16: =IF(G16="","",IF(YEAR(Informatie!$C$1)=2015,ROUND(T16*Parameters!$C$20,2),ROUND(G16*Parameters!$J$44,2))) ->  | W16: =IF(G16="","",ROUND(G16*Parameters!C$17,2)) ->  | X16: =IF(G16="","",ROUND(G16*VLOOKUP(J16,Parameters!E$4:G$49,3),2)) ->  | Y16: =IF(G16="","",ROUND(G16*Parameters!J$83,2)) -> 
E17: 0 | F17: =IF(C17="",0,IF(C17<=Parameters!$C$3,C17,Parameters!$C$3)) -> 0 | G17: =IF(C17="","",IF(F17<Parameters!$C$4,"",(F17-Parameters!$C$4)*D17)) ->  | I17: =IF(H17="","",YEAR(+Informatie!$C$1)-YEAR(H17)) ->  | K17: =IF(G17="","",ROUND(G17*Parameters!$C$12,2)) ->  | L17: =IF(G17="","",IF(YEAR(Informatie!$C$1)=2015,ROUND(G17*Parameters!$J$27,2),ROUND(G17*VLOOKUP('Overzicht deelnemers'!I17,Parameters!$E$4:$G$49,2,FALSE),2))) ->  | M17: =IF(G17="","",IF(YEAR(Informatie!$C$1)=2015,ROUND(L17*Parameters!$C$20,2),G17*Parameters!$J$27)) ->  | O17: =IF(G17="","",ROUND(G17*Parameters!$C$16,2)) ->  | P17: =IF(G17="","",ROUND(G17*VLOOKUP(J17,Parameters!$E$3:$F$49,2,FALSE),2)) ->  | Q17: =IF(G17="","",ROUND(G17*Parameters!$J$66,2)) ->  | S17: =IF(G17="","",ROUND(G17*Parameters!$C$13,2)) ->  | T17: =IF(G17="","",IF(YEAR(Informatie!$C$1)=2015,ROUND(G17*Parameters!J$44,2),ROUND(G17*VLOOKUP('Overzicht deelnemers'!I17,Parameters!$E$4:$G$49,3,FALSE),2))) ->  | U17: =IF(G17="","",IF(YEAR(Informatie!$C$1)=2015,ROUND(T17*Parameters!$C$20,2),ROUND(G17*Parameters!$J$44,2))) ->  | W17: =IF(G17="","",ROUND(G17*Parameters!C$17,2)) ->  | X17: =IF(G17="","",ROUND(G17*VLOOKUP(J17,Parameters!E$4:G$49,3),2)) ->  | Y17: =IF(G17="","",ROUND(G17*Parameters!J$83,2)) -> 
E18: 0 | F18: =IF(C18="",0,IF(C18<=Parameters!$C$3,C18,Parameters!$C$3)) -> 0 | G18: =IF(C18="","",IF(F18<Parameters!$C$4,"",(F18-Parameters!$C$4)*D18)) ->  | I18: =IF(H18="","",YEAR(+Informatie!$C$1)-YEAR(H18)) ->  | K18: =IF(G18="","",ROUND(G18*Parameters!$C$12,2)) ->  | L18: =IF(G18="","",IF(YEAR(Informatie!$C$1)=2015,ROUND(G18*Parameters!$J$27,2),ROUND(G18*VLOOKUP('Overzicht deelnemers'!I18,Parameters!$E$4:$G$49,2,FALSE),2))) ->  | M18: =IF(G18="","",IF(YEAR(Informatie!$C$1)=2015,ROUND(L18*Parameters!$C$20,2),G18*Parameters!$J$27)) ->  | O18: =IF(G18="","",ROUND(G18*Parameters!$C$16,2)) ->  | P18: =IF(G18="","",ROUND(G18*VLOOKUP(J18,Parameters!$E$3:$F$49,2,FALSE),2)) ->  | Q18: =IF(G18="","",ROUND(G18*Parameters!$J$66,2)) ->  | S18: =IF(G18="","",ROUND(G18*Parameters!$C$13,2)) ->  | T18: =IF(G18="","",IF(YEAR(Informatie!$C$1)=2015,ROUND(G18*Parameters!J$44,2),ROUND(G18*VLOOKUP('Overzicht deelnemers'!I18,Parameters!$E$4:$G$49,3,FALSE),2))) ->  | U18: =IF(G18="","",IF(YEAR(Informatie!$C$1)=2015,ROUND(T18*Parameters!$C$20,2),ROUND(G18*Parameters!$J$44,2))) ->  | W18: =IF(G18="","",ROUND(G18*Parameters!C$17,2)) ->  | X18: =IF(G18="","",ROUND(G18*VLOOKUP(J18,Parameters!E$4:G$49,3),2)) ->  | Y18: =IF(G18="","",ROUND(G18*Parameters!J$83,2)) -> 
E19: 0 | F19: =IF(C19="",0,IF(C19<=Parameters!$C$3,C19,Parameters!$C$3)) -> 0 | G19: =IF(C19="","",IF(F19<Parameters!$C$4,"",(F19-Parameters!$C$4)*D19)) ->  | I19: =IF(H19="","",YEAR(+Informatie!$C$1)-YEAR(H19)) ->  | K19: =IF(G19="","",ROUND(G19*Parameters!$C$12,2)) ->  | L19: =IF(G19="","",IF(YEAR(Informatie!$C$1)=2015,ROUND(G19*Parameters!$J$27,2),ROUND(G19*VLOOKUP('Overzicht deelnemers'!I19,Parameters!$E$4:$G$49,2,FALSE),2))) ->  | M19: =IF(G19="","",IF(YEAR(Informatie!$C$1)=2015,ROUND(L19*Parameters!$C$20,2),G19*Parameters!$J$27)) ->  | O19: =IF(G19="","",ROUND(G19*Parameters!$C$16,2)) ->  | P19: =IF(G19="","",ROUND(G19*VLOOKUP(J19,Parameters!$E$3:$F$49,2,FALSE),2)) ->  | Q19: =IF(G19="","",ROUND(G19*Parameters!$J$66,2)) ->  | S19: =IF(G19="","",ROUND(G19*Parameters!$C$13,2)) ->  | T19: =IF(G19="","",IF(YEAR(Informatie!$C$1)=2015,ROUND(G19*Parameters!J$44,2),ROUND(G19*VLOOKUP('Overzicht deelnemers'!I19,Parameters!$E$4:$G$49,3,FALSE),2))) ->  | U19: =IF(G19="","",IF(YEAR(Informatie!$C$1)=2015,ROUND(T19*Parameters!$C$20,2),ROUND(G19*Parameters!$J$44,2))) ->  | W19: =IF(G19="","",ROUND(G19*Parameters!C$17,2)) ->  | X19: =IF(G19="","",ROUND(G19*VLOOKUP(J19,Parameters!E$4:G$49,3),2)) ->  | Y19: =IF(G19="","",ROUND(G19*Parameters!J$83,2)) -> 
E20: 0 | F20: =IF(C20="",0,IF(C20<=Parameters!$C$3,C20,Parameters!$C$3)) -> 0 | G20: =IF(C20="","",IF(F20<Parameters!$C$4,"",(F20-Parameters!$C$4)*D20)) ->  | I20: =IF(H20="","",YEAR(+Informatie!$C$1)-YEAR(H20)) ->  | K20: =IF(G20="","",ROUND(G20*Parameters!$C$12,2)) ->  | L20: =IF(G20="","",IF(YEAR(Informatie!$C$1)=2015,ROUND(G20*Parameters!$J$27,2),ROUND(G20*VLOOKUP('Overzicht deelnemers'!I20,Parameters!$E$4:$G$49,2,FALSE),2))) ->  | M20: =IF(G20="","",IF(YEAR(Informatie!$C$1)=2015,ROUND(L20*Parameters!$C$20,2),G20*Parameters!$J$27)) ->  | O20: =IF(G20="","",ROUND(G20*Parameters!$C$16,2)) ->  | P20: =IF(G20="","",ROUND(G20*VLOOKUP(J20,Parameters!$E$3:$F$49,2,FALSE),2)) ->  | Q20: =IF(G20="","",ROUND(G20*Parameters!$J$66,2)) ->  | S20: =IF(G20="","",ROUND(G20*Parameters!$C$13,2)) ->  | T20: =IF(G20="","",IF(YEAR(Informatie!$C$1)=2015,ROUND(G20*Parameters!J$44,2),ROUND(G20*VLOOKUP('Overzicht deelnemers'!I20,Parameters!$E$4:$G$49,3,FALSE),2))) ->  | U20: =IF(G20="","",IF(YEAR(Informatie!$C$1)=2015,ROUND(T20*Parameters!$C$20,2),ROUND(G20*Parameters!$J$44,2))) ->  | W20: =IF(G20="","",ROUND(G20*Parameters!C$17,2)) ->  | X20: =IF(G20="","",ROUND(G20*VLOOKUP(J20,Parameters!E$4:G$49,3),2)) ->  | Y20: =IF(G20="","",ROUND(G20*Parameters!J$83,2)) -> 
E21: 0 | F21: =IF(C21="",0,IF(C21<=Parameters!$C$3,C21,Parameters!$C$3)) -> 0 | G21: =IF(C21="","",IF(F21<Parameters!$C$4,"",(F21-Parameters!$C$4)*D21)) ->  | I21: =IF(H21="","",YEAR(+Informatie!$C$1)-YEAR(H21)) ->  | K21: =IF(G21="","",ROUND(G21*Parameters!$C$12,2)) ->  | L21: =IF(G21="","",IF(YEAR(Informatie!$C$1)=2015,ROUND(G21*Parameters!$J$27,2),ROUND(G21*VLOOKUP('Overzicht deelnemers'!I21,Parameters!$E$4:$G$49,2,FALSE),2))) ->  | M21: =IF(G21="","",IF(YEAR(Informatie!$C$1)=2015,ROUND(L21*Parameters!$C$20,2),G21*Parameters!$J$27)) ->  | O21: =IF(G21="","",ROUND(G21*Parameters!$C$16,2)) ->  | P21: =IF(G21="","",ROUND(G21*VLOOKUP(J21,Parameters!$E$3:$F$49,2,FALSE),2)) ->  | Q21: =IF(G21="","",ROUND(G21*Parameters!$J$66,2)) ->  | S21: =IF(G21="","",ROUND(G21*Parameters!$C$13,2)) ->  | T21: =IF(G21="","",IF(YEAR(Informatie!$C$1)=2015,ROUND(G21*Parameters!J$44,2),ROUND(G21*VLOOKUP('Overzicht deelnemers'!I21,Parameters!$E$4:$G$49,3,FALSE),2))) ->  | U21: =IF(G21="","",IF(YEAR(Informatie!$C$1)=2015,ROUND(T21*Parameters!$C$20,2),ROUND(G21*Parameters!$J$44,2))) ->  | W21: =IF(G21="","",ROUND(G21*Parameters!C$17,2)) ->  | X21: =IF(G21="","",ROUND(G21*VLOOKUP(J21,Parameters!E$4:G$49,3),2)) ->  | Y21: =IF(G21="","",ROUND(G21*Parameters!J$83,2)) -> 
E22: 0 | F22: =IF(C22="",0,IF(C22<=Parameters!$C$3,C22,Parameters!$C$3)) -> 0 | G22: =IF(C22="","",IF(F22<Parameters!$C$4,"",(F22-Parameters!$C$4)*D22)) ->  | I22: =IF(H22="","",YEAR(+Informatie!$C$1)-YEAR(H22)) ->  | K22: =IF(G22="","",ROUND(G22*Parameters!$C$12,2)) ->  | L22: =IF(G22="","",IF(YEAR(Informatie!$C$1)=2015,ROUND(G22*Parameters!$J$27,2),ROUND(G22*VLOOKUP('Overzicht deelnemers'!I22,Parameters!$E$4:$G$49,2,FALSE),2))) ->  | M22: =IF(G22="","",IF(YEAR(Informatie!$C$1)=2015,ROUND(L22*Parameters!$C$20,2),G22*Parameters!$J$27)) ->  | O22: =IF(G22="","",ROUND(G22*Parameters!$C$16,2)) ->  | P22: =IF(G22="","",ROUND(G22*VLOOKUP(J22,Parameters!$E$3:$F$49,2,FALSE),2)) ->  | Q22: =IF(G22="","",ROUND(G22*Parameters!$J$66,2)) ->  | S22: =IF(G22="","",ROUND(G22*Parameters!$C$13,2)) ->  | T22: =IF(G22="","",IF(YEAR(Informatie!$C$1)=2015,ROUND(G22*Parameters!J$44,2),ROUND(G22*VLOOKUP('Overzicht deelnemers'!I22,Parameters!$E$4:$G$49,3,FALSE),2))) ->  | U22: =IF(G22="","",IF(YEAR(Informatie!$C$1)=2015,ROUND(T22*Parameters!$C$20,2),ROUND(G22*Parameters!$J$44,2))) ->  | W22: =IF(G22="","",ROUND(G22*Parameters!C$17,2)) ->  | X22: =IF(G22="","",ROUND(G22*VLOOKUP(J22,Parameters!E$4:G$49,3),2)) ->  | Y22: =IF(G22="","",ROUND(G22*Parameters!J$83,2)) -> 
E23: 0 | F23: =IF(C23="",0,IF(C23<=Parameters!$C$3,C23,Parameters!$C$3)) -> 0 | G23: =IF(C23="","",IF(F23<Parameters!$C$4,"",(F23-Parameters!$C$4)*D23)) ->  | I23: =IF(H23="","",YEAR(+Informatie!$C$1)-YEAR(H23)) ->  | K23: =IF(G23="","",ROUND(G23*Parameters!$C$12,2)) ->  | L23: =IF(G23="","",IF(YEAR(Informatie!$C$1)=2015,ROUND(G23*Parameters!$J$27,2),ROUND(G23*VLOOKUP('Overzicht deelnemers'!I23,Parameters!$E$4:$G$49,2,FALSE),2))) ->  | M23: =IF(G23="","",IF(YEAR(Informatie!$C$1)=2015,ROUND(L23*Parameters!$C$20,2),G23*Parameters!$J$27)) ->  | O23: =IF(G23="","",ROUND(G23*Parameters!$C$16,2)) ->  | P23: =IF(G23="","",ROUND(G23*VLOOKUP(J23,Parameters!$E$3:$F$49,2,FALSE),2)) ->  | Q23: =IF(G23="","",ROUND(G23*Parameters!$J$66,2)) ->  | S23: =IF(G23="","",ROUND(G23*Parameters!$C$13,2)) ->  | T23: =IF(G23="","",IF(YEAR(Informatie!$C$1)=2015,ROUND(G23*Parameters!J$44,2),ROUND(G23*VLOOKUP('Overzicht deelnemers'!I23,Parameters!$E$4:$G$49,3,FALSE),2))) ->  | U23: =IF(G23="","",IF(YEAR(Informatie!$C$1)=2015,ROUND(T23*Parameters!$C$20,2),ROUND(G23*Parameters!$J$44,2))) ->  | W23: =IF(G23="","",ROUND(G23*Parameters!C$17,2)) ->  | X23: =IF(G23="","",ROUND(G23*VLOOKUP(J23,Parameters!E$4:G$49,3),2)) ->  | Y23: =IF(G23="","",ROUND(G23*Parameters!J$83,2)) -> 
E24: 0 | F24: =IF(C24="",0,IF(C24<=Parameters!$C$3,C24,Parameters!$C$3)) -> 0 | G24: =IF(C24="","",IF(F24<Parameters!$C$4,"",(F24-Parameters!$C$4)*D24)) ->  | I24: =IF(H24="","",YEAR(+Informatie!$C$1)-YEAR(H24)) ->  | K24: =IF(G24="","",ROUND(G24*Parameters!$C$12,2)) ->  | L24: =IF(G24="","",IF(YEAR(Informatie!$C$1)=2015,ROUND(G24*Parameters!$J$27,2),ROUND(G24*VLOOKUP('Overzicht deelnemers'!I24,Parameters!$E$4:$G$49,2,FALSE),2))) ->  | M24: =IF(G24="","",IF(YEAR(Informatie!$C$1)=2015,ROUND(L24*Parameters!$C$20,2),G24*Parameters!$J$27)) ->  | O24: =IF(G24="","",ROUND(G24*Parameters!$C$16,2)) ->  | P24: =IF(G24="","",ROUND(G24*VLOOKUP(J24,Parameters!$E$3:$F$49,2,FALSE),2)) ->  | Q24: =IF(G24="","",ROUND(G24*Parameters!$J$66,2)) ->  | S24: =IF(G24="","",ROUND(G24*Parameters!$C$13,2)) ->  | T24: =IF(G24="","",IF(YEAR(Informatie!$C$1)=2015,ROUND(G24*Parameters!J$44,2),ROUND(G24*VLOOKUP('Overzicht deelnemers'!I24,Parameters!$E$4:$G$49,3,FALSE),2))) ->  | U24: =IF(G24="","",IF(YEAR(Informatie!$C$1)=2015,ROUND(T24*Parameters!$C$20,2),ROUND(G24*Parameters!$J$44,2))) ->  | W24: =IF(G24="","",ROUND(G24*Parameters!C$17,2)) ->  | X24: =IF(G24="","",ROUND(G24*VLOOKUP(J24,Parameters!E$4:G$49,3),2)) ->  | Y24: =IF(G24="","",ROUND(G24*Parameters!J$83,2)) -> 
E25: 0 | F25: =IF(C25="",0,IF(C25<=Parameters!$C$3,C25,Parameters!$C$3)) -> 0 | G25: =IF(C25="","",IF(F25<Parameters!$C$4,"",(F25-Parameters!$C$4)*D25)) ->  | I25: =IF(H25="","",YEAR(+Informatie!$C$1)-YEAR(H25)) ->  | K25: =IF(G25="","",ROUND(G25*Parameters!$C$12,2)) ->  | L25: =IF(G25="","",IF(YEAR(Informatie!$C$1)=2015,ROUND(G25*Parameters!$J$27,2),ROUND(G25*VLOOKUP('Overzicht deelnemers'!I25,Parameters!$E$4:$G$49,2,FALSE),2))) ->  | M25: =IF(G25="","",IF(YEAR(Informatie!$C$1)=2015,ROUND(L25*Parameters!$C$20,2),G25*Parameters!$J$27)) ->  | O25: =IF(G25="","",ROUND(G25*Parameters!$C$16,2)) ->  | P25: =IF(G25="","",ROUND(G25*VLOOKUP(J25,Parameters!$E$3:$F$49,2,FALSE),2)) ->  | Q25: =IF(G25="","",ROUND(G25*Parameters!$J$66,2)) ->  | S25: =IF(G25="","",ROUND(G25*Parameters!$C$13,2)) ->  | T25: =IF(G25="","",IF(YEAR(Informatie!$C$1)=2015,ROUND(G25*Parameters!J$44,2),ROUND(G25*VLOOKUP('Overzicht deelnemers'!I25,Parameters!$E$4:$G$49,3,FALSE),2))) ->  | U25: =IF(G25="","",IF(YEAR(Informatie!$C$1)=2015,ROUND(T25*Parameters!$C$20,2),ROUND(G25*Parameters!$J$44,2))) ->  | W25: =IF(G25="","",ROUND(G25*Parameters!C$17,2)) ->  | X25: =IF(G25="","",ROUND(G25*VLOOKUP(J25,Parameters!E$4:G$49,3),2)) ->  | Y25: =IF(G25="","",ROUND(G25*Parameters!J$83,2)) -> 
E26: 0 | F26: =IF(C26="",0,IF(C26<=Parameters!$C$3,C26,Parameters!$C$3)) -> 0 | G26: =IF(C26="","",IF(F26<Parameters!$C$4,"",(F26-Parameters!$C$4)*D26)) ->  | I26: =IF(H26="","",YEAR(+Informatie!$C$1)-YEAR(H26)) ->  | K26: =IF(G26="","",ROUND(G26*Parameters!$C$12,2)) ->  | L26: =IF(G26="","",IF(YEAR(Informatie!$C$1)=2015,ROUND(G26*Parameters!$J$27,2),ROUND(G26*VLOOKUP('Overzicht deelnemers'!I26,Parameters!$E$4:$G$49,2,FALSE),2))) ->  | M26: =IF(G26="","",IF(YEAR(Informatie!$C$1)=2015,ROUND(L26*Parameters!$C$20,2),G26*Parameters!$J$27)) ->  | O26: =IF(G26="","",ROUND(G26*Parameters!$C$16,2)) ->  | P26: =IF(G26="","",ROUND(G26*VLOOKUP(J26,Parameters!$E$3:$F$49,2,FALSE),2)) ->  | Q26: =IF(G26="","",ROUND(G26*Parameters!$J$66,2)) ->  | S26: =IF(G26="","",ROUND(G26*Parameters!$C$13,2)) ->  | T26: =IF(G26="","",IF(YEAR(Informatie!$C$1)=2015,ROUND(G26*Parameters!J$44,2),ROUND(G26*VLOOKUP('Overzicht deelnemers'!I26,Parameters!$E$4:$G$49,3,FALSE),2))) ->  | U26: =IF(G26="","",IF(YEAR(Informatie!$C$1)=2015,ROUND(T26*Parameters!$C$20,2),ROUND(G26*Parameters!$J$44,2))) ->  | W26: =IF(G26="","",ROUND(G26*Parameters!C$17,2)) ->  | X26: =IF(G26="","",ROUND(G26*VLOOKUP(J26,Parameters!E$4:G$49,3),2)) ->  | Y26: =IF(G26="","",ROUND(G26*Parameters!J$83,2)) -> 
E27: 0 | F27: =IF(C27="",0,IF(C27<=Parameters!$C$3,C27,Parameters!$C$3)) -> 0 | G27: =IF(C27="","",IF(F27<Parameters!$C$4,"",(F27-Parameters!$C$4)*D27)) ->  | I27: =IF(H27="","",YEAR(+Informatie!$C$1)-YEAR(H27)) ->  | K27: =IF(G27="","",ROUND(G27*Parameters!$C$12,2)) ->  | L27: =IF(G27="","",IF(YEAR(Informatie!$C$1)=2015,ROUND(G27*Parameters!$J$27,2),ROUND(G27*VLOOKUP('Overzicht deelnemers'!I27,Parameters!$E$4:$G$49,2,FALSE),2))) ->  | M27: =IF(G27="","",IF(YEAR(Informatie!$C$1)=2015,ROUND(L27*Parameters!$C$20,2),G27*Parameters!$J$27)) ->  | O27: =IF(G27="","",ROUND(G27*Parameters!$C$16,2)) ->  | P27: =IF(G27="","",ROUND(G27*VLOOKUP(J27,Parameters!$E$3:$F$49,2,FALSE),2)) ->  | Q27: =IF(G27="","",ROUND(G27*Parameters!$J$66,2)) ->  | S27: =IF(G27="","",ROUND(G27*Parameters!$C$13,2)) ->  | T27: =IF(G27="","",IF(YEAR(Informatie!$C$1)=2015,ROUND(G27*Parameters!J$44,2),ROUND(G27*VLOOKUP('Overzicht deelnemers'!I27,Parameters!$E$4:$G$49,3,FALSE),2))) ->  | U27: =IF(G27="","",IF(YEAR(Informatie!$C$1)=2015,ROUND(T27*Parameters!$C$20,2),ROUND(G27*Parameters!$J$44,2))) ->  | W27: =IF(G27="","",ROUND(G27*Parameters!C$17,2)) ->  | X27: =IF(G27="","",ROUND(G27*VLOOKUP(J27,Parameters!E$4:G$49,3),2)) ->  | Y27: =IF(G27="","",ROUND(G27*Parameters!J$83,2)) -> 
E28: 0 | F28: =IF(C28="",0,IF(C28<=Parameters!$C$3,C28,Parameters!$C$3)) -> 0 | G28: =IF(C28="","",IF(F28<Parameters!$C$4,"",(F28-Parameters!$C$4)*D28)) ->  | I28: =IF(H28="","",YEAR(+Informatie!$C$1)-YEAR(H28)) ->  | K28: =IF(G28="","",ROUND(G28*Parameters!$C$12,2)) ->  | L28: =IF(G28="","",IF(YEAR(Informatie!$C$1)=2015,ROUND(G28*Parameters!$J$27,2),ROUND(G28*VLOOKUP('Overzicht deelnemers'!I28,Parameters!$E$4:$G$49,2,FALSE),2))) ->  | M28: =IF(G28="","",IF(YEAR(Informatie!$C$1)=2015,ROUND(L28*Parameters!$C$20,2),G28*Parameters!$J$27)) ->  | O28: =IF(G28="","",ROUND(G28*Parameters!$C$16,2)) ->  | P28: =IF(G28="","",ROUND(G28*VLOOKUP(J28,Parameters!$E$3:$F$49,2,FALSE),2)) ->  | Q28: =IF(G28="","",ROUND(G28*Parameters!$J$66,2)) ->  | S28: =IF(G28="","",ROUND(G28*Parameters!$C$13,2)) ->  | T28: =IF(G28="","",IF(YEAR(Informatie!$C$1)=2015,ROUND(G28*Parameters!J$44,2),ROUND(G28*VLOOKUP('Overzicht deelnemers'!I28,Parameters!$E$4:$G$49,3,FALSE),2))) ->  | U28: =IF(G28="","",IF(YEAR(Informatie!$C$1)=2015,ROUND(T28*Parameters!$C$20,2),ROUND(G28*Parameters!$J$44,2))) ->  | W28: =IF(G28="","",ROUND(G28*Parameters!C$17,2)) ->  | X28: =IF(G28="","",ROUND(G28*VLOOKUP(J28,Parameters!E$4:G$49,3),2)) ->  | Y28: =IF(G28="","",ROUND(G28*Parameters!J$83,2)) -> 
E29: 0 | F29: =IF(C29="",0,IF(C29<=Parameters!$C$3,C29,Parameters!$C$3)) -> 0 | G29: =IF(C29="","",IF(F29<Parameters!$C$4,"",(F29-Parameters!$C$4)*D29)) ->  | I29: =IF(H29="","",YEAR(+Informatie!$C$1)-YEAR(H29)) ->  | K29: =IF(G29="","",ROUND(G29*Parameters!$C$12,2)) ->  | L29: =IF(G29="","",IF(YEAR(Informatie!$C$1)=2015,ROUND(G29*Parameters!$J$27,2),ROUND(G29*VLOOKUP('Overzicht deelnemers'!I29,Parameters!$E$4:$G$49,2,FALSE),2))) ->  | M29: =IF(G29="","",IF(YEAR(Informatie!$C$1)=2015,ROUND(L29*Parameters!$C$20,2),G29*Parameters!$J$27)) ->  | O29: =IF(G29="","",ROUND(G29*Parameters!$C$16,2)) ->  | P29: =IF(G29="","",ROUND(G29*VLOOKUP(J29,Parameters!$E$3:$F$49,2,FALSE),2)) ->  | Q29: =IF(G29="","",ROUND(G29*Parameters!$J$66,2)) ->  | S29: =IF(G29="","",ROUND(G29*Parameters!$C$13,2)) ->  | T29: =IF(G29="","",IF(YEAR(Informatie!$C$1)=2015,ROUND(G29*Parameters!J$44,2),ROUND(G29*VLOOKUP('Overzicht deelnemers'!I29,Parameters!$E$4:$G$49,3,FALSE),2))) ->  | U29: =IF(G29="","",IF(YEAR(Informatie!$C$1)=2015,ROUND(T29*Parameters!$C$20,2),ROUND(G29*Parameters!$J$44,2))) ->  | W29: =IF(G29="","",ROUND(G29*Parameters!C$17,2)) ->  | X29: =IF(G29="","",ROUND(G29*VLOOKUP(J29,Parameters!E$4:G$49,3),2)) ->  | Y29: =IF(G29="","",ROUND(G29*Parameters!J$83,2)) -> 
E30: 0 | F30: =IF(C30="",0,IF(C30<=Parameters!$C$3,C30,Parameters!$C$3)) -> 0 | G30: =IF(C30="","",IF(F30<Parameters!$C$4,"",(F30-Parameters!$C$4)*D30)) ->  | I30: =IF(H30="","",YEAR(+Informatie!$C$1)-YEAR(H30)) ->  | K30: =IF(G30="","",ROUND(G30*Parameters!$C$12,2)) ->  | L30: =IF(G30="","",IF(YEAR(Informatie!$C$1)=2015,ROUND(G30*Parameters!$J$27,2),ROUND(G30*VLOOKUP('Overzicht deelnemers'!I30,Parameters!$E$4:$G$49,2,FALSE),2))) ->  | M30: =IF(G30="","",IF(YEAR(Informatie!$C$1)=2015,ROUND(L30*Parameters!$C$20,2),G30*Parameters!$J$27)) ->  | O30: =IF(G30="","",ROUND(G30*Parameters!$C$16,2)) ->  | P30: =IF(G30="","",ROUND(G30*VLOOKUP(J30,Parameters!$E$3:$F$49,2,FALSE),2)) ->  | Q30: =IF(G30="","",ROUND(G30*Parameters!$J$66,2)) ->  | S30: =IF(G30="","",ROUND(G30*Parameters!$C$13,2)) ->  | T30: =IF(G30="","",IF(YEAR(Informatie!$C$1)=2015,ROUND(G30*Parameters!J$44,2),ROUND(G30*VLOOKUP('Overzicht deelnemers'!I30,Parameters!$E$4:$G$49,3,FALSE),2))) ->  | U30: =IF(G30="","",IF(YEAR(Informatie!$C$1)=2015,ROUND(T30*Parameters!$C$20,2),ROUND(G30*Parameters!$J$44,2))) ->  | W30: =IF(G30="","",ROUND(G30*Parameters!C$17,2)) ->  | X30: =IF(G30="","",ROUND(G30*VLOOKUP(J30,Parameters!E$4:G$49,3),2)) ->  | Y30: =IF(G30="","",ROUND(G30*Parameters!J$83,2)) -> 
E31: 0 | F31: =IF(C31="",0,IF(C31<=Parameters!$C$3,C31,Parameters!$C$3)) -> 0 | G31: =IF(C31="","",IF(F31<Parameters!$C$4,"",(F31-Parameters!$C$4)*D31)) ->  | I31: =IF(H31="","",YEAR(+Informatie!$C$1)-YEAR(H31)) ->  | K31: =IF(G31="","",ROUND(G31*Parameters!$C$12,2)) ->  | L31: =IF(G31="","",IF(YEAR(Informatie!$C$1)=2015,ROUND(G31*Parameters!$J$27,2),ROUND(G31*VLOOKUP('Overzicht deelnemers'!I31,Parameters!$E$4:$G$49,2,FALSE),2))) ->  | M31: =IF(G31="","",IF(YEAR(Informatie!$C$1)=2015,ROUND(L31*Parameters!$C$20,2),G31*Parameters!$J$27)) ->  | O31: =IF(G31="","",ROUND(G31*Parameters!$C$16,2)) ->  | P31: =IF(G31="","",ROUND(G31*VLOOKUP(J31,Parameters!$E$3:$F$49,2,FALSE),2)) ->  | Q31: =IF(G31="","",ROUND(G31*Parameters!$J$66,2)) ->  | S31: =IF(G31="","",ROUND(G31*Parameters!$C$13,2)) ->  | T31: =IF(G31="","",IF(YEAR(Informatie!$C$1)=2015,ROUND(G31*Parameters!J$44,2),ROUND(G31*VLOOKUP('Overzicht deelnemers'!I31,Parameters!$E$4:$G$49,3,FALSE),2))) ->  | U31: =IF(G31="","",IF(YEAR(Informatie!$C$1)=2015,ROUND(T31*Parameters!$C$20,2),ROUND(G31*Parameters!$J$44,2))) ->  | W31: =IF(G31="","",ROUND(G31*Parameters!C$17,2)) ->  | X31: =IF(G31="","",ROUND(G31*VLOOKUP(J31,Parameters!E$4:G$49,3),2)) ->  | Y31: =IF(G31="","",ROUND(G31*Parameters!J$83,2)) -> 
E32: 0 | F32: =IF(C32="",0,IF(C32<=Parameters!$C$3,C32,Parameters!$C$3)) -> 0 | G32: =IF(C32="","",IF(F32<Parameters!$C$4,"",(F32-Parameters!$C$4)*D32)) ->  | I32: =IF(H32="","",YEAR(+Informatie!$C$1)-YEAR(H32)) ->  | K32: =IF(G32="","",ROUND(G32*Parameters!$C$12,2)) ->  | L32: =IF(G32="","",IF(YEAR(Informatie!$C$1)=2015,ROUND(G32*Parameters!$J$27,2),ROUND(G32*VLOOKUP('Overzicht deelnemers'!I32,Parameters!$E$4:$G$49,2,FALSE),2))) ->  | M32: =IF(G32="","",IF(YEAR(Informatie!$C$1)=2015,ROUND(L32*Parameters!$C$20,2),G32*Parameters!$J$27)) ->  | O32: =IF(G32="","",ROUND(G32*Parameters!$C$16,2)) ->  | P32: =IF(G32="","",ROUND(G32*VLOOKUP(J32,Parameters!$E$3:$F$49,2,FALSE),2)) ->  | Q32: =IF(G32="","",ROUND(G32*Parameters!$J$66,2)) ->  | S32: =IF(G32="","",ROUND(G32*Parameters!$C$13,2)) ->  | T32: =IF(G32="","",IF(YEAR(Informatie!$C$1)=2015,ROUND(G32*Parameters!J$44,2),ROUND(G32*VLOOKUP('Overzicht deelnemers'!I32,Parameters!$E$4:$G$49,3,FALSE),2))) ->  | U32: =IF(G32="","",IF(YEAR(Informatie!$C$1)=2015,ROUND(T32*Parameters!$C$20,2),ROUND(G32*Parameters!$J$44,2))) ->  | W32: =IF(G32="","",ROUND(G32*Parameters!C$17,2)) ->  | X32: =IF(G32="","",ROUND(G32*VLOOKUP(J32,Parameters!E$4:G$49,3),2)) ->  | Y32: =IF(G32="","",ROUND(G32*Parameters!J$83,2)) -> 
E33: 0 | F33: =IF(C33="",0,IF(C33<=Parameters!$C$3,C33,Parameters!$C$3)) -> 0 | G33: =IF(C33="","",IF(F33<Parameters!$C$4,"",(F33-Parameters!$C$4)*D33)) ->  | I33: =IF(H33="","",YEAR(+Informatie!$C$1)-YEAR(H33)) ->  | K33: =IF(G33="","",ROUND(G33*Parameters!$C$12,2)) ->  | L33: =IF(G33="","",IF(YEAR(Informatie!$C$1)=2015,ROUND(G33*Parameters!$J$27,2),ROUND(G33*VLOOKUP('Overzicht deelnemers'!I33,Parameters!$E$4:$G$49,2,FALSE),2))) ->  | M33: =IF(G33="","",IF(YEAR(Informatie!$C$1)=2015,ROUND(L33*Parameters!$C$20,2),G33*Parameters!$J$27)) ->  | O33: =IF(G33="","",ROUND(G33*Parameters!$C$16,2)) ->  | P33: =IF(G33="","",ROUND(G33*VLOOKUP(J33,Parameters!$E$3:$F$49,2,FALSE),2)) ->  | Q33: =IF(G33="","",ROUND(G33*Parameters!$J$66,2)) ->  | S33: =IF(G33="","",ROUND(G33*Parameters!$C$13,2)) ->  | T33: =IF(G33="","",IF(YEAR(Informatie!$C$1)=2015,ROUND(G33*Parameters!J$44,2),ROUND(G33*VLOOKUP('Overzicht deelnemers'!I33,Parameters!$E$4:$G$49,3,FALSE),2))) ->  | U33: =IF(G33="","",IF(YEAR(Informatie!$C$1)=2015,ROUND(T33*Parameters!$C$20,2),ROUND(G33*Parameters!$J$44,2))) ->  | W33: =IF(G33="","",ROUND(G33*Parameters!C$17,2)) ->  | X33: =IF(G33="","",ROUND(G33*VLOOKUP(J33,Parameters!E$4:G$49,3),2)) ->  | Y33: =IF(G33="","",ROUND(G33*Parameters!J$83,2)) -> 
E34: 0 | F34: =IF(C34="",0,IF(C34<=Parameters!$C$3,C34,Parameters!$C$3)) -> 0 | G34: =IF(C34="","",IF(F34<Parameters!$C$4,"",(F34-Parameters!$C$4)*D34)) ->  | I34: =IF(H34="","",YEAR(+Informatie!$C$1)-YEAR(H34)) ->  | K34: =IF(G34="","",ROUND(G34*Parameters!$C$12,2)) ->  | L34: =IF(G34="","",IF(YEAR(Informatie!$C$1)=2015,ROUND(G34*Parameters!$J$27,2),ROUND(G34*VLOOKUP('Overzicht deelnemers'!I34,Parameters!$E$4:$G$49,2,FALSE),2))) ->  | M34: =IF(G34="","",IF(YEAR(Informatie!$C$1)=2015,ROUND(L34*Parameters!$C$20,2),G34*Parameters!$J$27)) ->  | O34: =IF(G34="","",ROUND(G34*Parameters!$C$16,2)) ->  | P34: =IF(G34="","",ROUND(G34*VLOOKUP(J34,Parameters!$E$3:$F$49,2,FALSE),2)) ->  | Q34: =IF(G34="","",ROUND(G34*Parameters!$J$66,2)) ->  | S34: =IF(G34="","",ROUND(G34*Parameters!$C$13,2)) ->  | T34: =IF(G34="","",IF(YEAR(Informatie!$C$1)=2015,ROUND(G34*Parameters!J$44,2),ROUND(G34*VLOOKUP('Overzicht deelnemers'!I34,Parameters!$E$4:$G$49,3,FALSE),2))) ->  | U34: =IF(G34="","",IF(YEAR(Informatie!$C$1)=2015,ROUND(T34*Parameters!$C$20,2),ROUND(G34*Parameters!$J$44,2))) ->  | W34: =IF(G34="","",ROUND(G34*Parameters!C$17,2)) ->  | X34: =IF(G34="","",ROUND(G34*VLOOKUP(J34,Parameters!E$4:G$49,3),2)) ->  | Y34: =IF(G34="","",ROUND(G34*Parameters!J$83,2)) -> 
E35: 0 | F35: =IF(C35="",0,IF(C35<=Parameters!$C$3,C35,Parameters!$C$3)) -> 0 | G35: =IF(C35="","",IF(F35<Parameters!$C$4,"",(F35-Parameters!$C$4)*D35)) ->  | I35: =IF(H35="","",YEAR(+Informatie!$C$1)-YEAR(H35)) ->  | K35: =IF(G35="","",ROUND(G35*Parameters!$C$12,2)) ->  | L35: =IF(G35="","",IF(YEAR(Informatie!$C$1)=2015,ROUND(G35*Parameters!$J$27,2),ROUND(G35*VLOOKUP('Overzicht deelnemers'!I35,Parameters!$E$4:$G$49,2,FALSE),2))) ->  | M35: =IF(G35="","",IF(YEAR(Informatie!$C$1)=2015,ROUND(L35*Parameters!$C$20,2),G35*Parameters!$J$27)) ->  | O35: =IF(G35="","",ROUND(G35*Parameters!$C$16,2)) ->  | P35: =IF(G35="","",ROUND(G35*VLOOKUP(J35,Parameters!$E$3:$F$49,2,FALSE),2)) ->  | Q35: =IF(G35="","",ROUND(G35*Parameters!$J$66,2)) ->  | S35: =IF(G35="","",ROUND(G35*Parameters!$C$13,2)) ->  | T35: =IF(G35="","",IF(YEAR(Informatie!$C$1)=2015,ROUND(G35*Parameters!J$44,2),ROUND(G35*VLOOKUP('Overzicht deelnemers'!I35,Parameters!$E$4:$G$49,3,FALSE),2))) ->  | U35: =IF(G35="","",IF(YEAR(Informatie!$C$1)=2015,ROUND(T35*Parameters!$C$20,2),ROUND(G35*Parameters!$J$44,2))) ->  | W35: =IF(G35="","",ROUND(G35*Parameters!C$17,2)) ->  | X35: =IF(G35="","",ROUND(G35*VLOOKUP(J35,Parameters!E$4:G$49,3),2)) ->  | Y35: =IF(G35="","",ROUND(G35*Parameters!J$83,2)) -> 
E36: 0 | F36: =IF(C36="",0,IF(C36<=Parameters!$C$3,C36,Parameters!$C$3)) -> 0 | G36: =IF(C36="","",IF(F36<Parameters!$C$4,"",(F36-Parameters!$C$4)*D36)) ->  | I36: =IF(H36="","",YEAR(+Informatie!$C$1)-YEAR(H36)) ->  | K36: =IF(G36="","",ROUND(G36*Parameters!$C$12,2)) ->  | L36: =IF(G36="","",IF(YEAR(Informatie!$C$1)=2015,ROUND(G36*Parameters!$J$27,2),ROUND(G36*VLOOKUP('Overzicht deelnemers'!I36,Parameters!$E$4:$G$49,2,FALSE),2))) ->  | M36: =IF(G36="","",IF(YEAR(Informatie!$C$1)=2015,ROUND(L36*Parameters!$C$20,2),G36*Parameters!$J$27)) ->  | O36: =IF(G36="","",ROUND(G36*Parameters!$C$16,2)) ->  | P36: =IF(G36="","",ROUND(G36*VLOOKUP(J36,Parameters!$E$3:$F$49,2,FALSE),2)) ->  | Q36: =IF(G36="","",ROUND(G36*Parameters!$J$66,2)) ->  | S36: =IF(G36="","",ROUND(G36*Parameters!$C$13,2)) ->  | T36: =IF(G36="","",IF(YEAR(Informatie!$C$1)=2015,ROUND(G36*Parameters!J$44,2),ROUND(G36*VLOOKUP('Overzicht deelnemers'!I36,Parameters!$E$4:$G$49,3,FALSE),2))) ->  | U36: =IF(G36="","",IF(YEAR(Informatie!$C$1)=2015,ROUND(T36*Parameters!$C$20,2),ROUND(G36*Parameters!$J$44,2))) ->  | W36: =IF(G36="","",ROUND(G36*Parameters!C$17,2)) ->  | X36: =IF(G36="","",ROUND(G36*VLOOKUP(J36,Parameters!E$4:G$49,3),2)) ->  | Y36: =IF(G36="","",ROUND(G36*Parameters!J$83,2)) -> 
E37: 0 | F37: =IF(C37="",0,IF(C37<=Parameters!$C$3,C37,Parameters!$C$3)) -> 0 | G37: =IF(C37="","",IF(F37<Parameters!$C$4,"",(F37-Parameters!$C$4)*D37)) ->  | I37: =IF(H37="","",YEAR(+Informatie!$C$1)-YEAR(H37)) ->  | K37: =IF(G37="","",ROUND(G37*Parameters!$C$12,2)) ->  | L37: =IF(G37="","",IF(YEAR(Informatie!$C$1)=2015,ROUND(G37*Parameters!$J$27,2),ROUND(G37*VLOOKUP('Overzicht deelnemers'!I37,Parameters!$E$4:$G$49,2,FALSE),2))) ->  | M37: =IF(G37="","",IF(YEAR(Informatie!$C$1)=2015,ROUND(L37*Parameters!$C$20,2),G37*Parameters!$J$27)) ->  | O37: =IF(G37="","",ROUND(G37*Parameters!$C$16,2)) ->  | P37: =IF(G37="","",ROUND(G37*VLOOKUP(J37,Parameters!$E$3:$F$49,2,FALSE),2)) ->  | Q37: =IF(G37="","",ROUND(G37*Parameters!$J$66,2)) ->  | S37: =IF(G37="","",ROUND(G37*Parameters!$C$13,2)) ->  | T37: =IF(G37="","",IF(YEAR(Informatie!$C$1)=2015,ROUND(G37*Parameters!J$44,2),ROUND(G37*VLOOKUP('Overzicht deelnemers'!I37,Parameters!$E$4:$G$49,3,FALSE),2))) ->  | U37: =IF(G37="","",IF(YEAR(Informatie!$C$1)=2015,ROUND(T37*Parameters!$C$20,2),ROUND(G37*Parameters!$J$44,2))) ->  | W37: =IF(G37="","",ROUND(G37*Parameters!C$17,2)) ->  | X37: =IF(G37="","",ROUND(G37*VLOOKUP(J37,Parameters!E$4:G$49,3),2)) ->  | Y37: =IF(G37="","",ROUND(G37*Parameters!J$83,2)) -> 
E38: 0 | F38: =IF(C38="",0,IF(C38<=Parameters!$C$3,C38,Parameters!$C$3)) -> 0 | G38: =IF(C38="","",IF(F38<Parameters!$C$4,"",(F38-Parameters!$C$4)*D38)) ->  | I38: =IF(H38="","",YEAR(+Informatie!$C$1)-YEAR(H38)) ->  | K38: =IF(G38="","",ROUND(G38*Parameters!$C$12,2)) ->  | L38: =IF(G38="","",IF(YEAR(Informatie!$C$1)=2015,ROUND(G38*Parameters!$J$27,2),ROUND(G38*VLOOKUP('Overzicht deelnemers'!I38,Parameters!$E$4:$G$49,2,FALSE),2))) ->  | M38: =IF(G38="","",IF(YEAR(Informatie!$C$1)=2015,ROUND(L38*Parameters!$C$20,2),G38*Parameters!$J$27)) ->  | O38: =IF(G38="","",ROUND(G38*Parameters!$C$16,2)) ->  | P38: =IF(G38="","",ROUND(G38*VLOOKUP(J38,Parameters!$E$3:$F$49,2,FALSE),2)) ->  | Q38: =IF(G38="","",ROUND(G38*Parameters!$J$66,2)) ->  | S38: =IF(G38="","",ROUND(G38*Parameters!$C$13,2)) ->  | T38: =IF(G38="","",IF(YEAR(Informatie!$C$1)=2015,ROUND(G38*Parameters!J$44,2),ROUND(G38*VLOOKUP('Overzicht deelnemers'!I38,Parameters!$E$4:$G$49,3,FALSE),2))) ->  | U38: =IF(G38="","",IF(YEAR(Informatie!$C$1)=2015,ROUND(T38*Parameters!$C$20,2),ROUND(G38*Parameters!$J$44,2))) ->  | W38: =IF(G38="","",ROUND(G38*Parameters!C$17,2)) ->  | X38: =IF(G38="","",ROUND(G38*VLOOKUP(J38,Parameters!E$4:G$49,3),2)) ->  | Y38: =IF(G38="","",ROUND(G38*Parameters!J$83,2)) -> 
E39: 0 | F39: =IF(C39="",0,IF(C39<=Parameters!$C$3,C39,Parameters!$C$3)) -> 0 | G39: =IF(C39="","",IF(F39<Parameters!$C$4,"",(F39-Parameters!$C$4)*D39)) ->  | I39: =IF(H39="","",YEAR(+Informatie!$C$1)-YEAR(H39)) ->  | K39: =IF(G39="","",ROUND(G39*Parameters!$C$12,2)) ->  | L39: =IF(G39="","",IF(YEAR(Informatie!$C$1)=2015,ROUND(G39*Parameters!$J$27,2),ROUND(G39*VLOOKUP('Overzicht deelnemers'!I39,Parameters!$E$4:$G$49,2,FALSE),2))) ->  | M39: =IF(G39="","",IF(YEAR(Informatie!$C$1)=2015,ROUND(L39*Parameters!$C$20,2),G39*Parameters!$J$27)) ->  | O39: =IF(G39="","",ROUND(G39*Parameters!$C$16,2)) ->  | P39: =IF(G39="","",ROUND(G39*VLOOKUP(J39,Parameters!$E$3:$F$49,2,FALSE),2)) ->  | Q39: =IF(G39="","",ROUND(G39*Parameters!$J$66,2)) ->  | S39: =IF(G39="","",ROUND(G39*Parameters!$C$13,2)) ->  | T39: =IF(G39="","",IF(YEAR(Informatie!$C$1)=2015,ROUND(G39*Parameters!J$44,2),ROUND(G39*VLOOKUP('Overzicht deelnemers'!I39,Parameters!$E$4:$G$49,3,FALSE),2))) ->  | U39: =IF(G39="","",IF(YEAR(Informatie!$C$1)=2015,ROUND(T39*Parameters!$C$20,2),ROUND(G39*Parameters!$J$44,2))) ->  | W39: =IF(G39="","",ROUND(G39*Parameters!C$17,2)) ->  | X39: =IF(G39="","",ROUND(G39*VLOOKUP(J39,Parameters!E$4:G$49,3),2)) ->  | Y39: =IF(G39="","",ROUND(G39*Parameters!J$83,2)) -> 
E40: 0 | F40: =IF(C40="",0,IF(C40<=Parameters!$C$3,C40,Parameters!$C$3)) -> 0 | G40: =IF(C40="","",IF(F40<Parameters!$C$4,"",(F40-Parameters!$C$4)*D40)) ->  | I40: =IF(H40="","",YEAR(+Informatie!$C$1)-YEAR(H40)) ->  | K40: =IF(G40="","",ROUND(G40*Parameters!$C$12,2)) ->  | L40: =IF(G40="","",IF(YEAR(Informatie!$C$1)=2015,ROUND(G40*Parameters!$J$27,2),ROUND(G40*VLOOKUP('Overzicht deelnemers'!I40,Parameters!$E$4:$G$49,2,FALSE),2))) ->  | M40: =IF(G40="","",IF(YEAR(Informatie!$C$1)=2015,ROUND(L40*Parameters!$C$20,2),G40*Parameters!$J$27)) ->  | O40: =IF(G40="","",ROUND(G40*Parameters!$C$16,2)) ->  | P40: =IF(G40="","",ROUND(G40*VLOOKUP(J40,Parameters!$E$3:$F$49,2,FALSE),2)) ->  | Q40: =IF(G40="","",ROUND(G40*Parameters!$J$66,2)) ->  | S40: =IF(G40="","",ROUND(G40*Parameters!$C$13,2)) ->  | T40: =IF(G40="","",IF(YEAR(Informatie!$C$1)=2015,ROUND(G40*Parameters!J$44,2),ROUND(G40*VLOOKUP('Overzicht deelnemers'!I40,Parameters!$E$4:$G$49,3,FALSE),2))) ->  | U40: =IF(G40="","",IF(YEAR(Informatie!$C$1)=2015,ROUND(T40*Parameters!$C$20,2),ROUND(G40*Parameters!$J$44,2))) ->  | W40: =IF(G40="","",ROUND(G40*Parameters!C$17,2)) ->  | X40: =IF(G40="","",ROUND(G40*VLOOKUP(J40,Parameters!E$4:G$49,3),2)) ->  | Y40: =IF(G40="","",ROUND(G40*Parameters!J$83,2)) -> 
E41: 0 | F41: =IF(C41="",0,IF(C41<=Parameters!$C$3,C41,Parameters!$C$3)) -> 0 | G41: =IF(C41="","",IF(F41<Parameters!$C$4,"",(F41-Parameters!$C$4)*D41)) ->  | I41: =IF(H41="","",YEAR(+Informatie!$C$1)-YEAR(H41)) ->  | K41: =IF(G41="","",ROUND(G41*Parameters!$C$12,2)) ->  | L41: =IF(G41="","",IF(YEAR(Informatie!$C$1)=2015,ROUND(G41*Parameters!$J$27,2),ROUND(G41*VLOOKUP('Overzicht deelnemers'!I41,Parameters!$E$4:$G$49,2,FALSE),2))) ->  | M41: =IF(G41="","",IF(YEAR(Informatie!$C$1)=2015,ROUND(L41*Parameters!$C$20,2),G41*Parameters!$J$27)) ->  | O41: =IF(G41="","",ROUND(G41*Parameters!$C$16,2)) ->  | P41: =IF(G41="","",ROUND(G41*VLOOKUP(J41,Parameters!$E$3:$F$49,2,FALSE),2)) ->  | Q41: =IF(G41="","",ROUND(G41*Parameters!$J$66,2)) ->  | S41: =IF(G41="","",ROUND(G41*Parameters!$C$13,2)) ->  | T41: =IF(G41="","",IF(YEAR(Informatie!$C$1)=2015,ROUND(G41*Parameters!J$44,2),ROUND(G41*VLOOKUP('Overzicht deelnemers'!I41,Parameters!$E$4:$G$49,3,FALSE),2))) ->  | U41: =IF(G41="","",IF(YEAR(Informatie!$C$1)=2015,ROUND(T41*Parameters!$C$20,2),ROUND(G41*Parameters!$J$44,2))) ->  | W41: =IF(G41="","",ROUND(G41*Parameters!C$17,2)) ->  | X41: =IF(G41="","",ROUND(G41*VLOOKUP(J41,Parameters!E$4:G$49,3),2)) ->  | Y41: =IF(G41="","",ROUND(G41*Parameters!J$83,2)) -> 
E42: 0 | F42: =IF(C42="",0,IF(C42<=Parameters!$C$3,C42,Parameters!$C$3)) -> 0 | G42: =IF(C42="","",IF(F42<Parameters!$C$4,"",(F42-Parameters!$C$4)*D42)) ->  | I42: =IF(H42="","",YEAR(+Informatie!$C$1)-YEAR(H42)) ->  | K42: =IF(G42="","",ROUND(G42*Parameters!$C$12,2)) ->  | L42: =IF(G42="","",IF(YEAR(Informatie!$C$1)=2015,ROUND(G42*Parameters!$J$27,2),ROUND(G42*VLOOKUP('Overzicht deelnemers'!I42,Parameters!$E$4:$G$49,2,FALSE),2))) ->  | M42: =IF(G42="","",IF(YEAR(Informatie!$C$1)=2015,ROUND(L42*Parameters!$C$20,2),G42*Parameters!$J$27)) ->  | O42: =IF(G42="","",ROUND(G42*Parameters!$C$16,2)) ->  | P42: =IF(G42="","",ROUND(G42*VLOOKUP(J42,Parameters!$E$3:$F$49,2,FALSE),2)) ->  | Q42: =IF(G42="","",ROUND(G42*Parameters!$J$66,2)) ->  | S42: =IF(G42="","",ROUND(G42*Parameters!$C$13,2)) ->  | T42: =IF(G42="","",IF(YEAR(Informatie!$C$1)=2015,ROUND(G42*Parameters!J$44,2),ROUND(G42*VLOOKUP('Overzicht deelnemers'!I42,Parameters!$E$4:$G$49,3,FALSE),2))) ->  | U42: =IF(G42="","",IF(YEAR(Informatie!$C$1)=2015,ROUND(T42*Parameters!$C$20,2),ROUND(G42*Parameters!$J$44,2))) ->  | W42: =IF(G42="","",ROUND(G42*Parameters!C$17,2)) ->  | X42: =IF(G42="","",ROUND(G42*VLOOKUP(J42,Parameters!E$4:G$49,3),2)) ->  | Y42: =IF(G42="","",ROUND(G42*Parameters!J$83,2)) -> 
E43: 0 | F43: =IF(C43="",0,IF(C43<=Parameters!$C$3,C43,Parameters!$C$3)) -> 0 | G43: =IF(C43="","",IF(F43<Parameters!$C$4,"",(F43-Parameters!$C$4)*D43)) ->  | I43: =IF(H43="","",YEAR(+Informatie!$C$1)-YEAR(H43)) ->  | K43: =IF(G43="","",ROUND(G43*Parameters!$C$12,2)) ->  | L43: =IF(G43="","",IF(YEAR(Informatie!$C$1)=2015,ROUND(G43*Parameters!$J$27,2),ROUND(G43*VLOOKUP('Overzicht deelnemers'!I43,Parameters!$E$4:$G$49,2,FALSE),2))) ->  | M43: =IF(G43="","",IF(YEAR(Informatie!$C$1)=2015,ROUND(L43*Parameters!$C$20,2),G43*Parameters!$J$27)) ->  | O43: =IF(G43="","",ROUND(G43*Parameters!$C$16,2)) ->  | P43: =IF(G43="","",ROUND(G43*VLOOKUP(J43,Parameters!$E$3:$F$49,2,FALSE),2)) ->  | Q43: =IF(G43="","",ROUND(G43*Parameters!$J$66,2)) ->  | S43: =IF(G43="","",ROUND(G43*Parameters!$C$13,2)) ->  | T43: =IF(G43="","",IF(YEAR(Informatie!$C$1)=2015,ROUND(G43*Parameters!J$44,2),ROUND(G43*VLOOKUP('Overzicht deelnemers'!I43,Parameters!$E$4:$G$49,3,FALSE),2))) ->  | U43: =IF(G43="","",IF(YEAR(Informatie!$C$1)=2015,ROUND(T43*Parameters!$C$20,2),ROUND(G43*Parameters!$J$44,2))) ->  | W43: =IF(G43="","",ROUND(G43*Parameters!C$17,2)) ->  | X43: =IF(G43="","",ROUND(G43*VLOOKUP(J43,Parameters!E$4:G$49,3),2)) ->  | Y43: =IF(G43="","",ROUND(G43*Parameters!J$83,2)) -> 
E44: 0 | F44: =IF(C44="",0,IF(C44<=Parameters!$C$3,C44,Parameters!$C$3)) -> 0 | G44: =IF(C44="","",IF(F44<Parameters!$C$4,"",(F44-Parameters!$C$4)*D44)) ->  | I44: =IF(H44="","",YEAR(+Informatie!$C$1)-YEAR(H44)) ->  | K44: =IF(G44="","",ROUND(G44*Parameters!$C$12,2)) ->  | L44: =IF(G44="","",IF(YEAR(Informatie!$C$1)=2015,ROUND(G44*Parameters!$J$27,2),ROUND(G44*VLOOKUP('Overzicht deelnemers'!I44,Parameters!$E$4:$G$49,2,FALSE),2))) ->  | M44: =IF(G44="","",IF(YEAR(Informatie!$C$1)=2015,ROUND(L44*Parameters!$C$20,2),G44*Parameters!$J$27)) ->  | O44: =IF(G44="","",ROUND(G44*Parameters!$C$16,2)) ->  | P44: =IF(G44="","",ROUND(G44*VLOOKUP(J44,Parameters!$E$3:$F$49,2,FALSE),2)) ->  | Q44: =IF(G44="","",ROUND(G44*Parameters!$J$66,2)) ->  | S44: =IF(G44="","",ROUND(G44*Parameters!$C$13,2)) ->  | T44: =IF(G44="","",IF(YEAR(Informatie!$C$1)=2015,ROUND(G44*Parameters!J$44,2),ROUND(G44*VLOOKUP('Overzicht deelnemers'!I44,Parameters!$E$4:$G$49,3,FALSE),2))) ->  | U44: =IF(G44="","",IF(YEAR(Informatie!$C$1)=2015,ROUND(T44*Parameters!$C$20,2),ROUND(G44*Parameters!$J$44,2))) ->  | W44: =IF(G44="","",ROUND(G44*Parameters!C$17,2)) ->  | X44: =IF(G44="","",ROUND(G44*VLOOKUP(J44,Parameters!E$4:G$49,3),2)) ->  | Y44: =IF(G44="","",ROUND(G44*Parameters!J$83,2)) -> 
E45: 0 | F45: =IF(C45="",0,IF(C45<=Parameters!$C$3,C45,Parameters!$C$3)) -> 0 | G45: =IF(C45="","",IF(F45<Parameters!$C$4,"",(F45-Parameters!$C$4)*D45)) ->  | I45: =IF(H45="","",YEAR(+Informatie!$C$1)-YEAR(H45)) ->  | K45: =IF(G45="","",ROUND(G45*Parameters!$C$12,2)) ->  | L45: =IF(G45="","",IF(YEAR(Informatie!$C$1)=2015,ROUND(G45*Parameters!$J$27,2),ROUND(G45*VLOOKUP('Overzicht deelnemers'!I45,Parameters!$E$4:$G$49,2,FALSE),2))) ->  | M45: =IF(G45="","",IF(YEAR(Informatie!$C$1)=2015,ROUND(L45*Parameters!$C$20,2),G45*Parameters!$J$27)) ->  | O45: =IF(G45="","",ROUND(G45*Parameters!$C$16,2)) ->  | P45: =IF(G45="","",ROUND(G45*VLOOKUP(J45,Parameters!$E$3:$F$49,2,FALSE),2)) ->  | Q45: =IF(G45="","",ROUND(G45*Parameters!$J$66,2)) ->  | S45: =IF(G45="","",ROUND(G45*Parameters!$C$13,2)) ->  | T45: =IF(G45="","",IF(YEAR(Informatie!$C$1)=2015,ROUND(G45*Parameters!J$44,2),ROUND(G45*VLOOKUP('Overzicht deelnemers'!I45,Parameters!$E$4:$G$49,3,FALSE),2))) ->  | U45: =IF(G45="","",IF(YEAR(Informatie!$C$1)=2015,ROUND(T45*Parameters!$C$20,2),ROUND(G45*Parameters!$J$44,2))) ->  | W45: =IF(G45="","",ROUND(G45*Parameters!C$17,2)) ->  | X45: =IF(G45="","",ROUND(G45*VLOOKUP(J45,Parameters!E$4:G$49,3),2)) ->  | Y45: =IF(G45="","",ROUND(G45*Parameters!J$83,2)) -> 
E46: 0 | F46: =IF(C46="",0,IF(C46<=Parameters!$C$3,C46,Parameters!$C$3)) -> 0 | G46: =IF(C46="","",IF(F46<Parameters!$C$4,"",(F46-Parameters!$C$4)*D46)) ->  | I46: =IF(H46="","",YEAR(+Informatie!$C$1)-YEAR(H46)) ->  | K46: =IF(G46="","",ROUND(G46*Parameters!$C$12,2)) ->  | L46: =IF(G46="","",IF(YEAR(Informatie!$C$1)=2015,ROUND(G46*Parameters!$J$27,2),ROUND(G46*VLOOKUP('Overzicht deelnemers'!I46,Parameters!$E$4:$G$49,2,FALSE),2))) ->  | M46: =IF(G46="","",IF(YEAR(Informatie!$C$1)=2015,ROUND(L46*Parameters!$C$20,2),G46*Parameters!$J$27)) ->  | O46: =IF(G46="","",ROUND(G46*Parameters!$C$16,2)) ->  | P46: =IF(G46="","",ROUND(G46*VLOOKUP(J46,Parameters!$E$3:$F$49,2,FALSE),2)) ->  | Q46: =IF(G46="","",ROUND(G46*Parameters!$J$66,2)) ->  | S46: =IF(G46="","",ROUND(G46*Parameters!$C$13,2)) ->  | T46: =IF(G46="","",IF(YEAR(Informatie!$C$1)=2015,ROUND(G46*Parameters!J$44,2),ROUND(G46*VLOOKUP('Overzicht deelnemers'!I46,Parameters!$E$4:$G$49,3,FALSE),2))) ->  | U46: =IF(G46="","",IF(YEAR(Informatie!$C$1)=2015,ROUND(T46*Parameters!$C$20,2),ROUND(G46*Parameters!$J$44,2))) ->  | W46: =IF(G46="","",ROUND(G46*Parameters!C$17,2)) ->  | X46: =IF(G46="","",ROUND(G46*VLOOKUP(J46,Parameters!E$4:G$49,3),2)) ->  | Y46: =IF(G46="","",ROUND(G46*Parameters!J$83,2)) -> 
E47: 0 | F47: =IF(C47="",0,IF(C47<=Parameters!$C$3,C47,Parameters!$C$3)) -> 0 | G47: =IF(C47="","",IF(F47<Parameters!$C$4,"",(F47-Parameters!$C$4)*D47)) ->  | I47: =IF(H47="","",YEAR(+Informatie!$C$1)-YEAR(H47)) ->  | K47: =IF(G47="","",ROUND(G47*Parameters!$C$12,2)) ->  | L47: =IF(G47="","",IF(YEAR(Informatie!$C$1)=2015,ROUND(G47*Parameters!$J$27,2),ROUND(G47*VLOOKUP('Overzicht deelnemers'!I47,Parameters!$E$4:$G$49,2,FALSE),2))) ->  | M47: =IF(G47="","",IF(YEAR(Informatie!$C$1)=2015,ROUND(L47*Parameters!$C$20,2),G47*Parameters!$J$27)) ->  | O47: =IF(G47="","",ROUND(G47*Parameters!$C$16,2)) ->  | P47: =IF(G47="","",ROUND(G47*VLOOKUP(J47,Parameters!$E$3:$F$49,2,FALSE),2)) ->  | Q47: =IF(G47="","",ROUND(G47*Parameters!$J$66,2)) ->  | S47: =IF(G47="","",ROUND(G47*Parameters!$C$13,2)) ->  | T47: =IF(G47="","",IF(YEAR(Informatie!$C$1)=2015,ROUND(G47*Parameters!J$44,2),ROUND(G47*VLOOKUP('Overzicht deelnemers'!I47,Parameters!$E$4:$G$49,3,FALSE),2))) ->  | U47: =IF(G47="","",IF(YEAR(Informatie!$C$1)=2015,ROUND(T47*Parameters!$C$20,2),ROUND(G47*Parameters!$J$44,2))) ->  | W47: =IF(G47="","",ROUND(G47*Parameters!C$17,2)) ->  | X47: =IF(G47="","",ROUND(G47*VLOOKUP(J47,Parameters!E$4:G$49,3),2)) ->  | Y47: =IF(G47="","",ROUND(G47*Parameters!J$83,2)) -> 
E48: 0 | F48: =IF(C48="",0,IF(C48<=Parameters!$C$3,C48,Parameters!$C$3)) -> 0 | G48: =IF(C48="","",IF(F48<Parameters!$C$4,"",(F48-Parameters!$C$4)*D48)) ->  | I48: =IF(H48="","",YEAR(+Informatie!$C$1)-YEAR(H48)) ->  | K48: =IF(G48="","",ROUND(G48*Parameters!$C$12,2)) ->  | L48: =IF(G48="","",IF(YEAR(Informatie!$C$1)=2015,ROUND(G48*Parameters!$J$27,2),ROUND(G48*VLOOKUP('Overzicht deelnemers'!I48,Parameters!$E$4:$G$49,2,FALSE),2))) ->  | M48: =IF(G48="","",IF(YEAR(Informatie!$C$1)=2015,ROUND(L48*Parameters!$C$20,2),G48*Parameters!$J$27)) ->  | O48: =IF(G48="","",ROUND(G48*Parameters!$C$16,2)) ->  | P48: =IF(G48="","",ROUND(G48*VLOOKUP(J48,Parameters!$E$3:$F$49,2,FALSE),2)) ->  | Q48: =IF(G48="","",ROUND(G48*Parameters!$J$66,2)) ->  | S48: =IF(G48="","",ROUND(G48*Parameters!$C$13,2)) ->  | T48: =IF(G48="","",IF(YEAR(Informatie!$C$1)=2015,ROUND(G48*Parameters!J$44,2),ROUND(G48*VLOOKUP('Overzicht deelnemers'!I48,Parameters!$E$4:$G$49,3,FALSE),2))) ->  | U48: =IF(G48="","",IF(YEAR(Informatie!$C$1)=2015,ROUND(T48*Parameters!$C$20,2),ROUND(G48*Parameters!$J$44,2))) ->  | W48: =IF(G48="","",ROUND(G48*Parameters!C$17,2)) ->  | X48: =IF(G48="","",ROUND(G48*VLOOKUP(J48,Parameters!E$4:G$49,3),2)) ->  | Y48: =IF(G48="","",ROUND(G48*Parameters!J$83,2)) -> 
E49: 0 | F49: =IF(C49="",0,IF(C49<=Parameters!$C$3,C49,Parameters!$C$3)) -> 0 | G49: =IF(C49="","",IF(F49<Parameters!$C$4,"",(F49-Parameters!$C$4)*D49)) ->  | I49: =IF(H49="","",YEAR(+Informatie!$C$1)-YEAR(H49)) ->  | K49: =IF(G49="","",ROUND(G49*Parameters!$C$12,2)) ->  | L49: =IF(G49="","",IF(YEAR(Informatie!$C$1)=2015,ROUND(G49*Parameters!$J$27,2),ROUND(G49*VLOOKUP('Overzicht deelnemers'!I49,Parameters!$E$4:$G$49,2,FALSE),2))) ->  | M49: =IF(G49="","",IF(YEAR(Informatie!$C$1)=2015,ROUND(L49*Parameters!$C$20,2),G49*Parameters!$J$27)) ->  | O49: =IF(G49="","",ROUND(G49*Parameters!$C$16,2)) ->  | P49: =IF(G49="","",ROUND(G49*VLOOKUP(J49,Parameters!$E$3:$F$49,2,FALSE),2)) ->  | Q49: =IF(G49="","",ROUND(G49*Parameters!$J$66,2)) ->  | S49: =IF(G49="","",ROUND(G49*Parameters!$C$13,2)) ->  | T49: =IF(G49="","",IF(YEAR(Informatie!$C$1)=2015,ROUND(G49*Parameters!J$44,2),ROUND(G49*VLOOKUP('Overzicht deelnemers'!I49,Parameters!$E$4:$G$49,3,FALSE),2))) ->  | U49: =IF(G49="","",IF(YEAR(Informatie!$C$1)=2015,ROUND(T49*Parameters!$C$20,2),ROUND(G49*Parameters!$J$44,2))) ->  | W49: =IF(G49="","",ROUND(G49*Parameters!C$17,2)) ->  | X49: =IF(G49="","",ROUND(G49*VLOOKUP(J49,Parameters!E$4:G$49,3),2)) ->  | Y49: =IF(G49="","",ROUND(G49*Parameters!J$83,2)) -> 
E50: 0 | F50: =IF(C50="",0,IF(C50<=Parameters!$C$3,C50,Parameters!$C$3)) -> 0 | G50: =IF(C50="","",IF(F50<Parameters!$C$4,"",(F50-Parameters!$C$4)*D50)) ->  | I50: =IF(H50="","",YEAR(+Informatie!$C$1)-YEAR(H50)) ->  | K50: =IF(G50="","",ROUND(G50*Parameters!$C$12,2)) ->  | L50: =IF(G50="","",IF(YEAR(Informatie!$C$1)=2015,ROUND(G50*Parameters!$J$27,2),ROUND(G50*VLOOKUP('Overzicht deelnemers'!I50,Parameters!$E$4:$G$49,2,FALSE),2))) ->  | M50: =IF(G50="","",IF(YEAR(Informatie!$C$1)=2015,ROUND(L50*Parameters!$C$20,2),G50*Parameters!$J$27)) ->  | O50: =IF(G50="","",ROUND(G50*Parameters!$C$16,2)) ->  | P50: =IF(G50="","",ROUND(G50*VLOOKUP(J50,Parameters!$E$3:$F$49,2,FALSE),2)) ->  | Q50: =IF(G50="","",ROUND(G50*Parameters!$J$66,2)) ->  | S50: =IF(G50="","",ROUND(G50*Parameters!$C$13,2)) ->  | T50: =IF(G50="","",IF(YEAR(Informatie!$C$1)=2015,ROUND(G50*Parameters!J$44,2),ROUND(G50*VLOOKUP('Overzicht deelnemers'!I50,Parameters!$E$4:$G$49,3,FALSE),2))) ->  | U50: =IF(G50="","",IF(YEAR(Informatie!$C$1)=2015,ROUND(T50*Parameters!$C$20,2),ROUND(G50*Parameters!$J$44,2))) ->  | W50: =IF(G50="","",ROUND(G50*Parameters!C$17,2)) ->  | X50: =IF(G50="","",ROUND(G50*VLOOKUP(J50,Parameters!E$4:G$49,3),2)) ->  | Y50: =IF(G50="","",ROUND(G50*Parameters!J$83,2)) -> 
E51: 0 | F51: =IF(C51="",0,IF(C51<=Parameters!$C$3,C51,Parameters!$C$3)) -> 0 | G51: =IF(C51="","",IF(F51<Parameters!$C$4,"",(F51-Parameters!$C$4)*D51)) ->  | I51: =IF(H51="","",YEAR(+Informatie!$C$1)-YEAR(H51)) ->  | K51: =IF(G51="","",ROUND(G51*Parameters!$C$12,2)) ->  | L51: =IF(G51="","",IF(YEAR(Informatie!$C$1)=2015,ROUND(G51*Parameters!$J$27,2),ROUND(G51*VLOOKUP('Overzicht deelnemers'!I51,Parameters!$E$4:$G$49,2,FALSE),2))) ->  | M51: =IF(G51="","",IF(YEAR(Informatie!$C$1)=2015,ROUND(L51*Parameters!$C$20,2),G51*Parameters!$J$27)) ->  | O51: =IF(G51="","",ROUND(G51*Parameters!$C$16,2)) ->  | P51: =IF(G51="","",ROUND(G51*VLOOKUP(J51,Parameters!$E$3:$F$49,2,FALSE),2)) ->  | Q51: =IF(G51="","",ROUND(G51*Parameters!$J$66,2)) ->  | S51: =IF(G51="","",ROUND(G51*Parameters!$C$13,2)) ->  | T51: =IF(G51="","",IF(YEAR(Informatie!$C$1)=2015,ROUND(G51*Parameters!J$44,2),ROUND(G51*VLOOKUP('Overzicht deelnemers'!I51,Parameters!$E$4:$G$49,3,FALSE),2))) ->  | U51: =IF(G51="","",IF(YEAR(Informatie!$C$1)=2015,ROUND(T51*Parameters!$C$20,2),ROUND(G51*Parameters!$J$44,2))) ->  | W51: =IF(G51="","",ROUND(G51*Parameters!C$17,2)) ->  | X51: =IF(G51="","",ROUND(G51*VLOOKUP(J51,Parameters!E$4:G$49,3),2)) ->  | Y51: =IF(G51="","",ROUND(G51*Parameters!J$83,2)) -> 
E52: 0 | F52: =IF(C52="",0,IF(C52<=Parameters!$C$3,C52,Parameters!$C$3)) -> 0 | G52: =IF(C52="","",IF(F52<Parameters!$C$4,"",(F52-Parameters!$C$4)*D52)) ->  | I52: =IF(H52="","",YEAR(+Informatie!$C$1)-YEAR(H52)) ->  | K52: =IF(G52="","",ROUND(G52*Parameters!$C$12,2)) ->  | L52: =IF(G52="","",IF(YEAR(Informatie!$C$1)=2015,ROUND(G52*Parameters!$J$27,2),ROUND(G52*VLOOKUP('Overzicht deelnemers'!I52,Parameters!$E$4:$G$49,2,FALSE),2))) ->  | M52: =IF(G52="","",IF(YEAR(Informatie!$C$1)=2015,ROUND(L52*Parameters!$C$20,2),G52*Parameters!$J$27)) ->  | O52: =IF(G52="","",ROUND(G52*Parameters!$C$16,2)) ->  | P52: =IF(G52="","",ROUND(G52*VLOOKUP(J52,Parameters!$E$3:$F$49,2,FALSE),2)) ->  | Q52: =IF(G52="","",ROUND(G52*Parameters!$J$66,2)) ->  | S52: =IF(G52="","",ROUND(G52*Parameters!$C$13,2)) ->  | T52: =IF(G52="","",IF(YEAR(Informatie!$C$1)=2015,ROUND(G52*Parameters!J$44,2),ROUND(G52*VLOOKUP('Overzicht deelnemers'!I52,Parameters!$E$4:$G$49,3,FALSE),2))) ->  | U52: =IF(G52="","",IF(YEAR(Informatie!$C$1)=2015,ROUND(T52*Parameters!$C$20,2),ROUND(G52*Parameters!$J$44,2))) ->  | W52: =IF(G52="","",ROUND(G52*Parameters!C$17,2)) ->  | X52: =IF(G52="","",ROUND(G52*VLOOKUP(J52,Parameters!E$4:G$49,3),2)) ->  | Y52: =IF(G52="","",ROUND(G52*Parameters!J$83,2)) -> 
E53: 0 | F53: =IF(C53="",0,IF(C53<=Parameters!$C$3,C53,Parameters!$C$3)) -> 0 | G53: =IF(C53="","",IF(F53<Parameters!$C$4,"",(F53-Parameters!$C$4)*D53)) ->  | I53: =IF(H53="","",YEAR(+Informatie!$C$1)-YEAR(H53)) ->  | K53: =IF(G53="","",ROUND(G53*Parameters!$C$12,2)) ->  | L53: =IF(G53="","",IF(YEAR(Informatie!$C$1)=2015,ROUND(G53*Parameters!$J$27,2),ROUND(G53*VLOOKUP('Overzicht deelnemers'!I53,Parameters!$E$4:$G$49,2,FALSE),2))) ->  | M53: =IF(G53="","",IF(YEAR(Informatie!$C$1)=2015,ROUND(L53*Parameters!$C$20,2),G53*Parameters!$J$27)) ->  | O53: =IF(G53="","",ROUND(G53*Parameters!$C$16,2)) ->  | P53: =IF(G53="","",ROUND(G53*VLOOKUP(J53,Parameters!$E$3:$F$49,2,FALSE),2)) ->  | Q53: =IF(G53="","",ROUND(G53*Parameters!$J$66,2)) ->  | S53: =IF(G53="","",ROUND(G53*Parameters!$C$13,2)) ->  | T53: =IF(G53="","",IF(YEAR(Informatie!$C$1)=2015,ROUND(G53*Parameters!J$44,2),ROUND(G53*VLOOKUP('Overzicht deelnemers'!I53,Parameters!$E$4:$G$49,3,FALSE),2))) ->  | U53: =IF(G53="","",IF(YEAR(Informatie!$C$1)=2015,ROUND(T53*Parameters!$C$20,2),ROUND(G53*Parameters!$J$44,2))) ->  | W53: =IF(G53="","",ROUND(G53*Parameters!C$17,2)) ->  | X53: =IF(G53="","",ROUND(G53*VLOOKUP(J53,Parameters!E$4:G$49,3),2)) ->  | Y53: =IF(G53="","",ROUND(G53*Parameters!J$83,2)) -> 
E54: 0 | F54: =IF(C54="",0,IF(C54<=Parameters!$C$3,C54,Parameters!$C$3)) -> 0 | G54: =IF(C54="","",IF(F54<Parameters!$C$4,"",(F54-Parameters!$C$4)*D54)) ->  | I54: =IF(H54="","",YEAR(+Informatie!$C$1)-YEAR(H54)) ->  | K54: =IF(G54="","",ROUND(G54*Parameters!$C$12,2)) ->  | L54: =IF(G54="","",IF(YEAR(Informatie!$C$1)=2015,ROUND(G54*Parameters!$J$27,2),ROUND(G54*VLOOKUP('Overzicht deelnemers'!I54,Parameters!$E$4:$G$49,2,FALSE),2))) ->  | M54: =IF(G54="","",IF(YEAR(Informatie!$C$1)=2015,ROUND(L54*Parameters!$C$20,2),G54*Parameters!$J$27)) ->  | O54: =IF(G54="","",ROUND(G54*Parameters!$C$16,2)) ->  | P54: =IF(G54="","",ROUND(G54*VLOOKUP(J54,Parameters!$E$3:$F$49,2,FALSE),2)) ->  | Q54: =IF(G54="","",ROUND(G54*Parameters!$J$66,2)) ->  | S54: =IF(G54="","",ROUND(G54*Parameters!$C$13,2)) ->  | T54: =IF(G54="","",IF(YEAR(Informatie!$C$1)=2015,ROUND(G54*Parameters!J$44,2),ROUND(G54*VLOOKUP('Overzicht deelnemers'!I54,Parameters!$E$4:$G$49,3,FALSE),2))) ->  | U54: =IF(G54="","",IF(YEAR(Informatie!$C$1)=2015,ROUND(T54*Parameters!$C$20,2),ROUND(G54*Parameters!$J$44,2))) ->  | W54: =IF(G54="","",ROUND(G54*Parameters!C$17,2)) ->  | X54: =IF(G54="","",ROUND(G54*VLOOKUP(J54,Parameters!E$4:G$49,3),2)) ->  | Y54: =IF(G54="","",ROUND(G54*Parameters!J$83,2)) -> 
E55: 0 | F55: =IF(C55="",0,IF(C55<=Parameters!$C$3,C55,Parameters!$C$3)) -> 0 | G55: =IF(C55="","",IF(F55<Parameters!$C$4,"",(F55-Parameters!$C$4)*D55)) ->  | I55: =IF(H55="","",YEAR(+Informatie!$C$1)-YEAR(H55)) ->  | K55: =IF(G55="","",ROUND(G55*Parameters!$C$12,2)) ->  | L55: =IF(G55="","",IF(YEAR(Informatie!$C$1)=2015,ROUND(G55*Parameters!$J$27,2),ROUND(G55*VLOOKUP('Overzicht deelnemers'!I55,Parameters!$E$4:$G$49,2,FALSE),2))) ->  | M55: =IF(G55="","",IF(YEAR(Informatie!$C$1)=2015,ROUND(L55*Parameters!$C$20,2),G55*Parameters!$J$27)) ->  | O55: =IF(G55="","",ROUND(G55*Parameters!$C$16,2)) ->  | P55: =IF(G55="","",ROUND(G55*VLOOKUP(J55,Parameters!$E$3:$F$49,2,FALSE),2)) ->  | Q55: =IF(G55="","",ROUND(G55*Parameters!$J$66,2)) ->  | S55: =IF(G55="","",ROUND(G55*Parameters!$C$13,2)) ->  | T55: =IF(G55="","",IF(YEAR(Informatie!$C$1)=2015,ROUND(G55*Parameters!J$44,2),ROUND(G55*VLOOKUP('Overzicht deelnemers'!I55,Parameters!$E$4:$G$49,3,FALSE),2))) ->  | U55: =IF(G55="","",IF(YEAR(Informatie!$C$1)=2015,ROUND(T55*Parameters!$C$20,2),ROUND(G55*Parameters!$J$44,2))) ->  | W55: =IF(G55="","",ROUND(G55*Parameters!C$17,2)) ->  | X55: =IF(G55="","",ROUND(G55*VLOOKUP(J55,Parameters!E$4:G$49,3),2)) ->  | Y55: =IF(G55="","",ROUND(G55*Parameters!J$83,2)) -> 
E56: 0 | F56: =IF(C56="",0,IF(C56<=Parameters!$C$3,C56,Parameters!$C$3)) -> 0 | G56: =IF(C56="","",IF(F56<Parameters!$C$4,"",(F56-Parameters!$C$4)*D56)) ->  | I56: =IF(H56="","",YEAR(+Informatie!$C$1)-YEAR(H56)) ->  | K56: =IF(G56="","",ROUND(G56*Parameters!$C$12,2)) ->  | L56: =IF(G56="","",IF(YEAR(Informatie!$C$1)=2015,ROUND(G56*Parameters!$J$27,2),ROUND(G56*VLOOKUP('Overzicht deelnemers'!I56,Parameters!$E$4:$G$49,2,FALSE),2))) ->  | M56: =IF(G56="","",IF(YEAR(Informatie!$C$1)=2015,ROUND(L56*Parameters!$C$20,2),G56*Parameters!$J$27)) ->  | O56: =IF(G56="","",ROUND(G56*Parameters!$C$16,2)) ->  | P56: =IF(G56="","",ROUND(G56*VLOOKUP(J56,Parameters!$E$3:$F$49,2,FALSE),2)) ->  | Q56: =IF(G56="","",ROUND(G56*Parameters!$J$66,2)) ->  | S56: =IF(G56="","",ROUND(G56*Parameters!$C$13,2)) ->  | T56: =IF(G56="","",IF(YEAR(Informatie!$C$1)=2015,ROUND(G56*Parameters!J$44,2),ROUND(G56*VLOOKUP('Overzicht deelnemers'!I56,Parameters!$E$4:$G$49,3,FALSE),2))) ->  | U56: =IF(G56="","",IF(YEAR(Informatie!$C$1)=2015,ROUND(T56*Parameters!$C$20,2),ROUND(G56*Parameters!$J$44,2))) ->  | W56: =IF(G56="","",ROUND(G56*Parameters!C$17,2)) ->  | X56: =IF(G56="","",ROUND(G56*VLOOKUP(J56,Parameters!E$4:G$49,3),2)) ->  | Y56: =IF(G56="","",ROUND(G56*Parameters!J$83,2)) -> 
E57: 0 | F57: =IF(C57="",0,IF(C57<=Parameters!$C$3,C57,Parameters!$C$3)) -> 0 | G57: =IF(C57="","",IF(F57<Parameters!$C$4,"",(F57-Parameters!$C$4)*D57)) ->  | I57: =IF(H57="","",YEAR(+Informatie!$C$1)-YEAR(H57)) ->  | K57: =IF(G57="","",ROUND(G57*Parameters!$C$12,2)) ->  | L57: =IF(G57="","",IF(YEAR(Informatie!$C$1)=2015,ROUND(G57*Parameters!$J$27,2),ROUND(G57*VLOOKUP('Overzicht deelnemers'!I57,Parameters!$E$4:$G$49,2,FALSE),2))) ->  | M57: =IF(G57="","",IF(YEAR(Informatie!$C$1)=2015,ROUND(L57*Parameters!$C$20,2),G57*Parameters!$J$27)) ->  | O57: =IF(G57="","",ROUND(G57*Parameters!$C$16,2)) ->  | P57: =IF(G57="","",ROUND(G57*VLOOKUP(J57,Parameters!$E$3:$F$49,2,FALSE),2)) ->  | Q57: =IF(G57="","",ROUND(G57*Parameters!$J$66,2)) ->  | S57: =IF(G57="","",ROUND(G57*Parameters!$C$13,2)) ->  | T57: =IF(G57="","",IF(YEAR(Informatie!$C$1)=2015,ROUND(G57*Parameters!J$44,2),ROUND(G57*VLOOKUP('Overzicht deelnemers'!I57,Parameters!$E$4:$G$49,3,FALSE),2))) ->  | U57: =IF(G57="","",IF(YEAR(Informatie!$C$1)=2015,ROUND(T57*Parameters!$C$20,2),ROUND(G57*Parameters!$J$44,2))) ->  | W57: =IF(G57="","",ROUND(G57*Parameters!C$17,2)) ->  | X57: =IF(G57="","",ROUND(G57*VLOOKUP(J57,Parameters!E$4:G$49,3),2)) ->  | Y57: =IF(G57="","",ROUND(G57*Parameters!J$83,2)) -> 
E58: 0 | F58: =IF(C58="",0,IF(C58<=Parameters!$C$3,C58,Parameters!$C$3)) -> 0 | G58: =IF(C58="","",IF(F58<Parameters!$C$4,"",(F58-Parameters!$C$4)*D58)) ->  | I58: =IF(H58="","",YEAR(+Informatie!$C$1)-YEAR(H58)) ->  | K58: =IF(G58="","",ROUND(G58*Parameters!$C$12,2)) ->  | L58: =IF(G58="","",IF(YEAR(Informatie!$C$1)=2015,ROUND(G58*Parameters!$J$27,2),ROUND(G58*VLOOKUP('Overzicht deelnemers'!I58,Parameters!$E$4:$G$49,2,FALSE),2))) ->  | M58: =IF(G58="","",IF(YEAR(Informatie!$C$1)=2015,ROUND(L58*Parameters!$C$20,2),G58*Parameters!$J$27)) ->  | O58: =IF(G58="","",ROUND(G58*Parameters!$C$16,2)) ->  | P58: =IF(G58="","",ROUND(G58*VLOOKUP(J58,Parameters!$E$3:$F$49,2,FALSE),2)) ->  | Q58: =IF(G58="","",ROUND(G58*Parameters!$J$66,2)) ->  | S58: =IF(G58="","",ROUND(G58*Parameters!$C$13,2)) ->  | T58: =IF(G58="","",IF(YEAR(Informatie!$C$1)=2015,ROUND(G58*Parameters!J$44,2),ROUND(G58*VLOOKUP('Overzicht deelnemers'!I58,Parameters!$E$4:$G$49,3,FALSE),2))) ->  | U58: =IF(G58="","",IF(YEAR(Informatie!$C$1)=2015,ROUND(T58*Parameters!$C$20,2),ROUND(G58*Parameters!$J$44,2))) ->  | W58: =IF(G58="","",ROUND(G58*Parameters!C$17,2)) ->  | X58: =IF(G58="","",ROUND(G58*VLOOKUP(J58,Parameters!E$4:G$49,3),2)) ->  | Y58: =IF(G58="","",ROUND(G58*Parameters!J$83,2)) -> 
E59: 0 | F59: =IF(C59="",0,IF(C59<=Parameters!$C$3,C59,Parameters!$C$3)) -> 0 | G59: =IF(C59="","",IF(F59<Parameters!$C$4,"",(F59-Parameters!$C$4)*D59)) ->  | I59: =IF(H59="","",YEAR(+Informatie!$C$1)-YEAR(H59)) ->  | K59: =IF(G59="","",ROUND(G59*Parameters!$C$12,2)) ->  | L59: =IF(G59="","",IF(YEAR(Informatie!$C$1)=2015,ROUND(G59*Parameters!$J$27,2),ROUND(G59*VLOOKUP('Overzicht deelnemers'!I59,Parameters!$E$4:$G$49,2,FALSE),2))) ->  | M59: =IF(G59="","",IF(YEAR(Informatie!$C$1)=2015,ROUND(L59*Parameters!$C$20,2),G59*Parameters!$J$27)) ->  | O59: =IF(G59="","",ROUND(G59*Parameters!$C$16,2)) ->  | P59: =IF(G59="","",ROUND(G59*VLOOKUP(J59,Parameters!$E$3:$F$49,2,FALSE),2)) ->  | Q59: =IF(G59="","",ROUND(G59*Parameters!$J$66,2)) ->  | S59: =IF(G59="","",ROUND(G59*Parameters!$C$13,2)) ->  | T59: =IF(G59="","",IF(YEAR(Informatie!$C$1)=2015,ROUND(G59*Parameters!J$44,2),ROUND(G59*VLOOKUP('Overzicht deelnemers'!I59,Parameters!$E$4:$G$49,3,FALSE),2))) ->  | U59: =IF(G59="","",IF(YEAR(Informatie!$C$1)=2015,ROUND(T59*Parameters!$C$20,2),ROUND(G59*Parameters!$J$44,2))) ->  | W59: =IF(G59="","",ROUND(G59*Parameters!C$17,2)) ->  | X59: =IF(G59="","",ROUND(G59*VLOOKUP(J59,Parameters!E$4:G$49,3),2)) ->  | Y59: =IF(G59="","",ROUND(G59*Parameters!J$83,2)) -> 
E60: 0 | F60: =IF(C60="",0,IF(C60<=Parameters!$C$3,C60,Parameters!$C$3)) -> 0 | G60: =IF(C60="","",IF(F60<Parameters!$C$4,"",(F60-Parameters!$C$4)*D60)) ->  | I60: =IF(H60="","",YEAR(+Informatie!$C$1)-YEAR(H60)) ->  | K60: =IF(G60="","",ROUND(G60*Parameters!$C$12,2)) ->  | L60: =IF(G60="","",IF(YEAR(Informatie!$C$1)=2015,ROUND(G60*Parameters!$J$27,2),ROUND(G60*VLOOKUP('Overzicht deelnemers'!I60,Parameters!$E$4:$G$49,2,FALSE),2))) ->  | M60: =IF(G60="","",IF(YEAR(Informatie!$C$1)=2015,ROUND(L60*Parameters!$C$20,2),G60*Parameters!$J$27)) ->  | O60: =IF(G60="","",ROUND(G60*Parameters!$C$16,2)) ->  | P60: =IF(G60="","",ROUND(G60*VLOOKUP(J60,Parameters!$E$3:$F$49,2,FALSE),2)) ->  | Q60: =IF(G60="","",ROUND(G60*Parameters!$J$66,2)) ->  | S60: =IF(G60="","",ROUND(G60*Parameters!$C$13,2)) ->  | T60: =IF(G60="","",IF(YEAR(Informatie!$C$1)=2015,ROUND(G60*Parameters!J$44,2),ROUND(G60*VLOOKUP('Overzicht deelnemers'!I60,Parameters!$E$4:$G$49,3,FALSE),2))) ->  | U60: =IF(G60="","",IF(YEAR(Informatie!$C$1)=2015,ROUND(T60*Parameters!$C$20,2),ROUND(G60*Parameters!$J$44,2))) ->  | W60: =IF(G60="","",ROUND(G60*Parameters!C$17,2)) ->  | X60: =IF(G60="","",ROUND(G60*VLOOKUP(J60,Parameters!E$4:G$49,3),2)) ->  | Y60: =IF(G60="","",ROUND(G60*Parameters!J$83,2)) -> 
E61: 0 | F61: =IF(C61="",0,IF(C61<=Parameters!$C$3,C61,Parameters!$C$3)) -> 0 | G61: =IF(C61="","",IF(F61<Parameters!$C$4,"",(F61-Parameters!$C$4)*D61)) ->  | I61: =IF(H61="","",YEAR(+Informatie!$C$1)-YEAR(H61)) ->  | K61: =IF(G61="","",ROUND(G61*Parameters!$C$12,2)) ->  | L61: =IF(G61="","",IF(YEAR(Informatie!$C$1)=2015,ROUND(G61*Parameters!$J$27,2),ROUND(G61*VLOOKUP('Overzicht deelnemers'!I61,Parameters!$E$4:$G$49,2,FALSE),2))) ->  | M61: =IF(G61="","",IF(YEAR(Informatie!$C$1)=2015,ROUND(L61*Parameters!$C$20,2),G61*Parameters!$J$27)) ->  | O61: =IF(G61="","",ROUND(G61*Parameters!$C$16,2)) ->  | P61: =IF(G61="","",ROUND(G61*VLOOKUP(J61,Parameters!$E$3:$F$49,2,FALSE),2)) ->  | Q61: =IF(G61="","",ROUND(G61*Parameters!$J$66,2)) ->  | S61: =IF(G61="","",ROUND(G61*Parameters!$C$13,2)) ->  | T61: =IF(G61="","",IF(YEAR(Informatie!$C$1)=2015,ROUND(G61*Parameters!J$44,2),ROUND(G61*VLOOKUP('Overzicht deelnemers'!I61,Parameters!$E$4:$G$49,3,FALSE),2))) ->  | U61: =IF(G61="","",IF(YEAR(Informatie!$C$1)=2015,ROUND(T61*Parameters!$C$20,2),ROUND(G61*Parameters!$J$44,2))) ->  | W61: =IF(G61="","",ROUND(G61*Parameters!C$17,2)) ->  | X61: =IF(G61="","",ROUND(G61*VLOOKUP(J61,Parameters!E$4:G$49,3),2)) ->  | Y61: =IF(G61="","",ROUND(G61*Parameters!J$83,2)) -> 
E62: 0 | F62: =IF(C62="",0,IF(C62<=Parameters!$C$3,C62,Parameters!$C$3)) -> 0 | G62: =IF(C62="","",IF(F62<Parameters!$C$4,"",(F62-Parameters!$C$4)*D62)) ->  | I62: =IF(H62="","",YEAR(+Informatie!$C$1)-YEAR(H62)) ->  | K62: =IF(G62="","",ROUND(G62*Parameters!$C$12,2)) ->  | L62: =IF(G62="","",IF(YEAR(Informatie!$C$1)=2015,ROUND(G62*Parameters!$J$27,2),ROUND(G62*VLOOKUP('Overzicht deelnemers'!I62,Parameters!$E$4:$G$49,2,FALSE),2))) ->  | M62: =IF(G62="","",IF(YEAR(Informatie!$C$1)=2015,ROUND(L62*Parameters!$C$20,2),G62*Parameters!$J$27)) ->  | O62: =IF(G62="","",ROUND(G62*Parameters!$C$16,2)) ->  | P62: =IF(G62="","",ROUND(G62*VLOOKUP(J62,Parameters!$E$3:$F$49,2,FALSE),2)) ->  | Q62: =IF(G62="","",ROUND(G62*Parameters!$J$66,2)) ->  | S62: =IF(G62="","",ROUND(G62*Parameters!$C$13,2)) ->  | T62: =IF(G62="","",IF(YEAR(Informatie!$C$1)=2015,ROUND(G62*Parameters!J$44,2),ROUND(G62*VLOOKUP('Overzicht deelnemers'!I62,Parameters!$E$4:$G$49,3,FALSE),2))) ->  | U62: =IF(G62="","",IF(YEAR(Informatie!$C$1)=2015,ROUND(T62*Parameters!$C$20,2),ROUND(G62*Parameters!$J$44,2))) ->  | W62: =IF(G62="","",ROUND(G62*Parameters!C$17,2)) ->  | X62: =IF(G62="","",ROUND(G62*VLOOKUP(J62,Parameters!E$4:G$49,3),2)) ->  | Y62: =IF(G62="","",ROUND(G62*Parameters!J$83,2)) -> 
E63: 0 | F63: =IF(C63="",0,IF(C63<=Parameters!$C$3,C63,Parameters!$C$3)) -> 0 | G63: =IF(C63="","",IF(F63<Parameters!$C$4,"",(F63-Parameters!$C$4)*D63)) ->  | I63: =IF(H63="","",YEAR(+Informatie!$C$1)-YEAR(H63)) ->  | K63: =IF(G63="","",ROUND(G63*Parameters!$C$12,2)) ->  | L63: =IF(G63="","",IF(YEAR(Informatie!$C$1)=2015,ROUND(G63*Parameters!$J$27,2),ROUND(G63*VLOOKUP('Overzicht deelnemers'!I63,Parameters!$E$4:$G$49,2,FALSE),2))) ->  | M63: =IF(G63="","",IF(YEAR(Informatie!$C$1)=2015,ROUND(L63*Parameters!$C$20,2),G63*Parameters!$J$27)) ->  | O63: =IF(G63="","",ROUND(G63*Parameters!$C$16,2)) ->  | P63: =IF(G63="","",ROUND(G63*VLOOKUP(J63,Parameters!$E$3:$F$49,2,FALSE),2)) ->  | Q63: =IF(G63="","",ROUND(G63*Parameters!$J$66,2)) ->  | S63: =IF(G63="","",ROUND(G63*Parameters!$C$13,2)) ->  | T63: =IF(G63="","",IF(YEAR(Informatie!$C$1)=2015,ROUND(G63*Parameters!J$44,2),ROUND(G63*VLOOKUP('Overzicht deelnemers'!I63,Parameters!$E$4:$G$49,3,FALSE),2))) ->  | U63: =IF(G63="","",IF(YEAR(Informatie!$C$1)=2015,ROUND(T63*Parameters!$C$20,2),ROUND(G63*Parameters!$J$44,2))) ->  | W63: =IF(G63="","",ROUND(G63*Parameters!C$17,2)) ->  | X63: =IF(G63="","",ROUND(G63*VLOOKUP(J63,Parameters!E$4:G$49,3),2)) ->  | Y63: =IF(G63="","",ROUND(G63*Parameters!J$83,2)) -> 
E64: 0 | F64: =IF(C64="",0,IF(C64<=Parameters!$C$3,C64,Parameters!$C$3)) -> 0 | G64: =IF(C64="","",IF(F64<Parameters!$C$4,"",(F64-Parameters!$C$4)*D64)) ->  | I64: =IF(H64="","",YEAR(+Informatie!$C$1)-YEAR(H64)) ->  | K64: =IF(G64="","",ROUND(G64*Parameters!$C$12,2)) ->  | L64: =IF(G64="","",IF(YEAR(Informatie!$C$1)=2015,ROUND(G64*Parameters!$J$27,2),ROUND(G64*VLOOKUP('Overzicht deelnemers'!I64,Parameters!$E$4:$G$49,2,FALSE),2))) ->  | M64: =IF(G64="","",IF(YEAR(Informatie!$C$1)=2015,ROUND(L64*Parameters!$C$20,2),G64*Parameters!$J$27)) ->  | O64: =IF(G64="","",ROUND(G64*Parameters!$C$16,2)) ->  | P64: =IF(G64="","",ROUND(G64*VLOOKUP(J64,Parameters!$E$3:$F$49,2,FALSE),2)) ->  | Q64: =IF(G64="","",ROUND(G64*Parameters!$J$66,2)) ->  | S64: =IF(G64="","",ROUND(G64*Parameters!$C$13,2)) ->  | T64: =IF(G64="","",IF(YEAR(Informatie!$C$1)=2015,ROUND(G64*Parameters!J$44,2),ROUND(G64*VLOOKUP('Overzicht deelnemers'!I64,Parameters!$E$4:$G$49,3,FALSE),2))) ->  | U64: =IF(G64="","",IF(YEAR(Informatie!$C$1)=2015,ROUND(T64*Parameters!$C$20,2),ROUND(G64*Parameters!$J$44,2))) ->  | W64: =IF(G64="","",ROUND(G64*Parameters!C$17,2)) ->  | X64: =IF(G64="","",ROUND(G64*VLOOKUP(J64,Parameters!E$4:G$49,3),2)) ->  | Y64: =IF(G64="","",ROUND(G64*Parameters!J$83,2)) -> 
E65: 0 | F65: =IF(C65="",0,IF(C65<=Parameters!$C$3,C65,Parameters!$C$3)) -> 0 | G65: =IF(C65="","",IF(F65<Parameters!$C$4,"",(F65-Parameters!$C$4)*D65)) ->  | I65: =IF(H65="","",YEAR(+Informatie!$C$1)-YEAR(H65)) ->  | K65: =IF(G65="","",ROUND(G65*Parameters!$C$12,2)) ->  | L65: =IF(G65="","",IF(YEAR(Informatie!$C$1)=2015,ROUND(G65*Parameters!$J$27,2),ROUND(G65*VLOOKUP('Overzicht deelnemers'!I65,Parameters!$E$4:$G$49,2,FALSE),2))) ->  | M65: =IF(G65="","",IF(YEAR(Informatie!$C$1)=2015,ROUND(L65*Parameters!$C$20,2),G65*Parameters!$J$27)) ->  | O65: =IF(G65="","",ROUND(G65*Parameters!$C$16,2)) ->  | P65: =IF(G65="","",ROUND(G65*VLOOKUP(J65,Parameters!$E$3:$F$49,2,FALSE),2)) ->  | Q65: =IF(G65="","",ROUND(G65*Parameters!$J$66,2)) ->  | S65: =IF(G65="","",ROUND(G65*Parameters!$C$13,2)) ->  | T65: =IF(G65="","",IF(YEAR(Informatie!$C$1)=2015,ROUND(G65*Parameters!J$44,2),ROUND(G65*VLOOKUP('Overzicht deelnemers'!I65,Parameters!$E$4:$G$49,3,FALSE),2))) ->  | U65: =IF(G65="","",IF(YEAR(Informatie!$C$1)=2015,ROUND(T65*Parameters!$C$20,2),ROUND(G65*Parameters!$J$44,2))) ->  | W65: =IF(G65="","",ROUND(G65*Parameters!C$17,2)) ->  | X65: =IF(G65="","",ROUND(G65*VLOOKUP(J65,Parameters!E$4:G$49,3),2)) ->  | Y65: =IF(G65="","",ROUND(G65*Parameters!J$83,2)) -> 
E66: 0 | F66: =IF(C66="",0,IF(C66<=Parameters!$C$3,C66,Parameters!$C$3)) -> 0 | G66: =IF(C66="","",IF(F66<Parameters!$C$4,"",(F66-Parameters!$C$4)*D66)) ->  | I66: =IF(H66="","",YEAR(+Informatie!$C$1)-YEAR(H66)) ->  | J66: =IF(H66="","",I66+1) ->  | K66: =IF(G66="","",ROUND(G66*Parameters!$C$12,2)) ->  | L66: =IF(G66="","",IF(YEAR(Informatie!$C$1)=2015,ROUND(G66*Parameters!$J$27,2),ROUND(G66*VLOOKUP('Overzicht deelnemers'!I66,Parameters!$E$4:$G$49,2,FALSE),2))) ->  | M66: =IF(G66="","",IF(YEAR(Informatie!$C$1)=2015,ROUND(L66*Parameters!$C$20,2),G66*Parameters!$J$27)) ->  | O66: =IF(G66="","",ROUND(G66*Parameters!$C$16,2)) ->  | P66: =IF(G66="","",ROUND(G66*VLOOKUP(J66,Parameters!$E$3:$F$49,2,FALSE),2)) ->  | Q66: =IF(G66="","",ROUND(G66*Parameters!$J$66,2)) ->  | S66: =IF(G66="","",ROUND(G66*Parameters!$C$13,2)) ->  | T66: =IF(G66="","",IF(YEAR(Informatie!$C$1)=2015,ROUND(G66*Parameters!J$44,2),ROUND(G66*VLOOKUP('Overzicht deelnemers'!I66,Parameters!$E$4:$G$49,3,FALSE),2))) ->  | U66: =IF(G66="","",IF(YEAR(Informatie!$C$1)=2015,ROUND(T66*Parameters!$C$20,2),ROUND(G66*Parameters!$J$44,2))) ->  | W66: =IF(G66="","",ROUND(G66*Parameters!C$17,2)) ->  | X66: =IF(G66="","",ROUND(G66*VLOOKUP(J66,Parameters!E$4:G$49,3),2)) ->  | Y66: =IF(G66="","",ROUND(G66*Parameters!J$83,2)) -> 
E67: =C67*D67 -> 0 | F67: =IF(C67="",0,IF(C67<=Parameters!$C$3,C67,Parameters!$C$3)) -> 0 | G67: =IF(C67="","",IF(F67<Parameters!$C$4,"",(F67-Parameters!$C$4)*D67)) ->  | I67: =IF(H67="","",YEAR(+Informatie!$C$1)-YEAR(H67)) ->  | K67: =IF(G67="","",ROUND(G67*Parameters!$C$12,2)) ->  | L67: =IF(G67="","",IF(YEAR(Informatie!$C$1)=2015,ROUND(G67*Parameters!$J$27,2),ROUND(G67*VLOOKUP('Overzicht deelnemers'!I67,Parameters!$E$4:$G$49,2,FALSE),2))) ->  | M67: =IF(G67="","",IF(YEAR(Informatie!$C$1)=2015,ROUND(L67*Parameters!$C$20,2),G67*Parameters!$J$27)) ->  | N67: =IF(G67="","",ROUND(L67-M67,2)) ->  | O67: =IF(G67="","",ROUND(G67*Parameters!$C$16,2)) ->  | P67: =IF(G67="","",ROUND(G67*VLOOKUP(J67,Parameters!$E$3:$F$49,2,FALSE),2)) ->  | Q67: =IF(G67="","",ROUND(G67*Parameters!$J$66,2)) ->  | R67: =IF(G67="","",ROUND(P67-Q67,2)) ->  | S67: =IF(G67="","",ROUND(G67*Parameters!$C$13,2)) ->  | T67: =IF(G67="","",IF(YEAR(Informatie!$C$1)=2015,ROUND(G67*Parameters!J$44,2),ROUND(G67*VLOOKUP('Overzicht deelnemers'!I67,Parameters!$E$4:$G$49,3,FALSE),2))) ->  | U67: =IF(G67="","",IF(YEAR(Informatie!$C$1)=2015,ROUND(T67*Parameters!$C$20,2),ROUND(G67*Parameters!$J$44,2))) ->  | V67: =IF(G67="","",ROUND(T67-U67,2)) ->  | W67: =IF(G67="","",ROUND(G67*Parameters!C$17,2)) ->  | X67: =IF(G67="","",ROUND(G67*VLOOKUP(J67,Parameters!E$4:G$49,3),2)) ->  | Y67: =IF(G67="","",ROUND(G67*Parameters!J$83,2)) ->  | Z67: =IF(G67="","",ROUND(X67-Y67,2)) -> 
E68: 0 | F68: =IF(C68="",0,IF(C68<=Parameters!$C$3,C68,Parameters!$C$3)) -> 0 | G68: =IF(C68="","",IF(F68<Parameters!$C$4,"",(F68-Parameters!$C$4)*D68)) ->  | I68: =IF(H68="","",YEAR(+Informatie!$C$1)-YEAR(H68)) ->  | K68: =IF(G68="","",ROUND(G68*Parameters!$C$12,2)) ->  | L68: =IF(G68="","",IF(YEAR(Informatie!$C$1)=2015,ROUND(G68*Parameters!$J$27,2),ROUND(G68*VLOOKUP('Overzicht deelnemers'!I68,Parameters!$E$4:$G$49,2,FALSE),2))) ->  | M68: =IF(G68="","",IF(YEAR(Informatie!$C$1)=2015,ROUND(L68*Parameters!$C$20,2),G68*Parameters!$J$27)) ->  | O68: =IF(G68="","",ROUND(G68*Parameters!$C$16,2)) ->  | P68: =IF(G68="","",ROUND(G68*VLOOKUP(J68,Parameters!$E$3:$F$49,2,FALSE),2)) ->  | Q68: =IF(G68="","",ROUND(G68*Parameters!$J$66,2)) ->  | S68: =IF(G68="","",ROUND(G68*Parameters!$C$13,2)) ->  | T68: =IF(G68="","",IF(YEAR(Informatie!$C$1)=2015,ROUND(G68*Parameters!J$44,2),ROUND(G68*VLOOKUP('Overzicht deelnemers'!I68,Parameters!$E$4:$G$49,3,FALSE),2))) ->  | U68: =IF(G68="","",IF(YEAR(Informatie!$C$1)=2015,ROUND(T68*Parameters!$C$20,2),ROUND(G68*Parameters!$J$44,2))) ->  | W68: =IF(G68="","",ROUND(G68*Parameters!C$17,2)) ->  | X68: =IF(G68="","",ROUND(G68*VLOOKUP(J68,Parameters!E$4:G$49,3),2)) ->  | Y68: =IF(G68="","",ROUND(G68*Parameters!J$83,2)) -> 
E69: 0 | F69: =IF(C69="",0,IF(C69<=Parameters!$C$3,C69,Parameters!$C$3)) -> 0 | G69: =IF(C69="","",IF(F69<Parameters!$C$4,"",(F69-Parameters!$C$4)*D69)) ->  | I69: =IF(H69="","",YEAR(+Informatie!$C$1)-YEAR(H69)) ->  | K69: =IF(G69="","",ROUND(G69*Parameters!$C$12,2)) ->  | L69: =IF(G69="","",IF(YEAR(Informatie!$C$1)=2015,ROUND(G69*Parameters!$J$27,2),ROUND(G69*VLOOKUP('Overzicht deelnemers'!I69,Parameters!$E$4:$G$49,2,FALSE),2))) ->  | M69: =IF(G69="","",IF(YEAR(Informatie!$C$1)=2015,ROUND(L69*Parameters!$C$20,2),G69*Parameters!$J$27)) ->  | O69: =IF(G69="","",ROUND(G69*Parameters!$C$16,2)) ->  | P69: =IF(G69="","",ROUND(G69*VLOOKUP(J69,Parameters!$E$3:$F$49,2,FALSE),2)) ->  | Q69: =IF(G69="","",ROUND(G69*Parameters!$J$66,2)) ->  | S69: =IF(G69="","",ROUND(G69*Parameters!$C$13,2)) ->  | T69: =IF(G69="","",IF(YEAR(Informatie!$C$1)=2015,ROUND(G69*Parameters!J$44,2),ROUND(G69*VLOOKUP('Overzicht deelnemers'!I69,Parameters!$E$4:$G$49,3,FALSE),2))) ->  | U69: =IF(G69="","",IF(YEAR(Informatie!$C$1)=2015,ROUND(T69*Parameters!$C$20,2),ROUND(G69*Parameters!$J$44,2))) ->  | W69: =IF(G69="","",ROUND(G69*Parameters!C$17,2)) ->  | X69: =IF(G69="","",ROUND(G69*VLOOKUP(J69,Parameters!E$4:G$49,3),2)) ->  | Y69: =IF(G69="","",ROUND(G69*Parameters!J$83,2)) -> 
E70: 0 | F70: =IF(C70="",0,IF(C70<=Parameters!$C$3,C70,Parameters!$C$3)) -> 0 | G70: =IF(C70="","",IF(F70<Parameters!$C$4,"",(F70-Parameters!$C$4)*D70)) ->  | I70: =IF(H70="","",YEAR(+Informatie!$C$1)-YEAR(H70)) ->  | K70: =IF(G70="","",ROUND(G70*Parameters!$C$12,2)) ->  | L70: =IF(G70="","",IF(YEAR(Informatie!$C$1)=2015,ROUND(G70*Parameters!$J$27,2),ROUND(G70*VLOOKUP('Overzicht deelnemers'!I70,Parameters!$E$4:$G$49,2,FALSE),2))) ->  | M70: =IF(G70="","",IF(YEAR(Informatie!$C$1)=2015,ROUND(L70*Parameters!$C$20,2),G70*Parameters!$J$27)) ->  | O70: =IF(G70="","",ROUND(G70*Parameters!$C$16,2)) ->  | P70: =IF(G70="","",ROUND(G70*VLOOKUP(J70,Parameters!$E$3:$F$49,2,FALSE),2)) ->  | Q70: =IF(G70="","",ROUND(G70*Parameters!$J$66,2)) ->  | S70: =IF(G70="","",ROUND(G70*Parameters!$C$13,2)) ->  | T70: =IF(G70="","",IF(YEAR(Informatie!$C$1)=2015,ROUND(G70*Parameters!J$44,2),ROUND(G70*VLOOKUP('Overzicht deelnemers'!I70,Parameters!$E$4:$G$49,3,FALSE),2))) ->  | U70: =IF(G70="","",IF(YEAR(Informatie!$C$1)=2015,ROUND(T70*Parameters!$C$20,2),ROUND(G70*Parameters!$J$44,2))) ->  | W70: =IF(G70="","",ROUND(G70*Parameters!C$17,2)) ->  | X70: =IF(G70="","",ROUND(G70*VLOOKUP(J70,Parameters!E$4:G$49,3),2)) ->  | Y70: =IF(G70="","",ROUND(G70*Parameters!J$83,2)) -> 
E71: 0 | F71: =IF(C71="",0,IF(C71<=Parameters!$C$3,C71,Parameters!$C$3)) -> 0 | G71: =IF(C71="","",IF(F71<Parameters!$C$4,"",(F71-Parameters!$C$4)*D71)) ->  | I71: =IF(H71="","",YEAR(+Informatie!$C$1)-YEAR(H71)) ->  | K71: =IF(G71="","",ROUND(G71*Parameters!$C$12,2)) ->  | L71: =IF(G71="","",IF(YEAR(Informatie!$C$1)=2015,ROUND(G71*Parameters!$J$27,2),ROUND(G71*VLOOKUP('Overzicht deelnemers'!I71,Parameters!$E$4:$G$49,2,FALSE),2))) ->  | M71: =IF(G71="","",IF(YEAR(Informatie!$C$1)=2015,ROUND(L71*Parameters!$C$20,2),G71*Parameters!$J$27)) ->  | O71: =IF(G71="","",ROUND(G71*Parameters!$C$16,2)) ->  | P71: =IF(G71="","",ROUND(G71*VLOOKUP(J71,Parameters!$E$3:$F$49,2,FALSE),2)) ->  | Q71: =IF(G71="","",ROUND(G71*Parameters!$J$66,2)) ->  | S71: =IF(G71="","",ROUND(G71*Parameters!$C$13,2)) ->  | T71: =IF(G71="","",IF(YEAR(Informatie!$C$1)=2015,ROUND(G71*Parameters!J$44,2),ROUND(G71*VLOOKUP('Overzicht deelnemers'!I71,Parameters!$E$4:$G$49,3,FALSE),2))) ->  | U71: =IF(G71="","",IF(YEAR(Informatie!$C$1)=2015,ROUND(T71*Parameters!$C$20,2),ROUND(G71*Parameters!$J$44,2))) ->  | W71: =IF(G71="","",ROUND(G71*Parameters!C$17,2)) ->  | X71: =IF(G71="","",ROUND(G71*VLOOKUP(J71,Parameters!E$4:G$49,3),2)) ->  | Y71: =IF(G71="","",ROUND(G71*Parameters!J$83,2)) -> 
E72: 0 | F72: =IF(C72="",0,IF(C72<=Parameters!$C$3,C72,Parameters!$C$3)) -> 0 | G72: =IF(C72="","",IF(F72<Parameters!$C$4,"",(F72-Parameters!$C$4)*D72)) ->  | I72: =IF(H72="","",YEAR(+Informatie!$C$1)-YEAR(H72)) ->  | K72: =IF(G72="","",ROUND(G72*Parameters!$C$12,2)) ->  | L72: =IF(G72="","",IF(YEAR(Informatie!$C$1)=2015,ROUND(G72*Parameters!$J$27,2),ROUND(G72*VLOOKUP('Overzicht deelnemers'!I72,Parameters!$E$4:$G$49,2,FALSE),2))) ->  | M72: =IF(G72="","",IF(YEAR(Informatie!$C$1)=2015,ROUND(L72*Parameters!$C$20,2),G72*Parameters!$J$27)) ->  | O72: =IF(G72="","",ROUND(G72*Parameters!$C$16,2)) ->  | P72: =IF(G72="","",ROUND(G72*VLOOKUP(J72,Parameters!$E$3:$F$49,2,FALSE),2)) ->  | Q72: =IF(G72="","",ROUND(G72*Parameters!$J$66,2)) ->  | S72: =IF(G72="","",ROUND(G72*Parameters!$C$13,2)) ->  | T72: =IF(G72="","",IF(YEAR(Informatie!$C$1)=2015,ROUND(G72*Parameters!J$44,2),ROUND(G72*VLOOKUP('Overzicht deelnemers'!I72,Parameters!$E$4:$G$49,3,FALSE),2))) ->  | U72: =IF(G72="","",IF(YEAR(Informatie!$C$1)=2015,ROUND(T72*Parameters!$C$20,2),ROUND(G72*Parameters!$J$44,2))) ->  | W72: =IF(G72="","",ROUND(G72*Parameters!C$17,2)) ->  | X72: =IF(G72="","",ROUND(G72*VLOOKUP(J72,Parameters!E$4:G$49,3),2)) ->  | Y72: =IF(G72="","",ROUND(G72*Parameters!J$83,2)) -> 
E73: 0 | F73: =IF(C73="",0,IF(C73<=Parameters!$C$3,C73,Parameters!$C$3)) -> 0 | G73: =IF(C73="","",IF(F73<Parameters!$C$4,"",(F73-Parameters!$C$4)*D73)) ->  | I73: =IF(H73="","",YEAR(+Informatie!$C$1)-YEAR(H73)) ->  | K73: =IF(G73="","",ROUND(G73*Parameters!$C$12,2)) ->  | L73: =IF(G73="","",IF(YEAR(Informatie!$C$1)=2015,ROUND(G73*Parameters!$J$27,2),ROUND(G73*VLOOKUP('Overzicht deelnemers'!I73,Parameters!$E$4:$G$49,2,FALSE),2))) ->  | M73: =IF(G73="","",IF(YEAR(Informatie!$C$1)=2015,ROUND(L73*Parameters!$C$20,2),G73*Parameters!$J$27)) ->  | O73: =IF(G73="","",ROUND(G73*Parameters!$C$16,2)) ->  | P73: =IF(G73="","",ROUND(G73*VLOOKUP(J73,Parameters!$E$3:$F$49,2,FALSE),2)) ->  | Q73: =IF(G73="","",ROUND(G73*Parameters!$J$66,2)) ->  | S73: =IF(G73="","",ROUND(G73*Parameters!$C$13,2)) ->  | T73: =IF(G73="","",IF(YEAR(Informatie!$C$1)=2015,ROUND(G73*Parameters!J$44,2),ROUND(G73*VLOOKUP('Overzicht deelnemers'!I73,Parameters!$E$4:$G$49,3,FALSE),2))) ->  | U73: =IF(G73="","",IF(YEAR(Informatie!$C$1)=2015,ROUND(T73*Parameters!$C$20,2),ROUND(G73*Parameters!$J$44,2))) ->  | W73: =IF(G73="","",ROUND(G73*Parameters!C$17,2)) ->  | X73: =IF(G73="","",ROUND(G73*VLOOKUP(J73,Parameters!E$4:G$49,3),2)) ->  | Y73: =IF(G73="","",ROUND(G73*Parameters!J$83,2)) -> 
E74: 0 | F74: =IF(C74="",0,IF(C74<=Parameters!$C$3,C74,Parameters!$C$3)) -> 0 | G74: =IF(C74="","",IF(F74<Parameters!$C$4,"",(F74-Parameters!$C$4)*D74)) ->  | I74: =IF(H74="","",YEAR(+Informatie!$C$1)-YEAR(H74)) ->  | K74: =IF(G74="","",ROUND(G74*Parameters!$C$12,2)) ->  | L74: =IF(G74="","",IF(YEAR(Informatie!$C$1)=2015,ROUND(G74*Parameters!$J$27,2),ROUND(G74*VLOOKUP('Overzicht deelnemers'!I74,Parameters!$E$4:$G$49,2,FALSE),2))) ->  | M74: =IF(G74="","",IF(YEAR(Informatie!$C$1)=2015,ROUND(L74*Parameters!$C$20,2),G74*Parameters!$J$27)) ->  | O74: =IF(G74="","",ROUND(G74*Parameters!$C$16,2)) ->  | P74: =IF(G74="","",ROUND(G74*VLOOKUP(J74,Parameters!$E$3:$F$49,2,FALSE),2)) ->  | Q74: =IF(G74="","",ROUND(G74*Parameters!$J$66,2)) ->  | S74: =IF(G74="","",ROUND(G74*Parameters!$C$13,2)) ->  | T74: =IF(G74="","",IF(YEAR(Informatie!$C$1)=2015,ROUND(G74*Parameters!J$44,2),ROUND(G74*VLOOKUP('Overzicht deelnemers'!I74,Parameters!$E$4:$G$49,3,FALSE),2))) ->  | U74: =IF(G74="","",IF(YEAR(Informatie!$C$1)=2015,ROUND(T74*Parameters!$C$20,2),ROUND(G74*Parameters!$J$44,2))) ->  | W74: =IF(G74="","",ROUND(G74*Parameters!C$17,2)) ->  | X74: =IF(G74="","",ROUND(G74*VLOOKUP(J74,Parameters!E$4:G$49,3),2)) ->  | Y74: =IF(G74="","",ROUND(G74*Parameters!J$83,2)) -> 
E75: 0 | F75: =IF(C75="",0,IF(C75<=Parameters!$C$3,C75,Parameters!$C$3)) -> 0 | G75: =IF(C75="","",IF(F75<Parameters!$C$4,"",(F75-Parameters!$C$4)*D75)) ->  | I75: =IF(H75="","",YEAR(+Informatie!$C$1)-YEAR(H75)) ->  | K75: =IF(G75="","",ROUND(G75*Parameters!$C$12,2)) ->  | L75: =IF(G75="","",IF(YEAR(Informatie!$C$1)=2015,ROUND(G75*Parameters!$J$27,2),ROUND(G75*VLOOKUP('Overzicht deelnemers'!I75,Parameters!$E$4:$G$49,2,FALSE),2))) ->  | M75: =IF(G75="","",IF(YEAR(Informatie!$C$1)=2015,ROUND(L75*Parameters!$C$20,2),G75*Parameters!$J$27)) ->  | O75: =IF(G75="","",ROUND(G75*Parameters!$C$16,2)) ->  | P75: =IF(G75="","",ROUND(G75*VLOOKUP(J75,Parameters!$E$3:$F$49,2,FALSE),2)) ->  | Q75: =IF(G75="","",ROUND(G75*Parameters!$J$66,2)) ->  | S75: =IF(G75="","",ROUND(G75*Parameters!$C$13,2)) ->  | T75: =IF(G75="","",IF(YEAR(Informatie!$C$1)=2015,ROUND(G75*Parameters!J$44,2),ROUND(G75*VLOOKUP('Overzicht deelnemers'!I75,Parameters!$E$4:$G$49,3,FALSE),2))) ->  | U75: =IF(G75="","",IF(YEAR(Informatie!$C$1)=2015,ROUND(T75*Parameters!$C$20,2),ROUND(G75*Parameters!$J$44,2))) ->  | W75: =IF(G75="","",ROUND(G75*Parameters!C$17,2)) ->  | X75: =IF(G75="","",ROUND(G75*VLOOKUP(J75,Parameters!E$4:G$49,3),2)) ->  | Y75: =IF(G75="","",ROUND(G75*Parameters!J$83,2)) -> 
E76: 0 | F76: =IF(C76="",0,IF(C76<=Parameters!$C$3,C76,Parameters!$C$3)) -> 0 | G76: =IF(C76="","",IF(F76<Parameters!$C$4,"",(F76-Parameters!$C$4)*D76)) ->  | I76: =IF(H76="","",YEAR(+Informatie!$C$1)-YEAR(H76)) ->  | K76: =IF(G76="","",ROUND(G76*Parameters!$C$12,2)) ->  | L76: =IF(G76="","",IF(YEAR(Informatie!$C$1)=2015,ROUND(G76*Parameters!$J$27,2),ROUND(G76*VLOOKUP('Overzicht deelnemers'!I76,Parameters!$E$4:$G$49,2,FALSE),2))) ->  | M76: =IF(G76="","",IF(YEAR(Informatie!$C$1)=2015,ROUND(L76*Parameters!$C$20,2),G76*Parameters!$J$27)) ->  | O76: =IF(G76="","",ROUND(G76*Parameters!$C$16,2)) ->  | P76: =IF(G76="","",ROUND(G76*VLOOKUP(J76,Parameters!$E$3:$F$49,2,FALSE),2)) ->  | Q76: =IF(G76="","",ROUND(G76*Parameters!$J$66,2)) ->  | S76: =IF(G76="","",ROUND(G76*Parameters!$C$13,2)) ->  | T76: =IF(G76="","",IF(YEAR(Informatie!$C$1)=2015,ROUND(G76*Parameters!J$44,2),ROUND(G76*VLOOKUP('Overzicht deelnemers'!I76,Parameters!$E$4:$G$49,3,FALSE),2))) ->  | U76: =IF(G76="","",IF(YEAR(Informatie!$C$1)=2015,ROUND(T76*Parameters!$C$20,2),ROUND(G76*Parameters!$J$44,2))) ->  | W76: =IF(G76="","",ROUND(G76*Parameters!C$17,2)) ->  | X76: =IF(G76="","",ROUND(G76*VLOOKUP(J76,Parameters!E$4:G$49,3),2)) ->  | Y76: =IF(G76="","",ROUND(G76*Parameters!J$83,2)) -> 
E77: 0 | F77: =IF(C77="",0,IF(C77<=Parameters!$C$3,C77,Parameters!$C$3)) -> 0 | G77: =IF(C77="","",IF(F77<Parameters!$C$4,"",(F77-Parameters!$C$4)*D77)) ->  | I77: =IF(H77="","",YEAR(+Informatie!$C$1)-YEAR(H77)) ->  | K77: =IF(G77="","",ROUND(G77*Parameters!$C$12,2)) ->  | L77: =IF(G77="","",IF(YEAR(Informatie!$C$1)=2015,ROUND(G77*Parameters!$J$27,2),ROUND(G77*VLOOKUP('Overzicht deelnemers'!I77,Parameters!$E$4:$G$49,2,FALSE),2))) ->  | M77: =IF(G77="","",IF(YEAR(Informatie!$C$1)=2015,ROUND(L77*Parameters!$C$20,2),G77*Parameters!$J$27)) ->  | O77: =IF(G77="","",ROUND(G77*Parameters!$C$16,2)) ->  | P77: =IF(G77="","",ROUND(G77*VLOOKUP(J77,Parameters!$E$3:$F$49,2,FALSE),2)) ->  | Q77: =IF(G77="","",ROUND(G77*Parameters!$J$66,2)) ->  | S77: =IF(G77="","",ROUND(G77*Parameters!$C$13,2)) ->  | T77: =IF(G77="","",IF(YEAR(Informatie!$C$1)=2015,ROUND(G77*Parameters!J$44,2),ROUND(G77*VLOOKUP('Overzicht deelnemers'!I77,Parameters!$E$4:$G$49,3,FALSE),2))) ->  | U77: =IF(G77="","",IF(YEAR(Informatie!$C$1)=2015,ROUND(T77*Parameters!$C$20,2),ROUND(G77*Parameters!$J$44,2))) ->  | W77: =IF(G77="","",ROUND(G77*Parameters!C$17,2)) ->  | X77: =IF(G77="","",ROUND(G77*VLOOKUP(J77,Parameters!E$4:G$49,3),2)) ->  | Y77: =IF(G77="","",ROUND(G77*Parameters!J$83,2)) -> 
E78: 0 | F78: =IF(C78="",0,IF(C78<=Parameters!$C$3,C78,Parameters!$C$3)) -> 0 | G78: =IF(C78="","",IF(F78<Parameters!$C$4,"",(F78-Parameters!$C$4)*D78)) ->  | I78: =IF(H78="","",YEAR(+Informatie!$C$1)-YEAR(H78)) ->  | K78: =IF(G78="","",ROUND(G78*Parameters!$C$12,2)) ->  | L78: =IF(G78="","",IF(YEAR(Informatie!$C$1)=2015,ROUND(G78*Parameters!$J$27,2),ROUND(G78*VLOOKUP('Overzicht deelnemers'!I78,Parameters!$E$4:$G$49,2,FALSE),2))) ->  | M78: =IF(G78="","",IF(YEAR(Informatie!$C$1)=2015,ROUND(L78*Parameters!$C$20,2),G78*Parameters!$J$27)) ->  | O78: =IF(G78="","",ROUND(G78*Parameters!$C$16,2)) ->  | P78: =IF(G78="","",ROUND(G78*VLOOKUP(J78,Parameters!$E$3:$F$49,2,FALSE),2)) ->  | Q78: =IF(G78="","",ROUND(G78*Parameters!$J$66,2)) ->  | S78: =IF(G78="","",ROUND(G78*Parameters!$C$13,2)) ->  | T78: =IF(G78="","",IF(YEAR(Informatie!$C$1)=2015,ROUND(G78*Parameters!J$44,2),ROUND(G78*VLOOKUP('Overzicht deelnemers'!I78,Parameters!$E$4:$G$49,3,FALSE),2))) ->  | U78: =IF(G78="","",IF(YEAR(Informatie!$C$1)=2015,ROUND(T78*Parameters!$C$20,2),ROUND(G78*Parameters!$J$44,2))) ->  | W78: =IF(G78="","",ROUND(G78*Parameters!C$17,2)) ->  | X78: =IF(G78="","",ROUND(G78*VLOOKUP(J78,Parameters!E$4:G$49,3),2)) ->  | Y78: =IF(G78="","",ROUND(G78*Parameters!J$83,2)) -> 
E79: 0 | F79: =IF(C79="",0,IF(C79<=Parameters!$C$3,C79,Parameters!$C$3)) -> 0 | G79: =IF(C79="","",IF(F79<Parameters!$C$4,"",(F79-Parameters!$C$4)*D79)) ->  | I79: =IF(H79="","",YEAR(+Informatie!$C$1)-YEAR(H79)) ->  | K79: =IF(G79="","",ROUND(G79*Parameters!$C$12,2)) ->  | L79: =IF(G79="","",IF(YEAR(Informatie!$C$1)=2015,ROUND(G79*Parameters!$J$27,2),ROUND(G79*VLOOKUP('Overzicht deelnemers'!I79,Parameters!$E$4:$G$49,2,FALSE),2))) ->  | M79: =IF(G79="","",IF(YEAR(Informatie!$C$1)=2015,ROUND(L79*Parameters!$C$20,2),G79*Parameters!$J$27)) ->  | O79: =IF(G79="","",ROUND(G79*Parameters!$C$16,2)) ->  | P79: =IF(G79="","",ROUND(G79*VLOOKUP(J79,Parameters!$E$3:$F$49,2,FALSE),2)) ->  | Q79: =IF(G79="","",ROUND(G79*Parameters!$J$66,2)) ->  | S79: =IF(G79="","",ROUND(G79*Parameters!$C$13,2)) ->  | T79: =IF(G79="","",IF(YEAR(Informatie!$C$1)=2015,ROUND(G79*Parameters!J$44,2),ROUND(G79*VLOOKUP('Overzicht deelnemers'!I79,Parameters!$E$4:$G$49,3,FALSE),2))) ->  | U79: =IF(G79="","",IF(YEAR(Informatie!$C$1)=2015,ROUND(T79*Parameters!$C$20,2),ROUND(G79*Parameters!$J$44,2))) ->  | W79: =IF(G79="","",ROUND(G79*Parameters!C$17,2)) ->  | X79: =IF(G79="","",ROUND(G79*VLOOKUP(J79,Parameters!E$4:G$49,3),2)) ->  | Y79: =IF(G79="","",ROUND(G79*Parameters!J$83,2)) -> 
E80: 0 | F80: =IF(C80="",0,IF(C80<=Parameters!$C$3,C80,Parameters!$C$3)) -> 0 | G80: =IF(C80="","",IF(F80<Parameters!$C$4,"",(F80-Parameters!$C$4)*D80)) ->  | I80: =IF(H80="","",YEAR(+Informatie!$C$1)-YEAR(H80)) ->  | K80: =IF(G80="","",ROUND(G80*Parameters!$C$12,2)) ->  | L80: =IF(G80="","",IF(YEAR(Informatie!$C$1)=2015,ROUND(G80*Parameters!$J$27,2),ROUND(G80*VLOOKUP('Overzicht deelnemers'!I80,Parameters!$E$4:$G$49,2,FALSE),2))) ->  | M80: =IF(G80="","",IF(YEAR(Informatie!$C$1)=2015,ROUND(L80*Parameters!$C$20,2),G80*Parameters!$J$27)) ->  | O80: =IF(G80="","",ROUND(G80*Parameters!$C$16,2)) ->  | P80: =IF(G80="","",ROUND(G80*VLOOKUP(J80,Parameters!$E$3:$F$49,2,FALSE),2)) ->  | Q80: =IF(G80="","",ROUND(G80*Parameters!$J$66,2)) ->  | S80: =IF(G80="","",ROUND(G80*Parameters!$C$13,2)) ->  | T80: =IF(G80="","",IF(YEAR(Informatie!$C$1)=2015,ROUND(G80*Parameters!J$44,2),ROUND(G80*VLOOKUP('Overzicht deelnemers'!I80,Parameters!$E$4:$G$49,3,FALSE),2))) ->  | U80: =IF(G80="","",IF(YEAR(Informatie!$C$1)=2015,ROUND(T80*Parameters!$C$20,2),ROUND(G80*Parameters!$J$44,2))) ->  | W80: =IF(G80="","",ROUND(G80*Parameters!C$17,2)) ->  | X80: =IF(G80="","",ROUND(G80*VLOOKUP(J80,Parameters!E$4:G$49,3),2)) ->  | Y80: =IF(G80="","",ROUND(G80*Parameters!J$83,2)) -> 
E81: 0 | F81: =IF(C81="",0,IF(C81<=Parameters!$C$3,C81,Parameters!$C$3)) -> 0 | G81: =IF(C81="","",IF(F81<Parameters!$C$4,"",(F81-Parameters!$C$4)*D81)) ->  | I81: =IF(H81="","",YEAR(+Informatie!$C$1)-YEAR(H81)) ->  | K81: =IF(G81="","",ROUND(G81*Parameters!$C$12,2)) ->  | L81: =IF(G81="","",IF(YEAR(Informatie!$C$1)=2015,ROUND(G81*Parameters!$J$27,2),ROUND(G81*VLOOKUP('Overzicht deelnemers'!I81,Parameters!$E$4:$G$49,2,FALSE),2))) ->  | M81: =IF(G81="","",IF(YEAR(Informatie!$C$1)=2015,ROUND(L81*Parameters!$C$20,2),G81*Parameters!$J$27)) ->  | O81: =IF(G81="","",ROUND(G81*Parameters!$C$16,2)) ->  | P81: =IF(G81="","",ROUND(G81*VLOOKUP(J81,Parameters!$E$3:$F$49,2,FALSE),2)) ->  | Q81: =IF(G81="","",ROUND(G81*Parameters!$J$66,2)) ->  | S81: =IF(G81="","",ROUND(G81*Parameters!$C$13,2)) ->  | T81: =IF(G81="","",IF(YEAR(Informatie!$C$1)=2015,ROUND(G81*Parameters!J$44,2),ROUND(G81*VLOOKUP('Overzicht deelnemers'!I81,Parameters!$E$4:$G$49,3,FALSE),2))) ->  | U81: =IF(G81="","",IF(YEAR(Informatie!$C$1)=2015,ROUND(T81*Parameters!$C$20,2),ROUND(G81*Parameters!$J$44,2))) ->  | W81: =IF(G81="","",ROUND(G81*Parameters!C$17,2)) ->  | X81: =IF(G81="","",ROUND(G81*VLOOKUP(J81,Parameters!E$4:G$49,3),2)) ->  | Y81: =IF(G81="","",ROUND(G81*Parameters!J$83,2)) -> 
E82: 0 | F82: =IF(C82="",0,IF(C82<=Parameters!$C$3,C82,Parameters!$C$3)) -> 0 | G82: =IF(C82="","",IF(F82<Parameters!$C$4,"",(F82-Parameters!$C$4)*D82)) ->  | I82: =IF(H82="","",YEAR(+Informatie!$C$1)-YEAR(H82)) ->  | K82: =IF(G82="","",ROUND(G82*Parameters!$C$12,2)) ->  | L82: =IF(G82="","",IF(YEAR(Informatie!$C$1)=2015,ROUND(G82*Parameters!$J$27,2),ROUND(G82*VLOOKUP('Overzicht deelnemers'!I82,Parameters!$E$4:$G$49,2,FALSE),2))) ->  | M82: =IF(G82="","",IF(YEAR(Informatie!$C$1)=2015,ROUND(L82*Parameters!$C$20,2),G82*Parameters!$J$27)) ->  | O82: =IF(G82="","",ROUND(G82*Parameters!$C$16,2)) ->  | P82: =IF(G82="","",ROUND(G82*VLOOKUP(J82,Parameters!$E$3:$F$49,2,FALSE),2)) ->  | Q82: =IF(G82="","",ROUND(G82*Parameters!$J$66,2)) ->  | S82: =IF(G82="","",ROUND(G82*Parameters!$C$13,2)) ->  | T82: =IF(G82="","",IF(YEAR(Informatie!$C$1)=2015,ROUND(G82*Parameters!J$44,2),ROUND(G82*VLOOKUP('Overzicht deelnemers'!I82,Parameters!$E$4:$G$49,3,FALSE),2))) ->  | U82: =IF(G82="","",IF(YEAR(Informatie!$C$1)=2015,ROUND(T82*Parameters!$C$20,2),ROUND(G82*Parameters!$J$44,2))) ->  | W82: =IF(G82="","",ROUND(G82*Parameters!C$17,2)) ->  | X82: =IF(G82="","",ROUND(G82*VLOOKUP(J82,Parameters!E$4:G$49,3),2)) ->  | Y82: =IF(G82="","",ROUND(G82*Parameters!J$83,2)) -> 
E83: 0 | F83: =IF(C83="",0,IF(C83<=Parameters!$C$3,C83,Parameters!$C$3)) -> 0 | G83: =IF(C83="","",IF(F83<Parameters!$C$4,"",(F83-Parameters!$C$4)*D83)) ->  | I83: =IF(H83="","",YEAR(+Informatie!$C$1)-YEAR(H83)) ->  | K83: =IF(G83="","",ROUND(G83*Parameters!$C$12,2)) ->  | L83: =IF(G83="","",IF(YEAR(Informatie!$C$1)=2015,ROUND(G83*Parameters!$J$27,2),ROUND(G83*VLOOKUP('Overzicht deelnemers'!I83,Parameters!$E$4:$G$49,2,FALSE),2))) ->  | M83: =IF(G83="","",IF(YEAR(Informatie!$C$1)=2015,ROUND(L83*Parameters!$C$20,2),G83*Parameters!$J$27)) ->  | O83: =IF(G83="","",ROUND(G83*Parameters!$C$16,2)) ->  | P83: =IF(G83="","",ROUND(G83*VLOOKUP(J83,Parameters!$E$3:$F$49,2,FALSE),2)) ->  | Q83: =IF(G83="","",ROUND(G83*Parameters!$J$66,2)) ->  | S83: =IF(G83="","",ROUND(G83*Parameters!$C$13,2)) ->  | T83: =IF(G83="","",IF(YEAR(Informatie!$C$1)=2015,ROUND(G83*Parameters!J$44,2),ROUND(G83*VLOOKUP('Overzicht deelnemers'!I83,Parameters!$E$4:$G$49,3,FALSE),2))) ->  | U83: =IF(G83="","",IF(YEAR(Informatie!$C$1)=2015,ROUND(T83*Parameters!$C$20,2),ROUND(G83*Parameters!$J$44,2))) ->  | W83: =IF(G83="","",ROUND(G83*Parameters!C$17,2)) ->  | X83: =IF(G83="","",ROUND(G83*VLOOKUP(J83,Parameters!E$4:G$49,3),2)) ->  | Y83: =IF(G83="","",ROUND(G83*Parameters!J$83,2)) -> 
E84: 0 | F84: =IF(C84="",0,IF(C84<=Parameters!$C$3,C84,Parameters!$C$3)) -> 0 | G84: =IF(C84="","",IF(F84<Parameters!$C$4,"",(F84-Parameters!$C$4)*D84)) ->  | I84: =IF(H84="","",YEAR(+Informatie!$C$1)-YEAR(H84)) ->  | K84: =IF(G84="","",ROUND(G84*Parameters!$C$12,2)) ->  | L84: =IF(G84="","",IF(YEAR(Informatie!$C$1)=2015,ROUND(G84*Parameters!$J$27,2),ROUND(G84*VLOOKUP('Overzicht deelnemers'!I84,Parameters!$E$4:$G$49,2,FALSE),2))) ->  | M84: =IF(G84="","",IF(YEAR(Informatie!$C$1)=2015,ROUND(L84*Parameters!$C$20,2),G84*Parameters!$J$27)) ->  | O84: =IF(G84="","",ROUND(G84*Parameters!$C$16,2)) ->  | P84: =IF(G84="","",ROUND(G84*VLOOKUP(J84,Parameters!$E$3:$F$49,2,FALSE),2)) ->  | Q84: =IF(G84="","",ROUND(G84*Parameters!$J$66,2)) ->  | S84: =IF(G84="","",ROUND(G84*Parameters!$C$13,2)) ->  | T84: =IF(G84="","",IF(YEAR(Informatie!$C$1)=2015,ROUND(G84*Parameters!J$44,2),ROUND(G84*VLOOKUP('Overzicht deelnemers'!I84,Parameters!$E$4:$G$49,3,FALSE),2))) ->  | U84: =IF(G84="","",IF(YEAR(Informatie!$C$1)=2015,ROUND(T84*Parameters!$C$20,2),ROUND(G84*Parameters!$J$44,2))) ->  | W84: =IF(G84="","",ROUND(G84*Parameters!C$17,2)) ->  | X84: =IF(G84="","",ROUND(G84*VLOOKUP(J84,Parameters!E$4:G$49,3),2)) ->  | Y84: =IF(G84="","",ROUND(G84*Parameters!J$83,2)) -> 
E85: 0 | F85: =IF(C85="",0,IF(C85<=Parameters!$C$3,C85,Parameters!$C$3)) -> 0 | G85: =IF(C85="","",IF(F85<Parameters!$C$4,"",(F85-Parameters!$C$4)*D85)) ->  | I85: =IF(H85="","",YEAR(+Informatie!$C$1)-YEAR(H85)) ->  | K85: =IF(G85="","",ROUND(G85*Parameters!$C$12,2)) ->  | L85: =IF(G85="","",IF(YEAR(Informatie!$C$1)=2015,ROUND(G85*Parameters!$J$27,2),ROUND(G85*VLOOKUP('Overzicht deelnemers'!I85,Parameters!$E$4:$G$49,2,FALSE),2))) ->  | M85: =IF(G85="","",IF(YEAR(Informatie!$C$1)=2015,ROUND(L85*Parameters!$C$20,2),G85*Parameters!$J$27)) ->  | O85: =IF(G85="","",ROUND(G85*Parameters!$C$16,2)) ->  | P85: =IF(G85="","",ROUND(G85*VLOOKUP(J85,Parameters!$E$3:$F$49,2,FALSE),2)) ->  | Q85: =IF(G85="","",ROUND(G85*Parameters!$J$66,2)) ->  | S85: =IF(G85="","",ROUND(G85*Parameters!$C$13,2)) ->  | T85: =IF(G85="","",IF(YEAR(Informatie!$C$1)=2015,ROUND(G85*Parameters!J$44,2),ROUND(G85*VLOOKUP('Overzicht deelnemers'!I85,Parameters!$E$4:$G$49,3,FALSE),2))) ->  | U85: =IF(G85="","",IF(YEAR(Informatie!$C$1)=2015,ROUND(T85*Parameters!$C$20,2),ROUND(G85*Parameters!$J$44,2))) ->  | W85: =IF(G85="","",ROUND(G85*Parameters!C$17,2)) ->  | X85: =IF(G85="","",ROUND(G85*VLOOKUP(J85,Parameters!E$4:G$49,3),2)) ->  | Y85: =IF(G85="","",ROUND(G85*Parameters!J$83,2)) -> 
E86: 0 | F86: =IF(C86="",0,IF(C86<=Parameters!$C$3,C86,Parameters!$C$3)) -> 0 | G86: =IF(C86="","",IF(F86<Parameters!$C$4,"",(F86-Parameters!$C$4)*D86)) ->  | I86: =IF(H86="","",YEAR(+Informatie!$C$1)-YEAR(H86)) ->  | K86: =IF(G86="","",ROUND(G86*Parameters!$C$12,2)) ->  | L86: =IF(G86="","",IF(YEAR(Informatie!$C$1)=2015,ROUND(G86*Parameters!$J$27,2),ROUND(G86*VLOOKUP('Overzicht deelnemers'!I86,Parameters!$E$4:$G$49,2,FALSE),2))) ->  | M86: =IF(G86="","",IF(YEAR(Informatie!$C$1)=2015,ROUND(L86*Parameters!$C$20,2),G86*Parameters!$J$27)) ->  | O86: =IF(G86="","",ROUND(G86*Parameters!$C$16,2)) ->  | P86: =IF(G86="","",ROUND(G86*VLOOKUP(J86,Parameters!$E$3:$F$49,2,FALSE),2)) ->  | Q86: =IF(G86="","",ROUND(G86*Parameters!$J$66,2)) ->  | S86: =IF(G86="","",ROUND(G86*Parameters!$C$13,2)) ->  | T86: =IF(G86="","",IF(YEAR(Informatie!$C$1)=2015,ROUND(G86*Parameters!J$44,2),ROUND(G86*VLOOKUP('Overzicht deelnemers'!I86,Parameters!$E$4:$G$49,3,FALSE),2))) ->  | U86: =IF(G86="","",IF(YEAR(Informatie!$C$1)=2015,ROUND(T86*Parameters!$C$20,2),ROUND(G86*Parameters!$J$44,2))) ->  | W86: =IF(G86="","",ROUND(G86*Parameters!C$17,2)) ->  | X86: =IF(G86="","",ROUND(G86*VLOOKUP(J86,Parameters!E$4:G$49,3),2)) ->  | Y86: =IF(G86="","",ROUND(G86*Parameters!J$83,2)) -> 
E87: 0 | F87: =IF(C87="",0,IF(C87<=Parameters!$C$3,C87,Parameters!$C$3)) -> 0 | G87: =IF(C87="","",IF(F87<Parameters!$C$4,"",(F87-Parameters!$C$4)*D87)) ->  | I87: =IF(H87="","",YEAR(+Informatie!$C$1)-YEAR(H87)) ->  | K87: =IF(G87="","",ROUND(G87*Parameters!$C$12,2)) ->  | L87: =IF(G87="","",IF(YEAR(Informatie!$C$1)=2015,ROUND(G87*Parameters!$J$27,2),ROUND(G87*VLOOKUP('Overzicht deelnemers'!I87,Parameters!$E$4:$G$49,2,FALSE),2))) ->  | M87: =IF(G87="","",IF(YEAR(Informatie!$C$1)=2015,ROUND(L87*Parameters!$C$20,2),G87*Parameters!$J$27)) ->  | O87: =IF(G87="","",ROUND(G87*Parameters!$C$16,2)) ->  | P87: =IF(G87="","",ROUND(G87*VLOOKUP(J87,Parameters!$E$3:$F$49,2,FALSE),2)) ->  | Q87: =IF(G87="","",ROUND(G87*Parameters!$J$66,2)) ->  | S87: =IF(G87="","",ROUND(G87*Parameters!$C$13,2)) ->  | T87: =IF(G87="","",IF(YEAR(Informatie!$C$1)=2015,ROUND(G87*Parameters!J$44,2),ROUND(G87*VLOOKUP('Overzicht deelnemers'!I87,Parameters!$E$4:$G$49,3,FALSE),2))) ->  | U87: =IF(G87="","",IF(YEAR(Informatie!$C$1)=2015,ROUND(T87*Parameters!$C$20,2),ROUND(G87*Parameters!$J$44,2))) ->  | W87: =IF(G87="","",ROUND(G87*Parameters!C$17,2)) ->  | X87: =IF(G87="","",ROUND(G87*VLOOKUP(J87,Parameters!E$4:G$49,3),2)) ->  | Y87: =IF(G87="","",ROUND(G87*Parameters!J$83,2)) -> 
E88: 0 | F88: =IF(C88="",0,IF(C88<=Parameters!$C$3,C88,Parameters!$C$3)) -> 0 | G88: =IF(C88="","",IF(F88<Parameters!$C$4,"",(F88-Parameters!$C$4)*D88)) ->  | I88: =IF(H88="","",YEAR(+Informatie!$C$1)-YEAR(H88)) ->  | K88: =IF(G88="","",ROUND(G88*Parameters!$C$12,2)) ->  | L88: =IF(G88="","",IF(YEAR(Informatie!$C$1)=2015,ROUND(G88*Parameters!$J$27,2),ROUND(G88*VLOOKUP('Overzicht deelnemers'!I88,Parameters!$E$4:$G$49,2,FALSE),2))) ->  | M88: =IF(G88="","",IF(YEAR(Informatie!$C$1)=2015,ROUND(L88*Parameters!$C$20,2),G88*Parameters!$J$27)) ->  | O88: =IF(G88="","",ROUND(G88*Parameters!$C$16,2)) ->  | P88: =IF(G88="","",ROUND(G88*VLOOKUP(J88,Parameters!$E$3:$F$49,2,FALSE),2)) ->  | Q88: =IF(G88="","",ROUND(G88*Parameters!$J$66,2)) ->  | S88: =IF(G88="","",ROUND(G88*Parameters!$C$13,2)) ->  | T88: =IF(G88="","",IF(YEAR(Informatie!$C$1)=2015,ROUND(G88*Parameters!J$44,2),ROUND(G88*VLOOKUP('Overzicht deelnemers'!I88,Parameters!$E$4:$G$49,3,FALSE),2))) ->  | U88: =IF(G88="","",IF(YEAR(Informatie!$C$1)=2015,ROUND(T88*Parameters!$C$20,2),ROUND(G88*Parameters!$J$44,2))) ->  | W88: =IF(G88="","",ROUND(G88*Parameters!C$17,2)) ->  | X88: =IF(G88="","",ROUND(G88*VLOOKUP(J88,Parameters!E$4:G$49,3),2)) ->  | Y88: =IF(G88="","",ROUND(G88*Parameters!J$83,2)) -> 
E89: 0 | F89: =IF(C89="",0,IF(C89<=Parameters!$C$3,C89,Parameters!$C$3)) -> 0 | G89: =IF(C89="","",IF(F89<Parameters!$C$4,"",(F89-Parameters!$C$4)*D89)) ->  | I89: =IF(H89="","",YEAR(+Informatie!$C$1)-YEAR(H89)) ->  | K89: =IF(G89="","",ROUND(G89*Parameters!$C$12,2)) ->  | L89: =IF(G89="","",IF(YEAR(Informatie!$C$1)=2015,ROUND(G89*Parameters!$J$27,2),ROUND(G89*VLOOKUP('Overzicht deelnemers'!I89,Parameters!$E$4:$G$49,2,FALSE),2))) ->  | M89: =IF(G89="","",IF(YEAR(Informatie!$C$1)=2015,ROUND(L89*Parameters!$C$20,2),G89*Parameters!$J$27)) ->  | O89: =IF(G89="","",ROUND(G89*Parameters!$C$16,2)) ->  | P89: =IF(G89="","",ROUND(G89*VLOOKUP(J89,Parameters!$E$3:$F$49,2,FALSE),2)) ->  | Q89: =IF(G89="","",ROUND(G89*Parameters!$J$66,2)) ->  | S89: =IF(G89="","",ROUND(G89*Parameters!$C$13,2)) ->  | T89: =IF(G89="","",IF(YEAR(Informatie!$C$1)=2015,ROUND(G89*Parameters!J$44,2),ROUND(G89*VLOOKUP('Overzicht deelnemers'!I89,Parameters!$E$4:$G$49,3,FALSE),2))) ->  | U89: =IF(G89="","",IF(YEAR(Informatie!$C$1)=2015,ROUND(T89*Parameters!$C$20,2),ROUND(G89*Parameters!$J$44,2))) ->  | W89: =IF(G89="","",ROUND(G89*Parameters!C$17,2)) ->  | X89: =IF(G89="","",ROUND(G89*VLOOKUP(J89,Parameters!E$4:G$49,3),2)) ->  | Y89: =IF(G89="","",ROUND(G89*Parameters!J$83,2)) -> 
E90: 0 | F90: =IF(C90="",0,IF(C90<=Parameters!$C$3,C90,Parameters!$C$3)) -> 0 | G90: =IF(C90="","",IF(F90<Parameters!$C$4,"",(F90-Parameters!$C$4)*D90)) ->  | I90: =IF(H90="","",YEAR(+Informatie!$C$1)-YEAR(H90)) ->  | K90: =IF(G90="","",ROUND(G90*Parameters!$C$12,2)) ->  | L90: =IF(G90="","",IF(YEAR(Informatie!$C$1)=2015,ROUND(G90*Parameters!$J$27,2),ROUND(G90*VLOOKUP('Overzicht deelnemers'!I90,Parameters!$E$4:$G$49,2,FALSE),2))) ->  | M90: =IF(G90="","",IF(YEAR(Informatie!$C$1)=2015,ROUND(L90*Parameters!$C$20,2),G90*Parameters!$J$27)) ->  | O90: =IF(G90="","",ROUND(G90*Parameters!$C$16,2)) ->  | P90: =IF(G90="","",ROUND(G90*VLOOKUP(J90,Parameters!$E$3:$F$49,2,FALSE),2)) ->  | Q90: =IF(G90="","",ROUND(G90*Parameters!$J$66,2)) ->  | S90: =IF(G90="","",ROUND(G90*Parameters!$C$13,2)) ->  | T90: =IF(G90="","",IF(YEAR(Informatie!$C$1)=2015,ROUND(G90*Parameters!J$44,2),ROUND(G90*VLOOKUP('Overzicht deelnemers'!I90,Parameters!$E$4:$G$49,3,FALSE),2))) ->  | U90: =IF(G90="","",IF(YEAR(Informatie!$C$1)=2015,ROUND(T90*Parameters!$C$20,2),ROUND(G90*Parameters!$J$44,2))) ->  | W90: =IF(G90="","",ROUND(G90*Parameters!C$17,2)) ->  | X90: =IF(G90="","",ROUND(G90*VLOOKUP(J90,Parameters!E$4:G$49,3),2)) ->  | Y90: =IF(G90="","",ROUND(G90*Parameters!J$83,2)) -> 
E91: 0 | F91: =IF(C91="",0,IF(C91<=Parameters!$C$3,C91,Parameters!$C$3)) -> 0 | G91: =IF(C91="","",IF(F91<Parameters!$C$4,"",(F91-Parameters!$C$4)*D91)) ->  | I91: =IF(H91="","",YEAR(+Informatie!$C$1)-YEAR(H91)) ->  | K91: =IF(G91="","",ROUND(G91*Parameters!$C$12,2)) ->  | L91: =IF(G91="","",IF(YEAR(Informatie!$C$1)=2015,ROUND(G91*Parameters!$J$27,2),ROUND(G91*VLOOKUP('Overzicht deelnemers'!I91,Parameters!$E$4:$G$49,2,FALSE),2))) ->  | M91: =IF(G91="","",IF(YEAR(Informatie!$C$1)=2015,ROUND(L91*Parameters!$C$20,2),G91*Parameters!$J$27)) ->  | O91: =IF(G91="","",ROUND(G91*Parameters!$C$16,2)) ->  | P91: =IF(G91="","",ROUND(G91*VLOOKUP(J91,Parameters!$E$3:$F$49,2,FALSE),2)) ->  | Q91: =IF(G91="","",ROUND(G91*Parameters!$J$66,2)) ->  | S91: =IF(G91="","",ROUND(G91*Parameters!$C$13,2)) ->  | T91: =IF(G91="","",IF(YEAR(Informatie!$C$1)=2015,ROUND(G91*Parameters!J$44,2),ROUND(G91*VLOOKUP('Overzicht deelnemers'!I91,Parameters!$E$4:$G$49,3,FALSE),2))) ->  | U91: =IF(G91="","",IF(YEAR(Informatie!$C$1)=2015,ROUND(T91*Parameters!$C$20,2),ROUND(G91*Parameters!$J$44,2))) ->  | W91: =IF(G91="","",ROUND(G91*Parameters!C$17,2)) ->  | X91: =IF(G91="","",ROUND(G91*VLOOKUP(J91,Parameters!E$4:G$49,3),2)) ->  | Y91: =IF(G91="","",ROUND(G91*Parameters!J$83,2)) -> 
E92: 0 | F92: =IF(C92="",0,IF(C92<=Parameters!$C$3,C92,Parameters!$C$3)) -> 0 | G92: =IF(C92="","",IF(F92<Parameters!$C$4,"",(F92-Parameters!$C$4)*D92)) ->  | I92: =IF(H92="","",YEAR(+Informatie!$C$1)-YEAR(H92)) ->  | K92: =IF(G92="","",ROUND(G92*Parameters!$C$12,2)) ->  | L92: =IF(G92="","",IF(YEAR(Informatie!$C$1)=2015,ROUND(G92*Parameters!$J$27,2),ROUND(G92*VLOOKUP('Overzicht deelnemers'!I92,Parameters!$E$4:$G$49,2,FALSE),2))) ->  | M92: =IF(G92="","",IF(YEAR(Informatie!$C$1)=2015,ROUND(L92*Parameters!$C$20,2),G92*Parameters!$J$27)) ->  | O92: =IF(G92="","",ROUND(G92*Parameters!$C$16,2)) ->  | P92: =IF(G92="","",ROUND(G92*VLOOKUP(J92,Parameters!$E$3:$F$49,2,FALSE),2)) ->  | Q92: =IF(G92="","",ROUND(G92*Parameters!$J$66,2)) ->  | S92: =IF(G92="","",ROUND(G92*Parameters!$C$13,2)) ->  | T92: =IF(G92="","",IF(YEAR(Informatie!$C$1)=2015,ROUND(G92*Parameters!J$44,2),ROUND(G92*VLOOKUP('Overzicht deelnemers'!I92,Parameters!$E$4:$G$49,3,FALSE),2))) ->  | U92: =IF(G92="","",IF(YEAR(Informatie!$C$1)=2015,ROUND(T92*Parameters!$C$20,2),ROUND(G92*Parameters!$J$44,2))) ->  | W92: =IF(G92="","",ROUND(G92*Parameters!C$17,2)) ->  | X92: =IF(G92="","",ROUND(G92*VLOOKUP(J92,Parameters!E$4:G$49,3),2)) ->  | Y92: =IF(G92="","",ROUND(G92*Parameters!J$83,2)) -> 
E93: 0 | F93: =IF(C93="",0,IF(C93<=Parameters!$C$3,C93,Parameters!$C$3)) -> 0 | G93: =IF(C93="","",IF(F93<Parameters!$C$4,"",(F93-Parameters!$C$4)*D93)) ->  | I93: =IF(H93="","",YEAR(+Informatie!$C$1)-YEAR(H93)) ->  | K93: =IF(G93="","",ROUND(G93*Parameters!$C$12,2)) ->  | L93: =IF(G93="","",IF(YEAR(Informatie!$C$1)=2015,ROUND(G93*Parameters!$J$27,2),ROUND(G93*VLOOKUP('Overzicht deelnemers'!I93,Parameters!$E$4:$G$49,2,FALSE),2))) ->  | M93: =IF(G93="","",IF(YEAR(Informatie!$C$1)=2015,ROUND(L93*Parameters!$C$20,2),G93*Parameters!$J$27)) ->  | O93: =IF(G93="","",ROUND(G93*Parameters!$C$16,2)) ->  | P93: =IF(G93="","",ROUND(G93*VLOOKUP(J93,Parameters!$E$3:$F$49,2,FALSE),2)) ->  | Q93: =IF(G93="","",ROUND(G93*Parameters!$J$66,2)) ->  | S93: =IF(G93="","",ROUND(G93*Parameters!$C$13,2)) ->  | T93: =IF(G93="","",IF(YEAR(Informatie!$C$1)=2015,ROUND(G93*Parameters!J$44,2),ROUND(G93*VLOOKUP('Overzicht deelnemers'!I93,Parameters!$E$4:$G$49,3,FALSE),2))) ->  | U93: =IF(G93="","",IF(YEAR(Informatie!$C$1)=2015,ROUND(T93*Parameters!$C$20,2),ROUND(G93*Parameters!$J$44,2))) ->  | W93: =IF(G93="","",ROUND(G93*Parameters!C$17,2)) ->  | X93: =IF(G93="","",ROUND(G93*VLOOKUP(J93,Parameters!E$4:G$49,3),2)) ->  | Y93: =IF(G93="","",ROUND(G93*Parameters!J$83,2)) -> 
E94: 0 | F94: =IF(C94="",0,IF(C94<=Parameters!$C$3,C94,Parameters!$C$3)) -> 0 | G94: =IF(C94="","",IF(F94<Parameters!$C$4,"",(F94-Parameters!$C$4)*D94)) ->  | I94: =IF(H94="","",YEAR(+Informatie!$C$1)-YEAR(H94)) ->  | K94: =IF(G94="","",ROUND(G94*Parameters!$C$12,2)) ->  | L94: =IF(G94="","",IF(YEAR(Informatie!$C$1)=2015,ROUND(G94*Parameters!$J$27,2),ROUND(G94*VLOOKUP('Overzicht deelnemers'!I94,Parameters!$E$4:$G$49,2,FALSE),2))) ->  | M94: =IF(G94="","",IF(YEAR(Informatie!$C$1)=2015,ROUND(L94*Parameters!$C$20,2),G94*Parameters!$J$27)) ->  | O94: =IF(G94="","",ROUND(G94*Parameters!$C$16,2)) ->  | P94: =IF(G94="","",ROUND(G94*VLOOKUP(J94,Parameters!$E$3:$F$49,2,FALSE),2)) ->  | Q94: =IF(G94="","",ROUND(G94*Parameters!$J$66,2)) ->  | S94: =IF(G94="","",ROUND(G94*Parameters!$C$13,2)) ->  | T94: =IF(G94="","",IF(YEAR(Informatie!$C$1)=2015,ROUND(G94*Parameters!J$44,2),ROUND(G94*VLOOKUP('Overzicht deelnemers'!I94,Parameters!$E$4:$G$49,3,FALSE),2))) ->  | U94: =IF(G94="","",IF(YEAR(Informatie!$C$1)=2015,ROUND(T94*Parameters!$C$20,2),ROUND(G94*Parameters!$J$44,2))) ->  | W94: =IF(G94="","",ROUND(G94*Parameters!C$17,2)) ->  | X94: =IF(G94="","",ROUND(G94*VLOOKUP(J94,Parameters!E$4:G$49,3),2)) ->  | Y94: =IF(G94="","",ROUND(G94*Parameters!J$83,2)) -> 
E95: 0 | F95: =IF(C95="",0,IF(C95<=Parameters!$C$3,C95,Parameters!$C$3)) -> 0 | G95: =IF(C95="","",IF(F95<Parameters!$C$4,"",(F95-Parameters!$C$4)*D95)) ->  | I95: =IF(H95="","",YEAR(+Informatie!$C$1)-YEAR(H95)) ->  | K95: =IF(G95="","",ROUND(G95*Parameters!$C$12,2)) ->  | L95: =IF(G95="","",IF(YEAR(Informatie!$C$1)=2015,ROUND(G95*Parameters!$J$27,2),ROUND(G95*VLOOKUP('Overzicht deelnemers'!I95,Parameters!$E$4:$G$49,2,FALSE),2))) ->  | M95: =IF(G95="","",IF(YEAR(Informatie!$C$1)=2015,ROUND(L95*Parameters!$C$20,2),G95*Parameters!$J$27)) ->  | O95: =IF(G95="","",ROUND(G95*Parameters!$C$16,2)) ->  | P95: =IF(G95="","",ROUND(G95*VLOOKUP(J95,Parameters!$E$3:$F$49,2,FALSE),2)) ->  | Q95: =IF(G95="","",ROUND(G95*Parameters!$J$66,2)) ->  | S95: =IF(G95="","",ROUND(G95*Parameters!$C$13,2)) ->  | T95: =IF(G95="","",IF(YEAR(Informatie!$C$1)=2015,ROUND(G95*Parameters!J$44,2),ROUND(G95*VLOOKUP('Overzicht deelnemers'!I95,Parameters!$E$4:$G$49,3,FALSE),2))) ->  | U95: =IF(G95="","",IF(YEAR(Informatie!$C$1)=2015,ROUND(T95*Parameters!$C$20,2),ROUND(G95*Parameters!$J$44,2))) ->  | W95: =IF(G95="","",ROUND(G95*Parameters!C$17,2)) ->  | X95: =IF(G95="","",ROUND(G95*VLOOKUP(J95,Parameters!E$4:G$49,3),2)) ->  | Y95: =IF(G95="","",ROUND(G95*Parameters!J$83,2)) -> 
E96: 0 | F96: =IF(C96="",0,IF(C96<=Parameters!$C$3,C96,Parameters!$C$3)) -> 0 | G96: =IF(C96="","",IF(F96<Parameters!$C$4,"",(F96-Parameters!$C$4)*D96)) ->  | I96: =IF(H96="","",YEAR(+Informatie!$C$1)-YEAR(H96)) ->  | K96: =IF(G96="","",ROUND(G96*Parameters!$C$12,2)) ->  | L96: =IF(G96="","",IF(YEAR(Informatie!$C$1)=2015,ROUND(G96*Parameters!$J$27,2),ROUND(G96*VLOOKUP('Overzicht deelnemers'!I96,Parameters!$E$4:$G$49,2,FALSE),2))) ->  | M96: =IF(G96="","",IF(YEAR(Informatie!$C$1)=2015,ROUND(L96*Parameters!$C$20,2),G96*Parameters!$J$27)) ->  | O96: =IF(G96="","",ROUND(G96*Parameters!$C$16,2)) ->  | P96: =IF(G96="","",ROUND(G96*VLOOKUP(J96,Parameters!$E$3:$F$49,2,FALSE),2)) ->  | Q96: =IF(G96="","",ROUND(G96*Parameters!$J$66,2)) ->  | S96: =IF(G96="","",ROUND(G96*Parameters!$C$13,2)) ->  | T96: =IF(G96="","",IF(YEAR(Informatie!$C$1)=2015,ROUND(G96*Parameters!J$44,2),ROUND(G96*VLOOKUP('Overzicht deelnemers'!I96,Parameters!$E$4:$G$49,3,FALSE),2))) ->  | U96: =IF(G96="","",IF(YEAR(Informatie!$C$1)=2015,ROUND(T96*Parameters!$C$20,2),ROUND(G96*Parameters!$J$44,2))) ->  | W96: =IF(G96="","",ROUND(G96*Parameters!C$17,2)) ->  | X96: =IF(G96="","",ROUND(G96*VLOOKUP(J96,Parameters!E$4:G$49,3),2)) ->  | Y96: =IF(G96="","",ROUND(G96*Parameters!J$83,2)) -> 
E97: 0 | F97: =IF(C97="",0,IF(C97<=Parameters!$C$3,C97,Parameters!$C$3)) -> 0 | G97: =IF(C97="","",IF(F97<Parameters!$C$4,"",(F97-Parameters!$C$4)*D97)) ->  | I97: =IF(H97="","",YEAR(+Informatie!$C$1)-YEAR(H97)) ->  | K97: =IF(G97="","",ROUND(G97*Parameters!$C$12,2)) ->  | L97: =IF(G97="","",IF(YEAR(Informatie!$C$1)=2015,ROUND(G97*Parameters!$J$27,2),ROUND(G97*VLOOKUP('Overzicht deelnemers'!I97,Parameters!$E$4:$G$49,2,FALSE),2))) ->  | M97: =IF(G97="","",IF(YEAR(Informatie!$C$1)=2015,ROUND(L97*Parameters!$C$20,2),G97*Parameters!$J$27)) ->  | O97: =IF(G97="","",ROUND(G97*Parameters!$C$16,2)) ->  | P97: =IF(G97="","",ROUND(G97*VLOOKUP(J97,Parameters!$E$3:$F$49,2,FALSE),2)) ->  | Q97: =IF(G97="","",ROUND(G97*Parameters!$J$66,2)) ->  | S97: =IF(G97="","",ROUND(G97*Parameters!$C$13,2)) ->  | T97: =IF(G97="","",IF(YEAR(Informatie!$C$1)=2015,ROUND(G97*Parameters!J$44,2),ROUND(G97*VLOOKUP('Overzicht deelnemers'!I97,Parameters!$E$4:$G$49,3,FALSE),2))) ->  | U97: =IF(G97="","",IF(YEAR(Informatie!$C$1)=2015,ROUND(T97*Parameters!$C$20,2),ROUND(G97*Parameters!$J$44,2))) ->  | W97: =IF(G97="","",ROUND(G97*Parameters!C$17,2)) ->  | X97: =IF(G97="","",ROUND(G97*VLOOKUP(J97,Parameters!E$4:G$49,3),2)) ->  | Y97: =IF(G97="","",ROUND(G97*Parameters!J$83,2)) -> 
E98: 0 | F98: =IF(C98="",0,IF(C98<=Parameters!$C$3,C98,Parameters!$C$3)) -> 0 | G98: =IF(C98="","",IF(F98<Parameters!$C$4,"",(F98-Parameters!$C$4)*D98)) ->  | I98: =IF(H98="","",YEAR(+Informatie!$C$1)-YEAR(H98)) ->  | K98: =IF(G98="","",ROUND(G98*Parameters!$C$12,2)) ->  | L98: =IF(G98="","",IF(YEAR(Informatie!$C$1)=2015,ROUND(G98*Parameters!$J$27,2),ROUND(G98*VLOOKUP('Overzicht deelnemers'!I98,Parameters!$E$4:$G$49,2,FALSE),2))) ->  | M98: =IF(G98="","",IF(YEAR(Informatie!$C$1)=2015,ROUND(L98*Parameters!$C$20,2),G98*Parameters!$J$27)) ->  | O98: =IF(G98="","",ROUND(G98*Parameters!$C$16,2)) ->  | P98: =IF(G98="","",ROUND(G98*VLOOKUP(J98,Parameters!$E$3:$F$49,2,FALSE),2)) ->  | Q98: =IF(G98="","",ROUND(G98*Parameters!$J$66,2)) ->  | S98: =IF(G98="","",ROUND(G98*Parameters!$C$13,2)) ->  | T98: =IF(G98="","",IF(YEAR(Informatie!$C$1)=2015,ROUND(G98*Parameters!J$44,2),ROUND(G98*VLOOKUP('Overzicht deelnemers'!I98,Parameters!$E$4:$G$49,3,FALSE),2))) ->  | U98: =IF(G98="","",IF(YEAR(Informatie!$C$1)=2015,ROUND(T98*Parameters!$C$20,2),ROUND(G98*Parameters!$J$44,2))) ->  | W98: =IF(G98="","",ROUND(G98*Parameters!C$17,2)) ->  | X98: =IF(G98="","",ROUND(G98*VLOOKUP(J98,Parameters!E$4:G$49,3),2)) ->  | Y98: =IF(G98="","",ROUND(G98*Parameters!J$83,2)) -> 
E99: 0 | F99: =IF(C99="",0,IF(C99<=Parameters!$C$3,C99,Parameters!$C$3)) -> 0 | G99: =IF(C99="","",IF(F99<Parameters!$C$4,"",(F99-Parameters!$C$4)*D99)) ->  | I99: =IF(H99="","",YEAR(+Informatie!$C$1)-YEAR(H99)) ->  | K99: =IF(G99="","",ROUND(G99*Parameters!$C$12,2)) ->  | L99: =IF(G99="","",IF(YEAR(Informatie!$C$1)=2015,ROUND(G99*Parameters!$J$27,2),ROUND(G99*VLOOKUP('Overzicht deelnemers'!I99,Parameters!$E$4:$G$49,2,FALSE),2))) ->  | M99: =IF(G99="","",IF(YEAR(Informatie!$C$1)=2015,ROUND(L99*Parameters!$C$20,2),G99*Parameters!$J$27)) ->  | O99: =IF(G99="","",ROUND(G99*Parameters!$C$16,2)) ->  | P99: =IF(G99="","",ROUND(G99*VLOOKUP(J99,Parameters!$E$3:$F$49,2,FALSE),2)) ->  | Q99: =IF(G99="","",ROUND(G99*Parameters!$J$66,2)) ->  | S99: =IF(G99="","",ROUND(G99*Parameters!$C$13,2)) ->  | T99: =IF(G99="","",IF(YEAR(Informatie!$C$1)=2015,ROUND(G99*Parameters!J$44,2),ROUND(G99*VLOOKUP('Overzicht deelnemers'!I99,Parameters!$E$4:$G$49,3,FALSE),2))) ->  | U99: =IF(G99="","",IF(YEAR(Informatie!$C$1)=2015,ROUND(T99*Parameters!$C$20,2),ROUND(G99*Parameters!$J$44,2))) ->  | W99: =IF(G99="","",ROUND(G99*Parameters!C$17,2)) ->  | X99: =IF(G99="","",ROUND(G99*VLOOKUP(J99,Parameters!E$4:G$49,3),2)) ->  | Y99: =IF(G99="","",ROUND(G99*Parameters!J$83,2)) -> 
E100: 0 | F100: =IF(C100="",0,IF(C100<=Parameters!$C$3,C100,Parameters!$C$3)) -> 0 | G100: =IF(C100="","",IF(F100<Parameters!$C$4,"",(F100-Parameters!$C$4)*D100)) ->  | I100: =IF(H100="","",YEAR(+Informatie!$C$1)-YEAR(H100)) ->  | K100: =IF(G100="","",ROUND(G100*Parameters!$C$12,2)) ->  | L100: =IF(G100="","",IF(YEAR(Informatie!$C$1)=2015,ROUND(G100*Parameters!$J$27,2),ROUND(G100*VLOOKUP('Overzicht deelnemers'!I100,Parameters!$E$4:$G$49,2,FALSE),2))) ->  | M100: =IF(G100="","",IF(YEAR(Informatie!$C$1)=2015,ROUND(L100*Parameters!$C$20,2),G100*Parameters!$J$27)) ->  | O100: =IF(G100="","",ROUND(G100*Parameters!$C$16,2)) ->  | P100: =IF(G100="","",ROUND(G100*VLOOKUP(J100,Parameters!$E$3:$F$49,2,FALSE),2)) ->  | Q100: =IF(G100="","",ROUND(G100*Parameters!$J$66,2)) ->  | S100: =IF(G100="","",ROUND(G100*Parameters!$C$13,2)) ->  | T100: =IF(G100="","",IF(YEAR(Informatie!$C$1)=2015,ROUND(G100*Parameters!J$44,2),ROUND(G100*VLOOKUP('Overzicht deelnemers'!I100,Parameters!$E$4:$G$49,3,FALSE),2))) ->  | U100: =IF(G100="","",IF(YEAR(Informatie!$C$1)=2015,ROUND(T100*Parameters!$C$20,2),ROUND(G100*Parameters!$J$44,2))) ->  | W100: =IF(G100="","",ROUND(G100*Parameters!C$17,2)) ->  | X100: =IF(G100="","",ROUND(G100*VLOOKUP(J100,Parameters!E$4:G$49,3),2)) ->  | Y100: =IF(G100="","",ROUND(G100*Parameters!J$83,2)) -> 
E101: 0 | F101: =IF(C101="",0,IF(C101<=Parameters!$C$3,C101,Parameters!$C$3)) -> 0 | G101: =IF(C101="","",IF(F101<Parameters!$C$4,"",(F101-Parameters!$C$4)*D101)) ->  | I101: =IF(H101="","",YEAR(+Informatie!$C$1)-YEAR(H101)) ->  | K101: =IF(G101="","",ROUND(G101*Parameters!$C$12,2)) ->  | L101: =IF(G101="","",IF(YEAR(Informatie!$C$1)=2015,ROUND(G101*Parameters!$J$27,2),ROUND(G101*VLOOKUP('Overzicht deelnemers'!I101,Parameters!$E$4:$G$49,2,FALSE),2))) ->  | M101: =IF(G101="","",IF(YEAR(Informatie!$C$1)=2015,ROUND(L101*Parameters!$C$20,2),G101*Parameters!$J$27)) ->  | O101: =IF(G101="","",ROUND(G101*Parameters!$C$16,2)) ->  | P101: =IF(G101="","",ROUND(G101*VLOOKUP(J101,Parameters!$E$3:$F$49,2,FALSE),2)) ->  | Q101: =IF(G101="","",ROUND(G101*Parameters!$J$66,2)) ->  | S101: =IF(G101="","",ROUND(G101*Parameters!$C$13,2)) ->  | T101: =IF(G101="","",IF(YEAR(Informatie!$C$1)=2015,ROUND(G101*Parameters!J$44,2),ROUND(G101*VLOOKUP('Overzicht deelnemers'!I101,Parameters!$E$4:$G$49,3,FALSE),2))) ->  | U101: =IF(G101="","",IF(YEAR(Informatie!$C$1)=2015,ROUND(T101*Parameters!$C$20,2),ROUND(G101*Parameters!$J$44,2))) ->  | W101: =IF(G101="","",ROUND(G101*Parameters!C$17,2)) ->  | X101: =IF(G101="","",ROUND(G101*VLOOKUP(J101,Parameters!E$4:G$49,3),2)) ->  | Y101: =IF(G101="","",ROUND(G101*Parameters!J$83,2)) -> 
E102: 0 | F102: =IF(C102="",0,IF(C102<=Parameters!$C$3,C102,Parameters!$C$3)) -> 0 | G102: =IF(C102="","",IF(F102<Parameters!$C$4,"",(F102-Parameters!$C$4)*D102)) ->  | I102: =IF(H102="","",YEAR(+Informatie!$C$1)-YEAR(H102)) ->  | K102: =IF(G102="","",ROUND(G102*Parameters!$C$12,2)) ->  | L102: =IF(G102="","",IF(YEAR(Informatie!$C$1)=2015,ROUND(G102*Parameters!$J$27,2),ROUND(G102*VLOOKUP('Overzicht deelnemers'!I102,Parameters!$E$4:$G$49,2,FALSE),2))) ->  | M102: =IF(G102="","",IF(YEAR(Informatie!$C$1)=2015,ROUND(L102*Parameters!$C$20,2),G102*Parameters!$J$27)) ->  | O102: =IF(G102="","",ROUND(G102*Parameters!$C$16,2)) ->  | P102: =IF(G102="","",ROUND(G102*VLOOKUP(J102,Parameters!$E$3:$F$49,2,FALSE),2)) ->  | Q102: =IF(G102="","",ROUND(G102*Parameters!$J$66,2)) ->  | S102: =IF(G102="","",ROUND(G102*Parameters!$C$13,2)) ->  | T102: =IF(G102="","",IF(YEAR(Informatie!$C$1)=2015,ROUND(G102*Parameters!J$44,2),ROUND(G102*VLOOKUP('Overzicht deelnemers'!I102,Parameters!$E$4:$G$49,3,FALSE),2))) ->  | U102: =IF(G102="","",IF(YEAR(Informatie!$C$1)=2015,ROUND(T102*Parameters!$C$20,2),ROUND(G102*Parameters!$J$44,2))) ->  | W102: =IF(G102="","",ROUND(G102*Parameters!C$17,2)) ->  | X102: =IF(G102="","",ROUND(G102*VLOOKUP(J102,Parameters!E$4:G$49,3),2)) ->  | Y102: =IF(G102="","",ROUND(G102*Parameters!J$83,2)) -> 
E103: 0 | F103: =IF(C103="",0,IF(C103<=Parameters!$C$3,C103,Parameters!$C$3)) -> 0 | G103: =IF(C103="","",IF(F103<Parameters!$C$4,"",(F103-Parameters!$C$4)*D103)) ->  | I103: =IF(H103="","",YEAR(+Informatie!$C$1)-YEAR(H103)) ->  | K103: =IF(G103="","",ROUND(G103*Parameters!$C$12,2)) ->  | L103: =IF(G103="","",IF(YEAR(Informatie!$C$1)=2015,ROUND(G103*Parameters!$J$27,2),ROUND(G103*VLOOKUP('Overzicht deelnemers'!I103,Parameters!$E$4:$G$49,2,FALSE),2))) ->  | M103: =IF(G103="","",IF(YEAR(Informatie!$C$1)=2015,ROUND(L103*Parameters!$C$20,2),G103*Parameters!$J$27)) ->  | O103: =IF(G103="","",ROUND(G103*Parameters!$C$16,2)) ->  | P103: =IF(G103="","",ROUND(G103*VLOOKUP(J103,Parameters!$E$3:$F$49,2,FALSE),2)) ->  | Q103: =IF(G103="","",ROUND(G103*Parameters!$J$66,2)) ->  | S103: =IF(G103="","",ROUND(G103*Parameters!$C$13,2)) ->  | T103: =IF(G103="","",IF(YEAR(Informatie!$C$1)=2015,ROUND(G103*Parameters!J$44,2),ROUND(G103*VLOOKUP('Overzicht deelnemers'!I103,Parameters!$E$4:$G$49,3,FALSE),2))) ->  | U103: =IF(G103="","",IF(YEAR(Informatie!$C$1)=2015,ROUND(T103*Parameters!$C$20,2),ROUND(G103*Parameters!$J$44,2))) ->  | W103: =IF(G103="","",ROUND(G103*Parameters!C$17,2)) ->  | X103: =IF(G103="","",ROUND(G103*VLOOKUP(J103,Parameters!E$4:G$49,3),2)) ->  | Y103: =IF(G103="","",ROUND(G103*Parameters!J$83,2)) -> 
E104: 0 | F104: =IF(C104="",0,IF(C104<=Parameters!$C$3,C104,Parameters!$C$3)) -> 0 | G104: =IF(C104="","",IF(F104<Parameters!$C$4,"",(F104-Parameters!$C$4)*D104)) ->  | I104: =IF(H104="","",YEAR(+Informatie!$C$1)-YEAR(H104)) ->  | K104: =IF(G104="","",ROUND(G104*Parameters!$C$12,2)) ->  | L104: =IF(G104="","",IF(YEAR(Informatie!$C$1)=2015,ROUND(G104*Parameters!$J$27,2),ROUND(G104*VLOOKUP('Overzicht deelnemers'!I104,Parameters!$E$4:$G$49,2,FALSE),2))) ->  | M104: =IF(G104="","",IF(YEAR(Informatie!$C$1)=2015,ROUND(L104*Parameters!$C$20,2),G104*Parameters!$J$27)) ->  | O104: =IF(G104="","",ROUND(G104*Parameters!$C$16,2)) ->  | P104: =IF(G104="","",ROUND(G104*VLOOKUP(J104,Parameters!$E$3:$F$49,2,FALSE),2)) ->  | Q104: =IF(G104="","",ROUND(G104*Parameters!$J$66,2)) ->  | S104: =IF(G104="","",ROUND(G104*Parameters!$C$13,2)) ->  | T104: =IF(G104="","",IF(YEAR(Informatie!$C$1)=2015,ROUND(G104*Parameters!J$44,2),ROUND(G104*VLOOKUP('Overzicht deelnemers'!I104,Parameters!$E$4:$G$49,3,FALSE),2))) ->  | U104: =IF(G104="","",IF(YEAR(Informatie!$C$1)=2015,ROUND(T104*Parameters!$C$20,2),ROUND(G104*Parameters!$J$44,2))) ->  | W104: =IF(G104="","",ROUND(G104*Parameters!C$17,2)) ->  | X104: =IF(G104="","",ROUND(G104*VLOOKUP(J104,Parameters!E$4:G$49,3),2)) ->  | Y104: =IF(G104="","",ROUND(G104*Parameters!J$83,2)) -> 
E105: 0 | F105: =IF(C105="",0,IF(C105<=Parameters!$C$3,C105,Parameters!$C$3)) -> 0 | G105: =IF(C105="","",IF(F105<Parameters!$C$4,"",(F105-Parameters!$C$4)*D105)) ->  | I105: =IF(H105="","",YEAR(+Informatie!$C$1)-YEAR(H105)) ->  | K105: =IF(G105="","",ROUND(G105*Parameters!$C$12,2)) ->  | L105: =IF(G105="","",IF(YEAR(Informatie!$C$1)=2015,ROUND(G105*Parameters!$J$27,2),ROUND(G105*VLOOKUP('Overzicht deelnemers'!I105,Parameters!$E$4:$G$49,2,FALSE),2))) ->  | M105: =IF(G105="","",IF(YEAR(Informatie!$C$1)=2015,ROUND(L105*Parameters!$C$20,2),G105*Parameters!$J$27)) ->  | O105: =IF(G105="","",ROUND(G105*Parameters!$C$16,2)) ->  | P105: =IF(G105="","",ROUND(G105*VLOOKUP(J105,Parameters!$E$3:$F$49,2,FALSE),2)) ->  | Q105: =IF(G105="","",ROUND(G105*Parameters!$J$66,2)) ->  | S105: =IF(G105="","",ROUND(G105*Parameters!$C$13,2)) ->  | T105: =IF(G105="","",IF(YEAR(Informatie!$C$1)=2015,ROUND(G105*Parameters!J$44,2),ROUND(G105*VLOOKUP('Overzicht deelnemers'!I105,Parameters!$E$4:$G$49,3,FALSE),2))) ->  | U105: =IF(G105="","",IF(YEAR(Informatie!$C$1)=2015,ROUND(T105*Parameters!$C$20,2),ROUND(G105*Parameters!$J$44,2))) ->  | W105: =IF(G105="","",ROUND(G105*Parameters!C$17,2)) ->  | X105: =IF(G105="","",ROUND(G105*VLOOKUP(J105,Parameters!E$4:G$49,3),2)) ->  | Y105: =IF(G105="","",ROUND(G105*Parameters!J$83,2)) -> 
E106: 0 | F106: =IF(C106="",0,IF(C106<=Parameters!$C$3,C106,Parameters!$C$3)) -> 0 | G106: =IF(C106="","",IF(F106<Parameters!$C$4,"",(F106-Parameters!$C$4)*D106)) ->  | I106: =IF(H106="","",YEAR(+Informatie!$C$1)-YEAR(H106)) ->  | K106: =IF(G106="","",ROUND(G106*Parameters!$C$12,2)) ->  | L106: =IF(G106="","",IF(YEAR(Informatie!$C$1)=2015,ROUND(G106*Parameters!$J$27,2),ROUND(G106*VLOOKUP('Overzicht deelnemers'!I106,Parameters!$E$4:$G$49,2,FALSE),2))) ->  | M106: =IF(G106="","",IF(YEAR(Informatie!$C$1)=2015,ROUND(L106*Parameters!$C$20,2),G106*Parameters!$J$27)) ->  | O106: =IF(G106="","",ROUND(G106*Parameters!$C$16,2)) ->  | P106: =IF(G106="","",ROUND(G106*VLOOKUP(J106,Parameters!$E$3:$F$49,2,FALSE),2)) ->  | Q106: =IF(G106="","",ROUND(G106*Parameters!$J$66,2)) ->  | S106: =IF(G106="","",ROUND(G106*Parameters!$C$13,2)) ->  | T106: =IF(G106="","",IF(YEAR(Informatie!$C$1)=2015,ROUND(G106*Parameters!J$44,2),ROUND(G106*VLOOKUP('Overzicht deelnemers'!I106,Parameters!$E$4:$G$49,3,FALSE),2))) ->  | U106: =IF(G106="","",IF(YEAR(Informatie!$C$1)=2015,ROUND(T106*Parameters!$C$20,2),ROUND(G106*Parameters!$J$44,2))) ->  | W106: =IF(G106="","",ROUND(G106*Parameters!C$17,2)) ->  | X106: =IF(G106="","",ROUND(G106*VLOOKUP(J106,Parameters!E$4:G$49,3),2)) ->  | Y106: =IF(G106="","",ROUND(G106*Parameters!J$83,2)) -> 
E107: 0 | F107: =IF(C107="",0,IF(C107<=Parameters!$C$3,C107,Parameters!$C$3)) -> 0 | G107: =IF(C107="","",IF(F107<Parameters!$C$4,"",(F107-Parameters!$C$4)*D107)) ->  | I107: =IF(H107="","",YEAR(+Informatie!$C$1)-YEAR(H107)) ->  | K107: =IF(G107="","",ROUND(G107*Parameters!$C$12,2)) ->  | L107: =IF(G107="","",IF(YEAR(Informatie!$C$1)=2015,ROUND(G107*Parameters!$J$27,2),ROUND(G107*VLOOKUP('Overzicht deelnemers'!I107,Parameters!$E$4:$G$49,2,FALSE),2))) ->  | M107: =IF(G107="","",IF(YEAR(Informatie!$C$1)=2015,ROUND(L107*Parameters!$C$20,2),G107*Parameters!$J$27)) ->  | O107: =IF(G107="","",ROUND(G107*Parameters!$C$16,2)) ->  | P107: =IF(G107="","",ROUND(G107*VLOOKUP(J107,Parameters!$E$3:$F$49,2,FALSE),2)) ->  | Q107: =IF(G107="","",ROUND(G107*Parameters!$J$66,2)) ->  | S107: =IF(G107="","",ROUND(G107*Parameters!$C$13,2)) ->  | T107: =IF(G107="","",IF(YEAR(Informatie!$C$1)=2015,ROUND(G107*Parameters!J$44,2),ROUND(G107*VLOOKUP('Overzicht deelnemers'!I107,Parameters!$E$4:$G$49,3,FALSE),2))) ->  | U107: =IF(G107="","",IF(YEAR(Informatie!$C$1)=2015,ROUND(T107*Parameters!$C$20,2),ROUND(G107*Parameters!$J$44,2))) ->  | W107: =IF(G107="","",ROUND(G107*Parameters!C$17,2)) ->  | X107: =IF(G107="","",ROUND(G107*VLOOKUP(J107,Parameters!E$4:G$49,3),2)) ->  | Y107: =IF(G107="","",ROUND(G107*Parameters!J$83,2)) -> 
E108: 0 | F108: =IF(C108="",0,IF(C108<=Parameters!$C$3,C108,Parameters!$C$3)) -> 0 | G108: =IF(C108="","",IF(F108<Parameters!$C$4,"",(F108-Parameters!$C$4)*D108)) ->  | I108: =IF(H108="","",YEAR(+Informatie!$C$1)-YEAR(H108)) ->  | K108: =IF(G108="","",ROUND(G108*Parameters!$C$12,2)) ->  | L108: =IF(G108="","",IF(YEAR(Informatie!$C$1)=2015,ROUND(G108*Parameters!$J$27,2),ROUND(G108*VLOOKUP('Overzicht deelnemers'!I108,Parameters!$E$4:$G$49,2,FALSE),2))) ->  | M108: =IF(G108="","",IF(YEAR(Informatie!$C$1)=2015,ROUND(L108*Parameters!$C$20,2),G108*Parameters!$J$27)) ->  | O108: =IF(G108="","",ROUND(G108*Parameters!$C$16,2)) ->  | P108: =IF(G108="","",ROUND(G108*VLOOKUP(J108,Parameters!$E$3:$F$49,2,FALSE),2)) ->  | Q108: =IF(G108="","",ROUND(G108*Parameters!$J$66,2)) ->  | S108: =IF(G108="","",ROUND(G108*Parameters!$C$13,2)) ->  | T108: =IF(G108="","",IF(YEAR(Informatie!$C$1)=2015,ROUND(G108*Parameters!J$44,2),ROUND(G108*VLOOKUP('Overzicht deelnemers'!I108,Parameters!$E$4:$G$49,3,FALSE),2))) ->  | U108: =IF(G108="","",IF(YEAR(Informatie!$C$1)=2015,ROUND(T108*Parameters!$C$20,2),ROUND(G108*Parameters!$J$44,2))) ->  | W108: =IF(G108="","",ROUND(G108*Parameters!C$17,2)) ->  | X108: =IF(G108="","",ROUND(G108*VLOOKUP(J108,Parameters!E$4:G$49,3),2)) ->  | Y108: =IF(G108="","",ROUND(G108*Parameters!J$83,2)) -> 
E109: 0 | F109: =IF(C109="",0,IF(C109<=Parameters!$C$3,C109,Parameters!$C$3)) -> 0 | G109: =IF(C109="","",IF(F109<Parameters!$C$4,"",(F109-Parameters!$C$4)*D109)) ->  | I109: =IF(H109="","",YEAR(+Informatie!$C$1)-YEAR(H109)) ->  | K109: =IF(G109="","",ROUND(G109*Parameters!$C$12,2)) ->  | L109: =IF(G109="","",IF(YEAR(Informatie!$C$1)=2015,ROUND(G109*Parameters!$J$27,2),ROUND(G109*VLOOKUP('Overzicht deelnemers'!I109,Parameters!$E$4:$G$49,2,FALSE),2))) ->  | M109: =IF(G109="","",IF(YEAR(Informatie!$C$1)=2015,ROUND(L109*Parameters!$C$20,2),G109*Parameters!$J$27)) ->  | O109: =IF(G109="","",ROUND(G109*Parameters!$C$16,2)) ->  | P109: =IF(G109="","",ROUND(G109*VLOOKUP(J109,Parameters!$E$3:$F$49,2,FALSE),2)) ->  | Q109: =IF(G109="","",ROUND(G109*Parameters!$J$66,2)) ->  | S109: =IF(G109="","",ROUND(G109*Parameters!$C$13,2)) ->  | T109: =IF(G109="","",IF(YEAR(Informatie!$C$1)=2015,ROUND(G109*Parameters!J$44,2),ROUND(G109*VLOOKUP('Overzicht deelnemers'!I109,Parameters!$E$4:$G$49,3,FALSE),2))) ->  | U109: =IF(G109="","",IF(YEAR(Informatie!$C$1)=2015,ROUND(T109*Parameters!$C$20,2),ROUND(G109*Parameters!$J$44,2))) ->  | W109: =IF(G109="","",ROUND(G109*Parameters!C$17,2)) ->  | X109: =IF(G109="","",ROUND(G109*VLOOKUP(J109,Parameters!E$4:G$49,3),2)) ->  | Y109: =IF(G109="","",ROUND(G109*Parameters!J$83,2)) -> 
E110: 0 | F110: =IF(C110="",0,IF(C110<=Parameters!$C$3,C110,Parameters!$C$3)) -> 0 | G110: =IF(C110="","",IF(F110<Parameters!$C$4,"",(F110-Parameters!$C$4)*D110)) ->  | I110: =IF(H110="","",YEAR(+Informatie!$C$1)-YEAR(H110)) ->  | K110: =IF(G110="","",ROUND(G110*Parameters!$C$12,2)) ->  | L110: =IF(G110="","",IF(YEAR(Informatie!$C$1)=2015,ROUND(G110*Parameters!$J$27,2),ROUND(G110*VLOOKUP('Overzicht deelnemers'!I110,Parameters!$E$4:$G$49,2,FALSE),2))) ->  | M110: =IF(G110="","",IF(YEAR(Informatie!$C$1)=2015,ROUND(L110*Parameters!$C$20,2),G110*Parameters!$J$27)) ->  | O110: =IF(G110="","",ROUND(G110*Parameters!$C$16,2)) ->  | P110: =IF(G110="","",ROUND(G110*VLOOKUP(J110,Parameters!$E$3:$F$49,2,FALSE),2)) ->  | Q110: =IF(G110="","",ROUND(G110*Parameters!$J$66,2)) ->  | S110: =IF(G110="","",ROUND(G110*Parameters!$C$13,2)) ->  | T110: =IF(G110="","",IF(YEAR(Informatie!$C$1)=2015,ROUND(G110*Parameters!J$44,2),ROUND(G110*VLOOKUP('Overzicht deelnemers'!I110,Parameters!$E$4:$G$49,3,FALSE),2))) ->  | U110: =IF(G110="","",IF(YEAR(Informatie!$C$1)=2015,ROUND(T110*Parameters!$C$20,2),ROUND(G110*Parameters!$J$44,2))) ->  | W110: =IF(G110="","",ROUND(G110*Parameters!C$17,2)) ->  | X110: =IF(G110="","",ROUND(G110*VLOOKUP(J110,Parameters!E$4:G$49,3),2)) ->  | Y110: =IF(G110="","",ROUND(G110*Parameters!J$83,2)) -> 
E111: 0 | F111: =IF(C111="",0,IF(C111<=Parameters!$C$3,C111,Parameters!$C$3)) -> 0 | G111: =IF(C111="","",IF(F111<Parameters!$C$4,"",(F111-Parameters!$C$4)*D111)) ->  | I111: =IF(H111="","",YEAR(+Informatie!$C$1)-YEAR(H111)) ->  | K111: =IF(G111="","",ROUND(G111*Parameters!$C$12,2)) ->  | L111: =IF(G111="","",IF(YEAR(Informatie!$C$1)=2015,ROUND(G111*Parameters!$J$27,2),ROUND(G111*VLOOKUP('Overzicht deelnemers'!I111,Parameters!$E$4:$G$49,2,FALSE),2))) ->  | M111: =IF(G111="","",IF(YEAR(Informatie!$C$1)=2015,ROUND(L111*Parameters!$C$20,2),G111*Parameters!$J$27)) ->  | O111: =IF(G111="","",ROUND(G111*Parameters!$C$16,2)) ->  | P111: =IF(G111="","",ROUND(G111*VLOOKUP(J111,Parameters!$E$3:$F$49,2,FALSE),2)) ->  | Q111: =IF(G111="","",ROUND(G111*Parameters!$J$66,2)) ->  | S111: =IF(G111="","",ROUND(G111*Parameters!$C$13,2)) ->  | T111: =IF(G111="","",IF(YEAR(Informatie!$C$1)=2015,ROUND(G111*Parameters!J$44,2),ROUND(G111*VLOOKUP('Overzicht deelnemers'!I111,Parameters!$E$4:$G$49,3,FALSE),2))) ->  | U111: =IF(G111="","",IF(YEAR(Informatie!$C$1)=2015,ROUND(T111*Parameters!$C$20,2),ROUND(G111*Parameters!$J$44,2))) ->  | W111: =IF(G111="","",ROUND(G111*Parameters!C$17,2)) ->  | X111: =IF(G111="","",ROUND(G111*VLOOKUP(J111,Parameters!E$4:G$49,3),2)) ->  | Y111: =IF(G111="","",ROUND(G111*Parameters!J$83,2)) -> 
E112: 0 | F112: =IF(C112="",0,IF(C112<=Parameters!$C$3,C112,Parameters!$C$3)) -> 0 | G112: =IF(C112="","",IF(F112<Parameters!$C$4,"",(F112-Parameters!$C$4)*D112)) ->  | I112: =IF(H112="","",YEAR(+Informatie!$C$1)-YEAR(H112)) ->  | K112: =IF(G112="","",ROUND(G112*Parameters!$C$12,2)) ->  | L112: =IF(G112="","",IF(YEAR(Informatie!$C$1)=2015,ROUND(G112*Parameters!$J$27,2),ROUND(G112*VLOOKUP('Overzicht deelnemers'!I112,Parameters!$E$4:$G$49,2,FALSE),2))) ->  | M112: =IF(G112="","",IF(YEAR(Informatie!$C$1)=2015,ROUND(L112*Parameters!$C$20,2),G112*Parameters!$J$27)) ->  | O112: =IF(G112="","",ROUND(G112*Parameters!$C$16,2)) ->  | P112: =IF(G112="","",ROUND(G112*VLOOKUP(J112,Parameters!$E$3:$F$49,2,FALSE),2)) ->  | Q112: =IF(G112="","",ROUND(G112*Parameters!$J$66,2)) ->  | S112: =IF(G112="","",ROUND(G112*Parameters!$C$13,2)) ->  | T112: =IF(G112="","",IF(YEAR(Informatie!$C$1)=2015,ROUND(G112*Parameters!J$44,2),ROUND(G112*VLOOKUP('Overzicht deelnemers'!I112,Parameters!$E$4:$G$49,3,FALSE),2))) ->  | U112: =IF(G112="","",IF(YEAR(Informatie!$C$1)=2015,ROUND(T112*Parameters!$C$20,2),ROUND(G112*Parameters!$J$44,2))) ->  | W112: =IF(G112="","",ROUND(G112*Parameters!C$17,2)) ->  | X112: =IF(G112="","",ROUND(G112*VLOOKUP(J112,Parameters!E$4:G$49,3),2)) ->  | Y112: =IF(G112="","",ROUND(G112*Parameters!J$83,2)) -> 
E113: 0 | F113: =IF(C113="",0,IF(C113<=Parameters!$C$3,C113,Parameters!$C$3)) -> 0 | G113: =IF(C113="","",IF(F113<Parameters!$C$4,"",(F113-Parameters!$C$4)*D113)) ->  | I113: =IF(H113="","",YEAR(+Informatie!$C$1)-YEAR(H113)) ->  | K113: =IF(G113="","",ROUND(G113*Parameters!$C$12,2)) ->  | L113: =IF(G113="","",IF(YEAR(Informatie!$C$1)=2015,ROUND(G113*Parameters!$J$27,2),ROUND(G113*VLOOKUP('Overzicht deelnemers'!I113,Parameters!$E$4:$G$49,2,FALSE),2))) ->  | M113: =IF(G113="","",IF(YEAR(Informatie!$C$1)=2015,ROUND(L113*Parameters!$C$20,2),G113*Parameters!$J$27)) ->  | O113: =IF(G113="","",ROUND(G113*Parameters!$C$16,2)) ->  | P113: =IF(G113="","",ROUND(G113*VLOOKUP(J113,Parameters!$E$3:$F$49,2,FALSE),2)) ->  | Q113: =IF(G113="","",ROUND(G113*Parameters!$J$66,2)) ->  | S113: =IF(G113="","",ROUND(G113*Parameters!$C$13,2)) ->  | T113: =IF(G113="","",IF(YEAR(Informatie!$C$1)=2015,ROUND(G113*Parameters!J$44,2),ROUND(G113*VLOOKUP('Overzicht deelnemers'!I113,Parameters!$E$4:$G$49,3,FALSE),2))) ->  | U113: =IF(G113="","",IF(YEAR(Informatie!$C$1)=2015,ROUND(T113*Parameters!$C$20,2),ROUND(G113*Parameters!$J$44,2))) ->  | W113: =IF(G113="","",ROUND(G113*Parameters!C$17,2)) ->  | X113: =IF(G113="","",ROUND(G113*VLOOKUP(J113,Parameters!E$4:G$49,3),2)) ->  | Y113: =IF(G113="","",ROUND(G113*Parameters!J$83,2)) -> 
E114: 0 | F114: =IF(C114="",0,IF(C114<=Parameters!$C$3,C114,Parameters!$C$3)) -> 0 | G114: =IF(C114="","",IF(F114<Parameters!$C$4,"",(F114-Parameters!$C$4)*D114)) ->  | I114: =IF(H114="","",YEAR(+Informatie!$C$1)-YEAR(H114)) ->  | K114: =IF(G114="","",ROUND(G114*Parameters!$C$12,2)) ->  | L114: =IF(G114="","",IF(YEAR(Informatie!$C$1)=2015,ROUND(G114*Parameters!$J$27,2),ROUND(G114*VLOOKUP('Overzicht deelnemers'!I114,Parameters!$E$4:$G$49,2,FALSE),2))) ->  | M114: =IF(G114="","",IF(YEAR(Informatie!$C$1)=2015,ROUND(L114*Parameters!$C$20,2),G114*Parameters!$J$27)) ->  | O114: =IF(G114="","",ROUND(G114*Parameters!$C$16,2)) ->  | P114: =IF(G114="","",ROUND(G114*VLOOKUP(J114,Parameters!$E$3:$F$49,2,FALSE),2)) ->  | Q114: =IF(G114="","",ROUND(G114*Parameters!$J$66,2)) ->  | S114: =IF(G114="","",ROUND(G114*Parameters!$C$13,2)) ->  | T114: =IF(G114="","",IF(YEAR(Informatie!$C$1)=2015,ROUND(G114*Parameters!J$44,2),ROUND(G114*VLOOKUP('Overzicht deelnemers'!I114,Parameters!$E$4:$G$49,3,FALSE),2))) ->  | U114: =IF(G114="","",IF(YEAR(Informatie!$C$1)=2015,ROUND(T114*Parameters!$C$20,2),ROUND(G114*Parameters!$J$44,2))) ->  | W114: =IF(G114="","",ROUND(G114*Parameters!C$17,2)) ->  | X114: =IF(G114="","",ROUND(G114*VLOOKUP(J114,Parameters!E$4:G$49,3),2)) ->  | Y114: =IF(G114="","",ROUND(G114*Parameters!J$83,2)) -> 
E115: 0 | F115: =IF(C115="",0,IF(C115<=Parameters!$C$3,C115,Parameters!$C$3)) -> 0 | G115: =IF(C115="","",IF(F115<Parameters!$C$4,"",(F115-Parameters!$C$4)*D115)) ->  | I115: =IF(H115="","",YEAR(+Informatie!$C$1)-YEAR(H115)) ->  | K115: =IF(G115="","",ROUND(G115*Parameters!$C$12,2)) ->  | L115: =IF(G115="","",IF(YEAR(Informatie!$C$1)=2015,ROUND(G115*Parameters!$J$27,2),ROUND(G115*VLOOKUP('Overzicht deelnemers'!I115,Parameters!$E$4:$G$49,2,FALSE),2))) ->  | M115: =IF(G115="","",IF(YEAR(Informatie!$C$1)=2015,ROUND(L115*Parameters!$C$20,2),G115*Parameters!$J$27)) ->  | O115: =IF(G115="","",ROUND(G115*Parameters!$C$16,2)) ->  | P115: =IF(G115="","",ROUND(G115*VLOOKUP(J115,Parameters!$E$3:$F$49,2,FALSE),2)) ->  | Q115: =IF(G115="","",ROUND(G115*Parameters!$J$66,2)) ->  | S115: =IF(G115="","",ROUND(G115*Parameters!$C$13,2)) ->  | T115: =IF(G115="","",IF(YEAR(Informatie!$C$1)=2015,ROUND(G115*Parameters!J$44,2),ROUND(G115*VLOOKUP('Overzicht deelnemers'!I115,Parameters!$E$4:$G$49,3,FALSE),2))) ->  | U115: =IF(G115="","",IF(YEAR(Informatie!$C$1)=2015,ROUND(T115*Parameters!$C$20,2),ROUND(G115*Parameters!$J$44,2))) ->  | W115: =IF(G115="","",ROUND(G115*Parameters!C$17,2)) ->  | X115: =IF(G115="","",ROUND(G115*VLOOKUP(J115,Parameters!E$4:G$49,3),2)) ->  | Y115: =IF(G115="","",ROUND(G115*Parameters!J$83,2)) -> 
E116: 0 | F116: =IF(C116="",0,IF(C116<=Parameters!$C$3,C116,Parameters!$C$3)) -> 0 | G116: =IF(C116="","",IF(F116<Parameters!$C$4,"",(F116-Parameters!$C$4)*D116)) ->  | I116: =IF(H116="","",YEAR(+Informatie!$C$1)-YEAR(H116)) ->  | K116: =IF(G116="","",ROUND(G116*Parameters!$C$12,2)) ->  | L116: =IF(G116="","",IF(YEAR(Informatie!$C$1)=2015,ROUND(G116*Parameters!$J$27,2),ROUND(G116*VLOOKUP('Overzicht deelnemers'!I116,Parameters!$E$4:$G$49,2,FALSE),2))) ->  | M116: =IF(G116="","",IF(YEAR(Informatie!$C$1)=2015,ROUND(L116*Parameters!$C$20,2),G116*Parameters!$J$27)) ->  | O116: =IF(G116="","",ROUND(G116*Parameters!$C$16,2)) ->  | P116: =IF(G116="","",ROUND(G116*VLOOKUP(J116,Parameters!$E$3:$F$49,2,FALSE),2)) ->  | Q116: =IF(G116="","",ROUND(G116*Parameters!$J$66,2)) ->  | S116: =IF(G116="","",ROUND(G116*Parameters!$C$13,2)) ->  | T116: =IF(G116="","",IF(YEAR(Informatie!$C$1)=2015,ROUND(G116*Parameters!J$44,2),ROUND(G116*VLOOKUP('Overzicht deelnemers'!I116,Parameters!$E$4:$G$49,3,FALSE),2))) ->  | U116: =IF(G116="","",IF(YEAR(Informatie!$C$1)=2015,ROUND(T116*Parameters!$C$20,2),ROUND(G116*Parameters!$J$44,2))) ->  | W116: =IF(G116="","",ROUND(G116*Parameters!C$17,2)) ->  | X116: =IF(G116="","",ROUND(G116*VLOOKUP(J116,Parameters!E$4:G$49,3),2)) ->  | Y116: =IF(G116="","",ROUND(G116*Parameters!J$83,2)) -> 
E117: 0 | F117: =IF(C117="",0,IF(C117<=Parameters!$C$3,C117,Parameters!$C$3)) -> 0 | G117: =IF(C117="","",IF(F117<Parameters!$C$4,"",(F117-Parameters!$C$4)*D117)) ->  | I117: =IF(H117="","",YEAR(+Informatie!$C$1)-YEAR(H117)) ->  | K117: =IF(G117="","",ROUND(G117*Parameters!$C$12,2)) ->  | L117: =IF(G117="","",IF(YEAR(Informatie!$C$1)=2015,ROUND(G117*Parameters!$J$27,2),ROUND(G117*VLOOKUP('Overzicht deelnemers'!I117,Parameters!$E$4:$G$49,2,FALSE),2))) ->  | M117: =IF(G117="","",IF(YEAR(Informatie!$C$1)=2015,ROUND(L117*Parameters!$C$20,2),G117*Parameters!$J$27)) ->  | O117: =IF(G117="","",ROUND(G117*Parameters!$C$16,2)) ->  | P117: =IF(G117="","",ROUND(G117*VLOOKUP(J117,Parameters!$E$3:$F$49,2,FALSE),2)) ->  | Q117: =IF(G117="","",ROUND(G117*Parameters!$J$66,2)) ->  | S117: =IF(G117="","",ROUND(G117*Parameters!$C$13,2)) ->  | T117: =IF(G117="","",IF(YEAR(Informatie!$C$1)=2015,ROUND(G117*Parameters!J$44,2),ROUND(G117*VLOOKUP('Overzicht deelnemers'!I117,Parameters!$E$4:$G$49,3,FALSE),2))) ->  | U117: =IF(G117="","",IF(YEAR(Informatie!$C$1)=2015,ROUND(T117*Parameters!$C$20,2),ROUND(G117*Parameters!$J$44,2))) ->  | W117: =IF(G117="","",ROUND(G117*Parameters!C$17,2)) ->  | X117: =IF(G117="","",ROUND(G117*VLOOKUP(J117,Parameters!E$4:G$49,3),2)) ->  | Y117: =IF(G117="","",ROUND(G117*Parameters!J$83,2)) -> 
E118: 0 | F118: =IF(C118="",0,IF(C118<=Parameters!$C$3,C118,Parameters!$C$3)) -> 0 | G118: =IF(C118="","",IF(F118<Parameters!$C$4,"",(F118-Parameters!$C$4)*D118)) ->  | I118: =IF(H118="","",YEAR(+Informatie!$C$1)-YEAR(H118)) ->  | K118: =IF(G118="","",ROUND(G118*Parameters!$C$12,2)) ->  | L118: =IF(G118="","",IF(YEAR(Informatie!$C$1)=2015,ROUND(G118*Parameters!$J$27,2),ROUND(G118*VLOOKUP('Overzicht deelnemers'!I118,Parameters!$E$4:$G$49,2,FALSE),2))) ->  | M118: =IF(G118="","",IF(YEAR(Informatie!$C$1)=2015,ROUND(L118*Parameters!$C$20,2),G118*Parameters!$J$27)) ->  | O118: =IF(G118="","",ROUND(G118*Parameters!$C$16,2)) ->  | P118: =IF(G118="","",ROUND(G118*VLOOKUP(J118,Parameters!$E$3:$F$49,2,FALSE),2)) ->  | Q118: =IF(G118="","",ROUND(G118*Parameters!$J$66,2)) ->  | S118: =IF(G118="","",ROUND(G118*Parameters!$C$13,2)) ->  | T118: =IF(G118="","",IF(YEAR(Informatie!$C$1)=2015,ROUND(G118*Parameters!J$44,2),ROUND(G118*VLOOKUP('Overzicht deelnemers'!I118,Parameters!$E$4:$G$49,3,FALSE),2))) ->  | U118: =IF(G118="","",IF(YEAR(Informatie!$C$1)=2015,ROUND(T118*Parameters!$C$20,2),ROUND(G118*Parameters!$J$44,2))) ->  | W118: =IF(G118="","",ROUND(G118*Parameters!C$17,2)) ->  | X118: =IF(G118="","",ROUND(G118*VLOOKUP(J118,Parameters!E$4:G$49,3),2)) ->  | Y118: =IF(G118="","",ROUND(G118*Parameters!J$83,2)) -> 
E119: 0 | F119: =IF(C119="",0,IF(C119<=Parameters!$C$3,C119,Parameters!$C$3)) -> 0 | G119: =IF(C119="","",IF(F119<Parameters!$C$4,"",(F119-Parameters!$C$4)*D119)) ->  | I119: =IF(H119="","",YEAR(+Informatie!$C$1)-YEAR(H119)) ->  | K119: =IF(G119="","",ROUND(G119*Parameters!$C$12,2)) ->  | L119: =IF(G119="","",IF(YEAR(Informatie!$C$1)=2015,ROUND(G119*Parameters!$J$27,2),ROUND(G119*VLOOKUP('Overzicht deelnemers'!I119,Parameters!$E$4:$G$49,2,FALSE),2))) ->  | M119: =IF(G119="","",IF(YEAR(Informatie!$C$1)=2015,ROUND(L119*Parameters!$C$20,2),G119*Parameters!$J$27)) ->  | O119: =IF(G119="","",ROUND(G119*Parameters!$C$16,2)) ->  | P119: =IF(G119="","",ROUND(G119*VLOOKUP(J119,Parameters!$E$3:$F$49,2,FALSE),2)) ->  | Q119: =IF(G119="","",ROUND(G119*Parameters!$J$66,2)) ->  | S119: =IF(G119="","",ROUND(G119*Parameters!$C$13,2)) ->  | T119: =IF(G119="","",IF(YEAR(Informatie!$C$1)=2015,ROUND(G119*Parameters!J$44,2),ROUND(G119*VLOOKUP('Overzicht deelnemers'!I119,Parameters!$E$4:$G$49,3,FALSE),2))) ->  | U119: =IF(G119="","",IF(YEAR(Informatie!$C$1)=2015,ROUND(T119*Parameters!$C$20,2),ROUND(G119*Parameters!$J$44,2))) ->  | W119: =IF(G119="","",ROUND(G119*Parameters!C$17,2)) ->  | X119: =IF(G119="","",ROUND(G119*VLOOKUP(J119,Parameters!E$4:G$49,3),2)) ->  | Y119: =IF(G119="","",ROUND(G119*Parameters!J$83,2)) -> 
E120: 0 | F120: =IF(C120="",0,IF(C120<=Parameters!$C$3,C120,Parameters!$C$3)) -> 0 | G120: =IF(C120="","",IF(F120<Parameters!$C$4,"",(F120-Parameters!$C$4)*D120)) ->  | I120: =IF(H120="","",YEAR(+Informatie!$C$1)-YEAR(H120)) ->  | K120: =IF(G120="","",ROUND(G120*Parameters!$C$12,2)) ->  | L120: =IF(G120="","",IF(YEAR(Informatie!$C$1)=2015,ROUND(G120*Parameters!$J$27,2),ROUND(G120*VLOOKUP('Overzicht deelnemers'!I120,Parameters!$E$4:$G$49,2,FALSE),2))) ->  | M120: =IF(G120="","",IF(YEAR(Informatie!$C$1)=2015,ROUND(L120*Parameters!$C$20,2),G120*Parameters!$J$27)) ->  | O120: =IF(G120="","",ROUND(G120*Parameters!$C$16,2)) ->  | P120: =IF(G120="","",ROUND(G120*VLOOKUP(J120,Parameters!$E$3:$F$49,2,FALSE),2)) ->  | Q120: =IF(G120="","",ROUND(G120*Parameters!$J$66,2)) ->  | S120: =IF(G120="","",ROUND(G120*Parameters!$C$13,2)) ->  | T120: =IF(G120="","",IF(YEAR(Informatie!$C$1)=2015,ROUND(G120*Parameters!J$44,2),ROUND(G120*VLOOKUP('Overzicht deelnemers'!I120,Parameters!$E$4:$G$49,3,FALSE),2))) ->  | U120: =IF(G120="","",IF(YEAR(Informatie!$C$1)=2015,ROUND(T120*Parameters!$C$20,2),ROUND(G120*Parameters!$J$44,2))) ->  | W120: =IF(G120="","",ROUND(G120*Parameters!C$17,2)) ->  | X120: =IF(G120="","",ROUND(G120*VLOOKUP(J120,Parameters!E$4:G$49,3),2)) ->  | Y120: =IF(G120="","",ROUND(G120*Parameters!J$83,2)) -> 
E121: 0 | F121: =IF(C121="",0,IF(C121<=Parameters!$C$3,C121,Parameters!$C$3)) -> 0 | G121: =IF(C121="","",IF(F121<Parameters!$C$4,"",(F121-Parameters!$C$4)*D121)) ->  | I121: =IF(H121="","",YEAR(+Informatie!$C$1)-YEAR(H121)) ->  | K121: =IF(G121="","",ROUND(G121*Parameters!$C$12,2)) ->  | L121: =IF(G121="","",IF(YEAR(Informatie!$C$1)=2015,ROUND(G121*Parameters!$J$27,2),ROUND(G121*VLOOKUP('Overzicht deelnemers'!I121,Parameters!$E$4:$G$49,2,FALSE),2))) ->  | M121: =IF(G121="","",IF(YEAR(Informatie!$C$1)=2015,ROUND(L121*Parameters!$C$20,2),G121*Parameters!$J$27)) ->  | O121: =IF(G121="","",ROUND(G121*Parameters!$C$16,2)) ->  | P121: =IF(G121="","",ROUND(G121*VLOOKUP(J121,Parameters!$E$3:$F$49,2,FALSE),2)) ->  | Q121: =IF(G121="","",ROUND(G121*Parameters!$J$66,2)) ->  | S121: =IF(G121="","",ROUND(G121*Parameters!$C$13,2)) ->  | T121: =IF(G121="","",IF(YEAR(Informatie!$C$1)=2015,ROUND(G121*Parameters!J$44,2),ROUND(G121*VLOOKUP('Overzicht deelnemers'!I121,Parameters!$E$4:$G$49,3,FALSE),2))) ->  | U121: =IF(G121="","",IF(YEAR(Informatie!$C$1)=2015,ROUND(T121*Parameters!$C$20,2),ROUND(G121*Parameters!$J$44,2))) ->  | W121: =IF(G121="","",ROUND(G121*Parameters!C$17,2)) ->  | X121: =IF(G121="","",ROUND(G121*VLOOKUP(J121,Parameters!E$4:G$49,3),2)) ->  | Y121: =IF(G121="","",ROUND(G121*Parameters!J$83,2)) -> 
E122: 0 | F122: =IF(C122="",0,IF(C122<=Parameters!$C$3,C122,Parameters!$C$3)) -> 0 | G122: =IF(C122="","",IF(F122<Parameters!$C$4,"",(F122-Parameters!$C$4)*D122)) ->  | I122: =IF(H122="","",YEAR(+Informatie!$C$1)-YEAR(H122)) ->  | K122: =IF(G122="","",ROUND(G122*Parameters!$C$12,2)) ->  | L122: =IF(G122="","",IF(YEAR(Informatie!$C$1)=2015,ROUND(G122*Parameters!$J$27,2),ROUND(G122*VLOOKUP('Overzicht deelnemers'!I122,Parameters!$E$4:$G$49,2,FALSE),2))) ->  | M122: =IF(G122="","",IF(YEAR(Informatie!$C$1)=2015,ROUND(L122*Parameters!$C$20,2),G122*Parameters!$J$27)) ->  | O122: =IF(G122="","",ROUND(G122*Parameters!$C$16,2)) ->  | P122: =IF(G122="","",ROUND(G122*VLOOKUP(J122,Parameters!$E$3:$F$49,2,FALSE),2)) ->  | Q122: =IF(G122="","",ROUND(G122*Parameters!$J$66,2)) ->  | S122: =IF(G122="","",ROUND(G122*Parameters!$C$13,2)) ->  | T122: =IF(G122="","",IF(YEAR(Informatie!$C$1)=2015,ROUND(G122*Parameters!J$44,2),ROUND(G122*VLOOKUP('Overzicht deelnemers'!I122,Parameters!$E$4:$G$49,3,FALSE),2))) ->  | U122: =IF(G122="","",IF(YEAR(Informatie!$C$1)=2015,ROUND(T122*Parameters!$C$20,2),ROUND(G122*Parameters!$J$44,2))) ->  | W122: =IF(G122="","",ROUND(G122*Parameters!C$17,2)) ->  | X122: =IF(G122="","",ROUND(G122*VLOOKUP(J122,Parameters!E$4:G$49,3),2)) ->  | Y122: =IF(G122="","",ROUND(G122*Parameters!J$83,2)) -> 
E123: 0 | F123: =IF(C123="",0,IF(C123<=Parameters!$C$3,C123,Parameters!$C$3)) -> 0 | G123: =IF(C123="","",IF(F123<Parameters!$C$4,"",(F123-Parameters!$C$4)*D123)) ->  | I123: =IF(H123="","",YEAR(+Informatie!$C$1)-YEAR(H123)) ->  | K123: =IF(G123="","",ROUND(G123*Parameters!$C$12,2)) ->  | L123: =IF(G123="","",IF(YEAR(Informatie!$C$1)=2015,ROUND(G123*Parameters!$J$27,2),ROUND(G123*VLOOKUP('Overzicht deelnemers'!I123,Parameters!$E$4:$G$49,2,FALSE),2))) ->  | M123: =IF(G123="","",IF(YEAR(Informatie!$C$1)=2015,ROUND(L123*Parameters!$C$20,2),G123*Parameters!$J$27)) ->  | O123: =IF(G123="","",ROUND(G123*Parameters!$C$16,2)) ->  | P123: =IF(G123="","",ROUND(G123*VLOOKUP(J123,Parameters!$E$3:$F$49,2,FALSE),2)) ->  | Q123: =IF(G123="","",ROUND(G123*Parameters!$J$66,2)) ->  | S123: =IF(G123="","",ROUND(G123*Parameters!$C$13,2)) ->  | T123: =IF(G123="","",IF(YEAR(Informatie!$C$1)=2015,ROUND(G123*Parameters!J$44,2),ROUND(G123*VLOOKUP('Overzicht deelnemers'!I123,Parameters!$E$4:$G$49,3,FALSE),2))) ->  | U123: =IF(G123="","",IF(YEAR(Informatie!$C$1)=2015,ROUND(T123*Parameters!$C$20,2),ROUND(G123*Parameters!$J$44,2))) ->  | W123: =IF(G123="","",ROUND(G123*Parameters!C$17,2)) ->  | X123: =IF(G123="","",ROUND(G123*VLOOKUP(J123,Parameters!E$4:G$49,3),2)) ->  | Y123: =IF(G123="","",ROUND(G123*Parameters!J$83,2)) -> 
E124: 0 | F124: =IF(C124="",0,IF(C124<=Parameters!$C$3,C124,Parameters!$C$3)) -> 0 | G124: =IF(C124="","",IF(F124<Parameters!$C$4,"",(F124-Parameters!$C$4)*D124)) ->  | I124: =IF(H124="","",YEAR(+Informatie!$C$1)-YEAR(H124)) ->  | K124: =IF(G124="","",ROUND(G124*Parameters!$C$12,2)) ->  | L124: =IF(G124="","",IF(YEAR(Informatie!$C$1)=2015,ROUND(G124*Parameters!$J$27,2),ROUND(G124*VLOOKUP('Overzicht deelnemers'!I124,Parameters!$E$4:$G$49,2,FALSE),2))) ->  | M124: =IF(G124="","",IF(YEAR(Informatie!$C$1)=2015,ROUND(L124*Parameters!$C$20,2),G124*Parameters!$J$27)) ->  | O124: =IF(G124="","",ROUND(G124*Parameters!$C$16,2)) ->  | P124: =IF(G124="","",ROUND(G124*VLOOKUP(J124,Parameters!$E$3:$F$49,2,FALSE),2)) ->  | Q124: =IF(G124="","",ROUND(G124*Parameters!$J$66,2)) ->  | S124: =IF(G124="","",ROUND(G124*Parameters!$C$13,2)) ->  | T124: =IF(G124="","",IF(YEAR(Informatie!$C$1)=2015,ROUND(G124*Parameters!J$44,2),ROUND(G124*VLOOKUP('Overzicht deelnemers'!I124,Parameters!$E$4:$G$49,3,FALSE),2))) ->  | U124: =IF(G124="","",IF(YEAR(Informatie!$C$1)=2015,ROUND(T124*Parameters!$C$20,2),ROUND(G124*Parameters!$J$44,2))) ->  | W124: =IF(G124="","",ROUND(G124*Parameters!C$17,2)) ->  | X124: =IF(G124="","",ROUND(G124*VLOOKUP(J124,Parameters!E$4:G$49,3),2)) ->  | Y124: =IF(G124="","",ROUND(G124*Parameters!J$83,2)) -> 
E125: 0 | F125: =IF(C125="",0,IF(C125<=Parameters!$C$3,C125,Parameters!$C$3)) -> 0 | G125: =IF(C125="","",IF(F125<Parameters!$C$4,"",(F125-Parameters!$C$4)*D125)) ->  | I125: =IF(H125="","",YEAR(+Informatie!$C$1)-YEAR(H125)) ->  | K125: =IF(G125="","",ROUND(G125*Parameters!$C$12,2)) ->  | L125: =IF(G125="","",IF(YEAR(Informatie!$C$1)=2015,ROUND(G125*Parameters!$J$27,2),ROUND(G125*VLOOKUP('Overzicht deelnemers'!I125,Parameters!$E$4:$G$49,2,FALSE),2))) ->  | M125: =IF(G125="","",IF(YEAR(Informatie!$C$1)=2015,ROUND(L125*Parameters!$C$20,2),G125*Parameters!$J$27)) ->  | O125: =IF(G125="","",ROUND(G125*Parameters!$C$16,2)) ->  | P125: =IF(G125="","",ROUND(G125*VLOOKUP(J125,Parameters!$E$3:$F$49,2,FALSE),2)) ->  | Q125: =IF(G125="","",ROUND(G125*Parameters!$J$66,2)) ->  | S125: =IF(G125="","",ROUND(G125*Parameters!$C$13,2)) ->  | T125: =IF(G125="","",IF(YEAR(Informatie!$C$1)=2015,ROUND(G125*Parameters!J$44,2),ROUND(G125*VLOOKUP('Overzicht deelnemers'!I125,Parameters!$E$4:$G$49,3,FALSE),2))) ->  | U125: =IF(G125="","",IF(YEAR(Informatie!$C$1)=2015,ROUND(T125*Parameters!$C$20,2),ROUND(G125*Parameters!$J$44,2))) ->  | W125: =IF(G125="","",ROUND(G125*Parameters!C$17,2)) ->  | X125: =IF(G125="","",ROUND(G125*VLOOKUP(J125,Parameters!E$4:G$49,3),2)) ->  | Y125: =IF(G125="","",ROUND(G125*Parameters!J$83,2)) -> 
E126: 0 | F126: =IF(C126="",0,IF(C126<=Parameters!$C$3,C126,Parameters!$C$3)) -> 0 | G126: =IF(C126="","",IF(F126<Parameters!$C$4,"",(F126-Parameters!$C$4)*D126)) ->  | I126: =IF(H126="","",YEAR(+Informatie!$C$1)-YEAR(H126)) ->  | K126: =IF(G126="","",ROUND(G126*Parameters!$C$12,2)) ->  | L126: =IF(G126="","",IF(YEAR(Informatie!$C$1)=2015,ROUND(G126*Parameters!$J$27,2),ROUND(G126*VLOOKUP('Overzicht deelnemers'!I126,Parameters!$E$4:$G$49,2,FALSE),2))) ->  | M126: =IF(G126="","",IF(YEAR(Informatie!$C$1)=2015,ROUND(L126*Parameters!$C$20,2),G126*Parameters!$J$27)) ->  | O126: =IF(G126="","",ROUND(G126*Parameters!$C$16,2)) ->  | P126: =IF(G126="","",ROUND(G126*VLOOKUP(J126,Parameters!$E$3:$F$49,2,FALSE),2)) ->  | Q126: =IF(G126="","",ROUND(G126*Parameters!$J$66,2)) ->  | S126: =IF(G126="","",ROUND(G126*Parameters!$C$13,2)) ->  | T126: =IF(G126="","",IF(YEAR(Informatie!$C$1)=2015,ROUND(G126*Parameters!J$44,2),ROUND(G126*VLOOKUP('Overzicht deelnemers'!I126,Parameters!$E$4:$G$49,3,FALSE),2))) ->  | U126: =IF(G126="","",IF(YEAR(Informatie!$C$1)=2015,ROUND(T126*Parameters!$C$20,2),ROUND(G126*Parameters!$J$44,2))) ->  | W126: =IF(G126="","",ROUND(G126*Parameters!C$17,2)) ->  | X126: =IF(G126="","",ROUND(G126*VLOOKUP(J126,Parameters!E$4:G$49,3),2)) ->  | Y126: =IF(G126="","",ROUND(G126*Parameters!J$83,2)) -> 
E127: 0 | F127: =IF(C127="",0,IF(C127<=Parameters!$C$3,C127,Parameters!$C$3)) -> 0 | G127: =IF(C127="","",IF(F127<Parameters!$C$4,"",(F127-Parameters!$C$4)*D127)) ->  | I127: =IF(H127="","",YEAR(+Informatie!$C$1)-YEAR(H127)) ->  | K127: =IF(G127="","",ROUND(G127*Parameters!$C$12,2)) ->  | L127: =IF(G127="","",IF(YEAR(Informatie!$C$1)=2015,ROUND(G127*Parameters!$J$27,2),ROUND(G127*VLOOKUP('Overzicht deelnemers'!I127,Parameters!$E$4:$G$49,2,FALSE),2))) ->  | M127: =IF(G127="","",IF(YEAR(Informatie!$C$1)=2015,ROUND(L127*Parameters!$C$20,2),G127*Parameters!$J$27)) ->  | O127: =IF(G127="","",ROUND(G127*Parameters!$C$16,2)) ->  | P127: =IF(G127="","",ROUND(G127*VLOOKUP(J127,Parameters!$E$3:$F$49,2,FALSE),2)) ->  | Q127: =IF(G127="","",ROUND(G127*Parameters!$J$66,2)) ->  | S127: =IF(G127="","",ROUND(G127*Parameters!$C$13,2)) ->  | T127: =IF(G127="","",IF(YEAR(Informatie!$C$1)=2015,ROUND(G127*Parameters!J$44,2),ROUND(G127*VLOOKUP('Overzicht deelnemers'!I127,Parameters!$E$4:$G$49,3,FALSE),2))) ->  | U127: =IF(G127="","",IF(YEAR(Informatie!$C$1)=2015,ROUND(T127*Parameters!$C$20,2),ROUND(G127*Parameters!$J$44,2))) ->  | W127: =IF(G127="","",ROUND(G127*Parameters!C$17,2)) ->  | X127: =IF(G127="","",ROUND(G127*VLOOKUP(J127,Parameters!E$4:G$49,3),2)) ->  | Y127: =IF(G127="","",ROUND(G127*Parameters!J$83,2)) -> 
E128: 0 | F128: =IF(C128="",0,IF(C128<=Parameters!$C$3,C128,Parameters!$C$3)) -> 0 | G128: =IF(C128="","",IF(F128<Parameters!$C$4,"",(F128-Parameters!$C$4)*D128)) ->  | I128: =IF(H128="","",YEAR(+Informatie!$C$1)-YEAR(H128)) ->  | K128: =IF(G128="","",ROUND(G128*Parameters!$C$12,2)) ->  | L128: =IF(G128="","",IF(YEAR(Informatie!$C$1)=2015,ROUND(G128*Parameters!$J$27,2),ROUND(G128*VLOOKUP('Overzicht deelnemers'!I128,Parameters!$E$4:$G$49,2,FALSE),2))) ->  | M128: =IF(G128="","",IF(YEAR(Informatie!$C$1)=2015,ROUND(L128*Parameters!$C$20,2),G128*Parameters!$J$27)) ->  | O128: =IF(G128="","",ROUND(G128*Parameters!$C$16,2)) ->  | P128: =IF(G128="","",ROUND(G128*VLOOKUP(J128,Parameters!$E$3:$F$49,2,FALSE),2)) ->  | Q128: =IF(G128="","",ROUND(G128*Parameters!$J$66,2)) ->  | S128: =IF(G128="","",ROUND(G128*Parameters!$C$13,2)) ->  | T128: =IF(G128="","",IF(YEAR(Informatie!$C$1)=2015,ROUND(G128*Parameters!J$44,2),ROUND(G128*VLOOKUP('Overzicht deelnemers'!I128,Parameters!$E$4:$G$49,3,FALSE),2))) ->  | U128: =IF(G128="","",IF(YEAR(Informatie!$C$1)=2015,ROUND(T128*Parameters!$C$20,2),ROUND(G128*Parameters!$J$44,2))) ->  | W128: =IF(G128="","",ROUND(G128*Parameters!C$17,2)) ->  | X128: =IF(G128="","",ROUND(G128*VLOOKUP(J128,Parameters!E$4:G$49,3),2)) ->  | Y128: =IF(G128="","",ROUND(G128*Parameters!J$83,2)) -> 
E129: 0 | F129: =IF(C129="",0,IF(C129<=Parameters!$C$3,C129,Parameters!$C$3)) -> 0 | G129: =IF(C129="","",IF(F129<Parameters!$C$4,"",(F129-Parameters!$C$4)*D129)) ->  | I129: =IF(H129="","",YEAR(+Informatie!$C$1)-YEAR(H129)) ->  | K129: =IF(G129="","",ROUND(G129*Parameters!$C$12,2)) ->  | L129: =IF(G129="","",IF(YEAR(Informatie!$C$1)=2015,ROUND(G129*Parameters!$J$27,2),ROUND(G129*VLOOKUP('Overzicht deelnemers'!I129,Parameters!$E$4:$G$49,2,FALSE),2))) ->  | M129: =IF(G129="","",IF(YEAR(Informatie!$C$1)=2015,ROUND(L129*Parameters!$C$20,2),G129*Parameters!$J$27)) ->  | O129: =IF(G129="","",ROUND(G129*Parameters!$C$16,2)) ->  | P129: =IF(G129="","",ROUND(G129*VLOOKUP(J129,Parameters!$E$3:$F$49,2,FALSE),2)) ->  | Q129: =IF(G129="","",ROUND(G129*Parameters!$J$66,2)) ->  | S129: =IF(G129="","",ROUND(G129*Parameters!$C$13,2)) ->  | T129: =IF(G129="","",IF(YEAR(Informatie!$C$1)=2015,ROUND(G129*Parameters!J$44,2),ROUND(G129*VLOOKUP('Overzicht deelnemers'!I129,Parameters!$E$4:$G$49,3,FALSE),2))) ->  | U129: =IF(G129="","",IF(YEAR(Informatie!$C$1)=2015,ROUND(T129*Parameters!$C$20,2),ROUND(G129*Parameters!$J$44,2))) ->  | W129: =IF(G129="","",ROUND(G129*Parameters!C$17,2)) ->  | X129: =IF(G129="","",ROUND(G129*VLOOKUP(J129,Parameters!E$4:G$49,3),2)) ->  | Y129: =IF(G129="","",ROUND(G129*Parameters!J$83,2)) -> 
E130: 0 | F130: =IF(C130="",0,IF(C130<=Parameters!$C$3,C130,Parameters!$C$3)) -> 0 | G130: =IF(C130="","",IF(F130<Parameters!$C$4,"",(F130-Parameters!$C$4)*D130)) ->  | I130: =IF(H130="","",YEAR(+Informatie!$C$1)-YEAR(H130)) ->  | J130: =IF(H130="","",I130+1) ->  | K130: =IF(G130="","",ROUND(G130*Parameters!$C$12,2)) ->  | L130: =IF(G130="","",IF(YEAR(Informatie!$C$1)=2015,ROUND(G130*Parameters!$J$27,2),ROUND(G130*VLOOKUP('Overzicht deelnemers'!I130,Parameters!$E$4:$G$49,2,FALSE),2))) ->  | M130: =IF(G130="","",IF(YEAR(Informatie!$C$1)=2015,ROUND(L130*Parameters!$C$20,2),G130*Parameters!$J$27)) ->  | O130: =IF(G130="","",ROUND(G130*Parameters!$C$16,2)) ->  | P130: =IF(G130="","",ROUND(G130*VLOOKUP(J130,Parameters!$E$3:$F$49,2,FALSE),2)) ->  | Q130: =IF(G130="","",ROUND(G130*Parameters!$J$66,2)) ->  | S130: =IF(G130="","",ROUND(G130*Parameters!$C$13,2)) ->  | T130: =IF(G130="","",IF(YEAR(Informatie!$C$1)=2015,ROUND(G130*Parameters!J$44,2),ROUND(G130*VLOOKUP('Overzicht deelnemers'!I130,Parameters!$E$4:$G$49,3,FALSE),2))) ->  | U130: =IF(G130="","",IF(YEAR(Informatie!$C$1)=2015,ROUND(T130*Parameters!$C$20,2),ROUND(G130*Parameters!$J$44,2))) ->  | W130: =IF(G130="","",ROUND(G130*Parameters!C$17,2)) ->  | X130: =IF(G130="","",ROUND(G130*VLOOKUP(J130,Parameters!E$4:G$49,3),2)) ->  | Y130: =IF(G130="","",ROUND(G130*Parameters!J$83,2)) -> 
E131: =C131*D131 -> 0 | F131: =IF(C131="",0,IF(C131<=Parameters!$C$3,C131,Parameters!$C$3)) -> 0 | G131: =IF(C131="","",IF(F131<Parameters!$C$4,"",(F131-Parameters!$C$4)*D131)) ->  | I131: =IF(H131="","",YEAR(+Informatie!$C$1)-YEAR(H131)) ->  | K131: =IF(G131="","",ROUND(G131*Parameters!$C$12,2)) ->  | L131: =IF(G131="","",IF(YEAR(Informatie!$C$1)=2015,ROUND(G131*Parameters!$J$27,2),ROUND(G131*VLOOKUP('Overzicht deelnemers'!I131,Parameters!$E$4:$G$49,2,FALSE),2))) ->  | M131: =IF(G131="","",IF(YEAR(Informatie!$C$1)=2015,ROUND(L131*Parameters!$C$20,2),G131*Parameters!$J$27)) ->  | N131: =IF(G131="","",ROUND(L131-M131,2)) ->  | O131: =IF(G131="","",ROUND(G131*Parameters!$C$16,2)) ->  | P131: =IF(G131="","",ROUND(G131*VLOOKUP(J131,Parameters!$E$3:$F$49,2,FALSE),2)) ->  | Q131: =IF(G131="","",ROUND(G131*Parameters!$J$66,2)) ->  | R131: =IF(G131="","",ROUND(P131-Q131,2)) ->  | S131: =IF(G131="","",ROUND(G131*Parameters!$C$13,2)) ->  | T131: =IF(G131="","",IF(YEAR(Informatie!$C$1)=2015,ROUND(G131*Parameters!J$44,2),ROUND(G131*VLOOKUP('Overzicht deelnemers'!I131,Parameters!$E$4:$G$49,3,FALSE),2))) ->  | U131: =IF(G131="","",IF(YEAR(Informatie!$C$1)=2015,ROUND(T131*Parameters!$C$20,2),ROUND(G131*Parameters!$J$44,2))) ->  | V131: =IF(G131="","",ROUND(T131-U131,2)) ->  | W131: =IF(G131="","",ROUND(G131*Parameters!C$17,2)) ->  | X131: =IF(G131="","",ROUND(G131*VLOOKUP(J131,Parameters!E$4:G$49,3),2)) ->  | Y131: =IF(G131="","",ROUND(G131*Parameters!J$83,2)) ->  | Z131: =IF(G131="","",ROUND(X131-Y131,2)) -> 
E132: 0 | F132: =IF(C132="",0,IF(C132<=Parameters!$C$3,C132,Parameters!$C$3)) -> 0 | G132: =IF(C132="","",IF(F132<Parameters!$C$4,"",(F132-Parameters!$C$4)*D132)) ->  | I132: =IF(H132="","",YEAR(+Informatie!$C$1)-YEAR(H132)) ->  | K132: =IF(G132="","",ROUND(G132*Parameters!$C$12,2)) ->  | L132: =IF(G132="","",IF(YEAR(Informatie!$C$1)=2015,ROUND(G132*Parameters!$J$27,2),ROUND(G132*VLOOKUP('Overzicht deelnemers'!I132,Parameters!$E$4:$G$49,2,FALSE),2))) ->  | M132: =IF(G132="","",IF(YEAR(Informatie!$C$1)=2015,ROUND(L132*Parameters!$C$20,2),G132*Parameters!$J$27)) ->  | O132: =IF(G132="","",ROUND(G132*Parameters!$C$16,2)) ->  | P132: =IF(G132="","",ROUND(G132*VLOOKUP(J132,Parameters!$E$3:$F$49,2,FALSE),2)) ->  | Q132: =IF(G132="","",ROUND(G132*Parameters!$J$66,2)) ->  | S132: =IF(G132="","",ROUND(G132*Parameters!$C$13,2)) ->  | T132: =IF(G132="","",IF(YEAR(Informatie!$C$1)=2015,ROUND(G132*Parameters!J$44,2),ROUND(G132*VLOOKUP('Overzicht deelnemers'!I132,Parameters!$E$4:$G$49,3,FALSE),2))) ->  | U132: =IF(G132="","",IF(YEAR(Informatie!$C$1)=2015,ROUND(T132*Parameters!$C$20,2),ROUND(G132*Parameters!$J$44,2))) ->  | W132: =IF(G132="","",ROUND(G132*Parameters!C$17,2)) ->  | X132: =IF(G132="","",ROUND(G132*VLOOKUP(J132,Parameters!E$4:G$49,3),2)) ->  | Y132: =IF(G132="","",ROUND(G132*Parameters!J$83,2)) -> 
E133: 0 | F133: =IF(C133="",0,IF(C133<=Parameters!$C$3,C133,Parameters!$C$3)) -> 0 | G133: =IF(C133="","",IF(F133<Parameters!$C$4,"",(F133-Parameters!$C$4)*D133)) ->  | I133: =IF(H133="","",YEAR(+Informatie!$C$1)-YEAR(H133)) ->  | K133: =IF(G133="","",ROUND(G133*Parameters!$C$12,2)) ->  | L133: =IF(G133="","",IF(YEAR(Informatie!$C$1)=2015,ROUND(G133*Parameters!$J$27,2),ROUND(G133*VLOOKUP('Overzicht deelnemers'!I133,Parameters!$E$4:$G$49,2,FALSE),2))) ->  | M133: =IF(G133="","",IF(YEAR(Informatie!$C$1)=2015,ROUND(L133*Parameters!$C$20,2),G133*Parameters!$J$27)) ->  | O133: =IF(G133="","",ROUND(G133*Parameters!$C$16,2)) ->  | P133: =IF(G133="","",ROUND(G133*VLOOKUP(J133,Parameters!$E$3:$F$49,2,FALSE),2)) ->  | Q133: =IF(G133="","",ROUND(G133*Parameters!$J$66,2)) ->  | S133: =IF(G133="","",ROUND(G133*Parameters!$C$13,2)) ->  | T133: =IF(G133="","",IF(YEAR(Informatie!$C$1)=2015,ROUND(G133*Parameters!J$44,2),ROUND(G133*VLOOKUP('Overzicht deelnemers'!I133,Parameters!$E$4:$G$49,3,FALSE),2))) ->  | U133: =IF(G133="","",IF(YEAR(Informatie!$C$1)=2015,ROUND(T133*Parameters!$C$20,2),ROUND(G133*Parameters!$J$44,2))) ->  | W133: =IF(G133="","",ROUND(G133*Parameters!C$17,2)) ->  | X133: =IF(G133="","",ROUND(G133*VLOOKUP(J133,Parameters!E$4:G$49,3),2)) ->  | Y133: =IF(G133="","",ROUND(G133*Parameters!J$83,2)) -> 
E134: 0 | F134: =IF(C134="",0,IF(C134<=Parameters!$C$3,C134,Parameters!$C$3)) -> 0 | G134: =IF(C134="","",IF(F134<Parameters!$C$4,"",(F134-Parameters!$C$4)*D134)) ->  | I134: =IF(H134="","",YEAR(+Informatie!$C$1)-YEAR(H134)) ->  | K134: =IF(G134="","",ROUND(G134*Parameters!$C$12,2)) ->  | L134: =IF(G134="","",IF(YEAR(Informatie!$C$1)=2015,ROUND(G134*Parameters!$J$27,2),ROUND(G134*VLOOKUP('Overzicht deelnemers'!I134,Parameters!$E$4:$G$49,2,FALSE),2))) ->  | M134: =IF(G134="","",IF(YEAR(Informatie!$C$1)=2015,ROUND(L134*Parameters!$C$20,2),G134*Parameters!$J$27)) ->  | O134: =IF(G134="","",ROUND(G134*Parameters!$C$16,2)) ->  | P134: =IF(G134="","",ROUND(G134*VLOOKUP(J134,Parameters!$E$3:$F$49,2,FALSE),2)) ->  | Q134: =IF(G134="","",ROUND(G134*Parameters!$J$66,2)) ->  | S134: =IF(G134="","",ROUND(G134*Parameters!$C$13,2)) ->  | T134: =IF(G134="","",IF(YEAR(Informatie!$C$1)=2015,ROUND(G134*Parameters!J$44,2),ROUND(G134*VLOOKUP('Overzicht deelnemers'!I134,Parameters!$E$4:$G$49,3,FALSE),2))) ->  | U134: =IF(G134="","",IF(YEAR(Informatie!$C$1)=2015,ROUND(T134*Parameters!$C$20,2),ROUND(G134*Parameters!$J$44,2))) ->  | W134: =IF(G134="","",ROUND(G134*Parameters!C$17,2)) ->  | X134: =IF(G134="","",ROUND(G134*VLOOKUP(J134,Parameters!E$4:G$49,3),2)) ->  | Y134: =IF(G134="","",ROUND(G134*Parameters!J$83,2)) -> 
E135: 0 | F135: =IF(C135="",0,IF(C135<=Parameters!$C$3,C135,Parameters!$C$3)) -> 0 | G135: =IF(C135="","",IF(F135<Parameters!$C$4,"",(F135-Parameters!$C$4)*D135)) ->  | I135: =IF(H135="","",YEAR(+Informatie!$C$1)-YEAR(H135)) ->  | K135: =IF(G135="","",ROUND(G135*Parameters!$C$12,2)) ->  | L135: =IF(G135="","",IF(YEAR(Informatie!$C$1)=2015,ROUND(G135*Parameters!$J$27,2),ROUND(G135*VLOOKUP('Overzicht deelnemers'!I135,Parameters!$E$4:$G$49,2,FALSE),2))) ->  | M135: =IF(G135="","",IF(YEAR(Informatie!$C$1)=2015,ROUND(L135*Parameters!$C$20,2),G135*Parameters!$J$27)) ->  | O135: =IF(G135="","",ROUND(G135*Parameters!$C$16,2)) ->  | P135: =IF(G135="","",ROUND(G135*VLOOKUP(J135,Parameters!$E$3:$F$49,2,FALSE),2)) ->  | Q135: =IF(G135="","",ROUND(G135*Parameters!$J$66,2)) ->  | S135: =IF(G135="","",ROUND(G135*Parameters!$C$13,2)) ->  | T135: =IF(G135="","",IF(YEAR(Informatie!$C$1)=2015,ROUND(G135*Parameters!J$44,2),ROUND(G135*VLOOKUP('Overzicht deelnemers'!I135,Parameters!$E$4:$G$49,3,FALSE),2))) ->  | U135: =IF(G135="","",IF(YEAR(Informatie!$C$1)=2015,ROUND(T135*Parameters!$C$20,2),ROUND(G135*Parameters!$J$44,2))) ->  | W135: =IF(G135="","",ROUND(G135*Parameters!C$17,2)) ->  | X135: =IF(G135="","",ROUND(G135*VLOOKUP(J135,Parameters!E$4:G$49,3),2)) ->  | Y135: =IF(G135="","",ROUND(G135*Parameters!J$83,2)) -> 
E136: 0 | F136: =IF(C136="",0,IF(C136<=Parameters!$C$3,C136,Parameters!$C$3)) -> 0 | G136: =IF(C136="","",IF(F136<Parameters!$C$4,"",(F136-Parameters!$C$4)*D136)) ->  | I136: =IF(H136="","",YEAR(+Informatie!$C$1)-YEAR(H136)) ->  | K136: =IF(G136="","",ROUND(G136*Parameters!$C$12,2)) ->  | L136: =IF(G136="","",IF(YEAR(Informatie!$C$1)=2015,ROUND(G136*Parameters!$J$27,2),ROUND(G136*VLOOKUP('Overzicht deelnemers'!I136,Parameters!$E$4:$G$49,2,FALSE),2))) ->  | M136: =IF(G136="","",IF(YEAR(Informatie!$C$1)=2015,ROUND(L136*Parameters!$C$20,2),G136*Parameters!$J$27)) ->  | O136: =IF(G136="","",ROUND(G136*Parameters!$C$16,2)) ->  | P136: =IF(G136="","",ROUND(G136*VLOOKUP(J136,Parameters!$E$3:$F$49,2,FALSE),2)) ->  | Q136: =IF(G136="","",ROUND(G136*Parameters!$J$66,2)) ->  | S136: =IF(G136="","",ROUND(G136*Parameters!$C$13,2)) ->  | T136: =IF(G136="","",IF(YEAR(Informatie!$C$1)=2015,ROUND(G136*Parameters!J$44,2),ROUND(G136*VLOOKUP('Overzicht deelnemers'!I136,Parameters!$E$4:$G$49,3,FALSE),2))) ->  | U136: =IF(G136="","",IF(YEAR(Informatie!$C$1)=2015,ROUND(T136*Parameters!$C$20,2),ROUND(G136*Parameters!$J$44,2))) ->  | W136: =IF(G136="","",ROUND(G136*Parameters!C$17,2)) ->  | X136: =IF(G136="","",ROUND(G136*VLOOKUP(J136,Parameters!E$4:G$49,3),2)) ->  | Y136: =IF(G136="","",ROUND(G136*Parameters!J$83,2)) -> 
E137: 0 | F137: =IF(C137="",0,IF(C137<=Parameters!$C$3,C137,Parameters!$C$3)) -> 0 | G137: =IF(C137="","",IF(F137<Parameters!$C$4,"",(F137-Parameters!$C$4)*D137)) ->  | I137: =IF(H137="","",YEAR(+Informatie!$C$1)-YEAR(H137)) ->  | K137: =IF(G137="","",ROUND(G137*Parameters!$C$12,2)) ->  | L137: =IF(G137="","",IF(YEAR(Informatie!$C$1)=2015,ROUND(G137*Parameters!$J$27,2),ROUND(G137*VLOOKUP('Overzicht deelnemers'!I137,Parameters!$E$4:$G$49,2,FALSE),2))) ->  | M137: =IF(G137="","",IF(YEAR(Informatie!$C$1)=2015,ROUND(L137*Parameters!$C$20,2),G137*Parameters!$J$27)) ->  | O137: =IF(G137="","",ROUND(G137*Parameters!$C$16,2)) ->  | P137: =IF(G137="","",ROUND(G137*VLOOKUP(J137,Parameters!$E$3:$F$49,2,FALSE),2)) ->  | Q137: =IF(G137="","",ROUND(G137*Parameters!$J$66,2)) ->  | S137: =IF(G137="","",ROUND(G137*Parameters!$C$13,2)) ->  | T137: =IF(G137="","",IF(YEAR(Informatie!$C$1)=2015,ROUND(G137*Parameters!J$44,2),ROUND(G137*VLOOKUP('Overzicht deelnemers'!I137,Parameters!$E$4:$G$49,3,FALSE),2))) ->  | U137: =IF(G137="","",IF(YEAR(Informatie!$C$1)=2015,ROUND(T137*Parameters!$C$20,2),ROUND(G137*Parameters!$J$44,2))) ->  | W137: =IF(G137="","",ROUND(G137*Parameters!C$17,2)) ->  | X137: =IF(G137="","",ROUND(G137*VLOOKUP(J137,Parameters!E$4:G$49,3),2)) ->  | Y137: =IF(G137="","",ROUND(G137*Parameters!J$83,2)) -> 
E138: 0 | F138: =IF(C138="",0,IF(C138<=Parameters!$C$3,C138,Parameters!$C$3)) -> 0 | G138: =IF(C138="","",IF(F138<Parameters!$C$4,"",(F138-Parameters!$C$4)*D138)) ->  | I138: =IF(H138="","",YEAR(+Informatie!$C$1)-YEAR(H138)) ->  | K138: =IF(G138="","",ROUND(G138*Parameters!$C$12,2)) ->  | L138: =IF(G138="","",IF(YEAR(Informatie!$C$1)=2015,ROUND(G138*Parameters!$J$27,2),ROUND(G138*VLOOKUP('Overzicht deelnemers'!I138,Parameters!$E$4:$G$49,2,FALSE),2))) ->  | M138: =IF(G138="","",IF(YEAR(Informatie!$C$1)=2015,ROUND(L138*Parameters!$C$20,2),G138*Parameters!$J$27)) ->  | O138: =IF(G138="","",ROUND(G138*Parameters!$C$16,2)) ->  | P138: =IF(G138="","",ROUND(G138*VLOOKUP(J138,Parameters!$E$3:$F$49,2,FALSE),2)) ->  | Q138: =IF(G138="","",ROUND(G138*Parameters!$J$66,2)) ->  | S138: =IF(G138="","",ROUND(G138*Parameters!$C$13,2)) ->  | T138: =IF(G138="","",IF(YEAR(Informatie!$C$1)=2015,ROUND(G138*Parameters!J$44,2),ROUND(G138*VLOOKUP('Overzicht deelnemers'!I138,Parameters!$E$4:$G$49,3,FALSE),2))) ->  | U138: =IF(G138="","",IF(YEAR(Informatie!$C$1)=2015,ROUND(T138*Parameters!$C$20,2),ROUND(G138*Parameters!$J$44,2))) ->  | W138: =IF(G138="","",ROUND(G138*Parameters!C$17,2)) ->  | X138: =IF(G138="","",ROUND(G138*VLOOKUP(J138,Parameters!E$4:G$49,3),2)) ->  | Y138: =IF(G138="","",ROUND(G138*Parameters!J$83,2)) -> 
E139: 0 | F139: =IF(C139="",0,IF(C139<=Parameters!$C$3,C139,Parameters!$C$3)) -> 0 | G139: =IF(C139="","",IF(F139<Parameters!$C$4,"",(F139-Parameters!$C$4)*D139)) ->  | I139: =IF(H139="","",YEAR(+Informatie!$C$1)-YEAR(H139)) ->  | K139: =IF(G139="","",ROUND(G139*Parameters!$C$12,2)) ->  | L139: =IF(G139="","",IF(YEAR(Informatie!$C$1)=2015,ROUND(G139*Parameters!$J$27,2),ROUND(G139*VLOOKUP('Overzicht deelnemers'!I139,Parameters!$E$4:$G$49,2,FALSE),2))) ->  | M139: =IF(G139="","",IF(YEAR(Informatie!$C$1)=2015,ROUND(L139*Parameters!$C$20,2),G139*Parameters!$J$27)) ->  | O139: =IF(G139="","",ROUND(G139*Parameters!$C$16,2)) ->  | P139: =IF(G139="","",ROUND(G139*VLOOKUP(J139,Parameters!$E$3:$F$49,2,FALSE),2)) ->  | Q139: =IF(G139="","",ROUND(G139*Parameters!$J$66,2)) ->  | S139: =IF(G139="","",ROUND(G139*Parameters!$C$13,2)) ->  | T139: =IF(G139="","",IF(YEAR(Informatie!$C$1)=2015,ROUND(G139*Parameters!J$44,2),ROUND(G139*VLOOKUP('Overzicht deelnemers'!I139,Parameters!$E$4:$G$49,3,FALSE),2))) ->  | U139: =IF(G139="","",IF(YEAR(Informatie!$C$1)=2015,ROUND(T139*Parameters!$C$20,2),ROUND(G139*Parameters!$J$44,2))) ->  | W139: =IF(G139="","",ROUND(G139*Parameters!C$17,2)) ->  | X139: =IF(G139="","",ROUND(G139*VLOOKUP(J139,Parameters!E$4:G$49,3),2)) ->  | Y139: =IF(G139="","",ROUND(G139*Parameters!J$83,2)) -> 
E140: 0 | F140: =IF(C140="",0,IF(C140<=Parameters!$C$3,C140,Parameters!$C$3)) -> 0 | G140: =IF(C140="","",IF(F140<Parameters!$C$4,"",(F140-Parameters!$C$4)*D140)) ->  | I140: =IF(H140="","",YEAR(+Informatie!$C$1)-YEAR(H140)) ->  | K140: =IF(G140="","",ROUND(G140*Parameters!$C$12,2)) ->  | L140: =IF(G140="","",IF(YEAR(Informatie!$C$1)=2015,ROUND(G140*Parameters!$J$27,2),ROUND(G140*VLOOKUP('Overzicht deelnemers'!I140,Parameters!$E$4:$G$49,2,FALSE),2))) ->  | M140: =IF(G140="","",IF(YEAR(Informatie!$C$1)=2015,ROUND(L140*Parameters!$C$20,2),G140*Parameters!$J$27)) ->  | O140: =IF(G140="","",ROUND(G140*Parameters!$C$16,2)) ->  | P140: =IF(G140="","",ROUND(G140*VLOOKUP(J140,Parameters!$E$3:$F$49,2,FALSE),2)) ->  | Q140: =IF(G140="","",ROUND(G140*Parameters!$J$66,2)) ->  | S140: =IF(G140="","",ROUND(G140*Parameters!$C$13,2)) ->  | T140: =IF(G140="","",IF(YEAR(Informatie!$C$1)=2015,ROUND(G140*Parameters!J$44,2),ROUND(G140*VLOOKUP('Overzicht deelnemers'!I140,Parameters!$E$4:$G$49,3,FALSE),2))) ->  | U140: =IF(G140="","",IF(YEAR(Informatie!$C$1)=2015,ROUND(T140*Parameters!$C$20,2),ROUND(G140*Parameters!$J$44,2))) ->  | W140: =IF(G140="","",ROUND(G140*Parameters!C$17,2)) ->  | X140: =IF(G140="","",ROUND(G140*VLOOKUP(J140,Parameters!E$4:G$49,3),2)) ->  | Y140: =IF(G140="","",ROUND(G140*Parameters!J$83,2)) -> 
E141: 0 | F141: =IF(C141="",0,IF(C141<=Parameters!$C$3,C141,Parameters!$C$3)) -> 0 | G141: =IF(C141="","",IF(F141<Parameters!$C$4,"",(F141-Parameters!$C$4)*D141)) ->  | I141: =IF(H141="","",YEAR(+Informatie!$C$1)-YEAR(H141)) ->  | K141: =IF(G141="","",ROUND(G141*Parameters!$C$12,2)) ->  | L141: =IF(G141="","",IF(YEAR(Informatie!$C$1)=2015,ROUND(G141*Parameters!$J$27,2),ROUND(G141*VLOOKUP('Overzicht deelnemers'!I141,Parameters!$E$4:$G$49,2,FALSE),2))) ->  | M141: =IF(G141="","",IF(YEAR(Informatie!$C$1)=2015,ROUND(L141*Parameters!$C$20,2),G141*Parameters!$J$27)) ->  | O141: =IF(G141="","",ROUND(G141*Parameters!$C$16,2)) ->  | P141: =IF(G141="","",ROUND(G141*VLOOKUP(J141,Parameters!$E$3:$F$49,2,FALSE),2)) ->  | Q141: =IF(G141="","",ROUND(G141*Parameters!$J$66,2)) ->  | S141: =IF(G141="","",ROUND(G141*Parameters!$C$13,2)) ->  | T141: =IF(G141="","",IF(YEAR(Informatie!$C$1)=2015,ROUND(G141*Parameters!J$44,2),ROUND(G141*VLOOKUP('Overzicht deelnemers'!I141,Parameters!$E$4:$G$49,3,FALSE),2))) ->  | U141: =IF(G141="","",IF(YEAR(Informatie!$C$1)=2015,ROUND(T141*Parameters!$C$20,2),ROUND(G141*Parameters!$J$44,2))) ->  | W141: =IF(G141="","",ROUND(G141*Parameters!C$17,2)) ->  | X141: =IF(G141="","",ROUND(G141*VLOOKUP(J141,Parameters!E$4:G$49,3),2)) ->  | Y141: =IF(G141="","",ROUND(G141*Parameters!J$83,2)) -> 
E142: 0 | F142: =IF(C142="",0,IF(C142<=Parameters!$C$3,C142,Parameters!$C$3)) -> 0 | G142: =IF(C142="","",IF(F142<Parameters!$C$4,"",(F142-Parameters!$C$4)*D142)) ->  | I142: =IF(H142="","",YEAR(+Informatie!$C$1)-YEAR(H142)) ->  | K142: =IF(G142="","",ROUND(G142*Parameters!$C$12,2)) ->  | L142: =IF(G142="","",IF(YEAR(Informatie!$C$1)=2015,ROUND(G142*Parameters!$J$27,2),ROUND(G142*VLOOKUP('Overzicht deelnemers'!I142,Parameters!$E$4:$G$49,2,FALSE),2))) ->  | M142: =IF(G142="","",IF(YEAR(Informatie!$C$1)=2015,ROUND(L142*Parameters!$C$20,2),G142*Parameters!$J$27)) ->  | O142: =IF(G142="","",ROUND(G142*Parameters!$C$16,2)) ->  | P142: =IF(G142="","",ROUND(G142*VLOOKUP(J142,Parameters!$E$3:$F$49,2,FALSE),2)) ->  | Q142: =IF(G142="","",ROUND(G142*Parameters!$J$66,2)) ->  | S142: =IF(G142="","",ROUND(G142*Parameters!$C$13,2)) ->  | T142: =IF(G142="","",IF(YEAR(Informatie!$C$1)=2015,ROUND(G142*Parameters!J$44,2),ROUND(G142*VLOOKUP('Overzicht deelnemers'!I142,Parameters!$E$4:$G$49,3,FALSE),2))) ->  | U142: =IF(G142="","",IF(YEAR(Informatie!$C$1)=2015,ROUND(T142*Parameters!$C$20,2),ROUND(G142*Parameters!$J$44,2))) ->  | W142: =IF(G142="","",ROUND(G142*Parameters!C$17,2)) ->  | X142: =IF(G142="","",ROUND(G142*VLOOKUP(J142,Parameters!E$4:G$49,3),2)) ->  | Y142: =IF(G142="","",ROUND(G142*Parameters!J$83,2)) -> 
E143: 0 | F143: =IF(C143="",0,IF(C143<=Parameters!$C$3,C143,Parameters!$C$3)) -> 0 | G143: =IF(C143="","",IF(F143<Parameters!$C$4,"",(F143-Parameters!$C$4)*D143)) ->  | I143: =IF(H143="","",YEAR(+Informatie!$C$1)-YEAR(H143)) ->  | K143: =IF(G143="","",ROUND(G143*Parameters!$C$12,2)) ->  | L143: =IF(G143="","",IF(YEAR(Informatie!$C$1)=2015,ROUND(G143*Parameters!$J$27,2),ROUND(G143*VLOOKUP('Overzicht deelnemers'!I143,Parameters!$E$4:$G$49,2,FALSE),2))) ->  | M143: =IF(G143="","",IF(YEAR(Informatie!$C$1)=2015,ROUND(L143*Parameters!$C$20,2),G143*Parameters!$J$27)) ->  | O143: =IF(G143="","",ROUND(G143*Parameters!$C$16,2)) ->  | P143: =IF(G143="","",ROUND(G143*VLOOKUP(J143,Parameters!$E$3:$F$49,2,FALSE),2)) ->  | Q143: =IF(G143="","",ROUND(G143*Parameters!$J$66,2)) ->  | S143: =IF(G143="","",ROUND(G143*Parameters!$C$13,2)) ->  | T143: =IF(G143="","",IF(YEAR(Informatie!$C$1)=2015,ROUND(G143*Parameters!J$44,2),ROUND(G143*VLOOKUP('Overzicht deelnemers'!I143,Parameters!$E$4:$G$49,3,FALSE),2))) ->  | U143: =IF(G143="","",IF(YEAR(Informatie!$C$1)=2015,ROUND(T143*Parameters!$C$20,2),ROUND(G143*Parameters!$J$44,2))) ->  | W143: =IF(G143="","",ROUND(G143*Parameters!C$17,2)) ->  | X143: =IF(G143="","",ROUND(G143*VLOOKUP(J143,Parameters!E$4:G$49,3),2)) ->  | Y143: =IF(G143="","",ROUND(G143*Parameters!J$83,2)) -> 
E144: 0 | F144: =IF(C144="",0,IF(C144<=Parameters!$C$3,C144,Parameters!$C$3)) -> 0 | G144: =IF(C144="","",IF(F144<Parameters!$C$4,"",(F144-Parameters!$C$4)*D144)) ->  | I144: =IF(H144="","",YEAR(+Informatie!$C$1)-YEAR(H144)) ->  | K144: =IF(G144="","",ROUND(G144*Parameters!$C$12,2)) ->  | L144: =IF(G144="","",IF(YEAR(Informatie!$C$1)=2015,ROUND(G144*Parameters!$J$27,2),ROUND(G144*VLOOKUP('Overzicht deelnemers'!I144,Parameters!$E$4:$G$49,2,FALSE),2))) ->  | M144: =IF(G144="","",IF(YEAR(Informatie!$C$1)=2015,ROUND(L144*Parameters!$C$20,2),G144*Parameters!$J$27)) ->  | O144: =IF(G144="","",ROUND(G144*Parameters!$C$16,2)) ->  | P144: =IF(G144="","",ROUND(G144*VLOOKUP(J144,Parameters!$E$3:$F$49,2,FALSE),2)) ->  | Q144: =IF(G144="","",ROUND(G144*Parameters!$J$66,2)) ->  | S144: =IF(G144="","",ROUND(G144*Parameters!$C$13,2)) ->  | T144: =IF(G144="","",IF(YEAR(Informatie!$C$1)=2015,ROUND(G144*Parameters!J$44,2),ROUND(G144*VLOOKUP('Overzicht deelnemers'!I144,Parameters!$E$4:$G$49,3,FALSE),2))) ->  | U144: =IF(G144="","",IF(YEAR(Informatie!$C$1)=2015,ROUND(T144*Parameters!$C$20,2),ROUND(G144*Parameters!$J$44,2))) ->  | W144: =IF(G144="","",ROUND(G144*Parameters!C$17,2)) ->  | X144: =IF(G144="","",ROUND(G144*VLOOKUP(J144,Parameters!E$4:G$49,3),2)) ->  | Y144: =IF(G144="","",ROUND(G144*Parameters!J$83,2)) -> 
E145: 0 | F145: =IF(C145="",0,IF(C145<=Parameters!$C$3,C145,Parameters!$C$3)) -> 0 | G145: =IF(C145="","",IF(F145<Parameters!$C$4,"",(F145-Parameters!$C$4)*D145)) ->  | I145: =IF(H145="","",YEAR(+Informatie!$C$1)-YEAR(H145)) ->  | K145: =IF(G145="","",ROUND(G145*Parameters!$C$12,2)) ->  | L145: =IF(G145="","",IF(YEAR(Informatie!$C$1)=2015,ROUND(G145*Parameters!$J$27,2),ROUND(G145*VLOOKUP('Overzicht deelnemers'!I145,Parameters!$E$4:$G$49,2,FALSE),2))) ->  | M145: =IF(G145="","",IF(YEAR(Informatie!$C$1)=2015,ROUND(L145*Parameters!$C$20,2),G145*Parameters!$J$27)) ->  | O145: =IF(G145="","",ROUND(G145*Parameters!$C$16,2)) ->  | P145: =IF(G145="","",ROUND(G145*VLOOKUP(J145,Parameters!$E$3:$F$49,2,FALSE),2)) ->  | Q145: =IF(G145="","",ROUND(G145*Parameters!$J$66,2)) ->  | S145: =IF(G145="","",ROUND(G145*Parameters!$C$13,2)) ->  | T145: =IF(G145="","",IF(YEAR(Informatie!$C$1)=2015,ROUND(G145*Parameters!J$44,2),ROUND(G145*VLOOKUP('Overzicht deelnemers'!I145,Parameters!$E$4:$G$49,3,FALSE),2))) ->  | U145: =IF(G145="","",IF(YEAR(Informatie!$C$1)=2015,ROUND(T145*Parameters!$C$20,2),ROUND(G145*Parameters!$J$44,2))) ->  | W145: =IF(G145="","",ROUND(G145*Parameters!C$17,2)) ->  | X145: =IF(G145="","",ROUND(G145*VLOOKUP(J145,Parameters!E$4:G$49,3),2)) ->  | Y145: =IF(G145="","",ROUND(G145*Parameters!J$83,2)) -> 
E146: 0 | F146: =IF(C146="",0,IF(C146<=Parameters!$C$3,C146,Parameters!$C$3)) -> 0 | G146: =IF(C146="","",IF(F146<Parameters!$C$4,"",(F146-Parameters!$C$4)*D146)) ->  | I146: =IF(H146="","",YEAR(+Informatie!$C$1)-YEAR(H146)) ->  | K146: =IF(G146="","",ROUND(G146*Parameters!$C$12,2)) ->  | L146: =IF(G146="","",IF(YEAR(Informatie!$C$1)=2015,ROUND(G146*Parameters!$J$27,2),ROUND(G146*VLOOKUP('Overzicht deelnemers'!I146,Parameters!$E$4:$G$49,2,FALSE),2))) ->  | M146: =IF(G146="","",IF(YEAR(Informatie!$C$1)=2015,ROUND(L146*Parameters!$C$20,2),G146*Parameters!$J$27)) ->  | O146: =IF(G146="","",ROUND(G146*Parameters!$C$16,2)) ->  | P146: =IF(G146="","",ROUND(G146*VLOOKUP(J146,Parameters!$E$3:$F$49,2,FALSE),2)) ->  | Q146: =IF(G146="","",ROUND(G146*Parameters!$J$66,2)) ->  | S146: =IF(G146="","",ROUND(G146*Parameters!$C$13,2)) ->  | T146: =IF(G146="","",IF(YEAR(Informatie!$C$1)=2015,ROUND(G146*Parameters!J$44,2),ROUND(G146*VLOOKUP('Overzicht deelnemers'!I146,Parameters!$E$4:$G$49,3,FALSE),2))) ->  | U146: =IF(G146="","",IF(YEAR(Informatie!$C$1)=2015,ROUND(T146*Parameters!$C$20,2),ROUND(G146*Parameters!$J$44,2))) ->  | W146: =IF(G146="","",ROUND(G146*Parameters!C$17,2)) ->  | X146: =IF(G146="","",ROUND(G146*VLOOKUP(J146,Parameters!E$4:G$49,3),2)) ->  | Y146: =IF(G146="","",ROUND(G146*Parameters!J$83,2)) -> 
E147: 0 | F147: =IF(C147="",0,IF(C147<=Parameters!$C$3,C147,Parameters!$C$3)) -> 0 | G147: =IF(C147="","",IF(F147<Parameters!$C$4,"",(F147-Parameters!$C$4)*D147)) ->  | I147: =IF(H147="","",YEAR(+Informatie!$C$1)-YEAR(H147)) ->  | K147: =IF(G147="","",ROUND(G147*Parameters!$C$12,2)) ->  | L147: =IF(G147="","",IF(YEAR(Informatie!$C$1)=2015,ROUND(G147*Parameters!$J$27,2),ROUND(G147*VLOOKUP('Overzicht deelnemers'!I147,Parameters!$E$4:$G$49,2,FALSE),2))) ->  | M147: =IF(G147="","",IF(YEAR(Informatie!$C$1)=2015,ROUND(L147*Parameters!$C$20,2),G147*Parameters!$J$27)) ->  | O147: =IF(G147="","",ROUND(G147*Parameters!$C$16,2)) ->  | P147: =IF(G147="","",ROUND(G147*VLOOKUP(J147,Parameters!$E$3:$F$49,2,FALSE),2)) ->  | Q147: =IF(G147="","",ROUND(G147*Parameters!$J$66,2)) ->  | S147: =IF(G147="","",ROUND(G147*Parameters!$C$13,2)) ->  | T147: =IF(G147="","",IF(YEAR(Informatie!$C$1)=2015,ROUND(G147*Parameters!J$44,2),ROUND(G147*VLOOKUP('Overzicht deelnemers'!I147,Parameters!$E$4:$G$49,3,FALSE),2))) ->  | U147: =IF(G147="","",IF(YEAR(Informatie!$C$1)=2015,ROUND(T147*Parameters!$C$20,2),ROUND(G147*Parameters!$J$44,2))) ->  | W147: =IF(G147="","",ROUND(G147*Parameters!C$17,2)) ->  | X147: =IF(G147="","",ROUND(G147*VLOOKUP(J147,Parameters!E$4:G$49,3),2)) ->  | Y147: =IF(G147="","",ROUND(G147*Parameters!J$83,2)) -> 
E148: 0 | F148: =IF(C148="",0,IF(C148<=Parameters!$C$3,C148,Parameters!$C$3)) -> 0 | G148: =IF(C148="","",IF(F148<Parameters!$C$4,"",(F148-Parameters!$C$4)*D148)) ->  | I148: =IF(H148="","",YEAR(+Informatie!$C$1)-YEAR(H148)) ->  | K148: =IF(G148="","",ROUND(G148*Parameters!$C$12,2)) ->  | L148: =IF(G148="","",IF(YEAR(Informatie!$C$1)=2015,ROUND(G148*Parameters!$J$27,2),ROUND(G148*VLOOKUP('Overzicht deelnemers'!I148,Parameters!$E$4:$G$49,2,FALSE),2))) ->  | M148: =IF(G148="","",IF(YEAR(Informatie!$C$1)=2015,ROUND(L148*Parameters!$C$20,2),G148*Parameters!$J$27)) ->  | O148: =IF(G148="","",ROUND(G148*Parameters!$C$16,2)) ->  | P148: =IF(G148="","",ROUND(G148*VLOOKUP(J148,Parameters!$E$3:$F$49,2,FALSE),2)) ->  | Q148: =IF(G148="","",ROUND(G148*Parameters!$J$66,2)) ->  | S148: =IF(G148="","",ROUND(G148*Parameters!$C$13,2)) ->  | T148: =IF(G148="","",IF(YEAR(Informatie!$C$1)=2015,ROUND(G148*Parameters!J$44,2),ROUND(G148*VLOOKUP('Overzicht deelnemers'!I148,Parameters!$E$4:$G$49,3,FALSE),2))) ->  | U148: =IF(G148="","",IF(YEAR(Informatie!$C$1)=2015,ROUND(T148*Parameters!$C$20,2),ROUND(G148*Parameters!$J$44,2))) ->  | W148: =IF(G148="","",ROUND(G148*Parameters!C$17,2)) ->  | X148: =IF(G148="","",ROUND(G148*VLOOKUP(J148,Parameters!E$4:G$49,3),2)) ->  | Y148: =IF(G148="","",ROUND(G148*Parameters!J$83,2)) -> 
E149: 0 | F149: =IF(C149="",0,IF(C149<=Parameters!$C$3,C149,Parameters!$C$3)) -> 0 | G149: =IF(C149="","",IF(F149<Parameters!$C$4,"",(F149-Parameters!$C$4)*D149)) ->  | I149: =IF(H149="","",YEAR(+Informatie!$C$1)-YEAR(H149)) ->  | K149: =IF(G149="","",ROUND(G149*Parameters!$C$12,2)) ->  | L149: =IF(G149="","",IF(YEAR(Informatie!$C$1)=2015,ROUND(G149*Parameters!$J$27,2),ROUND(G149*VLOOKUP('Overzicht deelnemers'!I149,Parameters!$E$4:$G$49,2,FALSE),2))) ->  | M149: =IF(G149="","",IF(YEAR(Informatie!$C$1)=2015,ROUND(L149*Parameters!$C$20,2),G149*Parameters!$J$27)) ->  | O149: =IF(G149="","",ROUND(G149*Parameters!$C$16,2)) ->  | P149: =IF(G149="","",ROUND(G149*VLOOKUP(J149,Parameters!$E$3:$F$49,2,FALSE),2)) ->  | Q149: =IF(G149="","",ROUND(G149*Parameters!$J$66,2)) ->  | S149: =IF(G149="","",ROUND(G149*Parameters!$C$13,2)) ->  | T149: =IF(G149="","",IF(YEAR(Informatie!$C$1)=2015,ROUND(G149*Parameters!J$44,2),ROUND(G149*VLOOKUP('Overzicht deelnemers'!I149,Parameters!$E$4:$G$49,3,FALSE),2))) ->  | U149: =IF(G149="","",IF(YEAR(Informatie!$C$1)=2015,ROUND(T149*Parameters!$C$20,2),ROUND(G149*Parameters!$J$44,2))) ->  | W149: =IF(G149="","",ROUND(G149*Parameters!C$17,2)) ->  | X149: =IF(G149="","",ROUND(G149*VLOOKUP(J149,Parameters!E$4:G$49,3),2)) ->  | Y149: =IF(G149="","",ROUND(G149*Parameters!J$83,2)) -> 
E150: 0 | F150: =IF(C150="",0,IF(C150<=Parameters!$C$3,C150,Parameters!$C$3)) -> 0 | G150: =IF(C150="","",IF(F150<Parameters!$C$4,"",(F150-Parameters!$C$4)*D150)) ->  | I150: =IF(H150="","",YEAR(+Informatie!$C$1)-YEAR(H150)) ->  | K150: =IF(G150="","",ROUND(G150*Parameters!$C$12,2)) ->  | L150: =IF(G150="","",IF(YEAR(Informatie!$C$1)=2015,ROUND(G150*Parameters!$J$27,2),ROUND(G150*VLOOKUP('Overzicht deelnemers'!I150,Parameters!$E$4:$G$49,2,FALSE),2))) ->  | M150: =IF(G150="","",IF(YEAR(Informatie!$C$1)=2015,ROUND(L150*Parameters!$C$20,2),G150*Parameters!$J$27)) ->  | O150: =IF(G150="","",ROUND(G150*Parameters!$C$16,2)) ->  | P150: =IF(G150="","",ROUND(G150*VLOOKUP(J150,Parameters!$E$3:$F$49,2,FALSE),2)) ->  | Q150: =IF(G150="","",ROUND(G150*Parameters!$J$66,2)) ->  | S150: =IF(G150="","",ROUND(G150*Parameters!$C$13,2)) ->  | T150: =IF(G150="","",IF(YEAR(Informatie!$C$1)=2015,ROUND(G150*Parameters!J$44,2),ROUND(G150*VLOOKUP('Overzicht deelnemers'!I150,Parameters!$E$4:$G$49,3,FALSE),2))) ->  | U150: =IF(G150="","",IF(YEAR(Informatie!$C$1)=2015,ROUND(T150*Parameters!$C$20,2),ROUND(G150*Parameters!$J$44,2))) ->  | W150: =IF(G150="","",ROUND(G150*Parameters!C$17,2)) ->  | X150: =IF(G150="","",ROUND(G150*VLOOKUP(J150,Parameters!E$4:G$49,3),2)) ->  | Y150: =IF(G150="","",ROUND(G150*Parameters!J$83,2)) -> 
E151: 0 | F151: =IF(C151="",0,IF(C151<=Parameters!$C$3,C151,Parameters!$C$3)) -> 0 | G151: =IF(C151="","",IF(F151<Parameters!$C$4,"",(F151-Parameters!$C$4)*D151)) ->  | I151: =IF(H151="","",YEAR(+Informatie!$C$1)-YEAR(H151)) ->  | K151: =IF(G151="","",ROUND(G151*Parameters!$C$12,2)) ->  | L151: =IF(G151="","",IF(YEAR(Informatie!$C$1)=2015,ROUND(G151*Parameters!$J$27,2),ROUND(G151*VLOOKUP('Overzicht deelnemers'!I151,Parameters!$E$4:$G$49,2,FALSE),2))) ->  | M151: =IF(G151="","",IF(YEAR(Informatie!$C$1)=2015,ROUND(L151*Parameters!$C$20,2),G151*Parameters!$J$27)) ->  | O151: =IF(G151="","",ROUND(G151*Parameters!$C$16,2)) ->  | P151: =IF(G151="","",ROUND(G151*VLOOKUP(J151,Parameters!$E$3:$F$49,2,FALSE),2)) ->  | Q151: =IF(G151="","",ROUND(G151*Parameters!$J$66,2)) ->  | S151: =IF(G151="","",ROUND(G151*Parameters!$C$13,2)) ->  | T151: =IF(G151="","",IF(YEAR(Informatie!$C$1)=2015,ROUND(G151*Parameters!J$44,2),ROUND(G151*VLOOKUP('Overzicht deelnemers'!I151,Parameters!$E$4:$G$49,3,FALSE),2))) ->  | U151: =IF(G151="","",IF(YEAR(Informatie!$C$1)=2015,ROUND(T151*Parameters!$C$20,2),ROUND(G151*Parameters!$J$44,2))) ->  | W151: =IF(G151="","",ROUND(G151*Parameters!C$17,2)) ->  | X151: =IF(G151="","",ROUND(G151*VLOOKUP(J151,Parameters!E$4:G$49,3),2)) ->  | Y151: =IF(G151="","",ROUND(G151*Parameters!J$83,2)) -> 
E152: 0 | F152: =IF(C152="",0,IF(C152<=Parameters!$C$3,C152,Parameters!$C$3)) -> 0 | G152: =IF(C152="","",IF(F152<Parameters!$C$4,"",(F152-Parameters!$C$4)*D152)) ->  | I152: =IF(H152="","",YEAR(+Informatie!$C$1)-YEAR(H152)) ->  | K152: =IF(G152="","",ROUND(G152*Parameters!$C$12,2)) ->  | L152: =IF(G152="","",IF(YEAR(Informatie!$C$1)=2015,ROUND(G152*Parameters!$J$27,2),ROUND(G152*VLOOKUP('Overzicht deelnemers'!I152,Parameters!$E$4:$G$49,2,FALSE),2))) ->  | M152: =IF(G152="","",IF(YEAR(Informatie!$C$1)=2015,ROUND(L152*Parameters!$C$20,2),G152*Parameters!$J$27)) ->  | O152: =IF(G152="","",ROUND(G152*Parameters!$C$16,2)) ->  | P152: =IF(G152="","",ROUND(G152*VLOOKUP(J152,Parameters!$E$3:$F$49,2,FALSE),2)) ->  | Q152: =IF(G152="","",ROUND(G152*Parameters!$J$66,2)) ->  | S152: =IF(G152="","",ROUND(G152*Parameters!$C$13,2)) ->  | T152: =IF(G152="","",IF(YEAR(Informatie!$C$1)=2015,ROUND(G152*Parameters!J$44,2),ROUND(G152*VLOOKUP('Overzicht deelnemers'!I152,Parameters!$E$4:$G$49,3,FALSE),2))) ->  | U152: =IF(G152="","",IF(YEAR(Informatie!$C$1)=2015,ROUND(T152*Parameters!$C$20,2),ROUND(G152*Parameters!$J$44,2))) ->  | W152: =IF(G152="","",ROUND(G152*Parameters!C$17,2)) ->  | X152: =IF(G152="","",ROUND(G152*VLOOKUP(J152,Parameters!E$4:G$49,3),2)) ->  | Y152: =IF(G152="","",ROUND(G152*Parameters!J$83,2)) -> 
E153: 0 | F153: =IF(C153="",0,IF(C153<=Parameters!$C$3,C153,Parameters!$C$3)) -> 0 | G153: =IF(C153="","",IF(F153<Parameters!$C$4,"",(F153-Parameters!$C$4)*D153)) ->  | I153: =IF(H153="","",YEAR(+Informatie!$C$1)-YEAR(H153)) ->  | K153: =IF(G153="","",ROUND(G153*Parameters!$C$12,2)) ->  | L153: =IF(G153="","",IF(YEAR(Informatie!$C$1)=2015,ROUND(G153*Parameters!$J$27,2),ROUND(G153*VLOOKUP('Overzicht deelnemers'!I153,Parameters!$E$4:$G$49,2,FALSE),2))) ->  | M153: =IF(G153="","",IF(YEAR(Informatie!$C$1)=2015,ROUND(L153*Parameters!$C$20,2),G153*Parameters!$J$27)) ->  | O153: =IF(G153="","",ROUND(G153*Parameters!$C$16,2)) ->  | P153: =IF(G153="","",ROUND(G153*VLOOKUP(J153,Parameters!$E$3:$F$49,2,FALSE),2)) ->  | Q153: =IF(G153="","",ROUND(G153*Parameters!$J$66,2)) ->  | S153: =IF(G153="","",ROUND(G153*Parameters!$C$13,2)) ->  | T153: =IF(G153="","",IF(YEAR(Informatie!$C$1)=2015,ROUND(G153*Parameters!J$44,2),ROUND(G153*VLOOKUP('Overzicht deelnemers'!I153,Parameters!$E$4:$G$49,3,FALSE),2))) ->  | U153: =IF(G153="","",IF(YEAR(Informatie!$C$1)=2015,ROUND(T153*Parameters!$C$20,2),ROUND(G153*Parameters!$J$44,2))) ->  | W153: =IF(G153="","",ROUND(G153*Parameters!C$17,2)) ->  | X153: =IF(G153="","",ROUND(G153*VLOOKUP(J153,Parameters!E$4:G$49,3),2)) ->  | Y153: =IF(G153="","",ROUND(G153*Parameters!J$83,2)) -> 
E154: 0 | F154: =IF(C154="",0,IF(C154<=Parameters!$C$3,C154,Parameters!$C$3)) -> 0 | G154: =IF(C154="","",IF(F154<Parameters!$C$4,"",(F154-Parameters!$C$4)*D154)) ->  | I154: =IF(H154="","",YEAR(+Informatie!$C$1)-YEAR(H154)) ->  | K154: =IF(G154="","",ROUND(G154*Parameters!$C$12,2)) ->  | L154: =IF(G154="","",IF(YEAR(Informatie!$C$1)=2015,ROUND(G154*Parameters!$J$27,2),ROUND(G154*VLOOKUP('Overzicht deelnemers'!I154,Parameters!$E$4:$G$49,2,FALSE),2))) ->  | M154: =IF(G154="","",IF(YEAR(Informatie!$C$1)=2015,ROUND(L154*Parameters!$C$20,2),G154*Parameters!$J$27)) ->  | O154: =IF(G154="","",ROUND(G154*Parameters!$C$16,2)) ->  | P154: =IF(G154="","",ROUND(G154*VLOOKUP(J154,Parameters!$E$3:$F$49,2,FALSE),2)) ->  | Q154: =IF(G154="","",ROUND(G154*Parameters!$J$66,2)) ->  | S154: =IF(G154="","",ROUND(G154*Parameters!$C$13,2)) ->  | T154: =IF(G154="","",IF(YEAR(Informatie!$C$1)=2015,ROUND(G154*Parameters!J$44,2),ROUND(G154*VLOOKUP('Overzicht deelnemers'!I154,Parameters!$E$4:$G$49,3,FALSE),2))) ->  | U154: =IF(G154="","",IF(YEAR(Informatie!$C$1)=2015,ROUND(T154*Parameters!$C$20,2),ROUND(G154*Parameters!$J$44,2))) ->  | W154: =IF(G154="","",ROUND(G154*Parameters!C$17,2)) ->  | X154: =IF(G154="","",ROUND(G154*VLOOKUP(J154,Parameters!E$4:G$49,3),2)) ->  | Y154: =IF(G154="","",ROUND(G154*Parameters!J$83,2)) -> 
E155: 0 | F155: =IF(C155="",0,IF(C155<=Parameters!$C$3,C155,Parameters!$C$3)) -> 0 | G155: =IF(C155="","",IF(F155<Parameters!$C$4,"",(F155-Parameters!$C$4)*D155)) ->  | I155: =IF(H155="","",YEAR(+Informatie!$C$1)-YEAR(H155)) ->  | K155: =IF(G155="","",ROUND(G155*Parameters!$C$12,2)) ->  | L155: =IF(G155="","",IF(YEAR(Informatie!$C$1)=2015,ROUND(G155*Parameters!$J$27,2),ROUND(G155*VLOOKUP('Overzicht deelnemers'!I155,Parameters!$E$4:$G$49,2,FALSE),2))) ->  | M155: =IF(G155="","",IF(YEAR(Informatie!$C$1)=2015,ROUND(L155*Parameters!$C$20,2),G155*Parameters!$J$27)) ->  | O155: =IF(G155="","",ROUND(G155*Parameters!$C$16,2)) ->  | P155: =IF(G155="","",ROUND(G155*VLOOKUP(J155,Parameters!$E$3:$F$49,2,FALSE),2)) ->  | Q155: =IF(G155="","",ROUND(G155*Parameters!$J$66,2)) ->  | S155: =IF(G155="","",ROUND(G155*Parameters!$C$13,2)) ->  | T155: =IF(G155="","",IF(YEAR(Informatie!$C$1)=2015,ROUND(G155*Parameters!J$44,2),ROUND(G155*VLOOKUP('Overzicht deelnemers'!I155,Parameters!$E$4:$G$49,3,FALSE),2))) ->  | U155: =IF(G155="","",IF(YEAR(Informatie!$C$1)=2015,ROUND(T155*Parameters!$C$20,2),ROUND(G155*Parameters!$J$44,2))) ->  | W155: =IF(G155="","",ROUND(G155*Parameters!C$17,2)) ->  | X155: =IF(G155="","",ROUND(G155*VLOOKUP(J155,Parameters!E$4:G$49,3),2)) ->  | Y155: =IF(G155="","",ROUND(G155*Parameters!J$83,2)) -> 
E156: 0 | F156: =IF(C156="",0,IF(C156<=Parameters!$C$3,C156,Parameters!$C$3)) -> 0 | G156: =IF(C156="","",IF(F156<Parameters!$C$4,"",(F156-Parameters!$C$4)*D156)) ->  | I156: =IF(H156="","",YEAR(+Informatie!$C$1)-YEAR(H156)) ->  | K156: =IF(G156="","",ROUND(G156*Parameters!$C$12,2)) ->  | L156: =IF(G156="","",IF(YEAR(Informatie!$C$1)=2015,ROUND(G156*Parameters!$J$27,2),ROUND(G156*VLOOKUP('Overzicht deelnemers'!I156,Parameters!$E$4:$G$49,2,FALSE),2))) ->  | M156: =IF(G156="","",IF(YEAR(Informatie!$C$1)=2015,ROUND(L156*Parameters!$C$20,2),G156*Parameters!$J$27)) ->  | O156: =IF(G156="","",ROUND(G156*Parameters!$C$16,2)) ->  | P156: =IF(G156="","",ROUND(G156*VLOOKUP(J156,Parameters!$E$3:$F$49,2,FALSE),2)) ->  | Q156: =IF(G156="","",ROUND(G156*Parameters!$J$66,2)) ->  | S156: =IF(G156="","",ROUND(G156*Parameters!$C$13,2)) ->  | T156: =IF(G156="","",IF(YEAR(Informatie!$C$1)=2015,ROUND(G156*Parameters!J$44,2),ROUND(G156*VLOOKUP('Overzicht deelnemers'!I156,Parameters!$E$4:$G$49,3,FALSE),2))) ->  | U156: =IF(G156="","",IF(YEAR(Informatie!$C$1)=2015,ROUND(T156*Parameters!$C$20,2),ROUND(G156*Parameters!$J$44,2))) ->  | W156: =IF(G156="","",ROUND(G156*Parameters!C$17,2)) ->  | X156: =IF(G156="","",ROUND(G156*VLOOKUP(J156,Parameters!E$4:G$49,3),2)) ->  | Y156: =IF(G156="","",ROUND(G156*Parameters!J$83,2)) -> 
E157: 0 | F157: =IF(C157="",0,IF(C157<=Parameters!$C$3,C157,Parameters!$C$3)) -> 0 | G157: =IF(C157="","",IF(F157<Parameters!$C$4,"",(F157-Parameters!$C$4)*D157)) ->  | I157: =IF(H157="","",YEAR(+Informatie!$C$1)-YEAR(H157)) ->  | K157: =IF(G157="","",ROUND(G157*Parameters!$C$12,2)) ->  | L157: =IF(G157="","",IF(YEAR(Informatie!$C$1)=2015,ROUND(G157*Parameters!$J$27,2),ROUND(G157*VLOOKUP('Overzicht deelnemers'!I157,Parameters!$E$4:$G$49,2,FALSE),2))) ->  | M157: =IF(G157="","",IF(YEAR(Informatie!$C$1)=2015,ROUND(L157*Parameters!$C$20,2),G157*Parameters!$J$27)) ->  | O157: =IF(G157="","",ROUND(G157*Parameters!$C$16,2)) ->  | P157: =IF(G157="","",ROUND(G157*VLOOKUP(J157,Parameters!$E$3:$F$49,2,FALSE),2)) ->  | Q157: =IF(G157="","",ROUND(G157*Parameters!$J$66,2)) ->  | S157: =IF(G157="","",ROUND(G157*Parameters!$C$13,2)) ->  | T157: =IF(G157="","",IF(YEAR(Informatie!$C$1)=2015,ROUND(G157*Parameters!J$44,2),ROUND(G157*VLOOKUP('Overzicht deelnemers'!I157,Parameters!$E$4:$G$49,3,FALSE),2))) ->  | U157: =IF(G157="","",IF(YEAR(Informatie!$C$1)=2015,ROUND(T157*Parameters!$C$20,2),ROUND(G157*Parameters!$J$44,2))) ->  | W157: =IF(G157="","",ROUND(G157*Parameters!C$17,2)) ->  | X157: =IF(G157="","",ROUND(G157*VLOOKUP(J157,Parameters!E$4:G$49,3),2)) ->  | Y157: =IF(G157="","",ROUND(G157*Parameters!J$83,2)) -> 
E158: 0 | F158: =IF(C158="",0,IF(C158<=Parameters!$C$3,C158,Parameters!$C$3)) -> 0 | G158: =IF(C158="","",IF(F158<Parameters!$C$4,"",(F158-Parameters!$C$4)*D158)) ->  | I158: =IF(H158="","",YEAR(+Informatie!$C$1)-YEAR(H158)) ->  | K158: =IF(G158="","",ROUND(G158*Parameters!$C$12,2)) ->  | L158: =IF(G158="","",IF(YEAR(Informatie!$C$1)=2015,ROUND(G158*Parameters!$J$27,2),ROUND(G158*VLOOKUP('Overzicht deelnemers'!I158,Parameters!$E$4:$G$49,2,FALSE),2))) ->  | M158: =IF(G158="","",IF(YEAR(Informatie!$C$1)=2015,ROUND(L158*Parameters!$C$20,2),G158*Parameters!$J$27)) ->  | O158: =IF(G158="","",ROUND(G158*Parameters!$C$16,2)) ->  | P158: =IF(G158="","",ROUND(G158*VLOOKUP(J158,Parameters!$E$3:$F$49,2,FALSE),2)) ->  | Q158: =IF(G158="","",ROUND(G158*Parameters!$J$66,2)) ->  | S158: =IF(G158="","",ROUND(G158*Parameters!$C$13,2)) ->  | T158: =IF(G158="","",IF(YEAR(Informatie!$C$1)=2015,ROUND(G158*Parameters!J$44,2),ROUND(G158*VLOOKUP('Overzicht deelnemers'!I158,Parameters!$E$4:$G$49,3,FALSE),2))) ->  | U158: =IF(G158="","",IF(YEAR(Informatie!$C$1)=2015,ROUND(T158*Parameters!$C$20,2),ROUND(G158*Parameters!$J$44,2))) ->  | W158: =IF(G158="","",ROUND(G158*Parameters!C$17,2)) ->  | X158: =IF(G158="","",ROUND(G158*VLOOKUP(J158,Parameters!E$4:G$49,3),2)) ->  | Y158: =IF(G158="","",ROUND(G158*Parameters!J$83,2)) -> 
E159: 0 | F159: =IF(C159="",0,IF(C159<=Parameters!$C$3,C159,Parameters!$C$3)) -> 0 | G159: =IF(C159="","",IF(F159<Parameters!$C$4,"",(F159-Parameters!$C$4)*D159)) ->  | I159: =IF(H159="","",YEAR(+Informatie!$C$1)-YEAR(H159)) ->  | K159: =IF(G159="","",ROUND(G159*Parameters!$C$12,2)) ->  | L159: =IF(G159="","",IF(YEAR(Informatie!$C$1)=2015,ROUND(G159*Parameters!$J$27,2),ROUND(G159*VLOOKUP('Overzicht deelnemers'!I159,Parameters!$E$4:$G$49,2,FALSE),2))) ->  | M159: =IF(G159="","",IF(YEAR(Informatie!$C$1)=2015,ROUND(L159*Parameters!$C$20,2),G159*Parameters!$J$27)) ->  | O159: =IF(G159="","",ROUND(G159*Parameters!$C$16,2)) ->  | P159: =IF(G159="","",ROUND(G159*VLOOKUP(J159,Parameters!$E$3:$F$49,2,FALSE),2)) ->  | Q159: =IF(G159="","",ROUND(G159*Parameters!$J$66,2)) ->  | S159: =IF(G159="","",ROUND(G159*Parameters!$C$13,2)) ->  | T159: =IF(G159="","",IF(YEAR(Informatie!$C$1)=2015,ROUND(G159*Parameters!J$44,2),ROUND(G159*VLOOKUP('Overzicht deelnemers'!I159,Parameters!$E$4:$G$49,3,FALSE),2))) ->  | U159: =IF(G159="","",IF(YEAR(Informatie!$C$1)=2015,ROUND(T159*Parameters!$C$20,2),ROUND(G159*Parameters!$J$44,2))) ->  | W159: =IF(G159="","",ROUND(G159*Parameters!C$17,2)) ->  | X159: =IF(G159="","",ROUND(G159*VLOOKUP(J159,Parameters!E$4:G$49,3),2)) ->  | Y159: =IF(G159="","",ROUND(G159*Parameters!J$83,2)) -> 
E160: 0 | F160: =IF(C160="",0,IF(C160<=Parameters!$C$3,C160,Parameters!$C$3)) -> 0 | G160: =IF(C160="","",IF(F160<Parameters!$C$4,"",(F160-Parameters!$C$4)*D160)) ->  | I160: =IF(H160="","",YEAR(+Informatie!$C$1)-YEAR(H160)) ->  | K160: =IF(G160="","",ROUND(G160*Parameters!$C$12,2)) ->  | L160: =IF(G160="","",IF(YEAR(Informatie!$C$1)=2015,ROUND(G160*Parameters!$J$27,2),ROUND(G160*VLOOKUP('Overzicht deelnemers'!I160,Parameters!$E$4:$G$49,2,FALSE),2))) ->  | M160: =IF(G160="","",IF(YEAR(Informatie!$C$1)=2015,ROUND(L160*Parameters!$C$20,2),G160*Parameters!$J$27)) ->  | O160: =IF(G160="","",ROUND(G160*Parameters!$C$16,2)) ->  | P160: =IF(G160="","",ROUND(G160*VLOOKUP(J160,Parameters!$E$3:$F$49,2,FALSE),2)) ->  | Q160: =IF(G160="","",ROUND(G160*Parameters!$J$66,2)) ->  | S160: =IF(G160="","",ROUND(G160*Parameters!$C$13,2)) ->  | T160: =IF(G160="","",IF(YEAR(Informatie!$C$1)=2015,ROUND(G160*Parameters!J$44,2),ROUND(G160*VLOOKUP('Overzicht deelnemers'!I160,Parameters!$E$4:$G$49,3,FALSE),2))) ->  | U160: =IF(G160="","",IF(YEAR(Informatie!$C$1)=2015,ROUND(T160*Parameters!$C$20,2),ROUND(G160*Parameters!$J$44,2))) ->  | W160: =IF(G160="","",ROUND(G160*Parameters!C$17,2)) ->  | X160: =IF(G160="","",ROUND(G160*VLOOKUP(J160,Parameters!E$4:G$49,3),2)) ->  | Y160: =IF(G160="","",ROUND(G160*Parameters!J$83,2)) -> 
E161: 0 | F161: =IF(C161="",0,IF(C161<=Parameters!$C$3,C161,Parameters!$C$3)) -> 0 | G161: =IF(C161="","",IF(F161<Parameters!$C$4,"",(F161-Parameters!$C$4)*D161)) ->  | I161: =IF(H161="","",YEAR(+Informatie!$C$1)-YEAR(H161)) ->  | K161: =IF(G161="","",ROUND(G161*Parameters!$C$12,2)) ->  | L161: =IF(G161="","",IF(YEAR(Informatie!$C$1)=2015,ROUND(G161*Parameters!$J$27,2),ROUND(G161*VLOOKUP('Overzicht deelnemers'!I161,Parameters!$E$4:$G$49,2,FALSE),2))) ->  | M161: =IF(G161="","",IF(YEAR(Informatie!$C$1)=2015,ROUND(L161*Parameters!$C$20,2),G161*Parameters!$J$27)) ->  | O161: =IF(G161="","",ROUND(G161*Parameters!$C$16,2)) ->  | P161: =IF(G161="","",ROUND(G161*VLOOKUP(J161,Parameters!$E$3:$F$49,2,FALSE),2)) ->  | Q161: =IF(G161="","",ROUND(G161*Parameters!$J$66,2)) ->  | S161: =IF(G161="","",ROUND(G161*Parameters!$C$13,2)) ->  | T161: =IF(G161="","",IF(YEAR(Informatie!$C$1)=2015,ROUND(G161*Parameters!J$44,2),ROUND(G161*VLOOKUP('Overzicht deelnemers'!I161,Parameters!$E$4:$G$49,3,FALSE),2))) ->  | U161: =IF(G161="","",IF(YEAR(Informatie!$C$1)=2015,ROUND(T161*Parameters!$C$20,2),ROUND(G161*Parameters!$J$44,2))) ->  | W161: =IF(G161="","",ROUND(G161*Parameters!C$17,2)) ->  | X161: =IF(G161="","",ROUND(G161*VLOOKUP(J161,Parameters!E$4:G$49,3),2)) ->  | Y161: =IF(G161="","",ROUND(G161*Parameters!J$83,2)) -> 
E162: 0 | F162: =IF(C162="",0,IF(C162<=Parameters!$C$3,C162,Parameters!$C$3)) -> 0 | G162: =IF(C162="","",IF(F162<Parameters!$C$4,"",(F162-Parameters!$C$4)*D162)) ->  | I162: =IF(H162="","",YEAR(+Informatie!$C$1)-YEAR(H162)) ->  | K162: =IF(G162="","",ROUND(G162*Parameters!$C$12,2)) ->  | L162: =IF(G162="","",IF(YEAR(Informatie!$C$1)=2015,ROUND(G162*Parameters!$J$27,2),ROUND(G162*VLOOKUP('Overzicht deelnemers'!I162,Parameters!$E$4:$G$49,2,FALSE),2))) ->  | M162: =IF(G162="","",IF(YEAR(Informatie!$C$1)=2015,ROUND(L162*Parameters!$C$20,2),G162*Parameters!$J$27)) ->  | O162: =IF(G162="","",ROUND(G162*Parameters!$C$16,2)) ->  | P162: =IF(G162="","",ROUND(G162*VLOOKUP(J162,Parameters!$E$3:$F$49,2,FALSE),2)) ->  | Q162: =IF(G162="","",ROUND(G162*Parameters!$J$66,2)) ->  | S162: =IF(G162="","",ROUND(G162*Parameters!$C$13,2)) ->  | T162: =IF(G162="","",IF(YEAR(Informatie!$C$1)=2015,ROUND(G162*Parameters!J$44,2),ROUND(G162*VLOOKUP('Overzicht deelnemers'!I162,Parameters!$E$4:$G$49,3,FALSE),2))) ->  | U162: =IF(G162="","",IF(YEAR(Informatie!$C$1)=2015,ROUND(T162*Parameters!$C$20,2),ROUND(G162*Parameters!$J$44,2))) ->  | W162: =IF(G162="","",ROUND(G162*Parameters!C$17,2)) ->  | X162: =IF(G162="","",ROUND(G162*VLOOKUP(J162,Parameters!E$4:G$49,3),2)) ->  | Y162: =IF(G162="","",ROUND(G162*Parameters!J$83,2)) -> 
E163: 0 | F163: =IF(C163="",0,IF(C163<=Parameters!$C$3,C163,Parameters!$C$3)) -> 0 | G163: =IF(C163="","",IF(F163<Parameters!$C$4,"",(F163-Parameters!$C$4)*D163)) ->  | I163: =IF(H163="","",YEAR(+Informatie!$C$1)-YEAR(H163)) ->  | K163: =IF(G163="","",ROUND(G163*Parameters!$C$12,2)) ->  | L163: =IF(G163="","",IF(YEAR(Informatie!$C$1)=2015,ROUND(G163*Parameters!$J$27,2),ROUND(G163*VLOOKUP('Overzicht deelnemers'!I163,Parameters!$E$4:$G$49,2,FALSE),2))) ->  | M163: =IF(G163="","",IF(YEAR(Informatie!$C$1)=2015,ROUND(L163*Parameters!$C$20,2),G163*Parameters!$J$27)) ->  | O163: =IF(G163="","",ROUND(G163*Parameters!$C$16,2)) ->  | P163: =IF(G163="","",ROUND(G163*VLOOKUP(J163,Parameters!$E$3:$F$49,2,FALSE),2)) ->  | Q163: =IF(G163="","",ROUND(G163*Parameters!$J$66,2)) ->  | S163: =IF(G163="","",ROUND(G163*Parameters!$C$13,2)) ->  | T163: =IF(G163="","",IF(YEAR(Informatie!$C$1)=2015,ROUND(G163*Parameters!J$44,2),ROUND(G163*VLOOKUP('Overzicht deelnemers'!I163,Parameters!$E$4:$G$49,3,FALSE),2))) ->  | U163: =IF(G163="","",IF(YEAR(Informatie!$C$1)=2015,ROUND(T163*Parameters!$C$20,2),ROUND(G163*Parameters!$J$44,2))) ->  | W163: =IF(G163="","",ROUND(G163*Parameters!C$17,2)) ->  | X163: =IF(G163="","",ROUND(G163*VLOOKUP(J163,Parameters!E$4:G$49,3),2)) ->  | Y163: =IF(G163="","",ROUND(G163*Parameters!J$83,2)) -> 
E164: 0 | F164: =IF(C164="",0,IF(C164<=Parameters!$C$3,C164,Parameters!$C$3)) -> 0 | G164: =IF(C164="","",IF(F164<Parameters!$C$4,"",(F164-Parameters!$C$4)*D164)) ->  | I164: =IF(H164="","",YEAR(+Informatie!$C$1)-YEAR(H164)) ->  | K164: =IF(G164="","",ROUND(G164*Parameters!$C$12,2)) ->  | L164: =IF(G164="","",IF(YEAR(Informatie!$C$1)=2015,ROUND(G164*Parameters!$J$27,2),ROUND(G164*VLOOKUP('Overzicht deelnemers'!I164,Parameters!$E$4:$G$49,2,FALSE),2))) ->  | M164: =IF(G164="","",IF(YEAR(Informatie!$C$1)=2015,ROUND(L164*Parameters!$C$20,2),G164*Parameters!$J$27)) ->  | O164: =IF(G164="","",ROUND(G164*Parameters!$C$16,2)) ->  | P164: =IF(G164="","",ROUND(G164*VLOOKUP(J164,Parameters!$E$3:$F$49,2,FALSE),2)) ->  | Q164: =IF(G164="","",ROUND(G164*Parameters!$J$66,2)) ->  | S164: =IF(G164="","",ROUND(G164*Parameters!$C$13,2)) ->  | T164: =IF(G164="","",IF(YEAR(Informatie!$C$1)=2015,ROUND(G164*Parameters!J$44,2),ROUND(G164*VLOOKUP('Overzicht deelnemers'!I164,Parameters!$E$4:$G$49,3,FALSE),2))) ->  | U164: =IF(G164="","",IF(YEAR(Informatie!$C$1)=2015,ROUND(T164*Parameters!$C$20,2),ROUND(G164*Parameters!$J$44,2))) ->  | W164: =IF(G164="","",ROUND(G164*Parameters!C$17,2)) ->  | X164: =IF(G164="","",ROUND(G164*VLOOKUP(J164,Parameters!E$4:G$49,3),2)) ->  | Y164: =IF(G164="","",ROUND(G164*Parameters!J$83,2)) -> 
E165: 0 | F165: =IF(C165="",0,IF(C165<=Parameters!$C$3,C165,Parameters!$C$3)) -> 0 | G165: =IF(C165="","",IF(F165<Parameters!$C$4,"",(F165-Parameters!$C$4)*D165)) ->  | I165: =IF(H165="","",YEAR(+Informatie!$C$1)-YEAR(H165)) ->  | K165: =IF(G165="","",ROUND(G165*Parameters!$C$12,2)) ->  | L165: =IF(G165="","",IF(YEAR(Informatie!$C$1)=2015,ROUND(G165*Parameters!$J$27,2),ROUND(G165*VLOOKUP('Overzicht deelnemers'!I165,Parameters!$E$4:$G$49,2,FALSE),2))) ->  | M165: =IF(G165="","",IF(YEAR(Informatie!$C$1)=2015,ROUND(L165*Parameters!$C$20,2),G165*Parameters!$J$27)) ->  | O165: =IF(G165="","",ROUND(G165*Parameters!$C$16,2)) ->  | P165: =IF(G165="","",ROUND(G165*VLOOKUP(J165,Parameters!$E$3:$F$49,2,FALSE),2)) ->  | Q165: =IF(G165="","",ROUND(G165*Parameters!$J$66,2)) ->  | S165: =IF(G165="","",ROUND(G165*Parameters!$C$13,2)) ->  | T165: =IF(G165="","",IF(YEAR(Informatie!$C$1)=2015,ROUND(G165*Parameters!J$44,2),ROUND(G165*VLOOKUP('Overzicht deelnemers'!I165,Parameters!$E$4:$G$49,3,FALSE),2))) ->  | U165: =IF(G165="","",IF(YEAR(Informatie!$C$1)=2015,ROUND(T165*Parameters!$C$20,2),ROUND(G165*Parameters!$J$44,2))) ->  | W165: =IF(G165="","",ROUND(G165*Parameters!C$17,2)) ->  | X165: =IF(G165="","",ROUND(G165*VLOOKUP(J165,Parameters!E$4:G$49,3),2)) ->  | Y165: =IF(G165="","",ROUND(G165*Parameters!J$83,2)) -> 
E166: 0 | F166: =IF(C166="",0,IF(C166<=Parameters!$C$3,C166,Parameters!$C$3)) -> 0 | G166: =IF(C166="","",IF(F166<Parameters!$C$4,"",(F166-Parameters!$C$4)*D166)) ->  | I166: =IF(H166="","",YEAR(+Informatie!$C$1)-YEAR(H166)) ->  | K166: =IF(G166="","",ROUND(G166*Parameters!$C$12,2)) ->  | L166: =IF(G166="","",IF(YEAR(Informatie!$C$1)=2015,ROUND(G166*Parameters!$J$27,2),ROUND(G166*VLOOKUP('Overzicht deelnemers'!I166,Parameters!$E$4:$G$49,2,FALSE),2))) ->  | M166: =IF(G166="","",IF(YEAR(Informatie!$C$1)=2015,ROUND(L166*Parameters!$C$20,2),G166*Parameters!$J$27)) ->  | O166: =IF(G166="","",ROUND(G166*Parameters!$C$16,2)) ->  | P166: =IF(G166="","",ROUND(G166*VLOOKUP(J166,Parameters!$E$3:$F$49,2,FALSE),2)) ->  | Q166: =IF(G166="","",ROUND(G166*Parameters!$J$66,2)) ->  | S166: =IF(G166="","",ROUND(G166*Parameters!$C$13,2)) ->  | T166: =IF(G166="","",IF(YEAR(Informatie!$C$1)=2015,ROUND(G166*Parameters!J$44,2),ROUND(G166*VLOOKUP('Overzicht deelnemers'!I166,Parameters!$E$4:$G$49,3,FALSE),2))) ->  | U166: =IF(G166="","",IF(YEAR(Informatie!$C$1)=2015,ROUND(T166*Parameters!$C$20,2),ROUND(G166*Parameters!$J$44,2))) ->  | W166: =IF(G166="","",ROUND(G166*Parameters!C$17,2)) ->  | X166: =IF(G166="","",ROUND(G166*VLOOKUP(J166,Parameters!E$4:G$49,3),2)) ->  | Y166: =IF(G166="","",ROUND(G166*Parameters!J$83,2)) -> 
E167: 0 | F167: =IF(C167="",0,IF(C167<=Parameters!$C$3,C167,Parameters!$C$3)) -> 0 | G167: =IF(C167="","",IF(F167<Parameters!$C$4,"",(F167-Parameters!$C$4)*D167)) ->  | I167: =IF(H167="","",YEAR(+Informatie!$C$1)-YEAR(H167)) ->  | K167: =IF(G167="","",ROUND(G167*Parameters!$C$12,2)) ->  | L167: =IF(G167="","",IF(YEAR(Informatie!$C$1)=2015,ROUND(G167*Parameters!$J$27,2),ROUND(G167*VLOOKUP('Overzicht deelnemers'!I167,Parameters!$E$4:$G$49,2,FALSE),2))) ->  | M167: =IF(G167="","",IF(YEAR(Informatie!$C$1)=2015,ROUND(L167*Parameters!$C$20,2),G167*Parameters!$J$27)) ->  | O167: =IF(G167="","",ROUND(G167*Parameters!$C$16,2)) ->  | P167: =IF(G167="","",ROUND(G167*VLOOKUP(J167,Parameters!$E$3:$F$49,2,FALSE),2)) ->  | Q167: =IF(G167="","",ROUND(G167*Parameters!$J$66,2)) ->  | S167: =IF(G167="","",ROUND(G167*Parameters!$C$13,2)) ->  | T167: =IF(G167="","",IF(YEAR(Informatie!$C$1)=2015,ROUND(G167*Parameters!J$44,2),ROUND(G167*VLOOKUP('Overzicht deelnemers'!I167,Parameters!$E$4:$G$49,3,FALSE),2))) ->  | U167: =IF(G167="","",IF(YEAR(Informatie!$C$1)=2015,ROUND(T167*Parameters!$C$20,2),ROUND(G167*Parameters!$J$44,2))) ->  | W167: =IF(G167="","",ROUND(G167*Parameters!C$17,2)) ->  | X167: =IF(G167="","",ROUND(G167*VLOOKUP(J167,Parameters!E$4:G$49,3),2)) ->  | Y167: =IF(G167="","",ROUND(G167*Parameters!J$83,2)) -> 
E168: 0 | F168: =IF(C168="",0,IF(C168<=Parameters!$C$3,C168,Parameters!$C$3)) -> 0 | G168: =IF(C168="","",IF(F168<Parameters!$C$4,"",(F168-Parameters!$C$4)*D168)) ->  | I168: =IF(H168="","",YEAR(+Informatie!$C$1)-YEAR(H168)) ->  | K168: =IF(G168="","",ROUND(G168*Parameters!$C$12,2)) ->  | L168: =IF(G168="","",IF(YEAR(Informatie!$C$1)=2015,ROUND(G168*Parameters!$J$27,2),ROUND(G168*VLOOKUP('Overzicht deelnemers'!I168,Parameters!$E$4:$G$49,2,FALSE),2))) ->  | M168: =IF(G168="","",IF(YEAR(Informatie!$C$1)=2015,ROUND(L168*Parameters!$C$20,2),G168*Parameters!$J$27)) ->  | O168: =IF(G168="","",ROUND(G168*Parameters!$C$16,2)) ->  | P168: =IF(G168="","",ROUND(G168*VLOOKUP(J168,Parameters!$E$3:$F$49,2,FALSE),2)) ->  | Q168: =IF(G168="","",ROUND(G168*Parameters!$J$66,2)) ->  | S168: =IF(G168="","",ROUND(G168*Parameters!$C$13,2)) ->  | T168: =IF(G168="","",IF(YEAR(Informatie!$C$1)=2015,ROUND(G168*Parameters!J$44,2),ROUND(G168*VLOOKUP('Overzicht deelnemers'!I168,Parameters!$E$4:$G$49,3,FALSE),2))) ->  | U168: =IF(G168="","",IF(YEAR(Informatie!$C$1)=2015,ROUND(T168*Parameters!$C$20,2),ROUND(G168*Parameters!$J$44,2))) ->  | W168: =IF(G168="","",ROUND(G168*Parameters!C$17,2)) ->  | X168: =IF(G168="","",ROUND(G168*VLOOKUP(J168,Parameters!E$4:G$49,3),2)) ->  | Y168: =IF(G168="","",ROUND(G168*Parameters!J$83,2)) -> 
E169: 0 | F169: =IF(C169="",0,IF(C169<=Parameters!$C$3,C169,Parameters!$C$3)) -> 0 | G169: =IF(C169="","",IF(F169<Parameters!$C$4,"",(F169-Parameters!$C$4)*D169)) ->  | I169: =IF(H169="","",YEAR(+Informatie!$C$1)-YEAR(H169)) ->  | K169: =IF(G169="","",ROUND(G169*Parameters!$C$12,2)) ->  | L169: =IF(G169="","",IF(YEAR(Informatie!$C$1)=2015,ROUND(G169*Parameters!$J$27,2),ROUND(G169*VLOOKUP('Overzicht deelnemers'!I169,Parameters!$E$4:$G$49,2,FALSE),2))) ->  | M169: =IF(G169="","",IF(YEAR(Informatie!$C$1)=2015,ROUND(L169*Parameters!$C$20,2),G169*Parameters!$J$27)) ->  | O169: =IF(G169="","",ROUND(G169*Parameters!$C$16,2)) ->  | P169: =IF(G169="","",ROUND(G169*VLOOKUP(J169,Parameters!$E$3:$F$49,2,FALSE),2)) ->  | Q169: =IF(G169="","",ROUND(G169*Parameters!$J$66,2)) ->  | S169: =IF(G169="","",ROUND(G169*Parameters!$C$13,2)) ->  | T169: =IF(G169="","",IF(YEAR(Informatie!$C$1)=2015,ROUND(G169*Parameters!J$44,2),ROUND(G169*VLOOKUP('Overzicht deelnemers'!I169,Parameters!$E$4:$G$49,3,FALSE),2))) ->  | U169: =IF(G169="","",IF(YEAR(Informatie!$C$1)=2015,ROUND(T169*Parameters!$C$20,2),ROUND(G169*Parameters!$J$44,2))) ->  | W169: =IF(G169="","",ROUND(G169*Parameters!C$17,2)) ->  | X169: =IF(G169="","",ROUND(G169*VLOOKUP(J169,Parameters!E$4:G$49,3),2)) ->  | Y169: =IF(G169="","",ROUND(G169*Parameters!J$83,2)) -> 
E170: 0 | F170: =IF(C170="",0,IF(C170<=Parameters!$C$3,C170,Parameters!$C$3)) -> 0 | G170: =IF(C170="","",IF(F170<Parameters!$C$4,"",(F170-Parameters!$C$4)*D170)) ->  | I170: =IF(H170="","",YEAR(+Informatie!$C$1)-YEAR(H170)) ->  | K170: =IF(G170="","",ROUND(G170*Parameters!$C$12,2)) ->  | L170: =IF(G170="","",IF(YEAR(Informatie!$C$1)=2015,ROUND(G170*Parameters!$J$27,2),ROUND(G170*VLOOKUP('Overzicht deelnemers'!I170,Parameters!$E$4:$G$49,2,FALSE),2))) ->  | M170: =IF(G170="","",IF(YEAR(Informatie!$C$1)=2015,ROUND(L170*Parameters!$C$20,2),G170*Parameters!$J$27)) ->  | O170: =IF(G170="","",ROUND(G170*Parameters!$C$16,2)) ->  | P170: =IF(G170="","",ROUND(G170*VLOOKUP(J170,Parameters!$E$3:$F$49,2,FALSE),2)) ->  | Q170: =IF(G170="","",ROUND(G170*Parameters!$J$66,2)) ->  | S170: =IF(G170="","",ROUND(G170*Parameters!$C$13,2)) ->  | T170: =IF(G170="","",IF(YEAR(Informatie!$C$1)=2015,ROUND(G170*Parameters!J$44,2),ROUND(G170*VLOOKUP('Overzicht deelnemers'!I170,Parameters!$E$4:$G$49,3,FALSE),2))) ->  | U170: =IF(G170="","",IF(YEAR(Informatie!$C$1)=2015,ROUND(T170*Parameters!$C$20,2),ROUND(G170*Parameters!$J$44,2))) ->  | W170: =IF(G170="","",ROUND(G170*Parameters!C$17,2)) ->  | X170: =IF(G170="","",ROUND(G170*VLOOKUP(J170,Parameters!E$4:G$49,3),2)) ->  | Y170: =IF(G170="","",ROUND(G170*Parameters!J$83,2)) -> 
E171: 0 | F171: =IF(C171="",0,IF(C171<=Parameters!$C$3,C171,Parameters!$C$3)) -> 0 | G171: =IF(C171="","",IF(F171<Parameters!$C$4,"",(F171-Parameters!$C$4)*D171)) ->  | I171: =IF(H171="","",YEAR(+Informatie!$C$1)-YEAR(H171)) ->  | K171: =IF(G171="","",ROUND(G171*Parameters!$C$12,2)) ->  | L171: =IF(G171="","",IF(YEAR(Informatie!$C$1)=2015,ROUND(G171*Parameters!$J$27,2),ROUND(G171*VLOOKUP('Overzicht deelnemers'!I171,Parameters!$E$4:$G$49,2,FALSE),2))) ->  | M171: =IF(G171="","",IF(YEAR(Informatie!$C$1)=2015,ROUND(L171*Parameters!$C$20,2),G171*Parameters!$J$27)) ->  | O171: =IF(G171="","",ROUND(G171*Parameters!$C$16,2)) ->  | P171: =IF(G171="","",ROUND(G171*VLOOKUP(J171,Parameters!$E$3:$F$49,2,FALSE),2)) ->  | Q171: =IF(G171="","",ROUND(G171*Parameters!$J$66,2)) ->  | S171: =IF(G171="","",ROUND(G171*Parameters!$C$13,2)) ->  | T171: =IF(G171="","",IF(YEAR(Informatie!$C$1)=2015,ROUND(G171*Parameters!J$44,2),ROUND(G171*VLOOKUP('Overzicht deelnemers'!I171,Parameters!$E$4:$G$49,3,FALSE),2))) ->  | U171: =IF(G171="","",IF(YEAR(Informatie!$C$1)=2015,ROUND(T171*Parameters!$C$20,2),ROUND(G171*Parameters!$J$44,2))) ->  | W171: =IF(G171="","",ROUND(G171*Parameters!C$17,2)) ->  | X171: =IF(G171="","",ROUND(G171*VLOOKUP(J171,Parameters!E$4:G$49,3),2)) ->  | Y171: =IF(G171="","",ROUND(G171*Parameters!J$83,2)) -> 
E172: 0 | F172: =IF(C172="",0,IF(C172<=Parameters!$C$3,C172,Parameters!$C$3)) -> 0 | G172: =IF(C172="","",IF(F172<Parameters!$C$4,"",(F172-Parameters!$C$4)*D172)) ->  | I172: =IF(H172="","",YEAR(+Informatie!$C$1)-YEAR(H172)) ->  | K172: =IF(G172="","",ROUND(G172*Parameters!$C$12,2)) ->  | L172: =IF(G172="","",IF(YEAR(Informatie!$C$1)=2015,ROUND(G172*Parameters!$J$27,2),ROUND(G172*VLOOKUP('Overzicht deelnemers'!I172,Parameters!$E$4:$G$49,2,FALSE),2))) ->  | M172: =IF(G172="","",IF(YEAR(Informatie!$C$1)=2015,ROUND(L172*Parameters!$C$20,2),G172*Parameters!$J$27)) ->  | O172: =IF(G172="","",ROUND(G172*Parameters!$C$16,2)) ->  | P172: =IF(G172="","",ROUND(G172*VLOOKUP(J172,Parameters!$E$3:$F$49,2,FALSE),2)) ->  | Q172: =IF(G172="","",ROUND(G172*Parameters!$J$66,2)) ->  | S172: =IF(G172="","",ROUND(G172*Parameters!$C$13,2)) ->  | T172: =IF(G172="","",IF(YEAR(Informatie!$C$1)=2015,ROUND(G172*Parameters!J$44,2),ROUND(G172*VLOOKUP('Overzicht deelnemers'!I172,Parameters!$E$4:$G$49,3,FALSE),2))) ->  | U172: =IF(G172="","",IF(YEAR(Informatie!$C$1)=2015,ROUND(T172*Parameters!$C$20,2),ROUND(G172*Parameters!$J$44,2))) ->  | W172: =IF(G172="","",ROUND(G172*Parameters!C$17,2)) ->  | X172: =IF(G172="","",ROUND(G172*VLOOKUP(J172,Parameters!E$4:G$49,3),2)) ->  | Y172: =IF(G172="","",ROUND(G172*Parameters!J$83,2)) -> 
E173: 0 | F173: =IF(C173="",0,IF(C173<=Parameters!$C$3,C173,Parameters!$C$3)) -> 0 | G173: =IF(C173="","",IF(F173<Parameters!$C$4,"",(F173-Parameters!$C$4)*D173)) ->  | I173: =IF(H173="","",YEAR(+Informatie!$C$1)-YEAR(H173)) ->  | K173: =IF(G173="","",ROUND(G173*Parameters!$C$12,2)) ->  | L173: =IF(G173="","",IF(YEAR(Informatie!$C$1)=2015,ROUND(G173*Parameters!$J$27,2),ROUND(G173*VLOOKUP('Overzicht deelnemers'!I173,Parameters!$E$4:$G$49,2,FALSE),2))) ->  | M173: =IF(G173="","",IF(YEAR(Informatie!$C$1)=2015,ROUND(L173*Parameters!$C$20,2),G173*Parameters!$J$27)) ->  | O173: =IF(G173="","",ROUND(G173*Parameters!$C$16,2)) ->  | P173: =IF(G173="","",ROUND(G173*VLOOKUP(J173,Parameters!$E$3:$F$49,2,FALSE),2)) ->  | Q173: =IF(G173="","",ROUND(G173*Parameters!$J$66,2)) ->  | S173: =IF(G173="","",ROUND(G173*Parameters!$C$13,2)) ->  | T173: =IF(G173="","",IF(YEAR(Informatie!$C$1)=2015,ROUND(G173*Parameters!J$44,2),ROUND(G173*VLOOKUP('Overzicht deelnemers'!I173,Parameters!$E$4:$G$49,3,FALSE),2))) ->  | U173: =IF(G173="","",IF(YEAR(Informatie!$C$1)=2015,ROUND(T173*Parameters!$C$20,2),ROUND(G173*Parameters!$J$44,2))) ->  | W173: =IF(G173="","",ROUND(G173*Parameters!C$17,2)) ->  | X173: =IF(G173="","",ROUND(G173*VLOOKUP(J173,Parameters!E$4:G$49,3),2)) ->  | Y173: =IF(G173="","",ROUND(G173*Parameters!J$83,2)) -> 
E174: 0 | F174: =IF(C174="",0,IF(C174<=Parameters!$C$3,C174,Parameters!$C$3)) -> 0 | G174: =IF(C174="","",IF(F174<Parameters!$C$4,"",(F174-Parameters!$C$4)*D174)) ->  | I174: =IF(H174="","",YEAR(+Informatie!$C$1)-YEAR(H174)) ->  | K174: =IF(G174="","",ROUND(G174*Parameters!$C$12,2)) ->  | L174: =IF(G174="","",IF(YEAR(Informatie!$C$1)=2015,ROUND(G174*Parameters!$J$27,2),ROUND(G174*VLOOKUP('Overzicht deelnemers'!I174,Parameters!$E$4:$G$49,2,FALSE),2))) ->  | M174: =IF(G174="","",IF(YEAR(Informatie!$C$1)=2015,ROUND(L174*Parameters!$C$20,2),G174*Parameters!$J$27)) ->  | O174: =IF(G174="","",ROUND(G174*Parameters!$C$16,2)) ->  | P174: =IF(G174="","",ROUND(G174*VLOOKUP(J174,Parameters!$E$3:$F$49,2,FALSE),2)) ->  | Q174: =IF(G174="","",ROUND(G174*Parameters!$J$66,2)) ->  | S174: =IF(G174="","",ROUND(G174*Parameters!$C$13,2)) ->  | T174: =IF(G174="","",IF(YEAR(Informatie!$C$1)=2015,ROUND(G174*Parameters!J$44,2),ROUND(G174*VLOOKUP('Overzicht deelnemers'!I174,Parameters!$E$4:$G$49,3,FALSE),2))) ->  | U174: =IF(G174="","",IF(YEAR(Informatie!$C$1)=2015,ROUND(T174*Parameters!$C$20,2),ROUND(G174*Parameters!$J$44,2))) ->  | W174: =IF(G174="","",ROUND(G174*Parameters!C$17,2)) ->  | X174: =IF(G174="","",ROUND(G174*VLOOKUP(J174,Parameters!E$4:G$49,3),2)) ->  | Y174: =IF(G174="","",ROUND(G174*Parameters!J$83,2)) -> 
E175: 0 | F175: =IF(C175="",0,IF(C175<=Parameters!$C$3,C175,Parameters!$C$3)) -> 0 | G175: =IF(C175="","",IF(F175<Parameters!$C$4,"",(F175-Parameters!$C$4)*D175)) ->  | I175: =IF(H175="","",YEAR(+Informatie!$C$1)-YEAR(H175)) ->  | K175: =IF(G175="","",ROUND(G175*Parameters!$C$12,2)) ->  | L175: =IF(G175="","",IF(YEAR(Informatie!$C$1)=2015,ROUND(G175*Parameters!$J$27,2),ROUND(G175*VLOOKUP('Overzicht deelnemers'!I175,Parameters!$E$4:$G$49,2,FALSE),2))) ->  | M175: =IF(G175="","",IF(YEAR(Informatie!$C$1)=2015,ROUND(L175*Parameters!$C$20,2),G175*Parameters!$J$27)) ->  | O175: =IF(G175="","",ROUND(G175*Parameters!$C$16,2)) ->  | P175: =IF(G175="","",ROUND(G175*VLOOKUP(J175,Parameters!$E$3:$F$49,2,FALSE),2)) ->  | Q175: =IF(G175="","",ROUND(G175*Parameters!$J$66,2)) ->  | S175: =IF(G175="","",ROUND(G175*Parameters!$C$13,2)) ->  | T175: =IF(G175="","",IF(YEAR(Informatie!$C$1)=2015,ROUND(G175*Parameters!J$44,2),ROUND(G175*VLOOKUP('Overzicht deelnemers'!I175,Parameters!$E$4:$G$49,3,FALSE),2))) ->  | U175: =IF(G175="","",IF(YEAR(Informatie!$C$1)=2015,ROUND(T175*Parameters!$C$20,2),ROUND(G175*Parameters!$J$44,2))) ->  | W175: =IF(G175="","",ROUND(G175*Parameters!C$17,2)) ->  | X175: =IF(G175="","",ROUND(G175*VLOOKUP(J175,Parameters!E$4:G$49,3),2)) ->  | Y175: =IF(G175="","",ROUND(G175*Parameters!J$83,2)) -> 
E176: 0 | F176: =IF(C176="",0,IF(C176<=Parameters!$C$3,C176,Parameters!$C$3)) -> 0 | G176: =IF(C176="","",IF(F176<Parameters!$C$4,"",(F176-Parameters!$C$4)*D176)) ->  | I176: =IF(H176="","",YEAR(+Informatie!$C$1)-YEAR(H176)) ->  | K176: =IF(G176="","",ROUND(G176*Parameters!$C$12,2)) ->  | L176: =IF(G176="","",IF(YEAR(Informatie!$C$1)=2015,ROUND(G176*Parameters!$J$27,2),ROUND(G176*VLOOKUP('Overzicht deelnemers'!I176,Parameters!$E$4:$G$49,2,FALSE),2))) ->  | M176: =IF(G176="","",IF(YEAR(Informatie!$C$1)=2015,ROUND(L176*Parameters!$C$20,2),G176*Parameters!$J$27)) ->  | O176: =IF(G176="","",ROUND(G176*Parameters!$C$16,2)) ->  | P176: =IF(G176="","",ROUND(G176*VLOOKUP(J176,Parameters!$E$3:$F$49,2,FALSE),2)) ->  | Q176: =IF(G176="","",ROUND(G176*Parameters!$J$66,2)) ->  | S176: =IF(G176="","",ROUND(G176*Parameters!$C$13,2)) ->  | T176: =IF(G176="","",IF(YEAR(Informatie!$C$1)=2015,ROUND(G176*Parameters!J$44,2),ROUND(G176*VLOOKUP('Overzicht deelnemers'!I176,Parameters!$E$4:$G$49,3,FALSE),2))) ->  | U176: =IF(G176="","",IF(YEAR(Informatie!$C$1)=2015,ROUND(T176*Parameters!$C$20,2),ROUND(G176*Parameters!$J$44,2))) ->  | W176: =IF(G176="","",ROUND(G176*Parameters!C$17,2)) ->  | X176: =IF(G176="","",ROUND(G176*VLOOKUP(J176,Parameters!E$4:G$49,3),2)) ->  | Y176: =IF(G176="","",ROUND(G176*Parameters!J$83,2)) -> 
E177: 0 | F177: =IF(C177="",0,IF(C177<=Parameters!$C$3,C177,Parameters!$C$3)) -> 0 | G177: =IF(C177="","",IF(F177<Parameters!$C$4,"",(F177-Parameters!$C$4)*D177)) ->  | I177: =IF(H177="","",YEAR(+Informatie!$C$1)-YEAR(H177)) ->  | K177: =IF(G177="","",ROUND(G177*Parameters!$C$12,2)) ->  | L177: =IF(G177="","",IF(YEAR(Informatie!$C$1)=2015,ROUND(G177*Parameters!$J$27,2),ROUND(G177*VLOOKUP('Overzicht deelnemers'!I177,Parameters!$E$4:$G$49,2,FALSE),2))) ->  | M177: =IF(G177="","",IF(YEAR(Informatie!$C$1)=2015,ROUND(L177*Parameters!$C$20,2),G177*Parameters!$J$27)) ->  | O177: =IF(G177="","",ROUND(G177*Parameters!$C$16,2)) ->  | P177: =IF(G177="","",ROUND(G177*VLOOKUP(J177,Parameters!$E$3:$F$49,2,FALSE),2)) ->  | Q177: =IF(G177="","",ROUND(G177*Parameters!$J$66,2)) ->  | S177: =IF(G177="","",ROUND(G177*Parameters!$C$13,2)) ->  | T177: =IF(G177="","",IF(YEAR(Informatie!$C$1)=2015,ROUND(G177*Parameters!J$44,2),ROUND(G177*VLOOKUP('Overzicht deelnemers'!I177,Parameters!$E$4:$G$49,3,FALSE),2))) ->  | U177: =IF(G177="","",IF(YEAR(Informatie!$C$1)=2015,ROUND(T177*Parameters!$C$20,2),ROUND(G177*Parameters!$J$44,2))) ->  | W177: =IF(G177="","",ROUND(G177*Parameters!C$17,2)) ->  | X177: =IF(G177="","",ROUND(G177*VLOOKUP(J177,Parameters!E$4:G$49,3),2)) ->  | Y177: =IF(G177="","",ROUND(G177*Parameters!J$83,2)) -> 
E178: 0 | F178: =IF(C178="",0,IF(C178<=Parameters!$C$3,C178,Parameters!$C$3)) -> 0 | G178: =IF(C178="","",IF(F178<Parameters!$C$4,"",(F178-Parameters!$C$4)*D178)) ->  | I178: =IF(H178="","",YEAR(+Informatie!$C$1)-YEAR(H178)) ->  | K178: =IF(G178="","",ROUND(G178*Parameters!$C$12,2)) ->  | L178: =IF(G178="","",IF(YEAR(Informatie!$C$1)=2015,ROUND(G178*Parameters!$J$27,2),ROUND(G178*VLOOKUP('Overzicht deelnemers'!I178,Parameters!$E$4:$G$49,2,FALSE),2))) ->  | M178: =IF(G178="","",IF(YEAR(Informatie!$C$1)=2015,ROUND(L178*Parameters!$C$20,2),G178*Parameters!$J$27)) ->  | O178: =IF(G178="","",ROUND(G178*Parameters!$C$16,2)) ->  | P178: =IF(G178="","",ROUND(G178*VLOOKUP(J178,Parameters!$E$3:$F$49,2,FALSE),2)) ->  | Q178: =IF(G178="","",ROUND(G178*Parameters!$J$66,2)) ->  | S178: =IF(G178="","",ROUND(G178*Parameters!$C$13,2)) ->  | T178: =IF(G178="","",IF(YEAR(Informatie!$C$1)=2015,ROUND(G178*Parameters!J$44,2),ROUND(G178*VLOOKUP('Overzicht deelnemers'!I178,Parameters!$E$4:$G$49,3,FALSE),2))) ->  | U178: =IF(G178="","",IF(YEAR(Informatie!$C$1)=2015,ROUND(T178*Parameters!$C$20,2),ROUND(G178*Parameters!$J$44,2))) ->  | W178: =IF(G178="","",ROUND(G178*Parameters!C$17,2)) ->  | X178: =IF(G178="","",ROUND(G178*VLOOKUP(J178,Parameters!E$4:G$49,3),2)) ->  | Y178: =IF(G178="","",ROUND(G178*Parameters!J$83,2)) -> 
E179: 0 | F179: =IF(C179="",0,IF(C179<=Parameters!$C$3,C179,Parameters!$C$3)) -> 0 | G179: =IF(C179="","",IF(F179<Parameters!$C$4,"",(F179-Parameters!$C$4)*D179)) ->  | I179: =IF(H179="","",YEAR(+Informatie!$C$1)-YEAR(H179)) ->  | K179: =IF(G179="","",ROUND(G179*Parameters!$C$12,2)) ->  | L179: =IF(G179="","",IF(YEAR(Informatie!$C$1)=2015,ROUND(G179*Parameters!$J$27,2),ROUND(G179*VLOOKUP('Overzicht deelnemers'!I179,Parameters!$E$4:$G$49,2,FALSE),2))) ->  | M179: =IF(G179="","",IF(YEAR(Informatie!$C$1)=2015,ROUND(L179*Parameters!$C$20,2),G179*Parameters!$J$27)) ->  | O179: =IF(G179="","",ROUND(G179*Parameters!$C$16,2)) ->  | P179: =IF(G179="","",ROUND(G179*VLOOKUP(J179,Parameters!$E$3:$F$49,2,FALSE),2)) ->  | Q179: =IF(G179="","",ROUND(G179*Parameters!$J$66,2)) ->  | S179: =IF(G179="","",ROUND(G179*Parameters!$C$13,2)) ->  | T179: =IF(G179="","",IF(YEAR(Informatie!$C$1)=2015,ROUND(G179*Parameters!J$44,2),ROUND(G179*VLOOKUP('Overzicht deelnemers'!I179,Parameters!$E$4:$G$49,3,FALSE),2))) ->  | U179: =IF(G179="","",IF(YEAR(Informatie!$C$1)=2015,ROUND(T179*Parameters!$C$20,2),ROUND(G179*Parameters!$J$44,2))) ->  | W179: =IF(G179="","",ROUND(G179*Parameters!C$17,2)) ->  | X179: =IF(G179="","",ROUND(G179*VLOOKUP(J179,Parameters!E$4:G$49,3),2)) ->  | Y179: =IF(G179="","",ROUND(G179*Parameters!J$83,2)) -> 
E180: 0 | F180: =IF(C180="",0,IF(C180<=Parameters!$C$3,C180,Parameters!$C$3)) -> 0 | G180: =IF(C180="","",IF(F180<Parameters!$C$4,"",(F180-Parameters!$C$4)*D180)) ->  | I180: =IF(H180="","",YEAR(+Informatie!$C$1)-YEAR(H180)) ->  | K180: =IF(G180="","",ROUND(G180*Parameters!$C$12,2)) ->  | L180: =IF(G180="","",IF(YEAR(Informatie!$C$1)=2015,ROUND(G180*Parameters!$J$27,2),ROUND(G180*VLOOKUP('Overzicht deelnemers'!I180,Parameters!$E$4:$G$49,2,FALSE),2))) ->  | M180: =IF(G180="","",IF(YEAR(Informatie!$C$1)=2015,ROUND(L180*Parameters!$C$20,2),G180*Parameters!$J$27)) ->  | O180: =IF(G180="","",ROUND(G180*Parameters!$C$16,2)) ->  | P180: =IF(G180="","",ROUND(G180*VLOOKUP(J180,Parameters!$E$3:$F$49,2,FALSE),2)) ->  | Q180: =IF(G180="","",ROUND(G180*Parameters!$J$66,2)) ->  | S180: =IF(G180="","",ROUND(G180*Parameters!$C$13,2)) ->  | T180: =IF(G180="","",IF(YEAR(Informatie!$C$1)=2015,ROUND(G180*Parameters!J$44,2),ROUND(G180*VLOOKUP('Overzicht deelnemers'!I180,Parameters!$E$4:$G$49,3,FALSE),2))) ->  | U180: =IF(G180="","",IF(YEAR(Informatie!$C$1)=2015,ROUND(T180*Parameters!$C$20,2),ROUND(G180*Parameters!$J$44,2))) ->  | W180: =IF(G180="","",ROUND(G180*Parameters!C$17,2)) ->  | X180: =IF(G180="","",ROUND(G180*VLOOKUP(J180,Parameters!E$4:G$49,3),2)) ->  | Y180: =IF(G180="","",ROUND(G180*Parameters!J$83,2)) -> 
E181: 0 | F181: =IF(C181="",0,IF(C181<=Parameters!$C$3,C181,Parameters!$C$3)) -> 0 | G181: =IF(C181="","",IF(F181<Parameters!$C$4,"",(F181-Parameters!$C$4)*D181)) ->  | I181: =IF(H181="","",YEAR(+Informatie!$C$1)-YEAR(H181)) ->  | K181: =IF(G181="","",ROUND(G181*Parameters!$C$12,2)) ->  | L181: =IF(G181="","",IF(YEAR(Informatie!$C$1)=2015,ROUND(G181*Parameters!$J$27,2),ROUND(G181*VLOOKUP('Overzicht deelnemers'!I181,Parameters!$E$4:$G$49,2,FALSE),2))) ->  | M181: =IF(G181="","",IF(YEAR(Informatie!$C$1)=2015,ROUND(L181*Parameters!$C$20,2),G181*Parameters!$J$27)) ->  | O181: =IF(G181="","",ROUND(G181*Parameters!$C$16,2)) ->  | P181: =IF(G181="","",ROUND(G181*VLOOKUP(J181,Parameters!$E$3:$F$49,2,FALSE),2)) ->  | Q181: =IF(G181="","",ROUND(G181*Parameters!$J$66,2)) ->  | S181: =IF(G181="","",ROUND(G181*Parameters!$C$13,2)) ->  | T181: =IF(G181="","",IF(YEAR(Informatie!$C$1)=2015,ROUND(G181*Parameters!J$44,2),ROUND(G181*VLOOKUP('Overzicht deelnemers'!I181,Parameters!$E$4:$G$49,3,FALSE),2))) ->  | U181: =IF(G181="","",IF(YEAR(Informatie!$C$1)=2015,ROUND(T181*Parameters!$C$20,2),ROUND(G181*Parameters!$J$44,2))) ->  | W181: =IF(G181="","",ROUND(G181*Parameters!C$17,2)) ->  | X181: =IF(G181="","",ROUND(G181*VLOOKUP(J181,Parameters!E$4:G$49,3),2)) ->  | Y181: =IF(G181="","",ROUND(G181*Parameters!J$83,2)) -> 
E182: 0 | F182: =IF(C182="",0,IF(C182<=Parameters!$C$3,C182,Parameters!$C$3)) -> 0 | G182: =IF(C182="","",IF(F182<Parameters!$C$4,"",(F182-Parameters!$C$4)*D182)) ->  | I182: =IF(H182="","",YEAR(+Informatie!$C$1)-YEAR(H182)) ->  | K182: =IF(G182="","",ROUND(G182*Parameters!$C$12,2)) ->  | L182: =IF(G182="","",IF(YEAR(Informatie!$C$1)=2015,ROUND(G182*Parameters!$J$27,2),ROUND(G182*VLOOKUP('Overzicht deelnemers'!I182,Parameters!$E$4:$G$49,2,FALSE),2))) ->  | M182: =IF(G182="","",IF(YEAR(Informatie!$C$1)=2015,ROUND(L182*Parameters!$C$20,2),G182*Parameters!$J$27)) ->  | O182: =IF(G182="","",ROUND(G182*Parameters!$C$16,2)) ->  | P182: =IF(G182="","",ROUND(G182*VLOOKUP(J182,Parameters!$E$3:$F$49,2,FALSE),2)) ->  | Q182: =IF(G182="","",ROUND(G182*Parameters!$J$66,2)) ->  | S182: =IF(G182="","",ROUND(G182*Parameters!$C$13,2)) ->  | T182: =IF(G182="","",IF(YEAR(Informatie!$C$1)=2015,ROUND(G182*Parameters!J$44,2),ROUND(G182*VLOOKUP('Overzicht deelnemers'!I182,Parameters!$E$4:$G$49,3,FALSE),2))) ->  | U182: =IF(G182="","",IF(YEAR(Informatie!$C$1)=2015,ROUND(T182*Parameters!$C$20,2),ROUND(G182*Parameters!$J$44,2))) ->  | W182: =IF(G182="","",ROUND(G182*Parameters!C$17,2)) ->  | X182: =IF(G182="","",ROUND(G182*VLOOKUP(J182,Parameters!E$4:G$49,3),2)) ->  | Y182: =IF(G182="","",ROUND(G182*Parameters!J$83,2)) -> 
E183: 0 | F183: =IF(C183="",0,IF(C183<=Parameters!$C$3,C183,Parameters!$C$3)) -> 0 | G183: =IF(C183="","",IF(F183<Parameters!$C$4,"",(F183-Parameters!$C$4)*D183)) ->  | I183: =IF(H183="","",YEAR(+Informatie!$C$1)-YEAR(H183)) ->  | K183: =IF(G183="","",ROUND(G183*Parameters!$C$12,2)) ->  | L183: =IF(G183="","",IF(YEAR(Informatie!$C$1)=2015,ROUND(G183*Parameters!$J$27,2),ROUND(G183*VLOOKUP('Overzicht deelnemers'!I183,Parameters!$E$4:$G$49,2,FALSE),2))) ->  | M183: =IF(G183="","",IF(YEAR(Informatie!$C$1)=2015,ROUND(L183*Parameters!$C$20,2),G183*Parameters!$J$27)) ->  | O183: =IF(G183="","",ROUND(G183*Parameters!$C$16,2)) ->  | P183: =IF(G183="","",ROUND(G183*VLOOKUP(J183,Parameters!$E$3:$F$49,2,FALSE),2)) ->  | Q183: =IF(G183="","",ROUND(G183*Parameters!$J$66,2)) ->  | S183: =IF(G183="","",ROUND(G183*Parameters!$C$13,2)) ->  | T183: =IF(G183="","",IF(YEAR(Informatie!$C$1)=2015,ROUND(G183*Parameters!J$44,2),ROUND(G183*VLOOKUP('Overzicht deelnemers'!I183,Parameters!$E$4:$G$49,3,FALSE),2))) ->  | U183: =IF(G183="","",IF(YEAR(Informatie!$C$1)=2015,ROUND(T183*Parameters!$C$20,2),ROUND(G183*Parameters!$J$44,2))) ->  | W183: =IF(G183="","",ROUND(G183*Parameters!C$17,2)) ->  | X183: =IF(G183="","",ROUND(G183*VLOOKUP(J183,Parameters!E$4:G$49,3),2)) ->  | Y183: =IF(G183="","",ROUND(G183*Parameters!J$83,2)) -> 
E184: 0 | F184: =IF(C184="",0,IF(C184<=Parameters!$C$3,C184,Parameters!$C$3)) -> 0 | G184: =IF(C184="","",IF(F184<Parameters!$C$4,"",(F184-Parameters!$C$4)*D184)) ->  | I184: =IF(H184="","",YEAR(+Informatie!$C$1)-YEAR(H184)) ->  | K184: =IF(G184="","",ROUND(G184*Parameters!$C$12,2)) ->  | L184: =IF(G184="","",IF(YEAR(Informatie!$C$1)=2015,ROUND(G184*Parameters!$J$27,2),ROUND(G184*VLOOKUP('Overzicht deelnemers'!I184,Parameters!$E$4:$G$49,2,FALSE),2))) ->  | M184: =IF(G184="","",IF(YEAR(Informatie!$C$1)=2015,ROUND(L184*Parameters!$C$20,2),G184*Parameters!$J$27)) ->  | O184: =IF(G184="","",ROUND(G184*Parameters!$C$16,2)) ->  | P184: =IF(G184="","",ROUND(G184*VLOOKUP(J184,Parameters!$E$3:$F$49,2,FALSE),2)) ->  | Q184: =IF(G184="","",ROUND(G184*Parameters!$J$66,2)) ->  | S184: =IF(G184="","",ROUND(G184*Parameters!$C$13,2)) ->  | T184: =IF(G184="","",IF(YEAR(Informatie!$C$1)=2015,ROUND(G184*Parameters!J$44,2),ROUND(G184*VLOOKUP('Overzicht deelnemers'!I184,Parameters!$E$4:$G$49,3,FALSE),2))) ->  | U184: =IF(G184="","",IF(YEAR(Informatie!$C$1)=2015,ROUND(T184*Parameters!$C$20,2),ROUND(G184*Parameters!$J$44,2))) ->  | W184: =IF(G184="","",ROUND(G184*Parameters!C$17,2)) ->  | X184: =IF(G184="","",ROUND(G184*VLOOKUP(J184,Parameters!E$4:G$49,3),2)) ->  | Y184: =IF(G184="","",ROUND(G184*Parameters!J$83,2)) -> 
E185: 0 | F185: =IF(C185="",0,IF(C185<=Parameters!$C$3,C185,Parameters!$C$3)) -> 0 | G185: =IF(C185="","",IF(F185<Parameters!$C$4,"",(F185-Parameters!$C$4)*D185)) ->  | I185: =IF(H185="","",YEAR(+Informatie!$C$1)-YEAR(H185)) ->  | K185: =IF(G185="","",ROUND(G185*Parameters!$C$12,2)) ->  | L185: =IF(G185="","",IF(YEAR(Informatie!$C$1)=2015,ROUND(G185*Parameters!$J$27,2),ROUND(G185*VLOOKUP('Overzicht deelnemers'!I185,Parameters!$E$4:$G$49,2,FALSE),2))) ->  | M185: =IF(G185="","",IF(YEAR(Informatie!$C$1)=2015,ROUND(L185*Parameters!$C$20,2),G185*Parameters!$J$27)) ->  | O185: =IF(G185="","",ROUND(G185*Parameters!$C$16,2)) ->  | P185: =IF(G185="","",ROUND(G185*VLOOKUP(J185,Parameters!$E$3:$F$49,2,FALSE),2)) ->  | Q185: =IF(G185="","",ROUND(G185*Parameters!$J$66,2)) ->  | S185: =IF(G185="","",ROUND(G185*Parameters!$C$13,2)) ->  | T185: =IF(G185="","",IF(YEAR(Informatie!$C$1)=2015,ROUND(G185*Parameters!J$44,2),ROUND(G185*VLOOKUP('Overzicht deelnemers'!I185,Parameters!$E$4:$G$49,3,FALSE),2))) ->  | U185: =IF(G185="","",IF(YEAR(Informatie!$C$1)=2015,ROUND(T185*Parameters!$C$20,2),ROUND(G185*Parameters!$J$44,2))) ->  | W185: =IF(G185="","",ROUND(G185*Parameters!C$17,2)) ->  | X185: =IF(G185="","",ROUND(G185*VLOOKUP(J185,Parameters!E$4:G$49,3),2)) ->  | Y185: =IF(G185="","",ROUND(G185*Parameters!J$83,2)) -> 
E186: 0 | F186: =IF(C186="",0,IF(C186<=Parameters!$C$3,C186,Parameters!$C$3)) -> 0 | G186: =IF(C186="","",IF(F186<Parameters!$C$4,"",(F186-Parameters!$C$4)*D186)) ->  | I186: =IF(H186="","",YEAR(+Informatie!$C$1)-YEAR(H186)) ->  | K186: =IF(G186="","",ROUND(G186*Parameters!$C$12,2)) ->  | L186: =IF(G186="","",IF(YEAR(Informatie!$C$1)=2015,ROUND(G186*Parameters!$J$27,2),ROUND(G186*VLOOKUP('Overzicht deelnemers'!I186,Parameters!$E$4:$G$49,2,FALSE),2))) ->  | M186: =IF(G186="","",IF(YEAR(Informatie!$C$1)=2015,ROUND(L186*Parameters!$C$20,2),G186*Parameters!$J$27)) ->  | O186: =IF(G186="","",ROUND(G186*Parameters!$C$16,2)) ->  | P186: =IF(G186="","",ROUND(G186*VLOOKUP(J186,Parameters!$E$3:$F$49,2,FALSE),2)) ->  | Q186: =IF(G186="","",ROUND(G186*Parameters!$J$66,2)) ->  | S186: =IF(G186="","",ROUND(G186*Parameters!$C$13,2)) ->  | T186: =IF(G186="","",IF(YEAR(Informatie!$C$1)=2015,ROUND(G186*Parameters!J$44,2),ROUND(G186*VLOOKUP('Overzicht deelnemers'!I186,Parameters!$E$4:$G$49,3,FALSE),2))) ->  | U186: =IF(G186="","",IF(YEAR(Informatie!$C$1)=2015,ROUND(T186*Parameters!$C$20,2),ROUND(G186*Parameters!$J$44,2))) ->  | W186: =IF(G186="","",ROUND(G186*Parameters!C$17,2)) ->  | X186: =IF(G186="","",ROUND(G186*VLOOKUP(J186,Parameters!E$4:G$49,3),2)) ->  | Y186: =IF(G186="","",ROUND(G186*Parameters!J$83,2)) -> 
E187: 0 | F187: =IF(C187="",0,IF(C187<=Parameters!$C$3,C187,Parameters!$C$3)) -> 0 | G187: =IF(C187="","",IF(F187<Parameters!$C$4,"",(F187-Parameters!$C$4)*D187)) ->  | I187: =IF(H187="","",YEAR(+Informatie!$C$1)-YEAR(H187)) ->  | K187: =IF(G187="","",ROUND(G187*Parameters!$C$12,2)) ->  | L187: =IF(G187="","",IF(YEAR(Informatie!$C$1)=2015,ROUND(G187*Parameters!$J$27,2),ROUND(G187*VLOOKUP('Overzicht deelnemers'!I187,Parameters!$E$4:$G$49,2,FALSE),2))) ->  | M187: =IF(G187="","",IF(YEAR(Informatie!$C$1)=2015,ROUND(L187*Parameters!$C$20,2),G187*Parameters!$J$27)) ->  | O187: =IF(G187="","",ROUND(G187*Parameters!$C$16,2)) ->  | P187: =IF(G187="","",ROUND(G187*VLOOKUP(J187,Parameters!$E$3:$F$49,2,FALSE),2)) ->  | Q187: =IF(G187="","",ROUND(G187*Parameters!$J$66,2)) ->  | S187: =IF(G187="","",ROUND(G187*Parameters!$C$13,2)) ->  | T187: =IF(G187="","",IF(YEAR(Informatie!$C$1)=2015,ROUND(G187*Parameters!J$44,2),ROUND(G187*VLOOKUP('Overzicht deelnemers'!I187,Parameters!$E$4:$G$49,3,FALSE),2))) ->  | U187: =IF(G187="","",IF(YEAR(Informatie!$C$1)=2015,ROUND(T187*Parameters!$C$20,2),ROUND(G187*Parameters!$J$44,2))) ->  | W187: =IF(G187="","",ROUND(G187*Parameters!C$17,2)) ->  | X187: =IF(G187="","",ROUND(G187*VLOOKUP(J187,Parameters!E$4:G$49,3),2)) ->  | Y187: =IF(G187="","",ROUND(G187*Parameters!J$83,2)) -> 
E188: 0 | F188: =IF(C188="",0,IF(C188<=Parameters!$C$3,C188,Parameters!$C$3)) -> 0 | G188: =IF(C188="","",IF(F188<Parameters!$C$4,"",(F188-Parameters!$C$4)*D188)) ->  | I188: =IF(H188="","",YEAR(+Informatie!$C$1)-YEAR(H188)) ->  | K188: =IF(G188="","",ROUND(G188*Parameters!$C$12,2)) ->  | L188: =IF(G188="","",IF(YEAR(Informatie!$C$1)=2015,ROUND(G188*Parameters!$J$27,2),ROUND(G188*VLOOKUP('Overzicht deelnemers'!I188,Parameters!$E$4:$G$49,2,FALSE),2))) ->  | M188: =IF(G188="","",IF(YEAR(Informatie!$C$1)=2015,ROUND(L188*Parameters!$C$20,2),G188*Parameters!$J$27)) ->  | O188: =IF(G188="","",ROUND(G188*Parameters!$C$16,2)) ->  | P188: =IF(G188="","",ROUND(G188*VLOOKUP(J188,Parameters!$E$3:$F$49,2,FALSE),2)) ->  | Q188: =IF(G188="","",ROUND(G188*Parameters!$J$66,2)) ->  | S188: =IF(G188="","",ROUND(G188*Parameters!$C$13,2)) ->  | T188: =IF(G188="","",IF(YEAR(Informatie!$C$1)=2015,ROUND(G188*Parameters!J$44,2),ROUND(G188*VLOOKUP('Overzicht deelnemers'!I188,Parameters!$E$4:$G$49,3,FALSE),2))) ->  | U188: =IF(G188="","",IF(YEAR(Informatie!$C$1)=2015,ROUND(T188*Parameters!$C$20,2),ROUND(G188*Parameters!$J$44,2))) ->  | W188: =IF(G188="","",ROUND(G188*Parameters!C$17,2)) ->  | X188: =IF(G188="","",ROUND(G188*VLOOKUP(J188,Parameters!E$4:G$49,3),2)) ->  | Y188: =IF(G188="","",ROUND(G188*Parameters!J$83,2)) -> 
E189: 0 | F189: =IF(C189="",0,IF(C189<=Parameters!$C$3,C189,Parameters!$C$3)) -> 0 | G189: =IF(C189="","",IF(F189<Parameters!$C$4,"",(F189-Parameters!$C$4)*D189)) ->  | I189: =IF(H189="","",YEAR(+Informatie!$C$1)-YEAR(H189)) ->  | K189: =IF(G189="","",ROUND(G189*Parameters!$C$12,2)) ->  | L189: =IF(G189="","",IF(YEAR(Informatie!$C$1)=2015,ROUND(G189*Parameters!$J$27,2),ROUND(G189*VLOOKUP('Overzicht deelnemers'!I189,Parameters!$E$4:$G$49,2,FALSE),2))) ->  | M189: =IF(G189="","",IF(YEAR(Informatie!$C$1)=2015,ROUND(L189*Parameters!$C$20,2),G189*Parameters!$J$27)) ->  | O189: =IF(G189="","",ROUND(G189*Parameters!$C$16,2)) ->  | P189: =IF(G189="","",ROUND(G189*VLOOKUP(J189,Parameters!$E$3:$F$49,2,FALSE),2)) ->  | Q189: =IF(G189="","",ROUND(G189*Parameters!$J$66,2)) ->  | S189: =IF(G189="","",ROUND(G189*Parameters!$C$13,2)) ->  | T189: =IF(G189="","",IF(YEAR(Informatie!$C$1)=2015,ROUND(G189*Parameters!J$44,2),ROUND(G189*VLOOKUP('Overzicht deelnemers'!I189,Parameters!$E$4:$G$49,3,FALSE),2))) ->  | U189: =IF(G189="","",IF(YEAR(Informatie!$C$1)=2015,ROUND(T189*Parameters!$C$20,2),ROUND(G189*Parameters!$J$44,2))) ->  | W189: =IF(G189="","",ROUND(G189*Parameters!C$17,2)) ->  | X189: =IF(G189="","",ROUND(G189*VLOOKUP(J189,Parameters!E$4:G$49,3),2)) ->  | Y189: =IF(G189="","",ROUND(G189*Parameters!J$83,2)) -> 
E190: 0 | F190: =IF(C190="",0,IF(C190<=Parameters!$C$3,C190,Parameters!$C$3)) -> 0 | G190: =IF(C190="","",IF(F190<Parameters!$C$4,"",(F190-Parameters!$C$4)*D190)) ->  | I190: =IF(H190="","",YEAR(+Informatie!$C$1)-YEAR(H190)) ->  | K190: =IF(G190="","",ROUND(G190*Parameters!$C$12,2)) ->  | L190: =IF(G190="","",IF(YEAR(Informatie!$C$1)=2015,ROUND(G190*Parameters!$J$27,2),ROUND(G190*VLOOKUP('Overzicht deelnemers'!I190,Parameters!$E$4:$G$49,2,FALSE),2))) ->  | M190: =IF(G190="","",IF(YEAR(Informatie!$C$1)=2015,ROUND(L190*Parameters!$C$20,2),G190*Parameters!$J$27)) ->  | O190: =IF(G190="","",ROUND(G190*Parameters!$C$16,2)) ->  | P190: =IF(G190="","",ROUND(G190*VLOOKUP(J190,Parameters!$E$3:$F$49,2,FALSE),2)) ->  | Q190: =IF(G190="","",ROUND(G190*Parameters!$J$66,2)) ->  | S190: =IF(G190="","",ROUND(G190*Parameters!$C$13,2)) ->  | T190: =IF(G190="","",IF(YEAR(Informatie!$C$1)=2015,ROUND(G190*Parameters!J$44,2),ROUND(G190*VLOOKUP('Overzicht deelnemers'!I190,Parameters!$E$4:$G$49,3,FALSE),2))) ->  | U190: =IF(G190="","",IF(YEAR(Informatie!$C$1)=2015,ROUND(T190*Parameters!$C$20,2),ROUND(G190*Parameters!$J$44,2))) ->  | W190: =IF(G190="","",ROUND(G190*Parameters!C$17,2)) ->  | X190: =IF(G190="","",ROUND(G190*VLOOKUP(J190,Parameters!E$4:G$49,3),2)) ->  | Y190: =IF(G190="","",ROUND(G190*Parameters!J$83,2)) -> 
E191: 0 | F191: =IF(C191="",0,IF(C191<=Parameters!$C$3,C191,Parameters!$C$3)) -> 0 | G191: =IF(C191="","",IF(F191<Parameters!$C$4,"",(F191-Parameters!$C$4)*D191)) ->  | I191: =IF(H191="","",YEAR(+Informatie!$C$1)-YEAR(H191)) ->  | K191: =IF(G191="","",ROUND(G191*Parameters!$C$12,2)) ->  | L191: =IF(G191="","",IF(YEAR(Informatie!$C$1)=2015,ROUND(G191*Parameters!$J$27,2),ROUND(G191*VLOOKUP('Overzicht deelnemers'!I191,Parameters!$E$4:$G$49,2,FALSE),2))) ->  | M191: =IF(G191="","",IF(YEAR(Informatie!$C$1)=2015,ROUND(L191*Parameters!$C$20,2),G191*Parameters!$J$27)) ->  | O191: =IF(G191="","",ROUND(G191*Parameters!$C$16,2)) ->  | P191: =IF(G191="","",ROUND(G191*VLOOKUP(J191,Parameters!$E$3:$F$49,2,FALSE),2)) ->  | Q191: =IF(G191="","",ROUND(G191*Parameters!$J$66,2)) ->  | S191: =IF(G191="","",ROUND(G191*Parameters!$C$13,2)) ->  | T191: =IF(G191="","",IF(YEAR(Informatie!$C$1)=2015,ROUND(G191*Parameters!J$44,2),ROUND(G191*VLOOKUP('Overzicht deelnemers'!I191,Parameters!$E$4:$G$49,3,FALSE),2))) ->  | U191: =IF(G191="","",IF(YEAR(Informatie!$C$1)=2015,ROUND(T191*Parameters!$C$20,2),ROUND(G191*Parameters!$J$44,2))) ->  | W191: =IF(G191="","",ROUND(G191*Parameters!C$17,2)) ->  | X191: =IF(G191="","",ROUND(G191*VLOOKUP(J191,Parameters!E$4:G$49,3),2)) ->  | Y191: =IF(G191="","",ROUND(G191*Parameters!J$83,2)) -> 
E192: 0 | F192: =IF(C192="",0,IF(C192<=Parameters!$C$3,C192,Parameters!$C$3)) -> 0 | G192: =IF(C192="","",IF(F192<Parameters!$C$4,"",(F192-Parameters!$C$4)*D192)) ->  | I192: =IF(H192="","",YEAR(+Informatie!$C$1)-YEAR(H192)) ->  | K192: =IF(G192="","",ROUND(G192*Parameters!$C$12,2)) ->  | L192: =IF(G192="","",IF(YEAR(Informatie!$C$1)=2015,ROUND(G192*Parameters!$J$27,2),ROUND(G192*VLOOKUP('Overzicht deelnemers'!I192,Parameters!$E$4:$G$49,2,FALSE),2))) ->  | M192: =IF(G192="","",IF(YEAR(Informatie!$C$1)=2015,ROUND(L192*Parameters!$C$20,2),G192*Parameters!$J$27)) ->  | O192: =IF(G192="","",ROUND(G192*Parameters!$C$16,2)) ->  | P192: =IF(G192="","",ROUND(G192*VLOOKUP(J192,Parameters!$E$3:$F$49,2,FALSE),2)) ->  | Q192: =IF(G192="","",ROUND(G192*Parameters!$J$66,2)) ->  | S192: =IF(G192="","",ROUND(G192*Parameters!$C$13,2)) ->  | T192: =IF(G192="","",IF(YEAR(Informatie!$C$1)=2015,ROUND(G192*Parameters!J$44,2),ROUND(G192*VLOOKUP('Overzicht deelnemers'!I192,Parameters!$E$4:$G$49,3,FALSE),2))) ->  | U192: =IF(G192="","",IF(YEAR(Informatie!$C$1)=2015,ROUND(T192*Parameters!$C$20,2),ROUND(G192*Parameters!$J$44,2))) ->  | W192: =IF(G192="","",ROUND(G192*Parameters!C$17,2)) ->  | X192: =IF(G192="","",ROUND(G192*VLOOKUP(J192,Parameters!E$4:G$49,3),2)) ->  | Y192: =IF(G192="","",ROUND(G192*Parameters!J$83,2)) -> 
E193: 0 | F193: =IF(C193="",0,IF(C193<=Parameters!$C$3,C193,Parameters!$C$3)) -> 0 | G193: =IF(C193="","",IF(F193<Parameters!$C$4,"",(F193-Parameters!$C$4)*D193)) ->  | I193: =IF(H193="","",YEAR(+Informatie!$C$1)-YEAR(H193)) ->  | K193: =IF(G193="","",ROUND(G193*Parameters!$C$12,2)) ->  | L193: =IF(G193="","",IF(YEAR(Informatie!$C$1)=2015,ROUND(G193*Parameters!$J$27,2),ROUND(G193*VLOOKUP('Overzicht deelnemers'!I193,Parameters!$E$4:$G$49,2,FALSE),2))) ->  | M193: =IF(G193="","",IF(YEAR(Informatie!$C$1)=2015,ROUND(L193*Parameters!$C$20,2),G193*Parameters!$J$27)) ->  | O193: =IF(G193="","",ROUND(G193*Parameters!$C$16,2)) ->  | P193: =IF(G193="","",ROUND(G193*VLOOKUP(J193,Parameters!$E$3:$F$49,2,FALSE),2)) ->  | Q193: =IF(G193="","",ROUND(G193*Parameters!$J$66,2)) ->  | S193: =IF(G193="","",ROUND(G193*Parameters!$C$13,2)) ->  | T193: =IF(G193="","",IF(YEAR(Informatie!$C$1)=2015,ROUND(G193*Parameters!J$44,2),ROUND(G193*VLOOKUP('Overzicht deelnemers'!I193,Parameters!$E$4:$G$49,3,FALSE),2))) ->  | U193: =IF(G193="","",IF(YEAR(Informatie!$C$1)=2015,ROUND(T193*Parameters!$C$20,2),ROUND(G193*Parameters!$J$44,2))) ->  | W193: =IF(G193="","",ROUND(G193*Parameters!C$17,2)) ->  | X193: =IF(G193="","",ROUND(G193*VLOOKUP(J193,Parameters!E$4:G$49,3),2)) ->  | Y193: =IF(G193="","",ROUND(G193*Parameters!J$83,2)) -> 
E194: 0 | F194: =IF(C194="",0,IF(C194<=Parameters!$C$3,C194,Parameters!$C$3)) -> 0 | G194: =IF(C194="","",IF(F194<Parameters!$C$4,"",(F194-Parameters!$C$4)*D194)) ->  | I194: =IF(H194="","",YEAR(+Informatie!$C$1)-YEAR(H194)) ->  | J194: =IF(H194="","",I194+1) ->  | K194: =IF(G194="","",ROUND(G194*Parameters!$C$12,2)) ->  | L194: =IF(G194="","",IF(YEAR(Informatie!$C$1)=2015,ROUND(G194*Parameters!$J$27,2),ROUND(G194*VLOOKUP('Overzicht deelnemers'!I194,Parameters!$E$4:$G$49,2,FALSE),2))) ->  | M194: =IF(G194="","",IF(YEAR(Informatie!$C$1)=2015,ROUND(L194*Parameters!$C$20,2),G194*Parameters!$J$27)) ->  | O194: =IF(G194="","",ROUND(G194*Parameters!$C$16,2)) ->  | P194: =IF(G194="","",ROUND(G194*VLOOKUP(J194,Parameters!$E$3:$F$49,2,FALSE),2)) ->  | Q194: =IF(G194="","",ROUND(G194*Parameters!$J$66,2)) ->  | S194: =IF(G194="","",ROUND(G194*Parameters!$C$13,2)) ->  | T194: =IF(G194="","",IF(YEAR(Informatie!$C$1)=2015,ROUND(G194*Parameters!J$44,2),ROUND(G194*VLOOKUP('Overzicht deelnemers'!I194,Parameters!$E$4:$G$49,3,FALSE),2))) ->  | U194: =IF(G194="","",IF(YEAR(Informatie!$C$1)=2015,ROUND(T194*Parameters!$C$20,2),ROUND(G194*Parameters!$J$44,2))) ->  | W194: =IF(G194="","",ROUND(G194*Parameters!C$17,2)) ->  | X194: =IF(G194="","",ROUND(G194*VLOOKUP(J194,Parameters!E$4:G$49,3),2)) ->  | Y194: =IF(G194="","",ROUND(G194*Parameters!J$83,2)) -> 
E195: =C195*D195 -> 0 | F195: =IF(C195="",0,IF(C195<=Parameters!$C$3,C195,Parameters!$C$3)) -> 0 | G195: =IF(C195="","",IF(F195<Parameters!$C$4,"",(F195-Parameters!$C$4)*D195)) ->  | I195: =IF(H195="","",YEAR(+Informatie!$C$1)-YEAR(H195)) ->  | K195: =IF(G195="","",ROUND(G195*Parameters!$C$12,2)) ->  | L195: =IF(G195="","",IF(YEAR(Informatie!$C$1)=2015,ROUND(G195*Parameters!$J$27,2),ROUND(G195*VLOOKUP('Overzicht deelnemers'!I195,Parameters!$E$4:$G$49,2,FALSE),2))) ->  | M195: =IF(G195="","",IF(YEAR(Informatie!$C$1)=2015,ROUND(L195*Parameters!$C$20,2),G195*Parameters!$J$27)) ->  | N195: =IF(G195="","",ROUND(L195-M195,2)) ->  | O195: =IF(G195="","",ROUND(G195*Parameters!$C$16,2)) ->  | P195: =IF(G195="","",ROUND(G195*VLOOKUP(J195,Parameters!$E$3:$F$49,2,FALSE),2)) ->  | Q195: =IF(G195="","",ROUND(G195*Parameters!$J$66,2)) ->  | R195: =IF(G195="","",ROUND(P195-Q195,2)) ->  | S195: =IF(G195="","",ROUND(G195*Parameters!$C$13,2)) ->  | T195: =IF(G195="","",IF(YEAR(Informatie!$C$1)=2015,ROUND(G195*Parameters!J$44,2),ROUND(G195*VLOOKUP('Overzicht deelnemers'!I195,Parameters!$E$4:$G$49,3,FALSE),2))) ->  | U195: =IF(G195="","",IF(YEAR(Informatie!$C$1)=2015,ROUND(T195*Parameters!$C$20,2),ROUND(G195*Parameters!$J$44,2))) ->  | V195: =IF(G195="","",ROUND(T195-U195,2)) ->  | W195: =IF(G195="","",ROUND(G195*Parameters!C$17,2)) ->  | X195: =IF(G195="","",ROUND(G195*VLOOKUP(J195,Parameters!E$4:G$49,3),2)) ->  | Y195: =IF(G195="","",ROUND(G195*Parameters!J$83,2)) ->  | Z195: =IF(G195="","",ROUND(X195-Y195,2)) -> 
E196: 0 | F196: =IF(C196="",0,IF(C196<=Parameters!$C$3,C196,Parameters!$C$3)) -> 0 | G196: =IF(C196="","",IF(F196<Parameters!$C$4,"",(F196-Parameters!$C$4)*D196)) ->  | I196: =IF(H196="","",YEAR(+Informatie!$C$1)-YEAR(H196)) ->  | K196: =IF(G196="","",ROUND(G196*Parameters!$C$12,2)) ->  | L196: =IF(G196="","",IF(YEAR(Informatie!$C$1)=2015,ROUND(G196*Parameters!$J$27,2),ROUND(G196*VLOOKUP('Overzicht deelnemers'!I196,Parameters!$E$4:$G$49,2,FALSE),2))) ->  | M196: =IF(G196="","",IF(YEAR(Informatie!$C$1)=2015,ROUND(L196*Parameters!$C$20,2),G196*Parameters!$J$27)) ->  | O196: =IF(G196="","",ROUND(G196*Parameters!$C$16,2)) ->  | P196: =IF(G196="","",ROUND(G196*VLOOKUP(J196,Parameters!$E$3:$F$49,2,FALSE),2)) ->  | Q196: =IF(G196="","",ROUND(G196*Parameters!$J$66,2)) ->  | S196: =IF(G196="","",ROUND(G196*Parameters!$C$13,2)) ->  | T196: =IF(G196="","",IF(YEAR(Informatie!$C$1)=2015,ROUND(G196*Parameters!J$44,2),ROUND(G196*VLOOKUP('Overzicht deelnemers'!I196,Parameters!$E$4:$G$49,3,FALSE),2))) ->  | U196: =IF(G196="","",IF(YEAR(Informatie!$C$1)=2015,ROUND(T196*Parameters!$C$20,2),ROUND(G196*Parameters!$J$44,2))) ->  | W196: =IF(G196="","",ROUND(G196*Parameters!C$17,2)) ->  | X196: =IF(G196="","",ROUND(G196*VLOOKUP(J196,Parameters!E$4:G$49,3),2)) ->  | Y196: =IF(G196="","",ROUND(G196*Parameters!J$83,2)) -> 
E197: 0 | F197: =IF(C197="",0,IF(C197<=Parameters!$C$3,C197,Parameters!$C$3)) -> 0 | G197: =IF(C197="","",IF(F197<Parameters!$C$4,"",(F197-Parameters!$C$4)*D197)) ->  | I197: =IF(H197="","",YEAR(+Informatie!$C$1)-YEAR(H197)) ->  | K197: =IF(G197="","",ROUND(G197*Parameters!$C$12,2)) ->  | L197: =IF(G197="","",IF(YEAR(Informatie!$C$1)=2015,ROUND(G197*Parameters!$J$27,2),ROUND(G197*VLOOKUP('Overzicht deelnemers'!I197,Parameters!$E$4:$G$49,2,FALSE),2))) ->  | M197: =IF(G197="","",IF(YEAR(Informatie!$C$1)=2015,ROUND(L197*Parameters!$C$20,2),G197*Parameters!$J$27)) ->  | O197: =IF(G197="","",ROUND(G197*Parameters!$C$16,2)) ->  | P197: =IF(G197="","",ROUND(G197*VLOOKUP(J197,Parameters!$E$3:$F$49,2,FALSE),2)) ->  | Q197: =IF(G197="","",ROUND(G197*Parameters!$J$66,2)) ->  | S197: =IF(G197="","",ROUND(G197*Parameters!$C$13,2)) ->  | T197: =IF(G197="","",IF(YEAR(Informatie!$C$1)=2015,ROUND(G197*Parameters!J$44,2),ROUND(G197*VLOOKUP('Overzicht deelnemers'!I197,Parameters!$E$4:$G$49,3,FALSE),2))) ->  | U197: =IF(G197="","",IF(YEAR(Informatie!$C$1)=2015,ROUND(T197*Parameters!$C$20,2),ROUND(G197*Parameters!$J$44,2))) ->  | W197: =IF(G197="","",ROUND(G197*Parameters!C$17,2)) ->  | X197: =IF(G197="","",ROUND(G197*VLOOKUP(J197,Parameters!E$4:G$49,3),2)) ->  | Y197: =IF(G197="","",ROUND(G197*Parameters!J$83,2)) -> 
E198: 0 | F198: =IF(C198="",0,IF(C198<=Parameters!$C$3,C198,Parameters!$C$3)) -> 0 | G198: =IF(C198="","",IF(F198<Parameters!$C$4,"",(F198-Parameters!$C$4)*D198)) ->  | I198: =IF(H198="","",YEAR(+Informatie!$C$1)-YEAR(H198)) ->  | K198: =IF(G198="","",ROUND(G198*Parameters!$C$12,2)) ->  | L198: =IF(G198="","",IF(YEAR(Informatie!$C$1)=2015,ROUND(G198*Parameters!$J$27,2),ROUND(G198*VLOOKUP('Overzicht deelnemers'!I198,Parameters!$E$4:$G$49,2,FALSE),2))) ->  | M198: =IF(G198="","",IF(YEAR(Informatie!$C$1)=2015,ROUND(L198*Parameters!$C$20,2),G198*Parameters!$J$27)) ->  | O198: =IF(G198="","",ROUND(G198*Parameters!$C$16,2)) ->  | P198: =IF(G198="","",ROUND(G198*VLOOKUP(J198,Parameters!$E$3:$F$49,2,FALSE),2)) ->  | Q198: =IF(G198="","",ROUND(G198*Parameters!$J$66,2)) ->  | S198: =IF(G198="","",ROUND(G198*Parameters!$C$13,2)) ->  | T198: =IF(G198="","",IF(YEAR(Informatie!$C$1)=2015,ROUND(G198*Parameters!J$44,2),ROUND(G198*VLOOKUP('Overzicht deelnemers'!I198,Parameters!$E$4:$G$49,3,FALSE),2))) ->  | U198: =IF(G198="","",IF(YEAR(Informatie!$C$1)=2015,ROUND(T198*Parameters!$C$20,2),ROUND(G198*Parameters!$J$44,2))) ->  | W198: =IF(G198="","",ROUND(G198*Parameters!C$17,2)) ->  | X198: =IF(G198="","",ROUND(G198*VLOOKUP(J198,Parameters!E$4:G$49,3),2)) ->  | Y198: =IF(G198="","",ROUND(G198*Parameters!J$83,2)) -> 
E199: 0 | F199: =IF(C199="",0,IF(C199<=Parameters!$C$3,C199,Parameters!$C$3)) -> 0 | G199: =IF(C199="","",IF(F199<Parameters!$C$4,"",(F199-Parameters!$C$4)*D199)) ->  | I199: =IF(H199="","",YEAR(+Informatie!$C$1)-YEAR(H199)) ->  | K199: =IF(G199="","",ROUND(G199*Parameters!$C$12,2)) ->  | L199: =IF(G199="","",IF(YEAR(Informatie!$C$1)=2015,ROUND(G199*Parameters!$J$27,2),ROUND(G199*VLOOKUP('Overzicht deelnemers'!I199,Parameters!$E$4:$G$49,2,FALSE),2))) ->  | M199: =IF(G199="","",IF(YEAR(Informatie!$C$1)=2015,ROUND(L199*Parameters!$C$20,2),G199*Parameters!$J$27)) ->  | O199: =IF(G199="","",ROUND(G199*Parameters!$C$16,2)) ->  | P199: =IF(G199="","",ROUND(G199*VLOOKUP(J199,Parameters!$E$3:$F$49,2,FALSE),2)) ->  | Q199: =IF(G199="","",ROUND(G199*Parameters!$J$66,2)) ->  | S199: =IF(G199="","",ROUND(G199*Parameters!$C$13,2)) ->  | T199: =IF(G199="","",IF(YEAR(Informatie!$C$1)=2015,ROUND(G199*Parameters!J$44,2),ROUND(G199*VLOOKUP('Overzicht deelnemers'!I199,Parameters!$E$4:$G$49,3,FALSE),2))) ->  | U199: =IF(G199="","",IF(YEAR(Informatie!$C$1)=2015,ROUND(T199*Parameters!$C$20,2),ROUND(G199*Parameters!$J$44,2))) ->  | W199: =IF(G199="","",ROUND(G199*Parameters!C$17,2)) ->  | X199: =IF(G199="","",ROUND(G199*VLOOKUP(J199,Parameters!E$4:G$49,3),2)) ->  | Y199: =IF(G199="","",ROUND(G199*Parameters!J$83,2)) -> 
E200: 0 | F200: =IF(C200="",0,IF(C200<=Parameters!$C$3,C200,Parameters!$C$3)) -> 0 | G200: =IF(C200="","",IF(F200<Parameters!$C$4,"",(F200-Parameters!$C$4)*D200)) ->  | I200: =IF(H200="","",YEAR(+Informatie!$C$1)-YEAR(H200)) ->  | K200: =IF(G200="","",ROUND(G200*Parameters!$C$12,2)) ->  | L200: =IF(G200="","",IF(YEAR(Informatie!$C$1)=2015,ROUND(G200*Parameters!$J$27,2),ROUND(G200*VLOOKUP('Overzicht deelnemers'!I200,Parameters!$E$4:$G$49,2,FALSE),2))) ->  | M200: =IF(G200="","",IF(YEAR(Informatie!$C$1)=2015,ROUND(L200*Parameters!$C$20,2),G200*Parameters!$J$27)) ->  | O200: =IF(G200="","",ROUND(G200*Parameters!$C$16,2)) ->  | P200: =IF(G200="","",ROUND(G200*VLOOKUP(J200,Parameters!$E$3:$F$49,2,FALSE),2)) ->  | Q200: =IF(G200="","",ROUND(G200*Parameters!$J$66,2)) ->  | S200: =IF(G200="","",ROUND(G200*Parameters!$C$13,2)) ->  | T200: =IF(G200="","",IF(YEAR(Informatie!$C$1)=2015,ROUND(G200*Parameters!J$44,2),ROUND(G200*VLOOKUP('Overzicht deelnemers'!I200,Parameters!$E$4:$G$49,3,FALSE),2))) ->  | U200: =IF(G200="","",IF(YEAR(Informatie!$C$1)=2015,ROUND(T200*Parameters!$C$20,2),ROUND(G200*Parameters!$J$44,2))) ->  | W200: =IF(G200="","",ROUND(G200*Parameters!C$17,2)) ->  | X200: =IF(G200="","",ROUND(G200*VLOOKUP(J200,Parameters!E$4:G$49,3),2)) ->  | Y200: =IF(G200="","",ROUND(G200*Parameters!J$83,2)) -> 
... 202 more rows

Sheet Parameters
B2: Informatie excedentregeling | E2: Premiepercentage
B3: Max jaarbedrag | C3: 128810 | E3: Leeftijd | F3: Lage premiepercentage | G3: Hoge premiepercentage
B4: Min jaarbedrag | C4: 86202 | E4: 25 | F4: 0.131 | G4: 0.163
E5: 26 | F5: 0.131 | G5: 0.163
E6: 27 | F6: 0.131 | G6: 0.163
E7: 28 | F7: 0.131 | G7: 0.163
E8: 29 | F8: 0.131 | G8: 0.163
E9: 30 | F9: 0.131 | G9: 0.163
E10: 31 | F10: 0.131 | G10: 0.163
B11: ="Informatie opbouwpercentage "&YEAR(Informatie!C1)&" (huidig jaar)" -> Informatie opbouwpercentage 2023 (huidig jaar) | E11: 32 | F11: 0.131 | G11: 0.163
B12: Lage opbouwpercentage | C12: 0.0142 | E12: 33 | F12: 0.131 | G12: 0.163 | I12: ="Informatie gewogen gemiddelde " &YEAR(Informatie!C1)&" (keuze laag)" -> Informatie gewogen gemiddelde 2023 (keuze laag)
B13: Hoge opbouwpercentage | C13: 0.0176 | E13: 34 | F13: 0.131 | G13: 0.163 | I13: Leeftijdsklasse | J13: Ondergrens | K13: Bovengrens | L13: Premie percentage | M13: Aantal
E14: 35 | F14: 0.151 | G14: 0.188 | I14: Tot 35 | J14: 25 | K14: 34 | L14: 0.131 | M14: =IF(YEAR(Informatie!C$1)=2015,"",FREQUENCY('Overzicht deelnemers'!I$2:I$10300,Parameters!K14:K20)) -> 0
B15: ="Informatie opbouwpercentage "& YEAR(Informatie!C1)+1 -> Informatie opbouwpercentage 2024 | E15: 36 | F15: 0.151 | G15: 0.188 | I15: Vanaf 35 t/m 39 | J15: 35 | K15: 39 | L15: 0.151 | M15: =IF(YEAR(Informatie!C$1)=2015,"",FREQUENCY('Overzicht deelnemers'!I$2:I$10300,Parameters!K15:K$20)-SUM($M$14:M14)) -> 0
B16: Lage opbouwpercentage | C16: 0.0142 | E16: 37 | F16: 0.151 | G16: 0.188 | I16: Vanaf 40 t/m 44 | J16: 40 | K16: 44 | L16: 0.176 | M16: =IF(YEAR(Informatie!C$1)=2015,"",FREQUENCY('Overzicht deelnemers'!I$2:I$10300,Parameters!K16:K$20)-SUM($M$14:M15)) -> 0
B17: Hoge opbouwpercentage | C17: 0.0176 | E17: 38 | F17: 0.151 | G17: 0.188 | I17: Vanaf 45 t/m 49 | J17: 45 | K17: 49 | L17: 0.203 | M17: =IF(YEAR(Informatie!C$1)=2015,"",FREQUENCY('Overzicht deelnemers'!I$2:I$10300,Parameters!K17:K$20)-SUM($M$14:M16)) -> 0
E18: 39 | F18: 0.151 | G18: 0.188 | I18: Vanaf 50 t/m 54 | J18: 50 | K18: 54 | L18: 0.235 | M18: =IF(YEAR(Informatie!C$1)=2015,"",FREQUENCY('Overzicht deelnemers'!I$2:I$10300,Parameters!K18:K$20)-SUM($M$14:M17)) -> 1
B19: Informatie eigenbijdrag | E19: 40 | F19: 0.176 | G19: 0.219 | I19: Vanaf 55 t/m 59 | J19: 55 | K19: 59 | L19: 0.27 | M19: =IF(YEAR(Informatie!C$1)=2015,"",FREQUENCY('Overzicht deelnemers'!I$2:I$10300,Parameters!K19:K$20)-SUM($M$14:M18)) -> 1
B20: ="Max eigenbijdrage percentage "&YEAR(Informatie!C1) -> Max eigenbijdrage percentage 2023 | C20: 0.468 | E20: 41 | F20: 0.176 | G20: 0.219 | I20: Vanaf 60 | J20: 60 | K20: 70 | L20: 0.305 | M20: =IF(YEAR(Informatie!C$1)=2015,"",FREQUENCY('Overzicht deelnemers'!I$2:I$10300,Parameters!K20:K$20)-SUM($M$14:M19)) -> 0
B21: ="Max eigenbijdrage percentage "&YEAR(Informatie!C1)+1 -> Max eigenbijdrage percentage 2024 | C21: 0.468 | E21: 42 | F21: 0.176 | G21: 0.219 | I21: Gewogen gemiddelde | L21: =IF(YEAR(Informatie!C1)=2015,"",ROUND(SUMPRODUCT(L14:L20,M14:M20)/M21,4)) -> 0.2525 | M21: =IF(YEAR(Informatie!C1)=2015,"",SUM(M14:M20)) -> 2
E22: 43 | F22: 0.176 | G22: 0.219
E23: 44 | F23: 0.176 | G23: 0.219 | I23: ="Informatie eigenbijdrage"&""&YEAR(Informatie!C1)&""&"(keuze laag)" -> Informatie eigenbijdrage2023(keuze laag) | L23: Doorsneepremie
E24: 45 | F24: 0.203 | G24: 0.252 | I24: Jongste deelnemer | J24: =IF(YEAR(Informatie!C1)=2015,"",MIN('Overzicht deelnemers'!I2:I100300)) -> 52 | L24: PG (excedent bedragen) | M24: ='Overzicht deelnemers'!G402 -> 46406
E25: 46 | F25: 0.203 | G25: 0.252 | I25: Laagste premiepercentage voor de werkgever | J25: =IF(YEAR(Informatie!C1)=2015,"",VLOOKUP(J24,J14:M20,3,TRUE)) -> 0.235 | L25: Totale premies | M25: ='Overzicht deelnemers'!L402 -> 12396.69
E26: 47 | F26: 0.203 | G26: 0.252 | I26: Max eigenbijdrage | J26: =C20 -> 0.468 | L26: Doorsneepremie | M26: =M25/M24 -> 0.2671354997
E27: 48 | F27: 0.203 | G27: 0.252 | J27: =IF(YEAR(Informatie!C1)=2015,J4,ROUND(IF(J26*M26<=J25,M26*J26,J25),6)) -> 0.125019 | K27: =IF(YEAR(Informatie!C1)=2015,+J27*J26,"") -> 
E28: 49 | F28: 0.203 | G28: 0.252
E29: 50 | F29: 0.235 | G29: 0.292 | I29: ="Informatie gewogen gemiddelde " &YEAR(Informatie!C1)&" (keuze hoog)" -> Informatie gewogen gemiddelde 2023 (keuze hoog)
E30: 51 | F30: 0.235 | G30: 0.292 | I30: Leeftijdsklasse | J30: Ondergrens | K30: Bovengrens | L30: Premie percentage | M30: Aantal
E31: 52 | F31: 0.235 | G31: 0.292 | I31: Tot 35 | J31: 25 | K31: 34 | L31: 0.163 | M31: =IF(YEAR(Informatie!C$1)=2015,"",FREQUENCY('Overzicht deelnemers'!I$2:I$10300,Parameters!K31:K37)) -> 0
E32: 53 | F32: 0.235 | G32: 0.292 | I32: Vanaf 35 t/m 39 | J32: 35 | K32: 39 | L32: 0.188 | M32: =IF(YEAR(Informatie!C$1)=2015,"",FREQUENCY('Overzicht deelnemers'!I$2:I$10300,Parameters!K32:K$37)-SUM($M$31:M31)) -> 0
E33: 54 | F33: 0.235 | G33: 0.292 | I33: Vanaf 40 t/m 44 | J33: 40 | K33: 44 | L33: 0.219 | M33: =IF(YEAR(Informatie!C$1)=2015,"",FREQUENCY('Overzicht deelnemers'!I$2:I$10300,Parameters!K33:K$37)-SUM($M$31:M32)) -> 0
E34: 55 | F34: 0.27 | G34: 0.335 | I34: Vanaf 45 t/m 49 | J34: 45 | K34: 49 | L34: 0.252 | M34: =IF(YEAR(Informatie!C$1)=2015,"",FREQUENCY('Overzicht deelnemers'!I$2:I$10300,Parameters!K34:K$37)-SUM($M$31:M33)) -> 0
E35: 56 | F35: 0.27 | G35: 0.335 | I35: Vanaf 50 t/m 54 | J35: 50 | K35: 54 | L35: 0.292 | M35: =IF(YEAR(Informatie!C$1)=2015,"",FREQUENCY('Overzicht deelnemers'!I$2:I$10300,Parameters!K35:K$37)-SUM($M$31:M34)) -> 1
E36: 57 | F36: 0.27 | G36: 0.335 | I36: Vanaf 55 t/m 59 | J36: 55 | K36: 59 | L36: 0.335 | M36: =IF(YEAR(Informatie!C$1)=2015,"",FREQUENCY('Overzicht deelnemers'!I$2:I$10300,Parameters!K36:K$37)-SUM($M$31:M35)) -> 1
E37: 58 | F37: 0.27 | G37: 0.335 | I37: Vanaf 60 | J37: 60 | K37: 70 | L37: 0.379 | M37: =IF(YEAR(Informatie!C$1)=2015,"",FREQUENCY('Overzicht deelnemers'!I$2:I$10300,Parameters!K37:K$37)-SUM($M$31:M36)) -> 0
E38: 59 | F38: 0.27 | G38: 0.335 | I38: Gewogen gemiddelde | L38: =IF(YEAR(Informatie!C1)=2015,"",ROUND(SUMPRODUCT(L31:L37,M31:M37)/M38,4)) -> 0.3135 | M38: =IF(YEAR(Informatie!C1)=2015,"",SUM(M31:M37)) -> 2
E39: 60 | F39: 0.305 | G39: 0.379
E40: 61 | F40: 0.305 | G40: 0.379 | I40: ="Informatie eigenbijdrage "&YEAR(Informatie!C1)&" (keuze hoog)" -> Informatie eigenbijdrage 2023 (keuze hoog) | L40: Doorsneepremie
E41: 62 | F41: 0.305 | G41: 0.379 | I41: Jongste deelnemer | J41: =IF(YEAR(Informatie!C1)=2015,"",MIN('Overzicht deelnemers'!I2:I10300)) -> 52 | L41: PG (excedent bedragen) | M41: ='Overzicht deelnemers'!G402 -> 46406
E42: 63 | F42: 0.305 | G42: 0.379 | I42: Laagste premiepercentage voor de werkgever | J42: =IF(YEAR(Informatie!C1)=2015,"",VLOOKUP(J41,J31:M37,3,TRUE)) -> 0.292 | L42: Totale premies | M42: ='Overzicht deelnemers'!T402 -> 15382.7
E43: 64 | F43: 0.305 | G43: 0.379 | I43: Max eigenbijdrage | J43: =C20 -> 0.468 | L43: Doorsneepremie | M43: =M42/M41 -> 0.331480843
E44: 65 | F44: 0.305 | G44: 0.379 | J44: =IF(YEAR(Informatie!C1)=2015,K4,ROUND(IF(J43*M43<=J42,M43*J43,J42),6)) -> 0.155133 | K44: =IF(YEAR(Informatie!C1)=2015,+J44*J43,"") -> 
E45: 66 | F45: 0.305 | G45: 0.379
E46: 67 | F46: 0.305 | G46: 0.379
E47: 68 | F47: 0.305 | G47: 0.379
E48: 69 | F48: 0.305 | G48: 0.379
E49: 70 | F49: 0.305 | G49: 0.379
I51: ="Informatie gewogen gemiddelde" &YEAR(TODAY())+1&" (keuze laag)" -> Informatie gewogen gemiddelde2023 (keuze laag)
I52: Leeftijdsklasse | J52: Ondergrens | K52: Bovengrens | L52: Premie percentage | M52: Aantal
I53: Tot 35 | J53: 25 | K53: 34 | L53: 0.131 | M53: =FREQUENCY('Overzicht deelnemers'!J$2:J$10300,Parameters!K53:K59) -> 0
I54: Vanaf 35 t/m 39 | J54: 35 | K54: 39 | L54: 0.151 | M54: =FREQUENCY('Overzicht deelnemers'!J$2:J$10300,Parameters!K54:K$59)-SUM($M$53:M53) -> 0
I55: Vanaf 40 t/m 44 | J55: 40 | K55: 44 | L55: 0.176 | M55: =FREQUENCY('Overzicht deelnemers'!J$2:J$10300,Parameters!K55:K$59)-SUM($M$53:M54) -> 0
I56: Vanaf 45 t/m 49 | J56: 45 | K56: 49 | L56: 0.203 | M56: =FREQUENCY('Overzicht deelnemers'!J$2:J$10300,Parameters!K56:K$59)-SUM($M$53:M55) -> 0
I57: Vanaf 50 t/m 54 | J57: 50 | K57: 54 | L57: 0.235 | M57: =FREQUENCY('Overzicht deelnemers'!J$2:J$10300,Parameters!K57:K$59)-SUM($M$53:M56) -> 1
I58: Vanaf 55 t/m 59 | J58: 55 | K58: 59 | L58: 0.27 | M58: =FREQUENCY('Overzicht deelnemers'!J$2:J$10300,Parameters!K58:K$59)-SUM($M$53:M57) -> 1
I59: Vanaf 60 | J59: 60 | K59: 70 | L59: 0.305 | M59: =FREQUENCY('Overzicht deelnemers'!J$2:J$10300,Parameters!K59:K$59)-SUM($M$53:M58) -> 0
I60: Gewogen gemiddelde | L60: =ROUND(SUMPRODUCT(L53:L59,M53:M59)/M60,4) -> 0.2525 | M60: =SUM(M53:M59) -> 2
I62: ="Informatie eigenbijdrage "&YEAR(TODAY())+1&" (keuze laag)" -> Informatie eigenbijdrage 2023 (keuze laag) | L62: Doorsneepremie
I63: Jongste deelnemer | J63: =MIN('Overzicht deelnemers'!J2:J10300) -> 53 | L63: PG (excedent bedragen) | M63: ='Overzicht deelnemers'!G402 -> 46406
I64: Laagste premiepercentage voor de werkgever | J64: =VLOOKUP(J63,J53:M59,3,TRUE) -> 0.235 | L64: Totale premies | M64: ='Overzicht deelnemers'!P402 -> 12396.69
I65: Max eigenbijdrage | J65: =C21 -> 0.468 | L65: Doorsneepremie | M65: =M64/M63 -> 0.2671354997
J66: =ROUND(IF(J65*M65<=J64,M65*J65,J64),6) -> 0.125019
I68: ="Informatie gewogen gemiddelde "&YEAR(Informatie!C1)+1& " (keuze hoog)" -> Informatie gewogen gemiddelde 2024 (keuze hoog)
I69: Leeftijdsklasse | J69: Ondergrens | K69: Bovengrens | L69: Premie percentage | M69: Aantal
I70: Tot 35 | J70: 25 | K70: 34 | L70: 0.163 | M70: =FREQUENCY('Overzicht deelnemers'!J$2:J$10300,Parameters!K70:K76) -> 0
I71: Vanaf 35 t/m 39 | J71: 35 | K71: 39 | L71: 0.188 | M71: =FREQUENCY('Overzicht deelnemers'!J$2:J$10300,Parameters!K71:K77)-SUM($M$70:M70) -> 0
I72: Vanaf 40 t/m 44 | J72: 40 | K72: 44 | L72: 0.219 | M72: =FREQUENCY('Overzicht deelnemers'!J$2:J$10300,Parameters!K72:K78)-SUM($M$70:M71) -> 0
I73: Vanaf 45 t/m 49 | J73: 45 | K73: 49 | L73: 0.252 | M73: =FREQUENCY('Overzicht deelnemers'!J$2:J$10300,Parameters!K73:K79)-SUM($M$70:M72) -> 0
I74: Vanaf 50 t/m 54 | J74: 50 | K74: 54 | L74: 0.292 | M74: =FREQUENCY('Overzicht deelnemers'!J$2:J$10300,Parameters!K74:K80)-SUM($M$70:M73) -> 1
I75: Vanaf 55 t/m 59 | J75: 55 | K75: 59 | L75: 0.335 | M75: =FREQUENCY('Overzicht deelnemers'!J$2:J$10300,Parameters!K75:K81)-SUM($M$70:M74) -> 1
I76: Vanaf 60 | J76: 60 | K76: 70 | L76: 0.379 | M76: =FREQUENCY('Overzicht deelnemers'!J$2:J$10300,Parameters!K76:K82)-SUM($M$70:M75) -> 0
I77: Gewogen gemiddelde | L77: =ROUND(SUMPRODUCT(L70:L76,M70:M76)/M77,4) -> 0.3135 | M77: =SUM(M70:M76) -> 2
I79: ="Informatie eigenbijdrage "&YEAR(Informatie!C1)+1&" (keuze hoog)" -> Informatie eigenbijdrage 2024 (keuze hoog) | L79: Doorsneepremie
I80: Jongste deelnemer | J80: =MIN(IF('Overzicht deelnemers'!J2:J10300=0,"",'Overzicht deelnemers'!J2:J10300)) -> 53 | L80: PG (excedent bedragen) | M80: ='Overzicht deelnemers'!G402 -> 46406
I81: Laagste premiepercentage voor de werkgever | J81: =VLOOKUP(J80,J70:M76,3,TRUE) -> 0.292 | L81: Totale premies | M81: ='Overzicht deelnemers'!X402 -> 15382.7
I82: Max eigenbijdrage | J82: =C21 -> 0.468 | L82: Doorsneepremie | M82: =M81/M80 -> 0.331480843
J83: =ROUND(IF(J82*M82<=J81,M82*J82,J81),6) -> 0.155133
